Workbook

Sheet Log-fil (hidden)
A1: Initialer | B1: Filnavn | C1: Ændringer | D1: Bemærkning | E1: Dato
A2: VIHU | B2: JAGG_310809 | C2: Justeringer af layout på Ude, Ver, Uds Enk, Gru og Ind. Har opdateret navngivning på Ver og referet celler til D_Ver. | D2: Jeg har skrvet kommentaret i D_Ver, som der skal findes en løsning på. | E2: 2009-08-31
A3: JAF | B3: JAGG_020909 | C3: Har indtastet stofdata i enkeltstof ark. Var nød til at slette sidst linie i VBA kode for module 10 Fejlfukk = fejlfunk, idet jeg har en dansk version af Office 2007 og fejlfunk er en funktion ???. Det virker nu ihvert fald på mit maskin. Har tastet bedre inputdata i Vertikal ark, derfor kan figur beregnes | D3: Har svaret på en del af Victors spørgsmål, om hvor data kommer fra og der er et par parametre som skal beregnes - men har ikke indført beregningsfornel i beregningsark. Vertikal transport kan ikke nedbrydningskonstant =0 | E3: 2009-09-02
B4: JAGG_160909 | C4: Fået listetabel for kemiske stoffer til at virke. Har arbejdet med konstanter på Enk og D_Enk. Har lavet datahenvisninger i Ver og D_Ver. Har tilføjet nogle få nye kommentarer til D_Ver | D4: Jeg har ændret input af kemiske stoffer, således at alle brugerdata indføres på Enk.
A5: JAF | B5: Jagg_170909 | C5: i datark enkeltstoffer har indsat formel for Koc. I datark vertikal transport har kopiet visse linier for retardation ( stofafhængig) og Dispersion ( ikke stofafhængig ) til de rigtig blok og har rette formel for disse- de oprindeligelinier skal slettes. Jeg har indsat formel for Mydata i sølje for indtastet data for en række stofparametre som f.eks. henry og Koc.På brugerfladen har rettet formel for Volumenvægt således at der kan håndteres entet standard data eller indtastet data og har navngivne D-Ver_rhob. | D5: Der er en række visuel basic fejl på mit pc og forskellig knap kan ikke køre derfor har jeg blot rette formel og navn ( office 2007 er dansk) | E5: 2009-09-16
A6: ANI | B6: JAGG_250909 | C6: Der er foretaget rettelser i Vertikal transport og implementeret ét beregningsark for alle vertikale Err. Funktioner. Det har umiddelbart forbedret performance betydeligt! Der er ikke hentet data om på input arket. | E6: 2009-09-25
A7: JAF | B7: Jagg_270909 | C7: Ændret Datark_enkeltstoffer G37 og G39 fra Hvis(værdi(….. Til Hvis(er.tal(f37);f37; e37) samt for stof 2, 3 og 4. Ligeledes i dataark_vertikal tansport er J27 ændret til H27 og ligeledes J28, 29 samt for stof 2, 3 og 4. I beregningsark _vertikal transport er der fejl i formel i h17 - skal være ^1,5 ( ikke ^2,5)beregning_vertikalark er formel i | D7: Kontrol af Vertikal transport beregning - der skal være muligt at anvende 0 som nedbrydningskonstant- derfor er rettet. Fejl i formel for effektiv diffusion koefficient er rettet | E7: 2009-09-27
A8: VIHU | B8: JAGG_071009 | C8: Opdateret userforms i forhold til stoffer. Andre ændringer i makroer | E8: 2009-10-07
A9: JAF | B9: JAGG 091009 | C9: har tilføjet de sidste henvisning i brugerflade og datark ivertikal transport. Har rette et par fejl i brugerfalden for grundvand | D9: indstilling er sat til manual beregning | E9: 2009-10-09
A10: ANI | B10: JAGG_191009 | C10: Har påbegyndt implementering af Grundvandsberegninger. Samt dataark for grundvandsberegninger | E10: 2009-10-19
A11: ANI | B11: JAGG_231009 | C11: Fortsat implementering af grundvandsberegninger | E11: 2009-10-23
A12: VIHU | B12: JGGG_291009 | C12: Grundvandsbrugerflade er opdateret. Bedre integration mellem brugerflade og dataark. Oliekomponent dataark og bergegningsark tilføjet | E12: 2009-10-29
A13: ANI | B13: JAGG_301009 | C13: Fortsat implementering af grundvandsberegninger | E13: 2009-10-30
A14: JAF | B14: JAGG_311009 | C14: Kontrol og rettelser til Grundvandsdel og vertikaltransport | D14: Påbegyndt indsætning af navne til vising af værdi i brugerfladen samt figurer | E14: 2009-10-31
A15: ANI | B15: JAGG_021109 | C15: Implementering af Beregningsark til grundvandsberegninger. | D15: Der mangler fortsat afgørelse omkring afstandsdataets dataflow mellem dataark, beregningsark og brugerflade. | E15: 2009-11-02
A16: ANI | B16: JAGG_041109 | C16: Implementering af beregningsark til udeluft samt tilføjelse af navne på afstandsdata for grundvandsbereginger jf. d. 02-11-2009 | E16: 2009-11-02
A17: VIHU | B17: JAGG_131109 | C17: Grundvand brugerflade opdateret efter aftale med JAF. Oliemodulet sammenhæng mellem Olie, D_Olie og B_Olie | E17: 2009-11-13
A18: VIHU | B18: JAGG_021209 | C18: Lizzis stofdatabase er tilføjet | E18: 2009-12-02
A19: VIHU | B19: JAGG_101209 | C19: Udskriftsark af grundvand og udluft rettet til. Tilføjelse af funktioner i Udeluft, Grundvand, Indeklima og Enkeltstoffer, som sletter al bruger data. Ændring af dataaflevring fra systemværdier. Alle værdier afleveres direkte til dataark | D19: Der er nogle ting, som NIRAS må se på ift udskriftsarkene, idet de relevante data mangler i dataark | E19: 2009-12-10
A20: jaf | B20: JAGG 040110 | C20: Rettelse og kontrol af alle ark for enkeltstoffer, udeluft, grundvand og vertikal , herunder mangler data til udskrifter jf. VIHU | D20: Mangler at indsatte henvisning til flere data i udskrift for vertikal stoffer | E20: 2010-01-04
A21: TVB | B21: JAGG 220110 | C21: Alle ark er ordned efer gangordning Alle felter på alle indtastningsark, dataark, beregningsark og visningsark er skrivebeskyttet, undtagen felter der skal kunne skrives i | E21: 2010-01-22
A22: VIHU | B22: JAGG 250110_c | C22: Funktion. så det er muligt at opdatere egen liste er ordnet. Knapper til at bevæde sig er ordnet | E22: 2010-01-25 | F22: Kode: JAGG2
A23: JAF | B23: JAGG 230410 | C23: Rettelse og kontrol af alle ark for enkeltstoffer, udeluft, grundvand og vertikal , herunder mangler data til udskrifter jf. notat af 26-012010 samt ved workshoppenVIHU | E23: 2010-04-23
A24: JAF | B24: JAGG 270410 | C24: I.udkast til udeluftolie | D24: Henvisning følger ikke protokol med dataark og beregningsark endnu | E24: 2010-04-27
A25: JAF | B25: JAGG 280510 | C25: Grundvandolie _dataark, beregningsark + Udskriftsark Udeluftolie_ udskriftsark+rettelser | E25: 2010-05-28
A26: VIHU | B26: JAGG_10-05-28_VIHU | C26: Indklima-olie: navngivet samt dataark. Overførselknapper fra udeluft of grundvand virker - enkeltstoffer/oliemodul | E26: 2010-05-28
A27: VIHU | B27: JAGG_10-05-31_VIHU | C27: Overførselknap indklima. Navngivning Beregning_indeklima. Udskiftet stofdatabase. Udskrift Enkeltstoffer opdateret | E27: 2010-05-31
A28: VIHU | B28: JAGG_10-06-01_VIHU | C28: Udskriftsark er blevet gennemgået. Knapper for slet indhold er blevet ordnet | E28: 2010-06-01
A29: VIHU | B29: JAGG_10-09-09_VIHU | C29: Indeklima og Indeklima-Olie er blevet delt op på to ark. Knapper er tilføjet og funktionalitet på knapper er tjekket | E29: 2010-07-09
A30: VIHU | B30: JAGG-BETA-3 | C30: verførsel af data og nulstil for ind og indolie er ordnet | E30: 2010-07-12
A31: JAF | B31: JAGG-BETA-6 | C31: Beregninger kontrolleret og små fejl rettet, herunder ved ændringer mellem let og tung olie forudeluft og grundvandsmoduller.Mulighed for anvendelse af én nedbrydningskonstant for grunvand olie er tilføjet. DESUDEN er der tilføjet modul for vertikal transport af oliestoffer. Knapper til navigation, nulstilling af alle værdier og til kommentering mangler redigering - navn til kommentar er dog defineret. | E31: 2010-08-11
A32: TVB | B32: JAGG-BETA-6,4 | C32: Indeklima beregninger for oliemodulet er lagt ind, både med udskriftsark og vejledninger. Der er foretaget mindre rettelser i specielt udskriftarkenes valideringsregler. Alle ark er gennemgået med hensyn til funktionalitet af knapper | E32: 2010-12-03
A33: VIHU | B33: JAGG-BETA-6_7 | C33: Rettelser lavet | E33: 2010-12-21
A34: TVB | B34: JAGG-GAMMA | C34: Navne på celler og datas oprindelse er rettet på alle data og beregningsark, rækkefølgen af fanebladene er rettet til GV, IND, UD, Vertikal

Sheet Oversigt over Sheetsark i JAGG (hidden)
A1: Ark | E1: Initialer | F1: Udført | G1: Aktion
A2: Logfil
A3: Opstart | D3: Vejledning | E3: VIHU | F3: OK | G3: GENERELT: Lukker ikke vejlednings ark ved navigation til andre ark
D4: Dataark | E4: VIHU | F4: OK | G4: GENERELT: Lukker ikke data ark ved navigation til andre ark
E5: VIHU | F5: OK | G5: NULSTIL ALLE FEJLER
C6: Opstart_dataark | E6: TVB | G6: OK
C8: Vejledning_Opstart | E8: TVB | G8: OK
A10: Enkeltstoffer
C11: Jordtype | E11: TVB | F11: OK
C12: Egenliste | E12: VIHU | F12: OK | G12: Egenliste jordtype: Vandmættet porøsitet bør ikke fremgå, da værdien ikke anvendes men beregnes. Hvis værdien beholdes skal den være uden benævnelse - slet "kg/l" eller med "m³/m³" (kubik-tegnet skrives [Alt]+0179 på numerisk tastatur)
C13: Stof | D13: 1, 2, 3, 4 | E13: TVB | F13: OK
C14: Egenliste | E14: TVB | F14: OK
C15: Bemærkningfelter | E15: TVB | F15: OK
C16: Nulstil | E16: TVB | F16: OK
C17: Navigeringsknapper | E17: TVB | F17: OK
C18: Dataark_Enkeltstoffer | E18: TVB | G18: OK
D20: Beregning_Enkeltstoffer | E20: TVB | G20: OK
C22: Udskrift_Enkeltstoffer | E22: TVB | G22: OK
C24: Vejledning_Enkeltstoffer | E24: TVB | G24: OK
A26: Vertikal transport
C27: Nettonedbør | E27: TVB | G27: OK
C28: Jordtype | E28: TVB | G28: OK
C29: Aerob/anaerob | E29: TVB | G29: OK
C30: Bemærkninger | E30: TVB | G30: OK
C31: Stofkurver | E31: TVB | G31: OK
C32: Dataark_Vertikal_Transport | E32: TVB | G32: OK
D34: Beregning_ Vertikal_Transport | E34: TVB | G34: OK
C36: Udskrift_ Vertikal_Transport | E36: TVB | G36: OK
C38: Vejledning_Vertikal_Transport | E38: TVB | G38: OK
A40: Grundvand
C41: Skift mellem A og B beregning | E41: TVB | G41: OK
C42: Nettonedbør | E42: TVB | G42: OK
C43: Kildestyrke koncentration | E43: TVB | G43: OK
C44: Aerob/anaerob | E44: TVB | G44: OK
C45: Vis detailoplysninger | E45: TVB | G45: OK
C46: Stofkurver | E46: TVB | G46: OK
C47: Bemærkninger | E47: TVB | G47: OK
C48: Dataark_grundvand | E48: TVB | G48: OK
D50: Beregning_ Grundvand | E50: TVB | G50: OK
C52: Udskrift_ Grundvand | E52: TVB | G52: OK
C54: Vejledning_grundvand | E54: TVB | G54: OK
A56: Udeluft
C57: Jordtyper | E57: TVB | G57: OK
C58: Bemærkninger | E58: TVB | G58: OK
C59: Vis/skjul detaljer | E59: TVB | G59: OK
C61: Dataark_Udeluft | E61: TVB | G61: OK
D63: Beregning_ Udeluft | E63: TVB | G63: OK
C65: Udskrift_ Udeluft | E65: TVB | G65: OK
C67: Vejledning_Udeluft | E67: TVB | G67: OK
A69: Indeklima
A70: Terrændæk | C70: Membran og kapilærbrydende lag | E70: TVB | G70: OK
C71: Jordtype | E71: TVB | G71: OK
C72: Betontype | E72: TVB | G72: OK
C73: Vis detaljer | E73: TVB | G73: OK
C74: Bemærkninger | E74: TVB | G74: OK
A75: krybekælder | C75: Betondæk og kapilærbrydende lag | E75: TVB | G75: OK
C76: Jordtype | E76: TVB | G76: OK
C77: Etageadskillelse | E77: TVB | G77: OK
C78: Bemærkninger | E78: TVB | G78: OK
B81: Indeklima Krybekælder | E81: TVB | G81: OK
C83: Dataark_ Indeklima | E83: TVB | G83: OK
D85: Beregning_ Indeklima | E85: TVB | G85: OK
C87: Udskrift_ Indeklima | E87: TVB | G87: OK
C89: Udskrift_ Indeklima_krybekælder
C91: Vejledning_Udeluft | E91: TVB | G91: OK
A93: Oliestoffer | E93: LISA | G93: Vi skal lige se på vurderingen af fri fase
C94: Jordtype | E94: TVB | F94: OK
C95: Egenliste | E95: VIHU | F95: OK | G95: Se under enkeltstoffer
C96: Skift mellem Olieprofiler | E96: TVB | F96: OK
C97: Navigeringsknapper | E97: TVB | F97: OK
C98: Nulstill værdier | E98: TVB | F98: OK
C100: Dataark_oliestoffer | E100: TVB | G100: OK
D102: Beregninger_Oliestoffer | E102: TVB | G102: OK
C104: Udskrift_Olieestoffer | E104: VIHU | F104: OK | G104: Flueben ved bemærkning fugacitet virker ikke
C106: Vejledning_Oliestoffer | E106: TVB | G106: OK
B108: Grundvand-Olie | E108: TVB | G108: OK
C111: Dataark Grundvand-Olie | E111: TVB | G111: OK
D113: Bereningsark Grundvand-Olie | E113: TVB | G113: OK
C115: Udskriftsark Grundvand-Olie | E115: TVB | G115: OK
C117: Vejledning_Grundvand-Olie | E117: TVB | G117: OK
B119: Udeluft-Olie | E119: VIHU | F119: OK | G119: Bemærknings felter kan der ikke skrives i
C122: Dataark_Udeluft-Olie | E122: TVB | G122: OK
D124: Beregningsark_Udeluft-Olie | E124: TVB | G124: OK
C126: Udskriftark_Udeluft-Olie | E126: TVB | G126: OK
C128: Vejledning_Udeluft-Olie | E128: TVB | G128: OK
B130: Indeklima-Olie | E130: TVB | G130: OK
C133: Dataark_Indeklima-Olie | E133: TVB | G133: OK
D136: Beregningsark_Indeklima-Olie | E136: TVB | G136: OK
C138: Udskriftark_Indeklima-Olie | E138: TVB | G138: OK
C140: Vejledning_Indeklima-Olie | E140: TVB | G140: OK
B142: Indeklima_Krybekælder-Olie | E142: TVB | G142: OK
E143: TVB | G143: OK
C144: Udskriftark_KrybekælderIndeklima-Olie | E144: TVB | G144: OK
C146: Vejledning_KrybekælderIndeklima-Olie | E146: TVB | G146: OK (samme som Indeklima
B148: Vertikal transport-olie | E148: TVB | G148: OK
C151: Dataark_Vertikal-olie | E151: TVB | G151: OK
D153: Beregning_ Vertikal-olie | E153: TVB | G153: OK
D155: Udskrift_ Vertikal-olie | E155: TVB | G155: OK
E156: TVB | F156: JA | G156: Konitunal formating skal laves om til OLIE
D157: Vejledning_Vertikal-olie | E157: TVB | G157: OK

Sheet Opstart
A1: Risikovurdering af forurenede grunde
A2: Version 2.1 | Z2: Log over ændringer
Z3: Version 2.1 den 01-02-2016: | AA3: Væsentlig revidering af fugacitetsberegninger i Olie & benzin modulet
A4: Miljøstyrelsen, Cirkulær Økonomi & Affald | AA4: Implementerin DTU's modul V1D for vertikal transport både for Enkeltstoffer og Olie & benzin modulet
A5: Haraldsgade 53 | AA5: Layoutmæssige rettelser, f.eks. stavefejl, forkerte enheder, og antal af betydnede cifre i udskriftark
A6: 2100 København Ø | Z6: Version 2.1 den 07-03-2019: | AA6: Rettelse af små skønhedsfejl i beregningsmoduler og layout samt opdatering af nedbrydningsrater iht. Tabel 15 i Miljøprojekt 2013 fra 2018.
A7: Tlf. +45 72 54 40
A8: E-post: mst@mst.dk | Z8: Version 2.1 den 17-11-2022: | AA8: Alle 22 PFAS-forbindelser samt NN-DMS og TFA er tilføjet til stofdatabasen.
A9: Vejledning fra Miljøstyrelsen, Oprydning på forurenede lokaliteter nr. 6 1998 | AA9: Grundvandskriterierne for sum af hhv. 22 PFAS, 4 PFAS og pesticider er tilføjet mhp. beregninger i grundvandsmodul.
A12: Lokaliteten | D12: Indtast navn, adresse m.v. for den lokalitet hvor JAGG-beregningerne foretages
A14: Navn:
A16: Adresse: | K16: Postnr./by
A18: Lokalitetsnummer
A20: Matrikelnummer:
A22: Note:
A24: Beregningene udført af
D25: Indtast firmanavn til identifikation af hvem der har foretaget JAGG-beregningerne
A27: Firmanavn | K27: Projekt nr.
A29: Navn/initialer
A32: Udfør beregningene
D33: Vælg hvorvidt der ønskes udført beregninger for enkeltstoffer eller for olie- og benzinblandinger
D34: Figuren nedenfor viser sammenhænget mellem modulerne, samt hvorledes der navigeres mellem disse

Sheet Dataark_Opstart (hidden)
A1: Dataark - Opstart
A2: Jord
A3: Lokaliteten
A4: navn: | B4: =IF(ISBLANK(Ops_navn),"",Ops_navn) -> 
A5: adresse: | B5: =IF(ISBLANK(Ops_adr),"",Ops_adr) -> 
A6: postnr/by: | B6: =IF(ISBLANK(Ops_post),"",Ops_post) -> 
A7: Lokalitetsnummer: | B7: =IF(ISBLANK(Ops_lok),"",Ops_lok) -> 
A8: Matrikel nummer: | B8: =IF(ISBLANK(Ops_mat),"",Ops_mat) -> 
A9: Note: | B9: =IF(ISBLANK(Ops_note),"",Ops_note) -> 
A11: Beregningene udført af
A12: Firmanavn | B12: =IF(ISBLANK(Ops_firma),"",Ops_firma) -> 
A13: navn/initialer | B13: =IF(ISBLANK(Ops_init),"",Ops_init) -> 
A14: Projekt nr. | B14: =IF(ISBLANK(Ops_pro),"",Ops_pro) -> 

Sheet Vejledning_Opstart (hidden)
B1: Vejledning - Opstart
B2: Formålet med opstarts skærmbilledet er at give mulighed for at indtaste stamoplysninger om den enkelte lokalitet som JAGG beregningerne udføres for.
B3: De indtastede stamoplysninger vil blive vist i forbindelse med alle beregninger som gennemføres i JAGG, og oplysningerne vil også fremgå af udskriftssiderne.
B5: Fra dataarket er der mulighed for gå til to typer af beregninger: Enkeltstoffer eller Olie og Benzin
B6: ved at klikke på de respektive knapper øverst til højre i skærmbilledet (1)
B26: Enkeltstoffer giver mulighed for at foretage beregninger med op til fire forskellige stoffer samtidigt, eller
B27: at foretage beregningerne for det samme stof men med fire forskellige koncentrationer. Modulet giver
B28: også mulighed for samtidigt at foretage beregningerne udefra en jordprøve, en vandprøve og/eller en poreluftprøve
B30: Olie og benzin modulet giver mulighed for at foretage en samlet beregninger af alle de kemiske stoffer
B31: som normalt indgår i en jordanalyse af kulbrinter.
B33: Knappen "Nulstil værdier" (2) sletter alle indtastede værdier på alle ark i regnearket.
B35: Knappen "Reset Knapformat" (3). I visse tilfælde kan man risikere at knapperne i regnearket ændrer plads og eller
B36: størrelse. Knappen hjælper med at genoprette det oprindelige skærm design.

Sheet Enkeltstoffer (hidden)
A1: Kemiske data og fugacitet for enkeltstoffer
A2: Lokaliteten
A4: Lokalitetsnavn: | H4: =IF(Ops_navn<>"",Ops_navn,"") -> 
A6: Adresse: | H6: =IF(Ops_adr<>"",Ops_adr,"") ->  | R6: Postnr./By: | T6: =IF(Ops_post<>"",Ops_post,"") -> 
A8: Lokalitetsnummer: | H8: =IF(Ops_lok<>"",Ops_lok,"") ->  | R8: Projektnr: | T8: =IF(Ops_pro<>"",Ops_pro,"") -> 
A10: Beregning udføres for : | H10: =D_Enk_stofnavn_1 ->  | N10: =D_Enk_stofnavn_2 ->  | T10: =D_Enk_stofnavn_3 ->  | Z10: =D_Enk_stofnavn_4 -> 
A13: Jordtype | G13: Vælg jordart for fugacitetsberegning eller indtast egne jordartsdata
Z14: Bulk-masse-fylde (kg/l)
K15: Poreluft-volumen | N15: Vand-indhold | Q15: Samlet porøsitet | T15: Volumen af jordskellet | W15: Korn-rumvægt (kg/l) | AC15: % Indhold organisk kulstof
E17: Jordtype
K18: VL | N18: VV | Q18: e=VL+VV | T18: VJ | W18: d | Z18: r | AC18: foc
E19: =IF(D_Enk_jordtype_syst<>"",D_Enk_jordtype_syst,"") ->  | K19: =IF(D_Enk_VL_int<>"",D_Enk_VL_int,"") ->  | N19: =IF(D_Enk_VV_int<>"",D_Enk_VV_int,"") ->  | Q19: =D_Enk_porositet -> 0 | T19: =D_Enk_VJ -> 1 | W19: =IF(D_Enk_d_int<>"",D_Enk_d_int,"") ->  | Z19: =D_Enk_p -> 0 | AC19: =IF(D_Enk_foc_int<>"",D_Enk_foc_int,"") -> 
K20: =IF(D_Enk_VL_syst<>"",D_Enk_VL_syst,"") ->  | N20: =IF(D_Enk_VV_syst<>"",D_Enk_VV_syst,"") ->  | W20: =IF(D_Enk_d_syst<>"",D_Enk_d_syst,"") ->  | AC20: =IF(D_Enk_foc_syst<>"",D_Enk_foc_syst,"") ->  | AF20: =IF(D_Enk_porositet>0.45,"Er det korrekt at den samlede porøsitet er >0,45? - tjek VL og VV","") -> 
AF21: =IF(ISTEXT(Enk_My_VL),"Tjek decimal",IF(ISTEXT(Enk_My_VV),"Tjek decimal",IF(ISTEXT(Enk_My_d),"Tjek decimal",IF(ISTEXT(Enk_My_foc),"Tjek decimal","")))) -> 
A24: Kemiske data | H24: Vælg stof for fugacitetsberegning eller indtast egne stofspecifikke data
A29: Stofnavn | H29: =IF(D_Enk_stofnavn_syst_1<>"",D_Enk_stofnavn_syst_1,"") ->  | N29: =IF(D_Enk_stofnavn_syst_2<>"",D_Enk_stofnavn_syst_2,"") ->  | T29: =IF(D_Enk_stofnavn_syst_3<>"",D_Enk_stofnavn_syst_3,"") ->  | Z29: =IF(D_Enk_stofnavn_syst_4<>"",D_Enk_stofnavn_syst_4,"") -> 
A32: CAS-nummer | H32: =IF(D_Enk_CASnr_syst_1<>"",D_Enk_CASnr_syst_1,"") ->  | N32: =IF(D_Enk_CASnr_syst_2<>"",D_Enk_CASnr_syst_2,"") ->  | T32: =IF(D_Enk_CASnr_syst_3<>"",D_Enk_CASnr_syst_3,"") ->  | Z32: =IF(D_Enk_CASnr_syst_4<>"",D_Enk_CASnr_syst_4,"") -> 
A35: Molmasse | F35: m | H35: =IF(D_Enk_m_syst_1<>"",D_Enk_m_syst_1,"") ->  | N35: =IF(D_Enk_m_syst_2<>"",D_Enk_m_syst_2,"") ->  | T35: =IF(D_Enk_m_syst_3<>"",D_Enk_m_syst_3,"") ->  | Z35: =IF(D_Enk_m_syst_4<>"",D_Enk_m_syst_4,"") ->  | AF35: g/mol
A37: Damptryk | F37: p | H37: =IF(D_Enk_p_syst_1<>"",D_Enk_p_syst_1,"") ->  | N37: =IF(D_Enk_p_syst_2<>"",D_Enk_p_syst_2,"") ->  | T37: =IF(D_Enk_p_syst_3<>"",D_Enk_p_syst_3,"") ->  | Z37: =IF(D_Enk_p_syst_4<>"",D_Enk_p_syst_4,"") ->  | AF37: Pa
A39: Vandopløselighed | F39: S | H39: =IF(D_Enk_S_syst_1<>"",D_Enk_S_syst_1,"") ->  | N39: =IF(D_Enk_S_syst_2<>"",D_Enk_S_syst_2,"") ->  | T39: =IF(D_Enk_S_syst_3<>"",D_Enk_S_syst_3,"") ->  | Z39: =IF(D_Enk_S_syst_4<>"",D_Enk_S_syst_4,"") ->  | AF39: mg/l
A41: Henry's konstant | F41: KH | H41: =IF(D_Enk_KH_syst_1<>"",D_Enk_KH_syst_1,"") ->  | N41: =IF(D_Enk_KH_syst_2<>"",D_Enk_KH_syst_2,"") ->  | T41: =IF(D_Enk_KH_syst_3<>"",D_Enk_KH_syst_3,"") ->  | Z41: =IF(D_Enk_KH_syst_4<>"",D_Enk_KH_syst_4,"") ->  | AF41: dimensionsløs (bruges i vertikal transport modul)
A43: Log oktanol/vand ford. koeff. | F43: log Kow | H43: =IF(D_Enk_KOW_syst_1<>"",D_Enk_KOW_syst_1,"") ->  | N43: =IF(D_Enk_KOW_syst_2<>"",D_Enk_KOW_syst_2,"") ->  | T43: =IF(D_Enk_KOW_syst_3<>"",D_Enk_KOW_syst_3,"") ->  | Z43: =IF(D_Enk_KOW_syst_4<>"",D_Enk_KOW_syst_4,"") ->  | AF43: Husk at både Koc og Log Kow skal indtases såfremt der anvendes egne data
A45: Koc | F45: Koc | H45: =IF(D_Enk_KOC_syst_1<>"",D_Enk_KOC_syst_1,"") ->  | N45: =IF(D_Enk_KOC_syst_2<>"",D_Enk_KOC_syst_2,"") ->  | T45: =IF(D_Enk_KOC_syst_3<>"",D_Enk_KOC_syst_3,"") ->  | Z45: =IF(D_Enk_KOC_syst_4<>"",D_Enk_KOC_syst_4,"") -> 
A47: Grundvandskvalitetskriterie, GV | H47: =IF(D_Enk_GV_krit_syst_1<>"",D_Enk_GV_krit_syst_1,"") ->  | N47: =IF(D_Enk_GV_krit_syst_2<>"",D_Enk_GV_krit_syst_2,"") ->  | T47: =IF(D_Enk_GV_krit_syst_3<>"",D_Enk_GV_krit_syst_3,"") ->  | Z47: =IF(D_Enk_GV_krit_syst_4<>"",D_Enk_GV_krit_syst_4,"") ->  | AF47: µg/l
A49: Afdampningskriterie, luft | H49: =IF(D_Enk_afd_krit_syst_1<>"",D_Enk_afd_krit_syst_1,"") ->  | N49: =IF(D_Enk_afd_krit_syst_2<>"",D_Enk_afd_krit_syst_2,"") ->  | T49: =IF(D_Enk_afd_krit_syst_3<>"",D_Enk_afd_krit_syst_3,"") ->  | Z49: =IF(D_Enk_afd_krit_syst_4<>"",D_Enk_afd_krit_syst_4,"") ->  | AF49: mg/m3
A51: Jordkvalitetskriterie | H51: =IF(D_Enk_jordkval_krit_syst_1<>"",D_Enk_jordkval_krit_syst_1,"") ->  | N51: =IF(D_Enk_jordkval_krit_syst_2<>"",D_Enk_jordkval_krit_syst_2,"") ->  | T51: =IF(D_Enk_jordkval_krit_syst_3<>"",D_Enk_jordkval_krit_syst_3,"") ->  | Z51: =IF(D_Enk_jordkval_krit_syst_4<>"",D_Enk_jordkval_krit_syst_4,"") ->  | AF51: mg/kg TS
A53: Diffusionskoefficient i luft | F53: DL | H53: =IF(D_Enk_DL_syst_1<>"",D_Enk_DL_syst_1,"") ->  | N53: =IF(D_Enk_DL_syst_2<>"",D_Enk_DL_syst_2,"") ->  | T53: =IF(D_Enk_DL_syst_3<>"",D_Enk_DL_syst_3,"") ->  | Z53: =IF(D_Enk_DL_syst_4<>"",D_Enk_DL_syst_4,"") ->  | AF53: m2/s
A55: Diffusionskoefficient i vand | F55: DW | H55: =IF(D_Enk_Ddw_syst_1<>"",D_Enk_Ddw_syst_1,"") ->  | N55: =IF(D_Enk_Ddw_syst_2<>"",D_Enk_Ddw_syst_2,"") ->  | T55: =IF(D_Enk_Ddw_syst_3<>"",D_Enk_Ddw_syst_3,"") ->  | Z55: =IF(D_Enk_Ddw_syst_4<>"",D_Enk_Ddw_syst_4,"") ->  | AF55: m2/s
A57: Vindhastighed | H57: =IF(D_Enk_v_syst_1<>"",D_Enk_v_syst_1,"") ->  | N57: =IF(D_Enk_v_syst_2<>"",D_Enk_v_syst_2,"") ->  | T57: =IF(D_Enk_v_syst_3<>"",D_Enk_v_syst_3,"") ->  | Z57: =IF(D_Enk_v_syst_4<>"",D_Enk_v_syst_4,"") ->  | AF57: m/s
A59: 1. ordens nedbrydn. grundvand | H59: =IF(D_Enk_k1anaerob_syst_1<>"",D_Enk_k1anaerob_syst_1,"") ->  | N59: =IF(D_Enk_k1anaerob_syst_2<>"",D_Enk_k1anaerob_syst_2,"") ->  | T59: =IF(D_Enk_k1anaerob_syst_3<>"",D_Enk_k1anaerob_syst_3,"") ->  | Z59: =IF(D_Enk_k1anaerob_syst_4<>"",D_Enk_k1anaerob_syst_4,"") -> 
A60: anaerobe forhold | N60: =IF(D_Enk_k1anaerob_syst_2<>"",D_Enk_k1anaerob_syst_2,"") ->  | T60: =IF(D_Enk_k1anaerob_syst_3<>"",D_Enk_k1anaerob_syst_3,"") ->  | Z60: =IF(D_Enk_k1anaerob_syst_4<>"",D_Enk_k1anaerob_syst_4,"") ->  | AF60: dag-1
A62: 1. ordens nedbrydn. grundvand | H62: =IF(D_Enk_k1aerob_syst_1<>"",D_Enk_k1aerob_syst_1,"") ->  | N62: =IF(D_Enk_k1aerob_syst_2<>"",D_Enk_k1aerob_syst_2,"") ->  | T62: =IF(D_Enk_k1aerob_syst_3<>"",D_Enk_k1aerob_syst_3,"") ->  | Z62: =IF(D_Enk_k1aerob_syst_4<>"",D_Enk_k1aerob_syst_4,"") -> 
A63: aerobe forhold | N63: =IF(D_Enk_k1aerob_syst_2<>"",D_Enk_k1aerob_syst_2,"") ->  | T63: =IF(D_Enk_k1aerob_syst_3<>"",D_Enk_k1aerob_syst_3,"") ->  | Z63: =IF(D_Enk_k1aerob_syst_4<>"",D_Enk_k1aerob_syst_4,"") ->  | AF63: dag-1
A65: 1. ordens nedbrydn. vertikal transport | H65: =IF(D_Enk_k1anaerob_umættet_syst_1<>"",D_Enk_k1anaerob_umættet_syst_1,"") ->  | N65: =IF(D_Enk_k1anaerob_umættet_syst_2<>"",D_Enk_k1anaerob_umættet_syst_2,"") ->  | T65: =IF(D_Enk_k1anaerob_umættet_syst_3<>"",D_Enk_k1anaerob_umættet_syst_3,"") ->  | Z65: =IF(D_Enk_k1anaerob_umættet_syst_4<>"",D_Enk_k1anaerob_umættet_syst_4,"") -> 
A66: anaerobe forhold | H66: =IF(D_Enk_k1anaerob_umættet_syst_1<>"",D_Enk_k1anaerob_umættet_syst_1,"") ->  | N66: =IF(D_Enk_k1anaerob_umættet_syst_2<>"",D_Enk_k1anaerob_umættet_syst_2,"") ->  | T66: =IF(D_Enk_k1anaerob_umættet_syst_3<>"",D_Enk_k1anaerob_umættet_syst_3,"") ->  | Z66: =IF(D_Enk_k1anaerob_umættet_syst_4<>"",D_Enk_k1anaerob_umættet_syst_4,"") ->  | AF66: dag-1
A68: 1. ordens nedbrydn. vertikal transport | H68: =IF(D_Enk_k1aerob_uz_syst_1<>"",D_Enk_k1aerob_uz_syst_1,"") ->  | N68: =IF(D_Enk_k1aerob_uz_syst_2<>"",D_Enk_k1aerob_uz_syst_2,"") ->  | T68: =IF(D_Enk_k1aerob_uz_syst_3<>"",D_Enk_k1aerob_uz_syst_3,"") ->  | Z68: =IF(D_Enk_k1aerob_uz_syst_4<>"",D_Enk_k1aerob_uz_syst_4,"") -> 
A69: aerobe forhold | H69: =IF(D_Enk_k1aerob_uz_syst_1<>"",D_Enk_k1aerob_uz_syst_1,"") ->  | N69: =IF(D_Enk_k1aerob_uz_syst_2<>"",D_Enk_k1aerob_uz_syst_2,"") ->  | T69: =IF(D_Enk_k1aerob_uz_syst_3<>"",D_Enk_k1aerob_uz_syst_3,"") ->  | Z69: =IF(D_Enk_k1aerob_uz_syst_4<>"",D_Enk_k1aerob_uz_syst_4,"") ->  | AF69: dag-1
A71: 1. ordens nedbrydn. poreluft | H71: =IF(D_Enk_k1anaerob_poreluft_syst_1<>"",D_Enk_k1anaerob_poreluft_syst_1,"") ->  | N71: =IF(D_Enk_k1anaerob_poreluft_syst_2<>"",D_Enk_k1anaerob_poreluft_syst_2,"") ->  | T71: =IF(D_Enk_k1anaerob_poreluft_syst_3<>"",D_Enk_k1anaerob_poreluft_syst_3,"") ->  | Z71: =IF(D_Enk_k1anaerob_poreluft_syst_4<>"",D_Enk_k1anaerob_poreluft_syst_4,"") -> 
A72: aerobe forhold | H72: =IF(D_Enk_k1anaerob_poreluft_syst_1<>"",D_Enk_k1anaerob_poreluft_syst_1,"") ->  | N72: =IF(D_Enk_k1anaerob_poreluft_syst_2<>"",D_Enk_k1anaerob_poreluft_syst_2,"") ->  | T72: =IF(D_Enk_k1anaerob_poreluft_syst_3<>"",D_Enk_k1anaerob_poreluft_syst_3,"") ->  | Z72: =IF(D_Enk_k1anaerob_poreluft_syst_4<>"",D_Enk_k1anaerob_poreluft_syst_4,"") ->  | AF72: dag-1
F75: ML, max | H75: =D_Enk_MLmax_1 -> 0 | N75: =[0]!D_Enk_MLmax_2 -> 0 | T75: =[0]!D_Enk_MLmax_3 -> 0 | Z75: =[0]!D_Enk_MLmax_4 -> 0 | AF75: mg/m³ jordvol.
F77: MV, max | H77: =D_Enk_MVmax_1 -> 0 | N77: =D_Enk_MVmax_2 -> 0 | T77: =D_Enk_MVmax_3 -> 0 | Z77: =D_Enk_MVmax_4 -> 0 | AF77: mg/m³ jordvol.
F79: MJ, max | H79: =D_Enk_MJmax_1 -> 0 | N79: =D_Enk_MJmax_2 -> 0 | T79: =D_Enk_MJmax_3 -> 0 | Z79: =D_Enk_MJmax_4 -> 0 | AF79: mg/m³ jordvol.
F81: Mættede damptryk, CL,max | H81: =D_Enk_CLmax_1 ->  | N81: =D_Enk_CLmax_2 ->  | T81: =D_Enk_CLmax_3 ->  | Z81: =D_Enk_CLmax_4 ->  | AF81: mg/m³
A84: Maksimal fordeling, luft | F84: fl | H84: =D_Enk_fl_1 ->  | N84: =D_Enk_fl_2 ->  | T84: =D_Enk_fl_3 ->  | Z84: =D_Enk_fl_4 -> 
A87: Maksimal fordeling, vand | F87: fv | H87: =D_Enk_fv_1 ->  | N87: =D_Enk_fv_2 ->  | T87: =D_Enk_fv_3 ->  | Z87: =D_Enk_fv_4 -> 
A90: Maksimal fordeling, jord | F90: fj | H90: =D_Enk_fj_1 ->  | N90: =D_Enk_fj_2 ->  | T90: =D_Enk_fj_3 ->  | Z90: =D_Enk_fj_4 -> 
A94: Fugacitet | D94: For hvert stof indtast målepunkt og evt prøvetagningsdato samt den målte værdi
AJ95: =H10 ->  | AK95: =N10 ->  | AL95: =T10 ->  | AM95: =Z10 -> 
A97: Målepunkt | AJ97: =H97 ->  | AK97: =N97 ->  | AL97: =T97 ->  | AM97: =Z97 -> 
A98: Dato | AJ98: Tjek af enheder
A102: Målt konc. i poreluft | F102: CL | AF102: mg/m³ | AI102: =IF(ISTEXT(Enk_My_CL_1),"Tjek decimal",IF(ISTEXT(Enk_My_CL_2),"Tjek decimal",IF(ISTEXT(Enk_My_CL_3),"Tjek decimal",IF(ISTEXT(Enk_My_CL_4),"Tjek decimal","")))) ->  | AJ102: =H102*1000000 -> 0 | AK102: =N102*1000000 -> 0 | AL102: =T102*1000000 -> 0 | AM102: =Z102*1000000 -> 0 | AO102: ng/m³
A104: Beregnet jordkoncentration | F104: Ct | H104: =D_Enk_Ct_L_1 -> 0 | N104: =D_Enk_Ct_L_2 -> 0 | T104: =D_Enk_Ct_L_3 -> 0 | Z104: =D_Enk_Ct_L_4 -> 0 | AF104: mg/kg TS | AJ104: =H104*1000 -> 0 | AK104: =N104*1000 -> 0 | AL104: =T104*1000 -> 0 | AM104: =Z104*1000 -> 0 | AO104: µg/kg TS
A106: Beregnet vandskoncentration | F106: CV | H106: =D_Enk_Cv_L_1 -> 0 | N106: =D_Enk_Cv_L_2 -> 0 | T106: =D_Enk_Cv_L_3 -> 0 | Z106: =D_Enk_Cv_L_4 -> 0 | AF106: mg/l | AJ106: =H106*1000000 -> 0 | AK106: =N106*1000000 -> 0 | AL106: =T106*1000000 -> 0 | AM106: =Z106*1000000 -> 0 | AO106: ng/l
A110: Målt konc. i grundvand | F110: CV | AF110: mg/l | AI110: =IF(ISTEXT(Enk_My_CV_1),"Tjek decimal",IF(ISTEXT(Enk_My_CV_2),"Tjek decimal",IF(ISTEXT(Enk_My_CV_3),"Tjek decimal",IF(ISTEXT(Enk_My_CV_4),"Tjek decimal","")))) ->  | AJ110: =H110*1000000 -> 0 | AK110: =N110*1000000 -> 0 | AL110: =T110*1000000 -> 0 | AM110: =Z110*1000000 -> 0 | AO110: ng/l
A112: Beregnet poreluftskonc. | F112: CL | H112: =D_Enk_Cl_V_1 -> 0 | N112: =D_Enk_Cl_V_2 -> 0 | T112: =D_Enk_Cl_V_3 -> 0 | Z112: =D_Enk_Cl_V_4 -> 0 | AF112: mg/m³ | AJ112: =H112*1000000 -> 0 | AK112: =N112*1000000 -> 0 | AL112: =T112*1000000 -> 0 | AM112: =Z112*1000000 -> 0 | AO112: ng/m³
A114: Beregnet jordkonc. | F114: Ct | H114: =D_Enk_Ct_V_1 -> 0 | N114: =D_Enk_Ct_V_2 -> 0 | T114: =D_Enk_Ct_V_3 -> 0 | Z114: =D_Enk_Ct_V_4 -> 0 | AF114: mg/kg TS | AJ114: =H114*1000 -> 0 | AK114: =N114*1000 -> 0 | AL114: =T114*1000 -> 0 | AM114: =Z114*1000 -> 0 | AO114: µg/kg TS
A118: Målt konc. i jorden | F118: Ct | AF118: mg/kg TS | AI118: =IF(ISTEXT(Enk_My_Ct_1),"Tjek decimal",IF(ISTEXT(Enk_My_Ct_2),"Tjek decimal",IF(ISTEXT(Enk_My_Ct_3),"Tjek decimal",IF(ISTEXT(Enk_My_Ct_4),"Tjek decimal","")))) ->  | AJ118: =H118*1000 -> 0 | AK118: =N118*1000 -> 0 | AL118: =T118*1000 -> 0 | AM118: =Z118*1000 -> 0 | AO118: µg/kg TS
A120: Beregnet poreluftskonc. | F120: CL | H120: =D_Enk_Cl_J_1 -> 0 | N120: =D_Enk_Cl_J_2 -> 0 | T120: =D_Enk_Cl_J_3 -> 0 | Z120: =D_Enk_Cl_J_4 -> 0 | AF120: mg/m³ | AJ120: =H120*1000000 -> 0 | AK120: =N120*1000000 -> 0 | AL120: =T120*1000000 -> 0 | AM120: =Z120*1000000 -> 0 | AO120: ng/m³
A122: Beregnet vandskoncentration | F122: CV | H122: =D_Enk_Cv_J_1 -> 0 | N122: =D_Enk_Cv_J_2 -> 0 | T122: =D_Enk_Cv_J_3 -> 0 | Z122: =D_Enk_Cv_J_4 -> 0 | AF122: mg/l | AJ122: =H122*1000000 -> 0 | AK122: =N122*1000000 -> 0 | AL122: =T122*1000000 -> 0 | AM122: =Z122*1000000 -> 0 | AO122: ng/l
A125: Fri fase? | H125: =D_Enk_FF_1 -> nej | N125: =D_Enk_FF_2 -> nej | T125: =D_Enk_FF_3 -> nej | Z125: =D_Enk_FF_4 -> nej
A127: Anvendt Brugerdata | H127: =D_Enk_Brugerdata_1 -> Nej | N127: =D_Enk_Brugerdata_2 -> Nej | T127: =D_Enk_Brugerdata_3 -> Nej | Z127: =D_Enk_Brugerdata_4 -> Nej
Z129: 42

Sheet Dataark_Enkeltstoffer (hidden)
A3: Dataark - Enkeltstoffer | Q3: Systemnavn | R3: Oprindelsessted
A5: Jord
A6: Navn | B6: Forkortelse | C6: Enhed | D6: interval | E6: Systemværdi | F6: Indtastet | G6: Anvendes
A7: Jordtype | F7: =Enk_My_Jord -> 0 | G7: =IF(ISTEXT(F7),F7,IF(E7<>0,E7,"")) ->  | Q7: D_Enk_jordtype | R7: input
A8: Poreluftvolumen | B8: VL | F8: =IF(ISNUMBER(Enk_My_VL),Enk_My_VL,"-") -> - | G8: =IF(ISNUMBER(F8),F8,E8) -> 0 | Q8: D_Enk_VL | R8: input
A9: Vandindhold | B9: VV | F9: =IF(ISNUMBER(Enk_My_VV),Enk_My_VV,"-") -> - | G9: =IF(ISNUMBER(F9),F9,E9) -> 0 | Q9: D_Enk_VV | R9: input
A10: Samlet porøsitet | B10: e=VL+VV | G10: =B_Enk_porositet -> 0 | Q10: D_Enk_porositet | R10: beregnes
A11: Volumen af jordskellet | B11: VJ | G11: =B_Enk_VJ -> 1 | Q11: D_Enk_VJ | R11: beregnes
A12: Kornrumvægt | B12: d | C12: kg/l | F12: =IF(VALUE(Enk_My_d),Enk_My_d,"-") -> - | G12: =IF(ISNUMBER(F12),F12,E12) -> 0 | Q12: D_Enk_d | R12: input
A13: Volumenvægt | B13: r | C13: kg/l | G13: =B_Enk_p -> 0 | Q13: D_Enk_p | R13: beregnes
A14: % organisk indhold | B14: foc(%) | F14: =IF(VALUE(Enk_My_foc),Enk_My_foc,"-") -> - | G14: =IF(ISNUMBER(F14),F14,E14) -> 0 | R14: input
A15: Indhold af organisk kulstof (relativ vægtandel) | B15: foc | D15: =D14/100 -> 0 | E15: =E14/100 -> 0 | G15: =G14/100 -> 0 | Q15: D_Enk_foc | R15: beregnes i dataark
A18: Stofegenskaber
D19: Stof 1 | G19: Stof 2 | J19: Stof 3 | M19: Stof 4
A20: Navn | B20: Forkortelse | C20: Enhed | D20: Systemværdi | E20: Indtastet | F20: Anvendes | G20: Systemværdi | H20: Indtastet | I20: Anvendes | J20: Systemværdi | K20: Indtastet | L20: Anvendes | M20: Systemværdi | N20: Indtastet | O20: Anvendes
A21: Forureningskomponent | E21: =Enk_My_stofnavn_1 -> 0 | F21: =IF(ISTEXT(E21),E21,IF(D21<>0,D21,"")) ->  | H21: =Enk_My_stofnavn_2 -> 0 | I21: =IF(ISTEXT(H21),H21,IF(G21<>0,G21,"")) ->  | K21: =Enk_My_stofnavn_3 -> 0 | L21: =IF(ISTEXT(K21),K21,IF(J21<>0,J21,"")) ->  | N21: =Enk_My_stofnavn_4 -> 0 | O21: =IF(ISTEXT(N21),N21,IF(M21<>0,M21,"")) ->  | Q21: D_Enk_stofnavn_n | R21: input
A22: CAS-nummer | E22: =Enk_My_CASnr_1 -> 0 | F22: =IF(ISTEXT(E22),E22,IF(D22<>0,D22,"")) ->  | H22: =Enk_My_CASnr_2 -> 0 | I22: =IF(ISTEXT(H22),H22,IF(G22<>0,G22,"")) ->  | K22: =Enk_My_CASnr_3 -> 0 | L22: =IF(ISTEXT(K22),K22,IF(J22<>0,J22,"")) ->  | N22: =Enk_My_CASnr_3 -> 0 | O22: =IF(ISTEXT(N22),N22,IF(M22<>0,M22,"")) ->  | Q22: D_Enk_CASnr_n | R22: input
A23: Jordkvalitetskriterie | C23: mg/kg | E23: =Enk_My_jordkval_krit_1 -> 0 | H23: =Enk_My_jordkval_krit_2 -> 0 | K23: =Enk_My_jordkval_krit_2 -> 0 | N23: =Enk_My_jordkval_krit_4 -> 0 | Q23: D_Enk_jordkval_krit_n | R23: input
A24: Afskæringskriterie | C24: mg/kg | F24: =IF(VALUE(E24),E24,D24) -> 0 | I24: =IF(VALUE(H24),H24,G24) -> 0 | L24: =IF(VALUE(K24),K24,J24) -> 0 | O24: =IF(VALUE(N24),N24,M24) -> 0 | Q24: D_Enk_afsk_krit_n | R24: input
A25: Fluxberegninger
A26: Molmasse | B26: m | C26: gram/mol | E26: =Enk_My_m_1 -> 0 | F26: 0 | H26: =Enk_My_m_2 -> 0 | I26: 0 | K26: =Enk_My_m_3 -> 0 | L26: 0 | N26: =Enk_My_m_4 -> 0 | O26: =IF(VALUE(N26),N26,M26) -> 0 | Q26: D_Enk_m_n | R26: input
A27: Damptryk | B27: p | C27: Pa | E27: =Enk_My_p_1 -> 0 | F27: 0 | H27: =Enk_My_p_2 -> 0 | I27: 0 | K27: =Enk_My_p_3 -> 0 | L27: 0 | N27: =Enk_My_p_4 -> 0 | O27: 0 | Q27: D_Enk_p_n | R27: input
A28: Vandopløselighed | B28: S | C28: mg/l | E28: =Enk_My_S_1 -> 0 | F28: 0 | H28: =Enk_My_S_2 -> 0 | I28: 0 | K28: =Enk_My_S_3 -> 0 | L28: 0 | N28: =Enk_My_S_4 -> 0 | O28: 0 | Q28: D_Enk_S_n | R28: input
A29: log Oktanol/vand ford. koeff. | B29: log Kow | E29: =Enk_My_KOW_1 -> 0 | F29: 0 | H29: =Enk_My_KOW_2 -> 0 | I29: 0 | K29: =Enk_My_KOW_3 -> 0 | L29: 0 | N29: =Enk_My_KOW_4 -> 0 | O29: 0 | Q29: D_Enk_KOW_n | R29: input
A30: Koc | B30: Koc | E30: =Enk_My_KOC_1 -> 0 | F30: 0 | H30: =Enk_My_KOC_2 -> 0 | I30: 0 | K30: =Enk_My_KOC_3 -> 0 | L30: 0 | N30: =Enk_My_KOC_4 -> 0 | O30: 0 | Q30: D_Enk_KOC_n | R30: input
A31: Henrys konstant | B31: KH | E31: =Enk_My_KH_1 -> 0 | F31: 0 | H31: =Enk_My_KH_2 -> 0 | I31: 0 | K31: =Enk_My_KH_3 -> 0 | L31: 0 | N31: =Enk_My_KH_4 -> 0 | O31: 0 | Q31: D_Enk_KH_n | R31: input
A32: Poreluftberegninger
A33: Diffusionskoefficient luft | B33: DL | C33: m²/s | E33: =Enk_My_DL_1 -> 0 | F33: =IF(VALUE(E33),E33,D33) -> 0 | H33: =Enk_My_DL_2 -> 0 | I33: =IF(VALUE(H33),H33,G33) -> 0 | K33: =Enk_My_DL_3 -> 0 | L33: =IF(VALUE(K33),K33,J33) -> 0 | N33: =Enk_My_DL_4 -> 0 | O33: =IF(VALUE(N33),N33,M33) -> 0 | Q33: D_Enk_DL_n | R33: input
A34: Vindhastighed (stofafhængig) | B34: v | C34: m/s | E34: =Enk_My_v_1 -> 0 | F34: =IF(VALUE(E34),E34,D34) -> 0 | H34: =Enk_My_v_2 -> 0 | I34: =IF(VALUE(H34),H34,G34) -> 0 | K34: =Enk_My_v_3 -> 0 | L34: =IF(VALUE(K34),K34,J34) -> 0 | N34: =Enk_My_v_4 -> 0 | O34: =IF(VALUE(N34),N34,M34) -> 0 | Q34: D_Enk_v_n | R34: input
A35: Afdampningskriterie | B35: afd-krit | C35: mg/m³ | E35: =Enk_My_afd_krit_1 -> 0 | F35: =IF(VALUE(E35),E35,D35) -> 0 | H35: =Enk_My_afd_krit_2 -> 0 | I35: =IF(VALUE(H35),H35,G35) -> 0 | K35: =Enk_My_afd_krit_3 -> 0 | L35: =IF(VALUE(K35),K35,J35) -> 0 | N35: =Enk_My_afd_krit_4 -> 0 | O35: =IF(VALUE(N35),N35,M35) -> 0 | Q35: D_Enk_afd_krit_n | R35: input
A36: 1. ordens nedbrydningskonstant aerob - poreluft | B36: k1_aerob_poreluft | C36: dag-1 | E36: =IF(ISNUMBER(Enk_My_k1aerob_poreluft_1),Enk_My_k1aerob_poreluft_1,"-") -> - | F36: =IF(ISNUMBER(E36),E36,D36) -> 0 | H36: =IF(ISNUMBER(Enk_My_k1aerob_poreluft_2),Enk_My_k1aerob_poreluft_2,"-") -> - | I36: =IF(ISNUMBER(H36),H36,G36) -> 0 | K36: =IF(ISNUMBER(Enk_My_k1aerob_poreluft_3),Enk_My_k1aerob_poreluft_3,"-") -> - | L36: =IF(ISNUMBER(K36),K36,J36) -> 0 | N36: =IF(ISNUMBER(Enk_My_k1aerob_poreluft_4),Enk_My_k1aerob_poreluft_4,"-") -> - | O36: =IF(ISNUMBER(N36),N36,M36) -> 0 | Q36: D_Enk_k1anaerob_poreluft_n | R36: input
A37: Interval 1. ordens nedbryd.konst. aerob - poreluft | B37: k1_aerob_poreluft_int | C37: dag-1 | F37: =D_Enk_k1anaerob_poreluft_int_syst_1 -> 0 | I37: =D_Enk_k1anaerob_poreluft_int_syst_2 -> 0 | L37: =D_Enk_k1anaerob_poreluft_int_syst_3 -> 0 | Q37: D_Enk_k1anaerob_poreluft_int_n | R37: input
A38: Grundvandsberegninger
A39: 1. ordens nedbrydningskonstant aerobtvand | B39: k1_aerob_grundvand | C39: år-1 | E39: =IF(ISNUMBER(Enk_MY_k1aerob_1),Enk_MY_k1aerob_1,"-") -> - | F39: =IF(ISNUMBER(E39),E39,IF(ISNUMBER(D39),D39,"")) ->  | H39: =IF(ISNUMBER(Enk_MY_k1aerob_2),Enk_MY_k1aerob_2,"-") -> - | I39: =IF(ISNUMBER(H39),H39,IF(ISNUMBER(G39),G39,"")) ->  | K39: =IF(ISNUMBER(Enk_MY_k1aerob_3),Enk_MY_k1aerob_3,"-") -> - | L39: =IF(ISNUMBER(K39),K39,J39) -> 0 | N39: =IF(ISNUMBER(Enk_MY_k1aerob_4),Enk_MY_k1aerob_4,"-") -> - | O39: =IF(ISNUMBER(N39),N39,IF(ISNUMBER(M39),M39,"")) ->  | Q39: D_Enk_k1aerob_n | R39: input
A40: Interval 1. ordens nedbrydn.kons. aerobtvand | B40: k1_aerob_grundvand_int | C40: år-1 | F40: =D_Enk_k1aerob_int_syst_1 -> 0 | I40: =D_Enk_k1aerob_int_syst_2 -> 0 | L40: =D_Enk_k1aerob_int_syst_3 -> 0 | O40: =D_Enk_k1aerob_int_syst_4 -> 0 | Q40: D_Enk_k1aerob_int_n | R40: input
A41: 1. ordens nedbrydningskonstant anaerobtvand | B41: k1_anaerob_grundvand | C41: år-1 | E41: =IF(ISNUMBER(Enk_MY_k1anaerob_1),Enk_MY_k1anaerob_1,"-") -> - | F41: =IF(ISNUMBER(E41),E41,IF(ISNUMBER(D41),D41,"")) ->  | H41: =IF(ISNUMBER(Enk_MY_k1anaerob_2),Enk_MY_k1anaerob_2,"-") -> - | I41: =IF(ISNUMBER(H41),H41,IF(ISNUMBER(G41),G41,"")) ->  | K41: =IF(ISNUMBER(Enk_MY_k1anaerob_3),Enk_MY_k1anaerob_3,"-") -> - | L41: =IF(ISNUMBER(K41),K41,IF(ISNUMBER(J41),J41,"")) ->  | N41: =IF(ISNUMBER(Enk_MY_k1anaerob_4),Enk_MY_k1anaerob_4,"-") -> - | O41: =IF(ISNUMBER(N41),N41,IF(ISNUMBER(M41),M41,"")) ->  | Q41: D_Enk_k1anaerob_n | R41: input
A42: Interval 1. ordens nedbryd.kons. anaerobtvand | B42: k1_anaerob_grundvand_int | C42: år-1 | F42: =D_Enk_k1anaerob_int_syst_1 -> 0 | I42: =D_Enk_k1anaerob_int_syst_2 -> 0 | L42: =D_Enk_k1anaerob_int_syst_3 -> 0 | O42: =D_Enk_k1anaerob_int_syst_4 -> 0 | Q42: D_Enk_k1anaerob_int_n | R42: input
A43: Grundvands-kvalitetskriterie | B43: GV-krit | C43: µg/l | E43: =Enk_My_GV_krit_1 -> 0 | F43: =IF(VALUE(E43),E43,D43) -> 0 | H43: =Enk_My_GV_krit_2 -> 0 | I43: =IF(VALUE(H43),H43,G43) -> 0 | K43: =Enk_My_GV_krit_3 -> 0 | L43: =IF(VALUE(K43),K43,J43) -> 0 | N43: =Enk_My_GV_krit_4 -> 0 | O43: =IF(VALUE(N43),N43,M43) -> 0 | R43: input
A44: Grundvandkvalitetskriterie, omregnet | B44: GV-krit | C44: mg/l | F44: =IF(VALUE(F43/1000),(F43/1000),"") ->  | I44: =IF(VALUE(I43/1000),(I43/1000),"") ->  | L44: =IF(VALUE(L43/1000),(L43/1000),"") ->  | O44: =IF(VALUE(O43/1000),(O43/1000),"") ->  | Q44: D_Enk_GV_krit_n | R44: beregnes i dataark
A45: Diffusionskoefficient vand | B45: DW | C45: m²/s | E45: =Enk_My_Ddw_1 -> 0 | F45: =IF(VALUE(E45),E45,D45) -> 0 | H45: =Enk_My_Ddw_2 -> 0 | I45: =IF(VALUE(H45),H45,G45) -> 0 | K45: =Enk_My_Ddw_3 -> 0 | L45: =IF(VALUE(K45),K45,J45) -> 0 | N45: =Enk_My_Ddw_4 -> 0 | O45: =IF(VALUE(N45),N45,M45) -> 0 | Q45: D_Enk_Ddw_n | R45: input
A46: Umættetzone beregninger
A47: 1. ordens nedbrydningskonstant aerob - umættet zone | B47: k1_aerob_umættet | C47: dage-1 | E47: =IF(ISNUMBER(Enk_My_k1aerob_umættet_1),Enk_My_k1aerob_umættet_1,"-") -> - | F47: =IF(ISNUMBER(E47),E47,D47) -> 0 | H47: =IF(ISNUMBER(Enk_My_k1aerob_umættet_2),Enk_My_k1aerob_umættet_2,"-") -> - | I47: =IF(ISNUMBER(H47),H47,G47) -> 0 | K47: =IF(ISNUMBER(Enk_My_k1aerob_umættet_3),Enk_My_k1aerob_umættet_3,"-") -> - | L47: =IF(ISNUMBER(K47),K47,J47) -> 0 | N47: =IF(ISNUMBER(Enk_My_k1aerob_umættet_4),Enk_My_k1aerob_umættet_4,"-") -> - | O47: =IF(ISNUMBER(N47),N47,M47) -> 0 | Q47: D_Enk_k1aerob_uz_n | R47: input
A48: Interval 1. ordens nedbryd.kons. u aerobe. | B48: k1_aerob_umættet_int | F48: =D_Enk_k1aerob_uz_int_syst_1 -> 0 | I48: =D_Enk_k1aerob_uz_int_syst_2 -> 0 | L48: =D_Enk_k1aerob_uz_int_syst_3 -> 0 | O48: =D_Enk_k1aerob_uz_int_syst_4 -> 0 | Q48: D_Enk_k1aerob_uz_int_n | R48: input
A49: 1. ordens nedbrydningskonstant anaerob - umættet zone | B49: k1_anaerob_umættet | C49: dage-1 | E49: =IF(ISNUMBER(Enk_My_k1anaerob_umættet_1),Enk_My_k1anaerob_umættet_1,"-") -> - | F49: =IF(ISNUMBER(E49),E49,D49) -> 0 | H49: =IF(ISNUMBER(Enk_My_k1anaerob_umættet_2),Enk_My_k1anaerob_umættet_2,"-") -> - | I49: =IF(ISNUMBER(H49),H49,G49) -> 0 | K49: =IF(ISNUMBER(Enk_My_k1anaerob_umættet_3),Enk_My_k1anaerob_umættet_3,"-") -> - | L49: =IF(ISNUMBER(K49),K49,J49) -> 0 | N49: =IF(ISNUMBER(Enk_My_k1anaerob_umættet_4),Enk_My_k1anaerob_umættet_4,"-") -> - | O49: =IF(ISNUMBER(N49),N49,M49) -> 0 | Q49: D_Enk_k1anaerob_umættet_n | R49: input
A50: Interval 1. ordens nedbryd.kons. U. anaerob. | B50: k1_anaerob_umættet_int | F50: =D_Enk_k1anaerob_umættet_int_syst_1 -> 0 | I50: =D_Enk_k1anaerob_umættet_int_syst_2 -> 0 | L50: =D_Enk_k1anaerob_umættet_int_syst_3 -> 0 | Q50: D_Enk_k1anaerob_umættet_int_n | R50: input
A52: Maksimale stofkoncentrationer
D53: Stof 1 | G53: Stof 2 | J53: Stof 3 | M53: Stof 4
D54: Beregnet | E54: Indtastet | F54: Anvendes | G54: =D54 -> Beregnet | H54: Indtastet | I54: Anvendes | J54: =D54 -> Beregnet | K54: Indtastet | L54: Anvendes | M54: =D54 -> Beregnet | N54: Indtastet | O54: Anvendes
B55: ML,max | C55: mg/m³ pr. jordvol. | F55: =B_Enk_MLmax_1 -> 0 | I55: =B_Enk_MLmax_2 -> 0 | L55: =B_Enk_MLmax_3 -> 0 | O55: =B_Enk_MLmax_4 -> 0 | Q55: D_Enk_MLmax_n | R55: beregnes
B56: MV, max | C56: mg/m³ pr. jordvol. | F56: =B_Enk_MVmax_1 -> 0 | I56: =B_Enk_MVmax_2 -> 0 | L56: =B_Enk_MVmax_3 -> 0 | O56: =B_Enk_MVmax_4 -> 0 | Q56: D_Enk_MVmax_n | R56: beregnes
B57: MJ, max | C57: mg/m³ pr. jordvol. | F57: =B_Enk_MJmax_1 -> 0 | I57: =B_Enk_MJmax_2 -> 0 | L57: =B_Enk_MJmax_3 -> 0 | O57: =B_Enk_MJmax_4 -> 0 | Q57: D_Enk_MJmax_n | R57: beregnes
A58: Maksimal ford. luft | B58: fl | C58: brokdel | F58: =B_Enk_fl_1 ->  | I58: =B_Enk_fl_2 ->  | L58: =B_Enk_fl_3 ->  | O58: =B_Enk_fl_4 ->  | Q58: D_Enk_fl_n | R58: beregnes
A59: Maksimal ford. vand | B59: fv | C59: brokdel | F59: =B_Enk_fv_1 ->  | I59: =B_Enk_fv_2 ->  | L59: =B_Enk_fv_3 ->  | O59: =B_Enk_fv_4 ->  | Q59: D_Enk_fv_n | R59: beregnes
A60: Maksimal ford. jord | B60: fj | C60: brokdel | F60: =B_Enk_fj_1 ->  | I60: =B_Enk_fj_2 ->  | L60: =B_Enk_fj_3 ->  | O60: =B_Enk_fj_4 ->  | Q60: D_Enk_fj_n | R60: beregnes
A61: Mættede dampptryk | B61: CLmax | C61: Mg/m³ | F61: =IF(D_Enk_stofnavn_1<>"",B_Enk_Clmax_1,"") ->  | I61: =IF(D_Enk_stofnavn_2<>"",B_Enk_Clmax_2,"") ->  | L61: =IF(D_Enk_stofnavn_3<>"",B_Enk_Clmax_3,"") ->  | O61: =IF(D_Enk_stofnavn_4<>"",B_Enk_Clmax_4,"") -> 
A63: Fugacitets beregninger | D63: Stof 1 | G63: Stof 2 | J63: Stof 3 | M63: Stof 4
A64: Navn | B64: Forkortelse | C64: Enhed | D64: Beregnet | E64: Indtastet | F64: Anvendes | G64: Beregnet | H64: Indtastet | I64: Anvendes | J64: Beregnet | K64: Indtastet | L64: Anvendes | M64: Beregnet | N64: Indtastet | O64: Anvendes
A65: Forureningskomponent | D65: =Enk_stofnavn_1 ->  | G65: =Enk_stofnavn_2 ->  | J65: =Enk_stofnavn_3 ->  | M65: =Enk_stofnavn_4 ->  | R65: Overført værdi
A66: Målepunkt | B66: MP | E66: =Enk_MP_1 ->  | F66: =IF(E66<>0,E66,"") ->  | H66: =Enk_MP_2 ->  | I66: =IF(H66<>0,H66,"") ->  | K66: =Enk_MP_3 ->  | L66: =IF(K66<>0,K66,"") ->  | N66: =Enk_MP_4 ->  | O66: =IF(N66<>0,N66,"") ->  | Q66: D_Enk_MP_n | R66: input
A67: dato | B67: dato | E67: =Enk_dato_1 -> 00:00:00 | F67: =IF(VALUE(E67),E67," ") ->  | H67: =Enk_dato_2 -> 00:00:00 | I67: =IF(VALUE(H67),H67," ") ->  | K67: =Enk_dato_3 -> 0 | L67: =IF(VALUE(K67),K67," ") ->  | N67: =Enk_dato_4 -> 0 | O67: =IF(VALUE(N67),N67," ") ->  | Q67: D_Enk_dato_n | R67: input
A68: Målt koncentration i poreluft | B68: CL | C68: mg/m³ | E68: =Enk_My_CL_1 -> 0 | F68: =E68 -> 0 | H68: =Enk_My_CL_2 -> 0 | I68: =H68 -> 0 | K68: =Enk_My_CL_3 -> 0 | L68: =K68 -> 0 | N68: =Enk_My_CL_4 -> 0 | O68: =N68 -> 0 | Q68: D_Enk_CL_n | R68: input
A69: Beregnet jordkoncentration | B69: Ct | C69: mg/kg TS | F69: =B_Enk_Ct_L_1 -> 0 | I69: =B_Enk_Ct_L_2 -> 0 | L69: =B_Enk_Ct_L_3 -> 0 | O69: =B_Enk_Ct_L_4 -> 0 | Q69: D_Enk_Ct_L_n | R69: beregnes
A70: Beregnet vandkoncentration | B70: CV | C70: mg/l | F70: =B_Enk_Cv_L_1 -> 0 | I70: =B_Enk_Cv_L_2 -> 0 | L70: =B_Enk_Cv_L_3 -> 0 | O70: =B_Enk_Cv_L_4 -> 0 | Q70: D_Enk_Cv_L_n | R70: beregnes
A71: Målt konc. i grundvand | B71: CV | C71: mg/l | E71: =Enk_My_CV_1 -> 0 | F71: =E71 -> 0 | H71: =Enk_My_CV_2 -> 0 | I71: =H71 -> 0 | K71: =Enk_My_CV_3 -> 0 | L71: =K71 -> 0 | N71: =Enk_My_CV_4 -> 0 | O71: =N71 -> 0 | Q71: D_Enk_CV_n | R71: input
A72: Beregnet poreluftskonc. | B72: CL | C72: mg/m³ | F72: =B_Enk_Cl_V_1 -> 0 | I72: =B_Enk_Cl_V_2 -> 0 | L72: =B_Enk_Cl_V_3 -> 0 | O72: =B_Enk_Cl_V_4 -> 0 | Q72: D_Enk_Cl_V_n | R72: beregnes
A73: Beregnet jordkonc. | B73: Ct | C73: mg/kg TS | F73: =B_Enk_Ct_V_1 -> 0 | I73: =B_Enk_Ct_V_2 -> 0 | L73: =B_Enk_Ct_V_3 -> 0 | O73: =B_Enk_Ct_V_4 -> 0 | Q73: D_Enk_Ct_V_n | R73: beregnes
A74: Målt koncentration i jorden | B74: Ct | C74: mg/kg TS | E74: =Enk_My_Ct_1 -> 0 | F74: =E74 -> 0 | H74: =Enk_My_Ct_2 -> 0 | I74: =H74 -> 0 | K74: =Enk_My_Ct_3 -> 0 | L74: =K74 -> 0 | N74: =Enk_My_Ct_4 -> 0 | O74: =N74 -> 0 | Q74: D_Enk_CT_n | R74: input
A75: Beregnet poreluftskonc. | B75: CL | C75: mg/m³ | F75: =B_Enk_Cl_J_1 -> 0 | I75: =B_Enk_Cl_J_2 -> 0 | L75: =B_Enk_Cl_J_3 -> 0 | O75: =B_Enk_Cl_J_4 -> 0 | Q75: D_Enk_Cl_J_n | R75: beregnes
A76: Beregnet vandkoncentration | B76: CV | C76: mg/l | F76: =B_Enk_Cv_J_1 -> 0 | I76: =B_Enk_Cv_J_2 -> 0 | L76: =B_Enk_Cv_J_3 -> 0 | O76: =B_Enk_Cv_J_4 -> 0 | Q76: D_Enk_Cv_J_n | R76: beregnes
A77: Endelig koncentration i poreluft | B77: CL | C77: mg/m³ | F77: =IF(D_Enk_stofnavn_1<>"",IF(D_Enk_CL_1<>0,D_Enk_CL_1,IF(D_Enk_Cl_V_1<>0,D_Enk_Cl_V_1,IF(D_Enk_Cl_J_1<>0,D_Enk_Cl_J_1,""))),"") ->  | I77: =IF(D_Enk_stofnavn_2<>"",IF(D_Enk_CL_2<>0,D_Enk_CL_2,IF(D_Enk_Cl_V_2<>0,D_Enk_Cl_V_2,IF(D_Enk_Cl_J_2<>0,D_Enk_Cl_J_2,""))),"") ->  | L77: =IF(D_Enk_stofnavn_3<>"",IF(D_Enk_CL_3<>0,D_Enk_CL_3,IF(D_Enk_Cl_V_3<>0,D_Enk_Cl_V_3,IF(D_Enk_Cl_J_3<>0,D_Enk_Cl_J_3,""))),"") ->  | O77: =IF(D_Enk_stofnavn_4<>"",IF(D_Enk_CL_4<>0,D_Enk_CL_4,IF(D_Enk_Cl_V_4<>0,D_Enk_Cl_V_4,IF(D_Enk_Cl_J_4<>0,D_Enk_Cl_J_4,""))),"") ->  | Q77: D_Enk_CL_endelig_n | R77: beregnes i dataark
A78: Endelig koncentration i vand | B78: CV | C78: mg/l | F78: =IF(D_Enk_stofnavn_1<>"",IF(D_Enk_CV_1<>0,D_Enk_CV_1,IF(D_Enk_Cv_L_1<>0,D_Enk_Cv_L_1,IF(D_Enk_Cv_J_1<>0,D_Enk_Cv_J_1,""))),"") ->  | I78: =IF(D_Enk_stofnavn_2<>"",IF(D_Enk_CV_2<>0,D_Enk_CV_2,IF(D_Enk_Cv_L_2<>0,D_Enk_Cv_L_2,IF(D_Enk_Cv_J_2<>0,D_Enk_Cv_J_2,""))),"") ->  | L78: =IF(D_Enk_stofnavn_3<>"",IF(D_Enk_CV_3<>0,D_Enk_CV_3,IF(D_Enk_Cv_L_3<>0,D_Enk_Cv_L_3,IF(D_Enk_Cv_J_3<>0,D_Enk_Cv_J_3,""))),"") ->  | O78: =IF(D_Enk_stofnavn_4<>"",IF(D_Enk_CV_4<>0,D_Enk_CV_4,IF(D_Enk_Cv_L_4<>0,D_Enk_Cv_L_4,IF(D_Enk_Cv_J_4<>0,D_Enk_Cv_J_4,""))),"") ->  | Q78: D_Enk_CV_endelig_n | R78: beregnes i dataark
A79: Endelig koncentration i Jord | B79: Ct | C79: mg/kg TS | F79: =IF(D_Enk_CT_1<>0,D_Enk_CT_1,IF(D_Enk_Ct_L_1<>0,D_Enk_Ct_L_1,IF(D_Enk_Ct_V_1<>0,D_Enk_Ct_V_1,""))) ->  | I79: =IF(D_Enk_CT_2<>0,D_Enk_CT_2,IF(D_Enk_Ct_L_2<>0,D_Enk_Ct_L_2,IF(D_Enk_Ct_V_2<>0,D_Enk_Ct_V_2,""))) ->  | L79: =IF(D_Enk_CT_3<>0,D_Enk_CT_3,IF(D_Enk_Ct_L_3<>0,D_Enk_Ct_L_3,IF(D_Enk_Ct_V_3<>0,D_Enk_Ct_V_3,""))) ->  | O79: =IF(D_Enk_CT_4<>0,D_Enk_CT_4,IF(D_Enk_Ct_L_4<>0,D_Enk_Ct_L_4,IF(D_Enk_Ct_V_4<>0,D_Enk_Ct_V_4,""))) ->  | R79: beregnes i dataark
A80: Fri fase ud fra poreluft | F80: =B_Enk_FF_P_1 -> nej | I80: =B_Enk_FF_P_2 -> nej | L80: =B_Enk_FF_P_3 -> nej | O80: =B_Enk_FF_P_4 -> nej | Q80: D_Enk_FF_P_n | R80: beregnes
A81: Fri fase ud fra grundvand | F81: =B_Enk_FF_V_1 -> nej | I81: =B_Enk_FF_V_2 -> nej | L81: =B_Enk_FF_V_3 -> nej | O81: =B_Enk_FF_V_4 -> nej | Q81: D_Enk_FF_V_n | R81: beregnes
A82: Fri fase ud fra jord | F82: =B_Enk_FF_J_1 -> nej | I82: =B_Enk_FF_J_2 -> nej | L82: =B_Enk_FF_J_3 -> nej | O82: =B_Enk_FF_J_4 -> nej | Q82: D_Enk_FF_J_n | R82: beregnes
A83: Fri fase ?? | F83: =B_Enk_FF_1 -> nej | I83: =B_Enk_FF_2 -> nej | L83: =B_Enk_FF_3 -> nej | O83: =B_Enk_FF_4 -> nej | Q83: D_Enk_FF_n | R83: beregnes
A84: Anvendt Brugerdata | E84: =SUM(E21,E24:E31,$F7:$F9,$F12,$F14) -> 0 | F84: =IF(E84>0,"Ja, se bemærkning","Nej") -> Nej | H84: =SUM(H21,H24:H31,$F7:$F9,$F12,$F14) -> 0 | I84: =IF(H84>0,"Ja, se bemærkning","Nej") -> Nej | K84: =SUM(K21,K24:K31,$F7:$F9,$F12,$F14) -> 0 | L84: =IF(K84>0,"Ja, se bemærkning","Nej") -> Nej | N84: =SUM(N21,N24:N31,$F7:$F9,$F12,$F14) -> 0 | O84: =IF(N84>0,"Ja, se bemærkning","Nej") -> Nej | Q84: D_Enk_Brugerdata_n | R84: beregnes i dataark
A85: Anvendt Brugerdata til udeluft | E85: =SUM(E33:E37) -> 0 | H85: =SUM(H33:H37) -> 0 | K85: =SUM(K33:K37) -> 0 | N85: =SUM(N33:N37) -> 0
A86: Anvendt Brugerdata til flux | E86: =SUM($F8:$F14,E26:E31) -> 0 | H86: =SUM($F8:$F14,H26:H31) -> 0 | K86: =SUM($F8:$F14,K26:K31) -> 0 | N86: =SUM($F8:$F14,N26:N31) -> 0 | Q86: D_enk_brugerflux_n | R86: beregnes i dataark
A87: Anvendt Brugerdata til grundvand | E87: =SUM(E39:E45) -> 0 | H87: =SUM(H39:H45) -> 0 | K87: =SUM(K39:K45) -> 0 | N87: =SUM(N39:N45) -> 0 | R87: beregnes i dataark
A89: Bemærkninger
A90: Midlertidigt id nr: | B90: Com_Enk_Kem | C90: Enk_Jord | Q90: Com_Ind_VenFor | R90: Import . Bemærkningsfelt
A92: Jordtype: | B92: D_Enk_Jord_Com | Q92: D_Enk_Jord_Com | R92: Import . Bemærkningsfelt
B93: FALSE
A94: Kemisk data: | B94: D_Enk_Kem_Com | Q94: D_Enk_Kem_Com | R94: Import . Bemærkningsfelt
B95: FALSE
A96: Fugacitet: | B96: D_Enk_Fug_Com | Q96: D_Enk_Fug_Com | R96: Import . Bemærkningsfelt
B97: FALSE

Sheet Beregning_Enkeltstoffer (hidden)
B3: Beregning Enkeltstoffer | L3: Systemnavn
C5: Jord
B6: Bemærkninger | C6: Navn | D6: Forkortelse | E6: Enhed | F6: Anvendt | G6: Beregnet
C7: Jordtype | F7: =D_Enk_Jordtype ->  | L7: B_Enk_jordtype
C8: Poreluftvolumen | D8: VL | F8: =D_Enk_VL -> 0 | L8: B_Enk_VL
C9: Vandindhold | D9: VV | F9: =D_Enk_VV -> 0 | L9: B_Enk_VV
C10: Samlet porøsitet | D10: e=VL+VV | F10: =G10 -> 0 | G10: =B_Enk_VL+B_Enk_VV -> 0 | L10: B_Enk_porositet
C11: Volumen af jordskellet | D11: VJ | F11: =G11 -> 1 | G11: =1-B_Enk_porositet -> 1 | L11: B_Enk_VJ
C12: Kornrumvægt | D12: d | E12: kg/l | F12: =D_Enk_d -> 0 | L12: B_Enk_d
C13: Volumenvægt | D13: r | E13: kg/l | F13: =G13 -> 0 | G13: =B_Enk_d*B_Enk_VJ -> 0 | L13: B_Enk_p
C14: Indhold af organisk kulstof | D14: foc | F14: =D_Enk_foc -> 0 | L14: B_Enk_foc
C16: Konstanter
C17: Gaskonstanten | D17: R | E17: J/mol*K | F17: 8.314 | L17: B_enk_R
C18: Temperatur | D18: K | E18: Kelvin | F18: 298 | L18: B_Enk_K
C20: Stofegenskaber
F21: STOF 1 | G21: STOF 2 | H21: STOF 3 | I21: STOF 4
C22: Navn | D22: Forkortelse | E22: Enhed | F22: Anvendt | G22: Anvendt | H22: Anvendt | I22: Anvendt
C23: Forureningskomponent | D23: - | E23: - | F23: =D_Enk_stofnavn_1 ->  | G23: =D_Enk_stofnavn_2 ->  | H23: =D_Enk_stofnavn_3 ->  | I23: =D_Enk_stofnavn_4 ->  | L23: B_Enk_stofnavn_n
C24: Molmasse | D24: m | E24: gram/mol | F24: =D_Enk_m_1 -> 0 | G24: =D_Enk_m_2 -> 0 | H24: =D_Enk_m_3 -> 0 | I24: =D_Enk_m_4 -> 0 | L24: B_Enk_m_n
C25: Damptryk | D25: p | E25: Pa | F25: =D_Enk_p_1 -> 0 | G25: =D_Enk_p_2 -> 0 | H25: =D_Enk_p_3 -> 0 | I25: =D_Enk_p_4 -> 0 | L25: B_Enk_p_n
C26: Vandopløselighed | D26: S | E26: mg/l | F26: =D_Enk_S_1 -> 0 | G26: =D_Enk_S_2 -> 0 | H26: =D_Enk_S_3 -> 0 | I26: =D_Enk_S_4 -> 0 | L26: B_Enk_S_n
C27: log oktanol/vand ford. koeff. | D27: log Kow | F27: =D_Enk_KOW_1 -> 0 | G27: =D_Enk_KOW_2 -> 0 | H27: =D_Enk_KOW_3 -> 0 | I27: =D_Enk_KOW_4 -> 0 | L27: B_Enk_KOW_n
C28: Koc | D28: Koc | F28: =D_Enk_KOC_1 -> 0 | G28: =D_Enk_KOC_2 -> 0 | H28: =D_Enk_KOC_3 -> 0 | I28: =D_Enk_KOC_4 -> 0 | L28: B_Enk_KOC_n
C29: Henrys konstant | D29: KH | F29: =D_Enk_KH_1 -> 0 | G29: =D_Enk_KH_2 -> 0 | H29: =D_Enk_KH_3 -> 0 | I29: =D_Enk_KH_4 -> 0 | L29: B_Enk_KH_n
B30: MST nr.7 1998
B31: App. 5.3 | C31: Maksimale stofkoncentrationer
B32: Ligning 2 | D32: ML,max | E32: mg/m³ pr. jordvol. | F32: =FugLigning2(B_Enk_VL,B_Enk_Clmax_1) -> 0 | G32: =FugLigning2(B_Enk_VL,B_Enk_Clmax_2) -> 0 | H32: =FugLigning2(B_Enk_VL,B_Enk_Clmax_3) -> 0 | I32: =FugLigning2(B_Enk_VL,B_Enk_Clmax_4) -> 0 | L32: B_Enk_MLmax_n
B33: Ligning 3 | D33: CL,max | E33: mg/m³ pr. jordvol. | F33: =FugLigning3(B_Enk_p_1,B_Enk_m_1,B_enk_R,B_Enk_K) -> 0 | G33: =FugLigning3(B_Enk_p_2,B_Enk_m_2,B_enk_R,B_Enk_K) -> 0 | H33: =FugLigning3(B_Enk_p_3,B_Enk_m_3,B_enk_R,B_Enk_K) -> 0 | I33: =FugLigning3(B_Enk_p_4,B_Enk_m_4,B_enk_R,B_Enk_K) -> 0 | L33: B_Enk_Clmax_n
B34: Ligning 4 | D34: MV, max | E34: mg/m³ pr. jordvol. | F34: =FugLigning4(B_Enk_VV,B_Enk_S_1) -> 0 | G34: =FugLigning4(B_Enk_VV,B_Enk_S_2) -> 0 | H34: =FugLigning4(B_Enk_VV,B_Enk_S_3) -> 0 | I34: =FugLigning4(B_Enk_VV,B_Enk_S_4) -> 0 | L34: B_Enk_MVmax_n
B35: Ligning 9 | D35: MJ, max | E35: mg/m³ pr. jordvol. | F35: =FugLigning9(B_Enk_VJ,B_Enk_d,B_Enk_KOC_1,B_Enk_foc,B_Enk_S_1) -> 0 | G35: =FugLigning9(B_Enk_VJ,B_Enk_d,B_Enk_KOC_2,B_Enk_foc,B_Enk_S_2) -> 0 | H35: =FugLigning9(B_Enk_VJ,B_Enk_d,B_Enk_KOC_3,B_Enk_foc,B_Enk_S_3) -> 0 | I35: =FugLigning9(B_Enk_VJ,B_Enk_d,B_Enk_KOC_4,B_Enk_foc,B_Enk_S_4) -> 0 | L35: B_Enk_MJmax_n
B36: Ligning 11 modificeret | C36: Maksimal ford. luft | D36: fl | F36: =IF(ISNUMBER(B_Enk_MLmax_1/(B_Enk_MLmax_1+B_Enk_MVmax_1+B_Enk_MJmax_1)),B_Enk_MLmax_1/(B_Enk_MLmax_1+B_Enk_MVmax_1+B_Enk_MJmax_1),"") ->  | G36: =IF(ISNUMBER(B_Enk_MLmax_2/(B_Enk_MLmax_2+B_Enk_MVmax_2+B_Enk_MJmax_2)),B_Enk_MLmax_2/(B_Enk_MLmax_2+B_Enk_MVmax_2+B_Enk_MJmax_2),"") ->  | H36: =IF(ISNUMBER(B_Enk_MLmax_3/(B_Enk_MLmax_3+B_Enk_MVmax_3+B_Enk_MJmax_3)),B_Enk_MLmax_3/(B_Enk_MLmax_3+B_Enk_MVmax_3+B_Enk_MJmax_3),"") ->  | I36: =IF(ISNUMBER(B_Enk_MLmax_4/(B_Enk_MLmax_4+B_Enk_MVmax_4+B_Enk_MJmax_4)),B_Enk_MLmax_4/(B_Enk_MLmax_4+B_Enk_MVmax_4+B_Enk_MJmax_4),"") ->  | L36: B_Enk_fl_n
B37: Ligning 11 modificeret | C37: Maksimal ford. vand | D37: fv | F37: =IF(ISNUMBER(B_Enk_MVmax_1/(B_Enk_MLmax_1+B_Enk_MVmax_1+B_Enk_MJmax_1)),B_Enk_MVmax_1/(B_Enk_MLmax_1+B_Enk_MVmax_1+B_Enk_MJmax_1),"") ->  | G37: =IF(ISNUMBER(B_Enk_MVmax_2/(B_Enk_MLmax_2+B_Enk_MVmax_2+B_Enk_MJmax_2)),B_Enk_MVmax_2/(B_Enk_MLmax_2+B_Enk_MVmax_2+B_Enk_MJmax_2),"") ->  | H37: =IF(ISNUMBER(B_Enk_MVmax_3/(B_Enk_MLmax_3+B_Enk_MVmax_3+B_Enk_MJmax_3)),B_Enk_MVmax_3/(B_Enk_MLmax_3+B_Enk_MVmax_3+B_Enk_MJmax_3),"") ->  | I37: =IF(ISNUMBER(B_Enk_MVmax_4/(B_Enk_MLmax_4+B_Enk_MVmax_4+B_Enk_MJmax_4)),B_Enk_MVmax_4/(B_Enk_MLmax_4+B_Enk_MVmax_4+B_Enk_MJmax_4),"") ->  | L37: B_Enk_fv_n
B38: Ligning 11 modificeret | C38: Maksimal ford. jord | D38: fj | F38: =IF(ISNUMBER(B_Enk_MJmax_1/(B_Enk_MLmax_1+B_Enk_MVmax_1+B_Enk_MJmax_1)),B_Enk_MJmax_1/(B_Enk_MLmax_1+B_Enk_MVmax_1+B_Enk_MJmax_1),"") ->  | G38: =IF(ISNUMBER(B_Enk_MJmax_2/(B_Enk_MLmax_2+B_Enk_MVmax_2+B_Enk_MJmax_2)),B_Enk_MJmax_2/(B_Enk_MLmax_2+B_Enk_MVmax_2+B_Enk_MJmax_2),"") ->  | H38: =IF(ISNUMBER(B_Enk_MJmax_3/(B_Enk_MLmax_3+B_Enk_MVmax_3+B_Enk_MJmax_3)),B_Enk_MJmax_3/(B_Enk_MLmax_3+B_Enk_MVmax_3+B_Enk_MJmax_3),"") ->  | I38: =IF(ISNUMBER(B_Enk_MJmax_4/(B_Enk_MLmax_4+B_Enk_MVmax_4+B_Enk_MJmax_4)),B_Enk_MJmax_4/(B_Enk_MLmax_4+B_Enk_MVmax_4+B_Enk_MJmax_4),"") ->  | L38: B_Enk_fj_n
C40: Fugacitets beregninger
C41: Målepunkt | D41: MP | F41: =D_Enk_MP_1 ->  | G41: =D_Enk_MP_2 ->  | H41: =D_Enk_MP_3 ->  | I41: =D_Enk_MP_4 ->  | L41: B_Enk_MP_n
C42: dato | D42: dato | F42: =D_Enk_dato_1 ->  | G42: =D_Enk_dato_2 ->  | H42: =D_Enk_dato_3 ->  | I42: =D_Enk_dato_4 ->  | L42: B_Enk_dato_n
C43: Målt koncentration i poreluft | D43: CL | E43: mg/m³ | F43: =D_Enk_CL_1 -> 0 | G43: =D_Enk_CL_2 -> 0 | H43: =D_Enk_CL_3 -> 0 | I43: =D_Enk_CL_4 -> 0 | L43: B_Enk_CL_n
B44: Ligning 14c | C44: Beregnet jordkoncentration | D44: Ct | E44: mg/kg TS | F44: =IF(ISNUMBER(FugLigning14c(B_Enk_CL_1,B_Enk_VL,B_Enk_fl_1,B_Enk_p)),FugLigning14c(B_Enk_CL_1,B_Enk_VL,B_Enk_fl_1,B_Enk_p),0) -> 0 | G44: =IF(ISNUMBER(FugLigning14c(B_Enk_CL_2,B_Enk_VL,B_Enk_fl_2,B_Enk_p)),FugLigning14c(B_Enk_CL_2,B_Enk_VL,B_Enk_fl_2,B_Enk_p),0) -> 0 | H44: =IF(ISNUMBER(FugLigning14c(B_Enk_CL_3,B_Enk_VL,B_Enk_fl_3,B_Enk_p)),FugLigning14c(B_Enk_CL_3,B_Enk_VL,B_Enk_fl_3,B_Enk_p),0) -> 0 | I44: =IF(ISNUMBER(FugLigning14c(B_Enk_CL_4,B_Enk_VL,B_Enk_fl_4,B_Enk_p)),FugLigning14c(B_Enk_CL_4,B_Enk_VL,B_Enk_fl_4,B_Enk_p),0) -> 0 | L44: B_Enk_Ct_L_n
B45: Ligning 14d | C45: Beregnet vandskoncentration | D45: CV | E45: mg/l | F45: =IF(ISNUMBER(MIN(FugLigning14d(B_Enk_fv_1,B_Enk_VL,B_Enk_CL_1,B_Enk_fl_1,B_Enk_VV),B_Enk_S_1)),MIN(FugLigning14d(B_Enk_fv_1,B_Enk_VL,B_Enk_CL_1,B_Enk_fl_1,B_Enk_VV),B_Enk_S_1),0) -> 0 | G45: =IF(ISNUMBER(MIN(FugLigning14d(B_Enk_fv_2,B_Enk_VL,B_Enk_CL_2,B_Enk_fl_2,B_Enk_VV),B_Enk_S_2)),MIN(FugLigning14d(B_Enk_fv_2,B_Enk_VL,B_Enk_CL_2,B_Enk_fl_2,B_Enk_VV),B_Enk_S_2),0) -> 0 | H45: =IF(ISNUMBER(MIN(FugLigning14d(B_Enk_fv_3,B_Enk_VL,B_Enk_CL_3,B_Enk_fl_3,B_Enk_VV),B_Enk_S_3)),MIN(FugLigning14d(B_Enk_fv_3,B_Enk_VL,B_Enk_CL_3,B_Enk_fl_3,B_Enk_VV),B_Enk_S_3),0) -> 0 | I45: =IF(ISNUMBER(MIN(FugLigning14d(B_Enk_fv_4,B_Enk_VL,B_Enk_CL_4,B_Enk_fl_4,B_Enk_VV),B_Enk_S_4)),MIN(FugLigning14d(B_Enk_fv_4,B_Enk_VL,B_Enk_CL_4,B_Enk_fl_4,B_Enk_VV),B_Enk_S_4),0) -> 0 | L45: B_Enk_Cv_L_n
C46: Målt konc. i grundvand | D46: CV | E46: mg/l | F46: =D_Enk_CV_1 -> 0 | G46: =D_Enk_CV_2 -> 0 | H46: =D_Enk_CV_3 -> 0 | I46: =D_Enk_CV_4 -> 0 | L46: B_Enk_CV_n
B47: Ligning 14e | C47: Beregnet poreluftskonc. | D47: CL | E47: mg/m³ | F47: =IF(ISNUMBER(MIN(FugLigning14e(B_Enk_CV_1,B_Enk_VV,B_Enk_fl_1,B_Enk_VL,B_Enk_fv_1),B_Enk_Clmax_1)),MIN(FugLigning14e(B_Enk_CV_1,B_Enk_VV,B_Enk_fl_1,B_Enk_VL,B_Enk_fv_1),B_Enk_Clmax_1),0) -> 0 | G47: =IF(ISNUMBER(MIN(FugLigning14e(B_Enk_CV_2,B_Enk_VV,B_Enk_fl_2,B_Enk_VL,B_Enk_fv_2),B_Enk_Clmax_2)),MIN(FugLigning14e(B_Enk_CV_2,B_Enk_VV,B_Enk_fl_2,B_Enk_VL,B_Enk_fv_2),B_Enk_Clmax_2),0) -> 0 | H47: =IF(ISNUMBER(MIN(FugLigning14e(B_Enk_CV_3,B_Enk_VV,B_Enk_fl_3,B_Enk_VL,B_Enk_fv_3),B_Enk_Clmax_3)),MIN(FugLigning14e(B_Enk_CV_3,B_Enk_VV,B_Enk_fl_3,B_Enk_VL,B_Enk_fv_3),B_Enk_Clmax_3),0) -> 0 | I47: =IF(ISNUMBER(MIN(FugLigning14e(B_Enk_CV_4,B_Enk_VV,B_Enk_fl_4,B_Enk_VL,B_Enk_fv_4),B_Enk_Clmax_4)),MIN(FugLigning14e(B_Enk_CV_4,B_Enk_VV,B_Enk_fl_4,B_Enk_VL,B_Enk_fv_4),B_Enk_Clmax_4),0) -> 0 | L47: B_Enk_Cl_V_n
B48: Ligning 14f | C48: Beregnet jordkonc. | D48: Ct | E48: mg/kg TS | F48: =IF(ISNUMBER(FugLigning14f(B_Enk_CV_1,B_Enk_VV,B_Enk_fv_1,B_Enk_p)),FugLigning14f(B_Enk_CV_1,B_Enk_VV,B_Enk_fv_1,B_Enk_p),0) -> 0 | G48: =IF(ISNUMBER(FugLigning14f(B_Enk_CV_2,B_Enk_VV,B_Enk_fv_2,B_Enk_p)),FugLigning14f(B_Enk_CV_2,B_Enk_VV,B_Enk_fv_2,B_Enk_p),0) -> 0 | H48: =IF(ISNUMBER(FugLigning14f(B_Enk_CV_3,B_Enk_VV,B_Enk_fv_3,B_Enk_p)),FugLigning14f(B_Enk_CV_3,B_Enk_VV,B_Enk_fv_3,B_Enk_p),0) -> 0 | I48: =IF(ISNUMBER(FugLigning14f(B_Enk_CV_4,B_Enk_VV,B_Enk_fv_4,B_Enk_p)),FugLigning14f(B_Enk_CV_4,B_Enk_VV,B_Enk_fv_4,B_Enk_p),0) -> 0 | L48: B_Enk_Ct_V_n
C49: Målt koncentration i jorden | D49: Ct | E49: mg/kg TS | F49: =D_Enk_CT_1 -> 0 | G49: =D_Enk_CT_2 -> 0 | H49: =D_Enk_CT_3 -> 0 | I49: =D_Enk_CT_4 -> 0 | L49: B_Enk_CT_n
B50: Ligning 14b | C50: Beregnet poreluftskonc. | D50: CL | E50: mg/m³ | F50: =IF(ISNUMBER(MIN(B_Enk_Clmax_1,FugLigning14(B_Enk_fl_1,B_Enk_CT_1,B_Enk_p,B_Enk_VL))),MIN(B_Enk_Clmax_1,FugLigning14(B_Enk_fl_1,B_Enk_CT_1,B_Enk_p,B_Enk_VL)),0) -> 0 | G50: =IF(ISNUMBER(MIN(B_Enk_Clmax_2,FugLigning14(B_Enk_fl_2,B_Enk_CT_2,B_Enk_p,B_Enk_VL))),MIN(B_Enk_Clmax_2,FugLigning14(B_Enk_fl_2,B_Enk_CT_2,B_Enk_p,B_Enk_VL)),0) -> 0 | H50: =IF(ISNUMBER(MIN(B_Enk_Clmax_3,FugLigning14(B_Enk_fl_3,B_Enk_CT_3,B_Enk_p,B_Enk_VL))),MIN(B_Enk_Clmax_3,FugLigning14(B_Enk_fl_3,B_Enk_CT_3,B_Enk_p,B_Enk_VL)),0) -> 0 | I50: =IF(ISNUMBER(MIN(B_Enk_Clmax_4,FugLigning14(B_Enk_fl_4,B_Enk_CT_4,B_Enk_p,B_Enk_VL))),MIN(B_Enk_Clmax_4,FugLigning14(B_Enk_fl_4,B_Enk_CT_4,B_Enk_p,B_Enk_VL)),0) -> 0 | L50: B_Enk_Cl_J_n
B51: Ligning 14 | C51: Beregnet vandskoncentration | D51: CV | E51: mg/l | F51: =IF(ISNUMBER(MIN(FugLigning14b(B_Enk_fv_1,B_Enk_CT_1,B_Enk_p,B_Enk_VV),B_Enk_S_1)),MIN(FugLigning14b(B_Enk_fv_1,B_Enk_CT_1,B_Enk_p,B_Enk_VV),B_Enk_S_1),0) -> 0 | G51: =IF(ISNUMBER(MIN(FugLigning14b(B_Enk_fv_2,B_Enk_CT_2,B_Enk_p,B_Enk_VV),B_Enk_S_2)),MIN(FugLigning14b(B_Enk_fv_2,B_Enk_CT_2,B_Enk_p,B_Enk_VV),B_Enk_S_2),0) -> 0 | H51: =IF(ISNUMBER(MIN(FugLigning14b(B_Enk_fv_3,B_Enk_CT_3,B_Enk_p,B_Enk_VV),B_Enk_S_3)),MIN(FugLigning14b(B_Enk_fv_3,B_Enk_CT_3,B_Enk_p,B_Enk_VV),B_Enk_S_3),0) -> 0 | I51: =IF(ISNUMBER(MIN(FugLigning14b(B_Enk_fv_4,B_Enk_CT_4,B_Enk_p,B_Enk_VV),B_Enk_S_4)),MIN(FugLigning14b(B_Enk_fv_4,B_Enk_CT_4,B_Enk_p,B_Enk_VV),B_Enk_S_4),0) -> 0 | L51: B_Enk_Cv_J_n
C52: Fri fase ud fra poreluft | F52: =IF(IF(ISNUMBER(FugLigning14d(B_Enk_fv_1,B_Enk_VL,B_Enk_CL_1,B_Enk_fl_1,B_Enk_VV)),FugLigning14d(B_Enk_fv_1,B_Enk_VL,B_Enk_CL_1,B_Enk_fl_1,B_Enk_VV),0)>D_Enk_S_1,"ja","nej") -> nej | G52: =IF(IF(ISNUMBER(FugLigning14d(B_Enk_fv_2,B_Enk_VL,B_Enk_CL_2,B_Enk_fl_2,B_Enk_VV)),FugLigning14d(B_Enk_fv_2,B_Enk_VL,B_Enk_CL_2,B_Enk_fl_2,B_Enk_VV),0)>D_Enk_S_2,"ja","nej") -> nej | H52: =IF(IF(ISNUMBER(FugLigning14d(B_Enk_fv_3,B_Enk_VL,B_Enk_CL_3,B_Enk_fl_3,B_Enk_VV)),FugLigning14d(B_Enk_fv_3,B_Enk_VL,B_Enk_CL_3,B_Enk_fl_3,B_Enk_VV),0)>D_Enk_S_3,"ja","nej") -> nej | I52: =IF(IF(ISNUMBER(FugLigning14d(B_Enk_fv_4,B_Enk_VL,B_Enk_CL_4,B_Enk_fl_4,B_Enk_VV)),FugLigning14d(B_Enk_fv_4,B_Enk_VL,B_Enk_CL_4,B_Enk_fl_4,B_Enk_VV),0)>D_Enk_S_4,"ja","nej") -> nej | L52: B_Enk_FF_P_n
C53: Fri fase ud fra grundvand | F53: =IF(D_Enk_CV_1>D_Enk_S_1,"ja","nej") -> nej | G53: =IF(D_Enk_CV_2>D_Enk_S_2,"ja","nej") -> nej | H53: =IF(D_Enk_CV_3>D_Enk_S_3,"ja","nej") -> nej | I53: =IF(D_Enk_CV_4>D_Enk_S_4,"ja","nej") -> nej | L53: B_Enk_FF_V_n
C54: Fri fase ud fra jord | F54: =IF(IF(ISNUMBER(FugLigning14b(B_Enk_fv_1,B_Enk_CT_1,B_Enk_p,B_Enk_VV)),FugLigning14b(B_Enk_fv_1,B_Enk_CT_1,B_Enk_p,B_Enk_VV),0)>B_Enk_S_1,"ja","nej") -> nej | G54: =IF(IF(ISNUMBER(FugLigning14b(B_Enk_fv_2,B_Enk_CT_2,B_Enk_p,B_Enk_VV)),FugLigning14b(B_Enk_fv_2,B_Enk_CT_2,B_Enk_p,B_Enk_VV),0)>B_Enk_S_2,"ja","nej") -> nej | H54: =IF(IF(ISNUMBER(FugLigning14b(B_Enk_fv_3,B_Enk_CT_3,B_Enk_p,B_Enk_VV)),FugLigning14b(B_Enk_fv_3,B_Enk_CT_3,B_Enk_p,B_Enk_VV),0)>B_Enk_S_3,"ja","nej") -> nej | I54: =IF(IF(ISNUMBER(FugLigning14b(B_Enk_fv_4,B_Enk_CT_4,B_Enk_p,B_Enk_VV)),FugLigning14b(B_Enk_fv_4,B_Enk_CT_4,B_Enk_p,B_Enk_VV),0)>B_Enk_S_4,"ja","nej") -> nej | L54: B_Enk_FF_J_n
C55: Fri fase ?? | F55: =IF(OR(B_Enk_FF_P_1="ja",B_Enk_FF_V_1="ja",B_Enk_FF_J_1="ja"),"Risiko for frifase","nej") -> nej | G55: =IF(OR(B_Enk_FF_P_2="ja",B_Enk_FF_V_2="ja",B_Enk_FF_J_2="ja"),"Risiko for frifase","nej") -> nej | H55: =IF(OR(B_Enk_FF_P_3="ja",B_Enk_FF_V_3="ja",B_Enk_FF_J_3="ja"),"Risiko for frifase","nej") -> nej | I55: =IF(OR(B_Enk_FF_P_4="ja",B_Enk_FF_V_4="ja",B_Enk_FF_J_4="ja"),"Risiko for frifase","nej") -> nej | L55: B_Enk_FF_n
C56: Anvendt Brugerdata | F56: =D_Enk_Brugerdata_1 -> Nej | G56: =D_Enk_Brugerdata_2 -> Nej | H56: =D_Enk_Brugerdata_3 -> Nej | I56: =D_Enk_Brugerdata_4 -> Nej | L56: B_Enk_Brugerdata_n
C58: Bemærkninger
C59: Midlertidigt id nr:
C61: Jordtype: | L61: D_Enk_Jord_Com
D62: FALSE
C63: Kemisk data: | L63: D_Enk_Kem_Com
D64: FALSE
C65: Fugacitet: | L65: D_Enk_Fug_Com
D66: FALSE

Sheet Udskrift_Enkeltstoffer (hidden)
A1: Fugacitetsberegninger
A2: Lokaliteten
A3: Navn: | B3: =Lok_navn ->  | H3: Lokalitetsnr.: | I3: =Lok_Loknr -> 
A4: Adresse: | B4: =Lok_adr ->  | H4: Postnr./by: | I4: =Lok_postnr -> 
A5: Matrikel nr.: | B5: =Lok_matr ->  | H5: Projekt nr.: | I5: =Lok_projekt -> 
A6: Note | B6: =Lok_note -> 
A7: Jord
A8: Kommentar | B8: =IF(D_Enk_Jord_ComUds,"ja","nej") -> nej | C8: Standard data | E8: Indtastede data (angives med fed)
A9: Jordtype | C9: =D_Enk_Jordtype -> 
A10: Poreluftvolumen | B10: VL | C10: =IF(ISNUMBER(D_Enk_VL_syst),D_Enk_VL_syst,"") ->  | E10: =IF(ISNUMBER(Enk_My_VL),Enk_My_VL,"") -> 
A11: Vandindhold | B11: VV | C11: =IF(ISNUMBER(D_Enk_VV_syst),D_Enk_VV_syst,"") ->  | E11: =IF(ISNUMBER(Enk_My_VV),Enk_My_VV,"") -> 
A12: Samlet porøsitet | B12: e=VL+VV | C12: =IF(ISNUMBER(D_Enk_porositet),D_Enk_porositet,"") -> 0
A13: Volumen af jordskellet | B13: VJ | C13: =D_Enk_VJ -> 1
A14: Kornrumvægt | B14: d | C14: =IF(ISNUMBER(D_Enk_d_syst),D_Enk_d_syst,"") ->  | E14: =IF(ISNUMBER(Enk_My_d),Enk_My_d,"") ->  | G14: kg/l
A15: Volumenvægt | B15: r | C15: =IF(ISNUMBER(D_Enk_p),D_Enk_p,"") -> 0 | G15: kg/l
A16: Indhold af organisk kulstof | B16: foc | C16: =IF(ISNUMBER(D_Enk_foc_syst),D_Enk_foc_syst,"") ->  | E16: =IF(ISNUMBER(Enk_My_foc),Enk_My_foc,"") ->  | G16: %
A18: Stoffer
A19: Kommentar | B19: =IF(D_Enk_Kem_ComUds,"ja","nej") -> nej | C19: Stof 1 | E19: Stof 2 | G19: Stof 3 | I19: Stof 4
A20: Forureningskomponent | C20: =D_Enk_stofnavn_1 ->  | E20: =D_Enk_stofnavn_2 ->  | G20: =D_Enk_stofnavn_3 ->  | I20: =D_Enk_stofnavn_4 ->  | M20: =C20 ->  | N20: =E20 ->  | O20: =G20 ->  | P20: =I20 -> 
A22: Målepunkt | B22: MP | C22: =IF(D_Enk_stofnavn_1<>"",D_Enk_MP_1,"") ->  | E22: =IF(D_Enk_stofnavn_2<>"",D_Enk_MP_2,"") ->  | G22: =IF(D_Enk_stofnavn_3<>"",D_Enk_MP_3,"") ->  | I22: =IF(D_Enk_stofnavn_4<>"",D_Enk_MP_4,"") ->  | M22: =C22 ->  | N22: =E22 ->  | O22: =G22 ->  | P22: =I22 -> 
A23: Dato | B23: dato | C23: =IF(D_Enk_stofnavn_1<>"",D_Enk_dato_1,"") ->  | E23: =IF(D_Enk_stofnavn_2<>"",D_Enk_dato_2,"") ->  | G23: =IF(D_Enk_stofnavn_3<>"",D_Enk_dato_3,"") ->  | I23: =IF(D_Enk_stofnavn_4<>"",D_Enk_dato_4,"") -> 
A24: Molmasse | B24: m | C24: =IF(ISNUMBER(D_Enk_m_syst_1),D_Enk_m_syst_1,"") ->  | D24: =IF(ISNUMBER(Enk_My_m_1),Enk_My_m_1,"") ->  | E24: =IF(ISNUMBER(D_Enk_m_syst_2),D_Enk_m_syst_2,"") ->  | F24: =IF(ISNUMBER(Enk_My_m_2),Enk_My_m_2,"") ->  | G24: =IF(ISNUMBER(D_Enk_m_syst_3),D_Enk_m_syst_3,"") ->  | H24: =IF(ISNUMBER(Enk_My_m_3),Enk_My_m_3,"") ->  | I24: =IF(ISNUMBER(D_Enk_m_syst_4),D_Enk_m_syst_4,"") ->  | J24: =IF(ISNUMBER(Enk_My_m_4),Enk_My_m_4,"") ->  | K24: g/mol
A25: Damptryk | B25: p | C25: =IF(ISNUMBER(D_Enk_p_syst_1),D_Enk_p_syst_1,"") ->  | D25: =IF(ISNUMBER(Enk_My_p_1),Enk_My_p_1,"") ->  | E25: =IF(ISNUMBER(D_Enk_p_syst_2),D_Enk_p_syst_2,"") ->  | F25: =IF(ISNUMBER(Enk_My_p_2),Enk_My_p_2,"") ->  | G25: =IF(ISNUMBER(D_Enk_p_syst_3),D_Enk_p_syst_3,"") ->  | H25: =IF(ISNUMBER(Enk_My_p_3),Enk_My_p_3,"") ->  | I25: =IF(ISNUMBER(D_Enk_p_syst_4),D_Enk_p_syst_4,"") ->  | J25: =IF(ISNUMBER(Enk_My_p_4),Enk_My_p_4,"") ->  | K25: Pa
A26: Vandopløselighed | B26: S | C26: =IF(ISNUMBER(D_Enk_S_syst_1),D_Enk_S_syst_1,"") ->  | D26: =IF(ISNUMBER(Enk_My_S_1),Enk_My_S_1,"") ->  | E26: =IF(ISNUMBER(D_Enk_S_syst_2),D_Enk_S_syst_2,"") ->  | F26: =IF(ISNUMBER(Enk_My_S_2),Enk_My_S_2,"") ->  | G26: =IF(ISNUMBER(D_Enk_S_syst_3),D_Enk_S_syst_3,"") ->  | H26: =IF(ISNUMBER(Enk_My_S_3),Enk_My_S_3,"") ->  | I26: =IF(ISNUMBER(D_Enk_S_syst_4),D_Enk_S_syst_4,"") ->  | J26: =IF(ISNUMBER(Enk_My_S_4),Enk_My_S_4,"") ->  | K26: mg/l
A27: log oktanol/vand ford. koeff. | B27: log KOW | C27: =IF(ISNUMBER(D_Enk_KOW_syst_1),D_Enk_KOW_syst_1,"") ->  | D27: =IF(ISNUMBER(Enk_My_KOW_1),Enk_My_KOW_1,"") ->  | E27: =IF(ISNUMBER(D_Enk_KOW_syst_2),D_Enk_KOW_syst_2,"") ->  | F27: =IF(ISNUMBER(Enk_My_KOW_2),Enk_My_KOW_2,"") ->  | G27: =IF(ISNUMBER(D_Enk_KOW_syst_3),D_Enk_KOW_syst_3,"") ->  | H27: =IF(ISNUMBER(Enk_My_KOW_3),Enk_My_KOW_3,"") ->  | I27: =IF(ISNUMBER(D_Enk_KOW_syst_4),D_Enk_KOW_syst_4,"") ->  | J27: =IF(ISNUMBER(Enk_My_KOW_4),Enk_My_KOW_4,"") -> 
A28: KOC | B28: KOC | C28: =IF(ISNUMBER(D_Enk_KOC_syst_1),D_Enk_KOC_syst_1,"") ->  | D28: =IF(ISNUMBER(Enk_My_KOC_1),Enk_My_KOC_1,"") ->  | E28: =IF(ISNUMBER(D_Enk_KOC_syst_2),D_Enk_KOC_syst_2,"") ->  | F28: =IF(ISNUMBER(Enk_My_KOC_2),Enk_My_KOC_2,"") ->  | G28: =IF(ISNUMBER(D_Enk_KOC_syst_3),D_Enk_KOC_syst_3,"") ->  | H28: =IF(ISNUMBER(Enk_My_KOC_3),Enk_My_KOC_3,"") ->  | I28: =IF(ISNUMBER(D_Enk_KOC_syst_4),D_Enk_KOC_syst_4,"") ->  | J28: =IF(ISNUMBER(Enk_My_KOC_4),Enk_My_KOC_4,"") -> 
A29: Henrys konstant | B29: KH | C29: =IF(ISNUMBER(D_Enk_KH_syst_1),D_Enk_KH_syst_1,"") ->  | D29: =IF(ISNUMBER(Enk_My_KH_1),Enk_My_KH_1,"") ->  | E29: =IF(ISNUMBER(D_Enk_KH_syst_2),D_Enk_KH_syst_2,"") ->  | F29: =IF(ISNUMBER(Enk_My_KH_2),Enk_My_KH_2,"") ->  | G29: =IF(ISNUMBER(D_Enk_KH_syst_3),D_Enk_KH_syst_3,"") ->  | H29: =IF(ISNUMBER(Enk_My_KH_3),Enk_My_KH_3,"") ->  | I29: =IF(ISNUMBER(D_Enk_KH_syst_4),D_Enk_KH_syst_4,"") ->  | J29: =IF(ISNUMBER(Enk_My_KH_4),Enk_My_KH_4,"") -> 
A31: Maksimal ford. luft | B31: fl | C31: =D_Enk_fl_1 ->  | E31: =D_Enk_fl_2 ->  | G31: =D_Enk_fl_3 ->  | I31: =D_Enk_fl_4 -> 
A32: Maksimal ford. vand | B32: fv | C32: =D_Enk_fv_1 ->  | E32: =D_Enk_fv_2 ->  | G32: =D_Enk_fv_3 ->  | I32: =D_Enk_fv_4 -> 
A33: Maksimal ford. jord | B33: fj | C33: =D_Enk_fj_1 ->  | E33: =D_Enk_fj_2 ->  | G33: =D_Enk_fj_3 ->  | I33: =D_Enk_fj_4 -> 
A35: Mættede damptryk | B35: CLmax | C35: =D_Enk_CLmax_1 ->  | E35: =D_Enk_CLmax_2 ->  | G35: =D_Enk_CLmax_3 ->  | I35: =D_Enk_CLmax_4 ->  | K35: mg/m³
A37: Fugacitetsberegninger | C37: Angiv signifikant ciffer | E37: 3
A38: Kommentar | B38: =IF(D_Enk_Fug_ComUds,"ja","nej") -> nej
A39: Målt konc. i poreluft | B39: CL | C39: =IF(Enk_My_CL_1>0,Enk_My_CL_1,"") ->  | E39: =IF(Enk_My_CL_2>0,Enk_My_CL_2,"") ->  | G39: =IF(Enk_My_CL_3>0,Enk_My_CL_3,"") ->  | I39: =IF(Enk_My_CL_4>0,Enk_My_CL_4,"") ->  | K39: mg/m³ | M39: =C39*1000000 ->  | N39: =E39*1000000 ->  | O39: =G39*1000000 ->  | P39: =I39*1000000 ->  | Q39: ng/m³
A40: Beregnet jordkonc. | B40: Ct | C40: =IF(D_Enk_Ct_L_1>0,ROUND(D_Enk_Ct_L_1,enk_ciffer-(INT(LOG(D_Enk_Ct_L_1))+1)),"") ->  | E40: =IF(D_Enk_Ct_L_2>0,(ROUND(D_Enk_Ct_L_2,3-(INT(LOG(D_Enk_Ct_L_2))+1))),"") ->  | G40: =IF(D_Enk_Ct_L_3>0,ROUND(D_Enk_Ct_L_3,enk_ciffer-(INT(LOG(D_Enk_Ct_L_3))+1)),"") ->  | I40: =IF(D_Enk_Ct_L_4>0,ROUND(D_Enk_Ct_L_4,enk_ciffer-(INT(LOG(D_Enk_Ct_L_4))+1)),"") ->  | K40: mg/kg TS | M40: =C40*1000 ->  | N40: =E40*1000 ->  | O40: =G40*1000 ->  | P40: =I40*1000 ->  | Q40: µg/kg TS
A41: Beregnet vandskonc. | B41: CV | C41: =IF(D_Enk_Cv_L_1>0,ROUND(D_Enk_Cv_L_1,enk_ciffer-(INT(LOG(D_Enk_Cv_L_1))+1)),"") ->  | E41: =IF(D_Enk_Cv_L_2>0,ROUND(D_Enk_Cv_L_2,3-(INT(LOG(D_Enk_Cv_L_2))+1)),"") ->  | G41: =IF(D_Enk_Cv_L_3>0,ROUND(D_Enk_Cv_L_3,enk_ciffer-(INT(LOG(D_Enk_Cv_L_3))+1)),"") ->  | I41: =IF(D_Enk_Cv_L_4>0,ROUND(D_Enk_Cv_L_4,enk_ciffer-(INT(LOG(D_Enk_Cv_L_4))+1)),"") ->  | K41: mg/l | M41: =C41*1000000 ->  | N41: =E41*1000000 ->  | O41: =G41*1000000 ->  | P41: =I41*1000000 ->  | Q41: ng/l
A43: Målt konc. i grundvand | B43: CV | C43: =IF(ISNUMBER(Enk_My_CV_1),Enk_My_CV_1,"") ->  | E43: =IF(ISNUMBER(Enk_My_CV_2),Enk_My_CV_2,"") ->  | G43: =IF(ISNUMBER(Enk_My_CV_3),Enk_My_CV_3,"") ->  | I43: =IF(ISNUMBER(Enk_My_CV_4),Enk_My_CV_4,"") ->  | K43: mg/l | M43: =C43*1000000 ->  | N43: =E43*1000000 ->  | O43: =G43*1000000 ->  | P43: =I43*1000000 ->  | Q43: ng/l
A44: Beregnet poreluftskonc. | B44: CL | C44: =IF(D_Enk_Cl_V_1>0,(ROUND(D_Enk_Cl_V_1,enk_ciffer-(INT(LOG(D_Enk_Cl_V_1))+1))),"") ->  | E44: =IF(D_Enk_Cl_V_2>0,(ROUND(D_Enk_Cl_V_2,enk_ciffer-(INT(LOG(D_Enk_Cl_V_2))+1))),"") ->  | G44: =IF(D_Enk_Cl_V_3>0,(ROUND(D_Enk_Cl_V_3,enk_ciffer-(INT(LOG(D_Enk_Cl_V_3))+1))),"") ->  | I44: =IF(D_Enk_Cl_V_4>0,(ROUND(D_Enk_Cl_V_4,enk_ciffer-(INT(LOG(D_Enk_Cl_V_4))+1))),"") ->  | K44: mg/m³ | M44: =C44*1000000 ->  | N44: =E44*1000000 ->  | O44: =G44*1000000 ->  | P44: =I44*1000000 ->  | Q44: ng/m³
A45: Beregnet jordkonc. | B45: Ct | C45: =IF(D_Enk_Ct_V_1>0,ROUND(D_Enk_Ct_V_1,enk_ciffer-(INT(LOG(D_Enk_Ct_V_1))+1)),"") ->  | E45: =IF(D_Enk_Ct_V_2>0,ROUND(D_Enk_Ct_V_2,enk_ciffer-(INT(LOG(D_Enk_Ct_V_2))+1)),"") ->  | G45: =IF(D_Enk_Ct_V_3>0,ROUND(D_Enk_Ct_V_3,enk_ciffer-(INT(LOG(D_Enk_Ct_V_3))+1)),"") ->  | I45: =IF(D_Enk_Ct_V_4>0,ROUND(D_Enk_Ct_V_4,enk_ciffer-(INT(LOG(D_Enk_Ct_V_4))+1)),"") ->  | K45: mg/kg TS | M45: =C45*1000 ->  | N45: =E45*1000 ->  | O45: =G45*1000 ->  | P45: =I45*1000 ->  | Q45: µg/kg TS
A47: Målt konc. i jorden | B47: Ct | C47: =IF(ISNUMBER(Enk_My_Ct_1),Enk_My_Ct_1,"") ->  | E47: =IF(ISNUMBER(Enk_My_Ct_2),Enk_My_Ct_2,"") ->  | G47: =IF(ISNUMBER(Enk_My_Ct_3),Enk_My_Ct_3,"") ->  | I47: =IF(ISNUMBER(Enk_My_Ct_4),Enk_My_Ct_4,"") ->  | K47: mg/kg TS | M47: =C47*1000 ->  | N47: =E47*1000 ->  | O47: =G47*1000 ->  | P47: =I47*1000 ->  | Q47: µg/kg TS
A48: Beregnet poreluftskonc. | B48: CL | C48: =IF(D_Enk_Cl_J_1>0,ROUND(D_Enk_Cl_J_1,enk_ciffer-(INT(LOG(D_Enk_Cl_J_1))+1)),"") ->  | E48: =IF(D_Enk_Cl_J_2>0,ROUND(D_Enk_Cl_J_2,enk_ciffer-(INT(LOG(D_Enk_Cl_J_2))+1)),"") ->  | G48: =IF(D_Enk_Cl_J_3>0,ROUND(D_Enk_Cl_J_3,enk_ciffer-(INT(LOG(D_Enk_Cl_J_3))+1)),"") ->  | I48: =IF(D_Enk_Cl_J_4>0,ROUND(D_Enk_Cl_J_4,enk_ciffer-(INT(LOG(D_Enk_Cl_J_4))+1)),"") ->  | K48: mg/m³ | M48: =C48*1000000 ->  | N48: =E48*1000000 ->  | O48: =G48*1000000 ->  | P48: =I48*1000000 ->  | Q48: ng/m³
A49: Beregnet vandskonc. | B49: CV | C49: =IF(D_Enk_Cv_J_1>0,ROUND(D_Enk_Cv_J_1,enk_ciffer-(INT(LOG(D_Enk_Cv_J_1))+1)),"") ->  | E49: =IF(D_Enk_Cv_J_2>0,ROUND(D_Enk_Cv_J_2,enk_ciffer-(INT(LOG(D_Enk_Cv_J_2))+1)),"") ->  | G49: =IF(D_Enk_Cv_J_3>0,ROUND(D_Enk_Cv_J_3,enk_ciffer-(INT(LOG(D_Enk_Cv_J_3))+1)),"") ->  | I49: =IF(D_Enk_Cv_J_4>0,ROUND(D_Enk_Cv_J_4,enk_ciffer-(INT(LOG(D_Enk_Cv_J_4))+1)),"") ->  | K49: mg/l | M49: =C49*1000000 ->  | N49: =E49*1000000 ->  | O49: =G49*1000000 ->  | P49: =I49*1000000 ->  | Q49: ng/l
A51: Risiko for fri fase? | C51: =D_Enk_FF_1 -> nej | E51: =D_Enk_FF_2 -> nej | G51: =D_Enk_FF_3 -> nej | I51: =D_Enk_FF_4 -> nej
A53: Anvendt Brugerdata? | C53: =D_Enk_Brugerdata_1 -> Nej | E53: =D_Enk_Brugerdata_2 -> Nej | G53: =D_Enk_Brugerdata_3 -> Nej | I53: =D_Enk_Brugerdata_4 -> Nej
A55: Beregningerne udført af | K55: Beregningerne kontrolleret /godkendt af
A56: Firmanavn | B56: =Lok_firma ->  | G56: Kontrolleret
A57: Navn/initialer | B57: =Lok_init ->  | G57: Godkendt
A58: Dato/Underskrift
A61: Beregningerne er udført med de ovenfor angivne data og uden at der er foretaget ændringer af beregningsformler.
A63: Bemærkninger | B63: =IF(D_Enk_Jord_Com <> "", D_Enk_Jord_Com, "") -> 
A64: om jordtype
A78: Bemærkninger | B78: =IF(D_Enk_Kem_Com <> "", D_Enk_Kem_Com, "") -> 
A79: om kemiske data
A93: Bemærkninger | B93: =IF(D_Enk_Fug_Com<>"",D_Enk_Fug_Com,"") -> 
A94: om fugacitet

Sheet Vejledning_Enkeltstoffer (hidden)
B1: Vejledning - Enkeltstoffer
B2: Formål
B3: I dette ark defineres de forureningsdata, som skal anvendes i beregningerne, ved at indtaste oplysninger om målte data og undersøgelsesforhold.
B6: FUGACITETSBEREGNINGER
B7: Såfremt der indtastes data om jordarten, hvorfra prøverne er udtaget, beregnes fasefordelingen i de andre medier (fugacitetsberegninger) iht. de målte data. Nærmere detaljer om beregningerne er beskrevet i Miljøstyrelsens vejledninger nr. 6 og 7 fra 1998.
B31: Jordtype:
B32: Man kan vælge en standardjordtype fra listen eller oprette eller hente egenskaber fra egen liste ved at markere den ønskede jordtype. Det er også muligt at anvende og oprette egne "jordtyper" ved at klikke på knappen "Egen liste"
B37: Kemiske data:
B38: Der kan indtastes data for op til fire målepunkter. Disse kan være data for fire forskellige stoffer eller for forskellige koncentrationer i forskellige medier eller målepunkter. Man kan vælge op til fire stoffer fra standardlisten eller oprette eller hente stofegenskaber fra egen liste. Ved at klikke på Vis detailoplysninger vises de anvendte fysisk-kemiske egenskaber, og der kan indtastes andre (egne) værdier.
B45: Valg af modul for risikoberegning:
B46: Efter indtastning af målte værdier vælges det ønskede risikovurderingsmodul: Vertikal transport (umættet zone) til det først betydende grundvandsmagasin Grundvand (transport i det først betydende grundvandsmagasin) Udeluft Indeklima
B53: Ved beregninger for vertikal transport, grundvand, udeluft eller indeklima overføres enten de målte data eller, såfremt der ikke foreligger målte data for de relevante medier (luft, vand), de beregnede koncentrationer iht. fugacitetsberegninger.
B57: Generelt
B58: Hvis der er anført værdier i de hvide felter vil beregningen altid blive foretaget med disse. Ved at klikke på Knappe "Bemærkninger" er det muligt at indføre oplysninger om hvorfor der er valgt andre værdier end standardværdierne
B62: ANVENDELSEN AF LISTEVÆRDIER
B63: Der findes i JAGG 2.0 to typer af listeværdier: Standardlisteværdier, hvis indhold er godkendt af Miljøstyrelsen, og listeværdier med brugerens egne indtastede værdier.
B66: Når en Standardværdiliste er åbnet er der mulighed for følgende operationer: · At navigere ned gennem listen ved at anvende rullebjælken · At sortere forekomsterne ved at klikke på sorteringsknapperne · At vælge en forekomst ved at klikke på den ønskede værdi og herefter klikke [OK], eller ved at dobbeltklikke på den ønskede værdi · At vælge en forekomst ved at skrive dens navn i søgefeltet og herefter klikke [OK] · At fortryde og lukke standardlisten ved at klikke [Fortryd] · At slette en valgt forekomst ved at sætte flueben ved "Nulstil systemværdier" /"Nulstil indtastede værdier" · At slette indtastede værdier
B76: BEMÆRKNINGER:
B77: Der er mulighed for at indtaste bemærkninger til de valgte date. Bemærkningerne knytter sig normalt til et dataområde, f.eks. jordforhold, kemiske stoffer, og beregninger. Bemærkninger indtastes ved at klikke på bemærkningsfeltet. Et bemærkningsfelt kan maksimalt indeholde 500 tegn. Hvis der er indtastet data i et bemærkningsfelt skifter knappen farve fra mørkeblå til lyseblå. Når bemærkningsfeltet er åbent er der mulighed for følgende operationer: [OK] Den indtastede tekst gemmes [Fortryd] Bemærkningsfeltet lukkes uden at gemme ændringer [Slet tekst] Alt tekst i bemærkningsfeltet slettes
B88: NULSTIL VÆRDIER:
B89: Den røde knap [Nulstil værdier] sletter alle indtastede værdier i dette ark, både data til beregninger og data i bemærkningsfelter.
B92: SLETNING AF ENKELTVÆRDIER:
B93: Værdier der fremkommet fra valglister kan slettes / nulstilles ved at åbne valglisten igen, og sætte flueben i feltet “Nulstil systemværdier” og herefter klikke "OK". Dette gælder både for systemvalglister og Egne lister.
B96: UDSKRIV VÆRDIER:
B97: Der er udarbejdet et særskilt udskriftsark, hvor data er tilpasset A4 formatet. Udskriftarket åbnes ved at klikke på knappen [Udskrift]. Udskriftsarket åbnes som en form for "vis udskrift". Udover at vise data er udskriftarket også indrettet så der med rødt markers hvis der mangler vitale oplysninger for at beregningerne kan gennemføres.
B103: DATAARKET:
B104: Dataarket viser alle data der indgår i beregningerne inkl. resultat af mellemberegninger.

Sheet Grundvand (hidden)
A1: Grundvandskoncentrationen i det første betydende magasin
A2: Lokaliteten
A4: Lokalitetsnavn: | H4: =IF(Ops_navn<>"",Ops_navn,"") -> 
A6: Adresse: | H6: =IF(Ops_adr<>"",Ops_adr,"") ->  | R6: Postnr./By: | T6: =IF(Ops_post<>"",Ops_post,"") -> 
A8: Lokalitetsnummer: | H8: =IF(Ops_lok<>"",Ops_lok,"") ->  | R8: Projektnr: | T8: =IF(Ops_pro<>"",Ops_pro,"") -> 
A10: Beregning udføres for : | H10: =D_Enk_stofnavn_1 ->  | N10: =D_Enk_stofnavn_2 ->  | T10: =D_Enk_stofnavn_3 ->  | Z10: =D_Enk_stofnavn_4 -> 
A13: Det forurenede område | H13: Der skal vælges mellem to beregningstyper:
G14: A - Beregnet koncentration - ud fra en målt konc. i kilden (porevand, terrænnært grundvand) [Data overføres fra modulet Enkeltstoffer eller Vertikal transport] | U14: B - Målt koncentration i toppen af første betydende magasin [Data overføres fra modulet Enkeltstoffer]
A20: Længde af kildeområde | F20: Y | M20: m | O20: =IF(ISTEXT(Gru_Y),"Tjek decimal","") -> 
A22: Bredde af kildeområde | F22: X | M22: m | O22: =IF(ISTEXT(Gru_X),"Tjek decimal","") ->  | U22: Areal af det forurenede område | AC22: =D_Gru_A ->  | AF22: m2
A26: Nettonedbør | F26: N | H26: =IF(D_Gru_N_syst<>"",D_Gru_N_syst,"") ->  | M26: mm/år
A28: Kommune/Egn | H28: =IF(D_Gru_Kommune_syst<>"",D_Gru_Kommune_syst,"") -> 
G31: Angiv filterlængde
D33: Filterlængde | G33: l | L33: m | N33: =IF(ISTEXT(Gru_FilterL),"Tjek decimal","") -> 
A37: Det første betydende magasin | I37: Indtast data for det første betydende magasin, hvori risiko skal beregnes
N39: Hydraulisk gradient (m/m) | Q39: Hydraulisk lednings- evne | T39: Effektiv porøsitet | W39: Vand-mættede porøsitet | Z39: Bulk-masse-fylde (kg/l) | AC39: % indhold organisk kulstof | AF39: Tykkelse af magasin (m) | AI39: Opblandings-dybde (m)
N40: i | Q40: k | T40: eff. | W40: ew | Z40: r | AC40: foc | AF40: maxdm | AI40: dm
H41: =IF(D_Gru_Aqui_syst<>"",D_Gru_Aqui_syst,"") ->  | Q41: =IF(D_Gru_trin1a_k_int<>"",D_Gru_trin1a_k_int,"") ->  | T41: =IF(D_Gru_trin2a_eeff_int<>"",D_Gru_trin2a_eeff_int,"") ->  | W41: =IF(D_Gru_trin3_eW_int<>"",D_Gru_trin3_eW_int,"") ->  | Z41: =IF(D_Gru_rhob_int<>"",D_Gru_rhob_int,"") ->  | AC41: =IF(D_Gru_foc_int<>"",D_Gru_foc_int,"") ->  | AI41: =D_Gru_trin2a_dm_2a -> 
Q42: =IF(D_Gru_trin1a_k_syst<>"",D_Gru_trin1a_k_syst,"") ->  | T42: =IF(D_Gru_trin2a_eeff_syst<>"",D_Gru_trin2a_eeff_syst,"") ->  | W42: =IF(D_Gru_trin3_eW_syst<>"",D_Gru_trin3_eW_syst,"") ->  | Z42: =IF(D_Gru_rhob_syst<>"",D_Gru_rhob_syst,"") ->  | AC42: =IF(D_Gru_foc_syst<>"",D_Gru_foc_syst,"") -> 
AK43: =IF(ISTEXT(Gru_i),"Tjek decimal",IF(ISTEXT(Gru_My_k),"Tjek decimal",IF(ISTEXT(Gru_My_eff),"Tjek decimal",IF(ISTEXT(Gru_My_ew),"Tjek decimal",IF(ISTEXT(Gru_My_p),"Tjek decimal",IF(ISTEXT(Gru_My_foc),"Tjek decimal",IF(ISTEXT(Gru_maxdm),"Tjek decimal",""))))))) -> 
A45: Gns. porevandhastighed | F45: Vp | H45: =D_Gru_trin2a_VP ->  | K45: m/år
A47: Afstand til teoretisk beregningspunkt
F48: L | H48: =D_Gru_trin1b_LL ->  | K48: m
A50: Transporttid til teoretisk beregningspunkt
F51: ttid | H51: =D_Gru_trin2a_t ->  | K51: år
A54: Forurening | F54: Data for forureningen er overført fra fugacitetsmodulet eller et af modulerne for umættet zone Indtast eventuel baggrundskoncentration.
A58: Stofnavn (fra enkeltstoffer) | H58: =D_Gru_stofnavn_1 ->  | N58: =D_Gru_stofnavn_2 ->  | T58: =D_Gru_stofnavn_3 ->  | Z58: =D_Gru_stofnavn_4 -> 
A60: Målepunkt | H60: =IF(D_Enk_stofnavn_1<>"",D_Enk_MP_1,"") ->  | N60: =IF(D_Enk_stofnavn_2<>"",D_Enk_MP_2,"") ->  | T60: =IF(D_Enk_stofnavn_3<>"",D_Enk_MP_3,"") ->  | Z60: =IF(D_Enk_stofnavn_4<>"",D_Enk_MP_4,"") -> 
A61: Dato | H61: =IF(D_Enk_stofnavn_1<>"",D_Enk_dato_1,"") ->  | N61: =IF(D_Enk_stofnavn_2<>"",D_Enk_dato_2,"") ->  | T61: =IF(D_Enk_stofnavn_3<>"",D_Enk_dato_3,"") ->  | Z61: =IF(D_Enk_stofnavn_4<>"",D_Enk_dato_4,"") -> 
A63: Forureningsdata: Trin 1a
A64: Baggrundskoncentration | F64: Cg | AF64: mg/l | AI64: =IF(ISTEXT(Gru_Trin1a_my_Cg_1),"Tjek decimal",IF(ISTEXT(Gru_Trin1a_my_Cg_2),"Tjek decimal",IF(ISTEXT(Gru_Trin1a_my_Cg_3),"Tjek decimal",IF(ISTEXT(Gru_Trin1a_my_Cg_4),"Tjek decimal","")))) -> 
A67: Kildestyrkekoncentration | F67: C0 | H67: Vælg kildestyrkekoncentrationen for beregningen
H69: =D_Gru_trin1a_C0_temp1_1 ->  | N69: =D_Gru_trin1a_C0_temp1_2 ->  | T69: =D_Gru_trin1a_C0_temp1_3 ->  | Z69: =D_Gru_trin1a_C0_temp1_4 ->  | AF69: mg/l
H71: =D_Gru_trin1a_C0_temp2_1 -> FALSE | N71: =D_Gru_trin1a_C0_temp2_2 -> FALSE | T71: =D_Gru_trin1a_C0_temp2_3 -> FALSE | Z71: =D_Gru_trin1a_C0_temp2_4 -> FALSE | AF71: mg/l | AG71: =IF(D_Gru_trin1a_temp2_TrueFalse,D_ver_model,"") -> 
H73: 1 | N73: 2 | T73: 3 | Z73: 4 | AF73: mg/l
AF75: mg/l | AI75: =IF(ISTEXT(Gru_Trin1a_my_C0_1),"Tjek decimal",IF(ISTEXT(Gru_Trin1a_my_C0_2),"Tjek decimal",IF(ISTEXT(Gru_Trin1a_my_C0_3),"Tjek decimal",IF(ISTEXT(Gru_Trin1a_my_C0_4),"Tjek decimal","")))) -> 
A77: Forureningsdata:Trin 1b
A78: Målt koncentration (fra enkeltstoffer) | F78: C1 | H78: =D_Enk_CV_1 -> 0 | N78: =D_Enk_CV_2 -> 0 | T78: =D_Enk_CV_3 -> 0 | Z78: =D_Enk_CV_4 -> 0 | AF78: mg/l
A80: Test af andre værdier | AF80: mg/l
A82: Beregning: Grundvand
A84: Grundvandskvalitetskriterie | H84: =D_Gru_trin1a_Krit_1 ->  | N84: =D_Gru_trin1a_Krit_2 ->  | T84: =D_Gru_trin1a_Krit_3 ->  | Z84: =D_Gru_trin1a_Krit_4 ->  | AF84: mg/l
A86: Grundvandskoncentration: Trin 1 | F86: C1 | H86: =D_gru_trin1_GVkonc_1 ->  | N86: =D_gru_trin1_GVkonc_2 ->  | T86: =D_Gru_trin1_GVkonc_3 ->  | Z86: =D_gru_trin1_GVKonc_4 ->  | AF86: mg/l
A88: Overskridelse af kriteriet Trin 1 | H88: =D_Gru_trin1_oversk_1 ->  | N88: =D_Gru_trin1_oversk_2 ->  | T88: =D_gru_trin1_oversk_3 ->  | Z88: =D_Gru_trin1_oversk_4 ->  | AF88: gange
A90: Grundvandskoncentration: Trin 2 | F90: C2 | H90: =D_Gru_Trin2_GVKonc_1 ->  | N90: =D_Gru_Trin2_GVKonc_2 ->  | T90: =D_Gru_Trin2_GVKonc_3 ->  | Z90: =D_Gru_Trin2_GVKonc_4 ->  | AF90: mg/l
A92: Overskridelse af kriteriet Trin 2 | H92: =D_gru_trin2_overskr_1 ->  | N92: =D_Gru_trin2_overskr_2 ->  | T92: =D_Gru_trin2_overskr_3 ->  | Z92: =D_Gru_trin2_overskr_4 ->  | AF92: gange
A94: Trin 3 inclusiv sorption og nedbryding
F95: Angiv om der er tale om aerobe eller anaerobe nedbrydningsforhold
A96: Nedbrydningsforhold
H99: =D_Gru_stofnavn_1 ->  | N99: =D_Gru_stofnavn_2 ->  | T99: =D_Gru_stofnavn_3 ->  | Z99: =D_Gru_stofnavn_4 -> 
A100: Stofnavn (fra enkeltstoffer)
A102: Fordelingskoefficient | F102: Log KD | H102: =D_Gru_trin3_logKD_1 ->  | N102: =D_Gru_trin3_logKD_2 ->  | T102: =D_Gru_trin3_logKD_3 ->  | Z102: =D_Gru_trin3_logKD_4 -> 
A104: Anvendt nedbrydningskonstant | H104: =IF(D_Enk_stofnavn_1<>"",D_Gru_trin3_k1_1,"") ->  | N104: =IF(D_Enk_stofnavn_2<>"",D_Gru_trin3_k1_2,"") ->  | T104: =IF(D_Enk_stofnavn_3<>"",D_Gru_trin3_k1_3,"") ->  | Z104: =IF(D_Enk_stofnavn_4<>"",D_Gru_trin3_k1_4,"") ->  | AF104: dage-1
A106: GV-Konc. m. nedbr.: Trin 3 | H106: =D_Gru_trin3_ned_C3_1 ->  | N106: =D_Gru_trin3_ned_C3_2 ->  | T106: =D_Gru_trin3_ned_C3_3 ->  | Z106: =D_Gru_trin3_ned_C3_4 ->  | AF106: mg/l
A108: GV-Konc. m. sorpt. og nedbr.: Trin 3 | F108: C3 | H108: =D_Gru_trin3_C3_1 ->  | N108: =D_Gru_trin3_C3_2 ->  | T108: =D_Gru_trin3_C3_3 ->  | Z108: =D_Gru_trin3_C3_4 ->  | AF108: mg/l
A110: Grundvandskvalitetskriterie | H110: =D_Gru_trin1a_Krit_1 ->  | N110: =D_Gru_trin1a_Krit_2 ->  | T110: =D_Gru_trin1a_Krit_3 ->  | Z110: =D_Gru_trin1a_Krit_4 ->  | AF110: mg/l
A112: Overskridelse af kriteriet Trin 3 | H112: =D_Gru_trin3_Krit_Overskr_1 ->  | N112: =D_Gru_trin3_Krit_Overskr_2 ->  | T112: =D_Gru_trin3_Krit_Overskr_3 ->  | Z112: =D_Gru_trin3_Krit_Overskr_4 ->  | AF112: gange
A114: Anvendt brugerdata | H114: =D_GRU_brugerdata_1 ->  | N114: =D_GRU_brugerdata_2 ->  | T114: =D_GRU_brugerdata_3 ->  | Z114: =D_GRU_brugerdata_4 -> 
A117: Log Kow (oktanol/vand) | F117: Log Kow | H117: =D_Gru_trin3_logKOW_1 ->  | N117: =D_Gru_trin3_logKOW_2 ->  | T117: =D_Gru_trin3_logKOW_3 ->  | Z117: =D_Gru_trin3_logKOW_4 -> 
A119: Forureningsflux vertikalt (Trin 1a) | F119: Jo | H119: =D_gru_trin3_fluxvert_1 ->  | N119: =D_gru_trin3_fluxvert_2 ->  | T119: =D_gru_trin3_fluxvert_3 ->  | Z119: =D_Gru_Trin3_fluxvert_4 ->  | AF119: g/år
Z120: 4
A121: Retardationskoefficient | F121: R | H121: =D_Gru_trin3_R_1 ->  | N121: =D_Gru_trin3_R_2 ->  | T121: =D_Gru_trin3_R_3 ->  | Z121: =D_Gru_trin3_R_4 -> 
A123: Forureningshastighed | F123: Vs | H123: =D_Gru_trin3_VS_1 ->  | N123: =D_Gru_trin3_VS_2 ->  | T123: =D_Gru_trin3_VS_3 ->  | Z123: =D_Gru_trin3_VS_4 ->  | AF123: m/år
A125: Transporttid med sorption til teoretisk beregn.pkt. | H125: =D_Gru_trin3_t_sorp_1 ->  | N125: =D_Gru_trin3_t_sorp_2 ->  | T125: =D_Gru_trin3_t_sorp_3 ->  | Z125: =D_Gru_trin3_t_sorp_4 ->  | AF125: dage
F128: Vælg stoftabel for afstandsdata
A131: Data for stof 1 | H131: =D_Gru_stofnavn_1 -> 
A133: Afstand | H133: =D_Gru_stof1_Afstand_1_2 -> 0 | K133: =D_Gru_stof1_Afstand_1_3 -> 10 | N133: =D_Gru_stof1_Afstand_1_4 -> 20 | Q133: =D_Gru_stof1_Afstand_1_5 -> 30 | T133: =D_Gru_stof1_Afstand_1_6 -> 40 | W133: =D_Gru_stof1_Afstand_1_7 -> 50 | Z133: =D_Gru_stof1_Afstand_1_8 -> 75 | AC133: =D_Gru_stof1_Afstand_1_9 -> 100 | AF133: m
A135: Transporttid | E135: =D_Gru_stof1_Afstand_2_1 ->  | H135: =D_Gru_stof1_Afstand_2_2 ->  | K135: =D_Gru_stof1_Afstand_2_3 ->  | N135: =D_Gru_stof1_Afstand_2_4 ->  | Q135: =D_Gru_stof1_Afstand_2_5 ->  | T135: =D_Gru_stof1_Afstand_2_6 ->  | W135: =D_Gru_stof1_Afstand_2_7 ->  | Z135: =D_Gru_stof1_Afstand_2_8 ->  | AC135: =D_Gru_stof1_Afstand_2_9 ->  | AF135: år
A136: Opblandingsdybde | E136: =D_Gru_stof1_Afstand_3_1 ->  | H136: =D_Gru_stof1_Afstand_3_2 ->  | K136: =D_Gru_stof1_Afstand_3_3 ->  | N136: =D_Gru_stof1_Afstand_3_4 ->  | Q136: =D_Gru_stof1_Afstand_3_5 ->  | T136: =D_Gru_stof1_Afstand_3_6 ->  | W136: =D_Gru_stof1_Afstand_3_7 ->  | Z136: =D_Gru_stof1_Afstand_3_8 ->  | AC136: =D_Gru_stof1_Afstand_3_9 ->  | AF136: m
A137: Forureningskoncentration, C2 | E137: =D_Gru_stof1_Afstand_4_1 -> 0 | H137: =D_Gru_stof1_Afstand_4_2 -> 0 | K137: =D_Gru_stof1_Afstand_4_3 -> 0 | N137: =D_Gru_stof1_Afstand_4_4 -> 0 | Q137: =D_Gru_stof1_Afstand_4_5 -> 0 | T137: =D_Gru_stof1_Afstand_4_6 -> 0 | W137: =D_Gru_stof1_Afstand_4_7 -> 0 | Z137: =D_Gru_stof1_Afstand_4_8 -> 0 | AC137: =D_Gru_stof1_Afstand_4_9 -> 0 | AF137: mg/l
A138: Konc. med nedbrydning, C3 | E138: =D_Gru_stof1_Afstand_5_1 ->  | H138: =D_Gru_stof1_Afstand_5_2 ->  | K138: =D_Gru_stof1_Afstand_5_3 ->  | N138: =D_Gru_stof1_Afstand_5_4 ->  | Q138: =D_Gru_stof1_Afstand_5_5 ->  | T138: =D_Gru_stof1_Afstand_5_6 ->  | W138: =D_Gru_stof1_Afstand_5_7 ->  | Z138: =D_Gru_stof1_Afstand_5_8 ->  | AC138: =D_Gru_stof1_Afstand_5_9 ->  | AF138: mg/l
A139: Transporttid (sorpt.) | E139: =D_Gru_stof1_Afstand_6_1 ->  | H139: =D_Gru_stof1_Afstand_6_2 ->  | K139: =D_Gru_stof1_Afstand_6_3 ->  | N139: =D_Gru_stof1_Afstand_6_4 ->  | Q139: =D_Gru_stof1_Afstand_6_5 ->  | T139: =D_Gru_stof1_Afstand_6_6 ->  | W139: =D_Gru_stof1_Afstand_6_7 ->  | Z139: =D_Gru_stof1_Afstand_6_8 ->  | AC139: =D_Gru_stof1_Afstand_6_9 ->  | AF139: år
A140: Konc. m. sorpt. og nedbr.,C3 | E140: =D_Gru_stof1_Afstand_7_1 ->  | H140: =D_Gru_stof1_Afstand_7_2 ->  | K140: =D_Gru_stof1_Afstand_7_3 ->  | N140: =D_Gru_stof1_Afstand_7_4 ->  | Q140: =D_Gru_stof1_Afstand_7_5 ->  | T140: =D_Gru_stof1_Afstand_7_6 ->  | W140: =D_Gru_stof1_Afstand_7_7 ->  | Z140: =D_Gru_stof1_Afstand_7_8 ->  | AC140: =D_Gru_stof1_Afstand_7_9 ->  | AF140: mg/l
A160: Data for stof 2 | H160: =D_Gru_stofnavn_2 -> 
A162: Afstand | H162: =D_Gru_stof2_Afstand_1_2 -> 0 | K162: =D_Gru_stof2_Afstand_1_3 -> 10 | N162: =D_Gru_stof2_Afstand_1_4 -> 20 | Q162: =D_Gru_stof2_Afstand_1_5 -> 30 | T162: =D_Gru_stof2_Afstand_1_6 -> 40 | W162: =D_Gru_stof2_Afstand_1_7 -> 50 | Z162: =D_Gru_stof2_Afstand_1_8 -> 75 | AC162: =D_Gru_stof2_Afstand_1_9 -> 100 | AF162: m
A164: Transporttid | E164: =D_Gru_stof2_Afstand_2_1 ->  | H164: =D_Gru_stof2_Afstand_2_2 ->  | K164: =D_Gru_stof2_Afstand_2_3 ->  | N164: =D_Gru_stof2_Afstand_2_4 ->  | Q164: =D_Gru_stof2_Afstand_2_5 ->  | T164: =D_Gru_stof2_Afstand_2_6 ->  | W164: =D_Gru_stof2_Afstand_2_7 ->  | Z164: =D_Gru_stof2_Afstand_2_8 ->  | AC164: =D_Gru_stof2_Afstand_2_9 ->  | AF164: år
A165: Opblandingsdybde, m | E165: =D_Gru_stof2_Afstand_3_1 ->  | H165: =D_Gru_stof2_Afstand_3_2 ->  | K165: =D_Gru_stof2_Afstand_3_3 ->  | N165: =D_Gru_stof2_Afstand_3_4 ->  | Q165: =D_Gru_stof2_Afstand_3_5 ->  | T165: =D_Gru_stof2_Afstand_3_6 ->  | W165: =D_Gru_stof2_Afstand_3_7 ->  | Z165: =D_Gru_stof2_Afstand_3_8 ->  | AC165: =D_Gru_stof2_Afstand_3_9 ->  | AF165: m
A166: Forureningskoncentration C2 | E166: =D_Gru_stof2_Afstand_4_1 -> 0 | H166: =D_Gru_stof2_Afstand_4_2 -> 0 | K166: =D_Gru_stof2_Afstand_4_3 -> 0 | N166: =D_Gru_stof2_Afstand_4_4 -> 0 | Q166: =D_Gru_stof2_Afstand_4_5 -> 0 | T166: =D_Gru_stof2_Afstand_4_6 -> 0 | W166: =D_Gru_stof2_Afstand_4_7 -> 0 | Z166: =D_Gru_stof2_Afstand_4_8 -> 0 | AC166: =D_Gru_stof2_Afstand_4_9 -> 0 | AF166: mg/l
A167: Konc. med nedbrydning C3 | E167: =D_Gru_stof2_Afstand_5_1 ->  | H167: =D_Gru_stof2_Afstand_5_2 ->  | K167: =D_Gru_stof2_Afstand_5_3 ->  | N167: =D_Gru_stof2_Afstand_5_4 ->  | Q167: =D_Gru_stof2_Afstand_5_5 ->  | T167: =D_Gru_stof2_Afstand_5_6 ->  | W167: =D_Gru_stof2_Afstand_5_7 ->  | Z167: =D_Gru_stof2_Afstand_5_8 ->  | AC167: =D_Gru_stof2_Afstand_5_9 ->  | AF167: mg/l
A168: Transporttid (sorpt.) | E168: =D_Gru_stof2_Afstand_6_1 ->  | H168: =D_Gru_stof2_Afstand_6_2 ->  | K168: =D_Gru_stof2_Afstand_6_3 ->  | N168: =D_Gru_stof2_Afstand_6_4 ->  | Q168: =D_Gru_stof2_Afstand_6_5 ->  | T168: =D_Gru_stof2_Afstand_6_6 ->  | W168: =D_Gru_stof2_Afstand_6_7 ->  | Z168: =D_Gru_stof2_Afstand_6_8 ->  | AC168: =D_Gru_stof2_Afstand_6_9 ->  | AF168: år
A169: Konc. m. sorpt. og nedbr. C3 | E169: =D_Gru_stof2_Afstand_7_1 ->  | H169: =D_Gru_stof2_Afstand_7_2 ->  | K169: =D_Gru_stof2_Afstand_7_3 ->  | N169: =D_Gru_stof2_Afstand_7_4 ->  | Q169: =D_Gru_stof2_Afstand_7_5 ->  | T169: =D_Gru_stof2_Afstand_7_6 ->  | W169: =D_Gru_stof2_Afstand_7_7 ->  | Z169: =D_Gru_stof2_Afstand_7_8 ->  | AC169: =D_Gru_stof2_Afstand_7_9 ->  | AF169: mg/l
A189: Data for stof 3 | H189: =D_Gru_stofnavn_3 -> 
A191: Afstand | H191: =D_Gru_stof3_Afstand_1_2 -> 0 | K191: =D_Gru_stof3_Afstand_1_3 -> 10 | N191: =D_Gru_stof3_Afstand_1_4 -> 20 | Q191: =D_Gru_stof3_Afstand_1_5 -> 30 | T191: =D_Gru_stof3_Afstand_1_6 -> 40 | W191: =D_Gru_stof3_Afstand_1_7 -> 50 | Z191: =D_Gru_stof3_Afstand_1_8 -> 75 | AC191: =D_Gru_stof3_Afstand_1_9 -> 100 | AF191: m
A193: Transporttid | E193: =D_Gru_stof3_Afstand_2_1 ->  | H193: =D_Gru_stof3_Afstand_2_2 ->  | K193: =D_Gru_stof3_Afstand_2_3 ->  | N193: =D_Gru_stof3_Afstand_2_4 ->  | Q193: =D_Gru_stof3_Afstand_2_5 ->  | T193: =D_Gru_stof3_Afstand_2_6 ->  | W193: =D_Gru_stof3_Afstand_2_7 ->  | Z193: =D_Gru_stof3_Afstand_2_8 ->  | AC193: =D_Gru_stof3_Afstand_2_9 ->  | AF193: år
A194: Opblandingsdybde, m | E194: =D_Gru_stof3_Afstand_3_1 ->  | H194: =D_Gru_stof3_Afstand_3_2 ->  | K194: =D_Gru_stof3_Afstand_3_3 ->  | N194: =D_Gru_stof3_Afstand_3_4 ->  | Q194: =D_Gru_stof3_Afstand_3_5 ->  | T194: =D_Gru_stof3_Afstand_3_6 ->  | W194: =D_Gru_stof3_Afstand_3_7 ->  | Z194: =D_Gru_stof3_Afstand_3_8 ->  | AC194: =D_Gru_stof3_Afstand_3_9 ->  | AF194: m
A195: Forureningskoncentration C2 | E195: =D_Gru_stof3_Afstand_4_1 -> 0 | H195: =D_Gru_stof3_Afstand_4_2 -> 0 | K195: =D_Gru_stof3_Afstand_4_3 -> 0 | N195: =D_Gru_stof3_Afstand_4_4 -> 0 | Q195: =D_Gru_stof3_Afstand_4_5 -> 0 | T195: =D_Gru_stof3_Afstand_4_6 -> 0 | W195: =D_Gru_stof3_Afstand_4_7 -> 0 | Z195: =D_Gru_stof3_Afstand_4_8 -> 0 | AC195: =D_Gru_stof3_Afstand_4_9 -> 0 | AF195: mg/l
A196: Konc. med nedbrydning C3 | E196: =D_Gru_stof3_Afstand_5_1 ->  | H196: =D_Gru_stof3_Afstand_5_2 ->  | K196: =D_Gru_stof3_Afstand_5_3 ->  | N196: =D_Gru_stof3_Afstand_5_4 ->  | Q196: =D_Gru_stof3_Afstand_5_5 ->  | T196: =D_Gru_stof3_Afstand_5_6 ->  | W196: =D_Gru_stof3_Afstand_5_7 ->  | Z196: =D_Gru_stof3_Afstand_5_8 ->  | AC196: =D_Gru_stof3_Afstand_5_9 ->  | AF196: mg/l
A197: Transporttid (sorpt.) | E197: =D_Gru_stof3_Afstand_6_1 ->  | H197: =D_Gru_stof3_Afstand_6_2 ->  | K197: =D_Gru_stof3_Afstand_6_3 ->  | N197: =D_Gru_stof3_Afstand_6_4 ->  | Q197: =D_Gru_stof3_Afstand_6_5 ->  | T197: =D_Gru_stof3_Afstand_6_6 ->  | W197: =D_Gru_stof3_Afstand_6_7 ->  | Z197: =D_Gru_stof3_Afstand_6_8 ->  | AC197: =D_Gru_stof3_Afstand_6_9 ->  | AF197: år
A198: Konc. m. sorpt. og nedbr. C3 | E198: =D_Gru_stof3_Afstand_7_1 ->  | H198: =D_Gru_stof3_Afstand_7_2 ->  | K198: =D_Gru_stof3_Afstand_7_3 ->  | N198: =D_Gru_stof3_Afstand_7_4 ->  | Q198: =D_Gru_stof3_Afstand_7_5 ->  | T198: =D_Gru_stof3_Afstand_7_6 ->  | W198: =D_Gru_stof3_Afstand_7_7 ->  | Z198: =D_Gru_stof3_Afstand_7_8 ->  | AC198: =D_Gru_stof3_Afstand_7_9 ->  | AF198: mg/l
A219: Data for stof 4 | H219: =D_Gru_stofnavn_4 -> 
A221: Afstand | H221: =D_Gru_stof4_Afstand_1_2 -> 0 | K221: =D_Gru_stof4_Afstand_1_3 -> 10 | N221: =D_Gru_stof4_Afstand_1_4 -> 20 | Q221: =D_Gru_stof4_Afstand_1_5 -> 30 | T221: =D_Gru_stof4_Afstand_1_6 -> 40 | W221: =D_Gru_stof4_Afstand_1_7 -> 50 | Z221: =D_Gru_stof4_Afstand_1_8 -> 75 | AC221: =D_Gru_stof4_Afstand_1_9 -> 100 | AF221: m
A223: Transporttid | E223: =D_Gru_stof4_Afstand_2_1 ->  | H223: =D_Gru_stof4_Afstand_2_2 ->  | K223: =D_Gru_stof4_Afstand_2_3 ->  | N223: =D_Gru_stof4_Afstand_2_4 ->  | Q223: =D_Gru_stof4_Afstand_2_5 ->  | T223: =D_Gru_stof4_Afstand_2_6 ->  | W223: =D_Gru_stof4_Afstand_2_7 ->  | Z223: =D_Gru_stof4_Afstand_2_8 ->  | AC223: =D_Gru_stof4_Afstand_2_9 ->  | AF223: år
A224: Opblandingsdybde, m | E224: =D_Gru_stof4_Afstand_3_1 ->  | H224: =D_Gru_stof4_Afstand_3_2 ->  | K224: =D_Gru_stof4_Afstand_3_3 ->  | N224: =D_Gru_stof4_Afstand_3_4 ->  | Q224: =D_Gru_stof4_Afstand_3_5 ->  | T224: =D_Gru_stof4_Afstand_3_6 ->  | W224: =D_Gru_stof4_Afstand_3_7 ->  | Z224: =D_Gru_stof4_Afstand_3_8 ->  | AC224: =D_Gru_stof4_Afstand_3_9 ->  | AF224: m
A225: Forureningskoncentration C2 | E225: =D_Gru_stof4_Afstand_4_1 -> 0 | H225: =D_Gru_stof4_Afstand_4_2 -> 0 | K225: =D_Gru_stof4_Afstand_4_3 -> 0 | N225: =D_Gru_stof4_Afstand_4_4 -> 0 | Q225: =D_Gru_stof4_Afstand_4_5 -> 0 | T225: =D_Gru_stof4_Afstand_4_6 -> 0 | W225: =D_Gru_stof4_Afstand_4_7 -> 0 | Z225: =D_Gru_stof4_Afstand_4_8 -> 0 | AC225: =D_Gru_stof4_Afstand_4_9 -> 0 | AF225: mg/l
A226: Konc. med nedbrydning C3 | E226: =D_Gru_stof4_Afstand_5_1 ->  | H226: =D_Gru_stof4_Afstand_5_2 ->  | K226: =D_Gru_stof4_Afstand_5_3 ->  | N226: =D_Gru_stof4_Afstand_5_4 ->  | Q226: =D_Gru_stof4_Afstand_5_5 ->  | T226: =D_Gru_stof4_Afstand_5_6 ->  | W226: =D_Gru_stof4_Afstand_5_7 ->  | Z226: =D_Gru_stof4_Afstand_5_8 ->  | AC226: =D_Gru_stof4_Afstand_5_9 ->  | AF226: mg/l
A227: Transporttid (sorpt.) | E227: =D_Gru_stof4_Afstand_6_1 ->  | H227: =D_Gru_stof4_Afstand_6_2 ->  | K227: =D_Gru_stof4_Afstand_6_3 ->  | N227: =D_Gru_stof4_Afstand_6_4 ->  | Q227: =D_Gru_stof4_Afstand_6_5 ->  | T227: =D_Gru_stof4_Afstand_6_6 ->  | W227: =D_Gru_stof4_Afstand_6_7 ->  | Z227: =D_Gru_stof4_Afstand_6_8 ->  | AC227: =D_Gru_stof4_Afstand_6_9 ->  | AF227: år
A228: Konc. m. sorpt. og nedbr. C3 | E228: =D_Gru_stof4_Afstand_7_1 ->  | H228: =D_Gru_stof4_Afstand_7_2 ->  | K228: =D_Gru_stof4_Afstand_7_3 ->  | N228: =D_Gru_stof4_Afstand_7_4 ->  | Q228: =D_Gru_stof4_Afstand_7_5 ->  | T228: =D_Gru_stof4_Afstand_7_6 ->  | W228: =D_Gru_stof4_Afstand_7_7 ->  | Z228: =D_Gru_stof4_Afstand_7_8 ->  | AC228: =D_Gru_stof4_Afstand_7_9 ->  | AF228: mg/l

Sheet Dataark_Grundvand (hidden)
B2: Dataark-Grundvand | R2: Systemnavn | S2: Oprindelsessted
B4: Målt/beregnet koncentration | C4: SAND/FALSK
B5: Målt koncentration | C5: FALSE | R5: D_Gru_målt | S5: Styrende parametre
B6: Beregnet koncentration | C6: TRUE | R6: D_Gru_beregn | S6: Styrende parametre
B7: Nebrydningsforhold | S7: Styrende parametre
B8: Aerobe forhold | C8: TRUE | R8: D_Gru_aerob | S8: Styrende parametre
B9: Anaerobe forhold | C9: FALSE | R9: D_Gru_anaerob | S9: Styrende parametre
B10: Koncentrationer | S10: Styrende parametre
B11: True/False fra enkeltstoffer | C11: TRUE | R11: D_Gru_trin1a_temp1_TrueFalse | S11: Styrende parametre
B12: True/False fra Vertikaltransport | C12: FALSE | R12: D_Gru_trin1a_temp2_TrueFalse | S12: Styrende parametre
B13: Udgår | C13: FALSE | R13: D_Gru_trin1a_temp3_TrueFalse | S13: Styrende parametre
B14: True/False fra Test andre værdier | C14: FALSE | R14: D_Gru_trin1a_temp4_TrueFalse | S14: Styrende parametre
B15: Valg af stof til visning af afstandsdata | S15: Styrende parametre
B16: Stof1 | C16: FALSE | R16: D_Gru_Afstand_Stof1_TrueFalse | S16: Styrende parametre
B17: Stof2 | C17: FALSE | R17: D_Gru_Afstand_Stof2_TrueFalse | S17: Styrende parametre
B18: Stof3 | C18: FALSE | R18: D_Gru_Afstand_Stof3_TrueFalse | S18: Styrende parametre
B19: Stof4 | C19: FALSE | R19: D_Gru_Afstand_Stof4_TrueFalse | S19: Styrende parametre
B21: Vanddata
B22: Parameter | C22: Forkortelse | D22: Enhed | E22: Interval | F22: Systemværdi | G22: Indtastet | H22: Anvendes
B23: Hydraulisk ledningsevne (m/s) | C23: k | D23: m/s | G23: =Gru_My_k -> 0 | H23: =IF(VALUE(G23),G23,IF(F23<>0,F23,"")) ->  | I23: D_Gru_trin1a_k_syst | R23: D_Gru_trin1a_k | S23: input, jorddata-hydraulik
B24: Hydraulisk ledningsevne (m/år) | C24: kår | D24: m/år | F24: =B_Gru_trin1a_kår ->  | R24: D_Gru_trin1a_kår | S24: beregnes
B25: Hydraulisk gradient | C25: i | D25: - | G25: =Gru_i -> 0 | R25: D_Gru_trin1a_i | S25: input
B26: Vandflux | C26: Q0 | D26: m3/år | F26: =B_Gru_trin1a_Q0 ->  | R26: D_Gru_trin1a_Q0 | S26: beregnes
B27: Darcy hastighed (vand) | C27: VD | D27: m/år | F27: =B_Gru_trin1a_VD ->  | R27: D_Gru_trin1a_VD | S27: beregnes
B28: Grundvandsflux | C28: Qg | D28: m3/år | F28: =B_Gru_trin1a_Qg ->  | R28: D_Gru_trin1a_Qg | S28: beregnes
B29: Gns. porevandshastighed | C29: VP | D29: m/år | F29: =B_Gru_trin2a_VP ->  | I29: D_Gru_trin2a_VP | R29: D_Gru_trin2a_VP | S29: beregnes
B30: Grundvandsflux | C30: Qg_2a | D30: m3/år | F30: =B_Gru_trin2a_Qg_2a ->  | I30: D_Gru_trin2a_Qg_2a | R30: D_Gru_trin2a_Qg_2a | S30: beregnes
B32: Lokalitetsspecifikke data
B33: Parameter | C33: Forkortelse | D33: Enhed | E33: Interval | F33: Systemværdi | G33: Indtastet | H33: Anvendes
B34: Areal af forurenet område | C34: A | D34: m2 | G34: =Gru_Y*Gru_X -> 0 | H34: =IF(VALUE(G34),G34,IF(F34<>0,F34,"")) ->  | R34: D_Gru_A | S34: input
B35: Længde af forurenet område | C35: Y | D35: m | G35: =Gru_Y -> 0 | I35: Input Gru_Y
B36: Bredde af forurenet område | C36: X | D36: m | G36: =Gru_X -> 0 | I36: Input Gru_X | R36: D_Gru_B | S36: input
B37: Nettoinfiltration | C37: N | D37: mm/år | G37: =Gru_My_Nedbør -> 0 | R37: D_Gru_N | S37: nedbørsdata
B38: Egnsnavn | G38: =Gru_Kommune ->  | H38: =IF(ISTEXT(G38),G38,IF(F38<>0,F38,"")) ->  | R38: D_Gru_Kommune | S38: Egnsnavn
B39: Aquifermaterial | G39: =Gru_My_Aqui -> 0 | H39: =IF(ISTEXT(G39),G39,IF(F39<>0,F39,"")) ->  | I39: D_Gru_Aqui_syst
B40: Opblandingstykkelse_trin1a | C40: dm_1a | D40: m | F40: 0.25 | H40: 0.25 | R40: D_Gru_dm_1a | S40: default=0,25, (input)
B41: Porøsitet, vandmættet | C41: eW | D41: - | G41: =Gru_My_ew -> 0 | H41: =IF(VALUE(G41),G41,IF(F41<>0,F41,"")) ->  | I41: D_Gru_trin3_eW_syst | R41: D_Gru_trin3_eW | S41: fra trin1a
B42: Bulkmassefylde | C42: (rho)b | D42: kg/l | G42: =Gru_My_p -> 0 | I42: D_Gru_rhob_syst | R42: D_Gru_rhob
B43: % Indhold organisk kulstof | C43: foc (%) | D43: - | G43: =Gru_My_foc -> 0 | I43: D_Gru_foc_syst
B44: Fraktion organisk indhold | C44: foc | F44: =F43/100 -> 0 | G44: =G43/100 -> 0 | H44: =H43/100 ->  | R44: D_Gru_foc
B45: Effiktiv porøsitet | C45: eeff | D45: - | G45: =Gru_My_eff -> 0 | I45: D_Gru_trin2a_eeff_syst | R45: D_Gru_trin2a_eeff | S45: jorddata
B46: Tykkelse af grundvandsmagasin | C46: dm_max | D46: m | G46: =Gru_maxdm -> 0 | R46: D_Gru_trin2a_dm_max | S46: input
B47: Langsgående dispersivitet | C47: (alfa)L | D47: m | F47: =B_Gru_trin2a_aL ->  | R47: D_Gru_trin2a_aL | S47: beregnes
B48: Transporttid | C48: t | D48: år | F48: =B_Gru_trin2a_t ->  | I48: D_Gru_trin2a_t | R48: D_Gru_trin2a_t | S48: beregnes
B49: Opblandingstykkelse_trin2a | C49: dm_2a | D49: m | F49: =B_Gru_trin2a_dm_2a ->  | R49: D_Gru_trin2a_dm_2a | S49: beregnes
B50: Effektiv filterlængde | C50: l | D50: m | F50: =Gru_FilterL -> 0 | H50: =IF(VALUE(G50),G50,IF(F50<>0,F50,"")) ->  | R50: D_Gru_trin1b_l | S50: input
B51: Afstand til teoretisk beregningspunkt | C51: L | D51: m | F51: =B_Gru_trin1b_LL ->  | H51: =IF(VALUE(G51),G51,IF(F51<>0,F51,"")) ->  | I51: D_Gru_trin1b_LL | R51: D_Gru_trin1b_LL | S51: beregnes
B53: GRUNDVAND (Kildestyrkekoncentration - trin1a)
B54: Stoffer | C54: Forkortelse | D54: Enhed | E54: Stof 1 | H54: Stof2 | K54: Stof3 | N54: Sotf4 | R54: Systemnavn | S54: Oprindelsessted
E55: Systemværdi | F55: Indtastet | G55: Anvendes | H55: Systemværdi | I55: Indtastet | J55: Anvendes | K55: Systemværdi | L55: Indtastet | M55: Anvendes | N55: Systemværdi | O55: Indtastet | P55: Anvendes
B56: Forureningskomponent | C56: stofnavn_n | D56: - | G56: =D_Enk_stofnavn_1 ->  | J56: =D_Enk_stofnavn_2 ->  | M56: =D_Enk_stofnavn_3 ->  | P56: =D_Enk_stofnavn_4 ->  | R56: D_Gru_trin1a_stofnavn_n | S56: input, fugacitet, umættet
B57: Fra enkeltstoffer | E57: =D_Enk_CV_endelig_1 ->  | G57: =IF(D_Enk_stofnavn_1<>"",IF(VALUE(F57),F57,IF(E57<>0,E57,"")),"") ->  | H57: =D_Enk_CV_endelig_2 ->  | J57: =IF(D_Enk_stofnavn_2<>"",IF(VALUE(I57),I57,IF(H57<>0,H57,"")),"") ->  | K57: =D_Enk_CV_endelig_3 ->  | M57: =IF(D_Enk_stofnavn_3<>"",IF(VALUE(L57),L57,IF(K57<>0,K57,"")),"") ->  | N57: =D_Enk_CV_endelig_4 ->  | P57: =IF(D_Enk_stofnavn_4<>"",IF(VALUE(O57),O57,IF(N57<>0,N57,"")),"") ->  | R57: D_Gru_trin1a_C0_temp1_n
B58: Fra Vertikal transport | E58: =D_Ver_Cz_1 -> FALSE | G58: =IF(VALUE(F58),F58,IF(E58<>0,E58,"")) -> FALSE | H58: =D_Ver_Cz_2 -> FALSE | J58: =IF(VALUE(I58),I58,IF(H58<>0,H58,"")) -> FALSE | K58: =D_Ver_Cz_3 -> FALSE | M58: =IF(VALUE(L58),L58,IF(K58<>0,K58,"")) -> FALSE | N58: =D_Ver_Cz_4 -> FALSE | P58: =IF(VALUE(O58),O58,IF(N58<>0,N58,"")) -> FALSE | R58: D_Gru_trin1a_C0_temp2_n
B59: Udgår | E59: =Gru_Trin1a_B_C0_1 -> 1 | G59: =IF(D_Enk_stofnavn_1<>"",IF(VALUE(F59),F59,IF(E59<>0,E59,"")),"") ->  | H59: =Gru_Trin1a_B_C0_2 -> 2 | J59: =IF(D_Enk_stofnavn_2<>"",IF(VALUE(I59),I59,IF(H59<>0,H59,"")),"") ->  | K59: =Gru_Trin1a_B_C0_3 -> 3 | M59: =IF(D_Enk_stofnavn_3<>"",IF(VALUE(L59),L59,IF(K59<>0,K59,"")),"") ->  | N59: =Gru_Trin1a_B_C0_4 -> 4 | P59: =IF(D_Enk_stofnavn_4<>"",IF(VALUE(O59),O59,IF(N59<>0,N59,"")),"") ->  | R59: D_Gru_trin1a_C0_temp3_n
B60: Test andre værdier | F60: =Gru_Trin1a_my_C0_1 -> 0 | I60: =Gru_Trin1a_my_C0_2 -> 0 | L60: =Gru_Trin1a_my_C0_3 -> 0 | O60: =Gru_Trin1a_my_C0_4 -> 0 | R60: D_Gru_trin1a_C0_temp4_n
B61: Er porevand beregnet vha fugacitet | F61: =IF(B_Gru_trin1a_C0_1=Enk_My_CV_1,"0","ja") -> 0 | I61: =IF(B_Gru_trin1a_C0_2=Enk_My_CV_2,"0","Ja") -> 0 | L61: =IF(B_Gru_trin1a_C0_3=Enk_My_CV_3,"0","Ja") -> 0 | O61: =IF(B_Gru_trin1a_C0_4=Enk_My_CV_4,"0","Ja") -> 0
B62: Kildekoncentration | C62: C0_n | D62: mg/L | E62: =B_Gru_trin1a_C0_1 ->  | H62: =B_Gru_trin1a_C0_2 ->  | K62: =B_Gru_trin1a_C0_3 ->  | N62: =B_Gru_trin1a_C0_4 ->  | R62: D_Gru_trin1a_C0_n | S62: beregnes
B63: Baggrundskonc. | C63: Cg_n | D63: mg/L | E63: 0 | F63: =Gru_Trin1a_my_Cg_1 -> 0 | G63: =IF(VALUE(F63),F63,E63) -> 0 | H63: 0 | I63: =Gru_Trin1a_my_Cg_2 -> 0 | J63: =IF(VALUE(I63),I63,H63) -> 0 | K63: 0 | L63: =Gru_Trin1a_my_Cg_3 -> 0 | M63: =IF(VALUE(L63),L63,K63) -> 0 | N63: 0 | O63: =Gru_Trin1a_my_Cg_4 -> 0 | P63: =IF(VALUE(O63),O63,N63) -> 0 | R63: D_Gru_trin1a_Cg_n | S63: (input), default=0
B64: Flux | C64: J0_n | D64: g/år | E64: =B_Gru_trin1a_J0_1 ->  | H64: =B_Gru_trin1a_J0_2 ->  | K64: =B_Gru_trin1a_J0_3 ->  | N64: =B_Gru_trin1a_J0_4 ->  | R64: D_Gru_trin1a_J0_n | S64: beregnes
B65: Naturlig flux | C65: Jg_n | D65: g/år | E65: =B_Gru_trin1a_Jg_1 ->  | G65: =IF(VALUE(F65),F65,E65) ->  | H65: =B_Gru_trin1a_Jg_2 ->  | J65: =IF(VALUE(I65),I65,H65) ->  | K65: =B_Gru_trin1a_Jg_3 ->  | M65: =IF(VALUE(L65),L65,K65) ->  | N65: =B_Gru_trin1a_Jg_4 ->  | P65: =IF(VALUE(O65),O65,N65) ->  | R65: D_Gru_trin1a_Jg_n | S65: beregnes
B66: Forureningskoncentration_C1 | C66: C1a_n | D66: mg/L | E66: =B_Gru_trin1a_C1_1 ->  | H66: =B_Gru_trin1a_C1_2 ->  | K66: =B_Gru_trin1a_C1_3 ->  | N66: =B_Gru_trin1a_C1_4 ->  | R66: D_Gru_trin1a_C1_n | S66: beregnes
B67: Grundvandskriteriet-overført fra enkeltstoffer | D67: mg/l | G67: =D_Enk_GV_Krit_1 ->  | J67: =D_enk_GV_Krit_2 ->  | M67: =D_Enk_GV_Krit_3 ->  | P67: =D_Enk_GV_Krit_4 ->  | R67: D_Gru_trin1a_Krit_n
B68: Overskridelse af GV-krit for trin 1 | D68: gange | E68: =B_Gru_trin1a_Krit_Overskr_1 -> Intet kriterie | G68: Intet kriterie | H68: =B_Gru_trin1a_Krit_Overskr_2 -> Intet kriterie | J68: Intet kriterie | K68: =B_Gru_trin1a_Krit_Overskr_3 -> Intet kriterie | M68: Intet kriterie | N68: =B_Gru_trin1a_Krit_Overskr_4 -> Intet kriterie | P68: Intet kriterie | R68: D_Gru_trin1a_Krit_Overskr_n | S68: beregnes
B70: GRUNDVAND (Kildestyrkekoncentration - trin2a)
B71: Stoffer | C71: Forkortelse | D71: Enhed | E71: Stof 1 | H71: Stof2 | K71: Stof3 | N71: Sotf4 | R71: Konstantnavn | S71: Oprindelsessted
E72: Systemværdi | F72: Indtastet | G72: Anvendes | H72: Systemværdi | I72: Indtastet | J72: Anvendes | K72: Systemværdi | L72: Indtastet | M72: Anvendes | N72: Systemværdi | O72: Indtastet | P72: Anvendes | R72: stof 1
B73: Naturlig flux | C73: Jg_2a_n | D73: g/år | E73: =B_Gru_trin2a_Jg_2a_1 ->  | G73: =IF(VALUE(F73),F73,E73) ->  | H73: =B_Gru_trin2a_Jg_2a_2 ->  | J73: =IF(VALUE(I73),I73,H73) ->  | K73: =B_Gru_trin2a_Jg_2a_3 ->  | M73: =IF(VALUE(L73),L73,K73) ->  | N73: =B_Gru_trin2a_Jg_2a_4 ->  | P73: =IF(VALUE(O73),O73,N73) ->  | R73: D_Gru_trin2a_Jg_2a_n | S73: beregnes
B74: Forureningskoncentration_C2 | C74: C2a_n | D74: mg/L | E74: =B_Gru_trin2a_C2_1 ->  | G74: =IF(VALUE(F74),F74,IF(E74<>0,E74,"")) ->  | H74: =B_Gru_trin2a_C2_2 ->  | J74: =IF(VALUE(I74),I74,IF(H74<>0,H74,"")) ->  | K74: =B_Gru_trin2a_C2_3 ->  | M74: =IF(VALUE(L74),L74,IF(K74<>0,K74,"")) ->  | N74: =B_Gru_trin2a_C2_4 ->  | P74: =IF(VALUE(O74),O74,IF(N74<>0,N74,"")) ->  | R74: D_Gru_trin2a_C2_n | S74: beregnes
B75: Overskridelse af GV-krit for trin 2 | E75: =B_Gru_trin2a_Krit_Overskr_1 -> Intet kriterie | G75: =IF(VALUE(F75),F75,IF(E75<>0,E75,"")) -> Intet kriterie | H75: =B_Gru_trin2a_Krit_Overskr_2 -> Intet kriterie | J75: =IF(VALUE(I75),I75,IF(H75<>0,H75,"")) -> Intet kriterie | K75: =B_Gru_trin2a_Krit_Overskr_3 -> Intet kriterie | M75: =IF(VALUE(L75),L75,IF(K75<>0,K75,"")) -> Intet kriterie | N75: =B_Gru_trin2a_Krit_Overskr_4 -> Intet kriterie | P75: =IF(VALUE(O75),O75,IF(N75<>0,N75,"")) -> Intet kriterie | R75: D_Gru_trin2a_Krit_Overskr_n | S75: beregnes
B77: GRUNDVAND (Kildestyrkekoncentration - trin1b+2b)
B78: Stoffer | C78: Forkortelse | D78: Enhed | E78: Stof 1 | H78: Stof2 | K78: Stof3 | N78: Sotf4 | R78: Konstantnavn | S78: Oprindelsessted
E79: Systemværdi | F79: Indtastet | G79: Anvendes | H79: Systemværdi | I79: Indtastet | J79: Anvendes | K79: Systemværdi | L79: Indtastet | M79: Anvendes | N79: Systemværdi | O79: Indtastet | P79: Anvendes | R79: stof 1
B80: Forureningskoncentration, målt | C80: C1bm_n | D80: mg/L | E80: =Gru_C1bm_1 -> 0 | F80: =Gru_My_C1bm_1 -> 0 | G80: =IF(VALUE(F80),F80,IF(E80<>0,E80,"")) ->  | H80: =Gru_C1bm_2 -> 0 | I80: =Gru_My_C1bm_2 -> 0 | J80: =IF(VALUE(I80),I80,IF(H80<>0,H80,"")) ->  | K80: =Gru_C1bm_3 -> 0 | L80: =Gru_My_C1bm_3 -> 0 | M80: =IF(VALUE(L80),L80,IF(K80<>0,K80,"")) ->  | N80: =Gru_C1bm_4 -> 0 | O80: =Gru_My_C1bm_4 -> 0 | P80: =IF(VALUE(O80),O80,IF(N80<>0,N80,"")) ->  | R80: D_Gru_trin1b_C1bm_n | S80: input, fugacitet
B81: Forureningskoncentration_C1_trin1b | C81: C1b_n | D81: mg/L | E81: =B_Gru_trin1b_C1b_1 ->  | G81: =IF(VALUE(F81),F81,IF(E81<>0,E81,"")) ->  | H81: =B_Gru_trin1b_C1b_2 ->  | J81: =IF(VALUE(I81),I81,IF(H81<>0,H81,"")) ->  | K81: =B_Gru_trin1b_C1b_3 ->  | M81: =IF(VALUE(L81),L81,IF(K81<>0,K81,"")) ->  | N81: =B_Gru_trin1b_C1b_4 ->  | P81: =IF(VALUE(O81),O81,IF(N81<>0,N81,"")) ->  | R81: D_Gru_trin1b_C1b_n | S81: beregnes
B82: Overskridelse af GV-krit for trin 1 | E82: =B_Gru_trin1b_Krit_Overskr_1 -> Intet kriterie | G82: =IF(VALUE(F82),F82,IF(E82<>0,E82,"")) -> Intet kriterie | H82: =B_Gru_trin1b_Krit_Overskr_2 -> Intet kriterie | J82: =IF(VALUE(I82),I82,IF(H82<>0,H82,"")) -> Intet kriterie | K82: =B_Gru_trin1b_Krit_Overskr_3 -> Intet kriterie | M82: =IF(VALUE(L82),L82,IF(K82<>0,K82,"")) -> Intet kriterie | N82: =B_Gru_trin1b_Krit_Overskr_4 -> Intet kriterie | P82: =IF(VALUE(O82),O82,IF(N82<>0,N82,"")) -> Intet kriterie | R82: D_Gru_trin1b_Krit_Overskr_n | S82: beregnes
B83: Forureningskoncentration_C2_trin2b | C83: C2b_n | D83: mg/L | E83: =B_Gru_trin2b_C2b_1 ->  | G83: =IF(VALUE(F83),F83,IF(E83<>0,E83,"")) ->  | H83: =B_Gru_trin2b_C2b_2 ->  | J83: =IF(VALUE(I83),I83,IF(H83<>0,H83,"")) ->  | K83: =B_Gru_trin2b_C2b_3 ->  | M83: =IF(VALUE(L83),L83,IF(K83<>0,K83,"")) ->  | N83: =B_Gru_trin2b_C2b_4 ->  | P83: =IF(VALUE(O83),O83,IF(N83<>0,N83,"")) ->  | R83: D_Gru_trin2b_C2b_n | S83: beregnes
B84: Overskridelse af GV-krit for trin 2 | E84: =B_Gru_trin2b_Krit_Overskr_1 -> Intet kriterie | G84: =IF(VALUE(F84),F84,IF(E84<>0,E84,"")) -> Intet kriterie | H84: =B_Gru_trin2b_Krit_Overskr_2 -> Intet kriterie | J84: =IF(VALUE(I84),I84,IF(H84<>0,H84,"")) -> Intet kriterie | K84: =B_Gru_trin2b_Krit_Overskr_3 -> Intet kriterie | M84: =IF(VALUE(L84),L84,IF(K84<>0,K84,"")) -> Intet kriterie | N84: =B_Gru_trin2b_Krit_Overskr_4 -> Intet kriterie | P84: =IF(VALUE(O84),O84,IF(N84<>0,N84,"")) -> Intet kriterie | R84: D_Gru_trin2b_Krit_Overskr_n | S84: beregnes
B86: Endelig beregning for | C86: =IF(D_Gru_beregn=TRUE,"Beregnet koncentrationer for trin 1a og 2a","Målt koncentrationer i trin 1b") -> Beregnet koncentrationer for trin 1a og 2a
B88: Grundvandskoncentration: Trin 1 | G88: =IF(D_Enk_stofnavn_1<>"",IF(D_Gru_beregn=TRUE,D_Gru_trin1a_C1_1,D_Gru_trin1b_C1b_1),"") ->  | J88: =IF(D_Enk_stofnavn_2<>"",IF(D_Gru_beregn=TRUE,D_Gru_trin1a_C1_2,D_Gru_trin1b_C1b_2),"") ->  | M88: =IF(D_Enk_stofnavn_3<>"",IF(D_Gru_beregn=TRUE,D_Gru_trin1a_C1_3,D_Gru_trin1b_C1b_3),"") ->  | P88: =IF(D_Enk_stofnavn_4<>"",IF(D_Gru_beregn=TRUE,D_Gru_trin1a_C1_4,D_Gru_trin1b_C1b_4),"") -> 
B89: Overskridelse af kriteriet Trin 1 | G89: =IF(D_Enk_stofnavn_1<>"",IF(D_Gru_beregn,D_Gru_trin1a_Krit_Overskr_1,D_Gru_trin1b_Krit_Overskr_1),"") ->  | J89: =IF(D_Enk_stofnavn_2<>"",IF(D_Gru_beregn,D_Gru_trin1a_Krit_Overskr_2,D_Gru_trin1b_Krit_Overskr_2),"") ->  | M89: =IF(D_Enk_stofnavn_3<>"",IF(D_Gru_beregn,D_Gru_trin1a_Krit_Overskr_3,D_Gru_trin1b_Krit_Overskr_3),"") ->  | P89: =IF(D_Enk_stofnavn_4<>"",IF(D_Gru_beregn,D_Gru_trin1a_Krit_Overskr_4,D_Gru_trin1b_Krit_Overskr_4),"") -> 
B90: Grundvandskoncentration: Trin 2 | G90: =IF(D_Enk_stofnavn_1<>"",IF(D_Gru_beregn,D_Gru_trin2a_C2_1,D_Gru_trin2b_C2b_1),"") ->  | J90: =IF(D_Enk_stofnavn_2<>"",IF(D_Gru_beregn,D_Gru_trin2a_C2_2,D_Gru_trin2b_C2b_2),"") ->  | M90: =IF(D_Enk_stofnavn_3<>"",IF(D_Gru_beregn,D_Gru_trin2a_C2_3,D_Gru_trin2b_C2b_3),"") ->  | P90: =IF(D_Enk_stofnavn_4<>"",IF(D_Gru_beregn,D_Gru_trin2a_C2_4,D_Gru_trin2b_C2b_4),"") -> 
B91: Overskridelse af kriteriet Trin 2 | G91: =IF(D_Enk_stofnavn_1<>"",IF(D_Gru_beregn=TRUE,D_Gru_trin2a_Krit_Overskr_1,D_Gru_trin2b_Krit_Overskr_1),"") ->  | J91: =IF(D_Enk_stofnavn_2<>"",IF(D_Gru_beregn=TRUE,D_Gru_trin2a_Krit_Overskr_2,D_Gru_trin2b_Krit_Overskr_2),"") ->  | M91: =IF(D_Enk_stofnavn_3<>"",IF(D_Gru_beregn=TRUE,D_Gru_trin2a_Krit_Overskr_3,D_Gru_trin2b_Krit_Overskr_3),"") ->  | P91: =IF(D_Enk_stofnavn_4<>"",IF(D_Gru_beregn=TRUE,D_Gru_trin2a_Krit_Overskr_4,D_Gru_trin2b_Krit_Overskr_4),"") -> 
B92: Forueningsflux, vertikal Trin 1a | G92: =IF(D_Enk_stofnavn_1<>"",IF(D_Gru_beregn=TRUE,D_Gru_trin1a_J0_1,""),"") ->  | J92: =IF(D_Enk_stofnavn_2<>"",IF(D_Gru_beregn=TRUE,D_Gru_trin1a_J0_2,""),"") ->  | M92: =IF(D_Enk_stofnavn_3<>"",IF(D_Gru_beregn=TRUE,D_Gru_trin1a_J0_3,""),"") ->  | P92: =IF(D_Enk_stofnavn_4<>"",IF(D_Gru_beregn=TRUE,D_Gru_trin1a_J0_4,""),"") -> 
B95: GRUNDVAND (Konc. med sorption og nedbrydning - trin3)
B96: Stoffer | C96: Forkortelse | D96: Enhed | E96: Stof 1 | H96: Stof 2 | K96: Stof 3 | N96: Stof 4 | R96: Konstantnavn | S96: Oprindelsessted
E97: Systemværdi | F97: Indtastet | G97: Anvendes | H97: Systemværdi | I97: Indtastet | J97: Anvendes | K97: Systemværdi | L97: Indtastet | M97: Anvendes | N97: Systemværdi | O97: Indtastet | P97: Anvendes
B98: Forureningskoncentration | C98: C2_n | D98: mg/L | E98: =B_Gru_trin3_C2_1 ->  | G98: =IF(VALUE(F98),F98,IF(E98<>0,E98,"")) ->  | H98: =B_Gru_trin3_C2_2 ->  | J98: =IF(VALUE(I98),I98,IF(H98<>0,H98,"")) ->  | K98: =B_Gru_trin3_C2_3 ->  | M98: =IF(VALUE(L98),L98,IF(K98<>0,K98,"")) ->  | N98: =B_Gru_trin3_C2_4 ->  | P98: =IF(VALUE(O98),O98,IF(N98<>0,N98,"")) ->  | R98: D_Gru_trin3_C2_n | S98: beregnes
B99: Fordelingskoefficienten | C99: KD_n | D99: - | E99: =B_Gru_trin3_KB_1 ->  | G99: =IF(VALUE(F99),F99,IF(E99<>0,E99,"")) ->  | H99: =B_Gru_trin3_KB_2 ->  | J99: =IF(VALUE(I99),I99,IF(H99<>0,H99,"")) ->  | K99: =B_Gru_trin3_KB_3 ->  | M99: =IF(VALUE(L99),L99,IF(K99<>0,K99,"")) ->  | N99: =B_Gru_trin3_KB_4 ->  | P99: =IF(VALUE(O99),O99,IF(N99<>0,N99,"")) ->  | R99: D_Gru_trin3_KD_n | S99: beregnes
B100: logkow | C100: logKOW | E100: =D_Enk_KOW_syst_1 -> 0 | F100: =Enk_My_KOW_1 -> 0 | G100: =IF(VALUE(F100),F100,IF(E100<>0,E100,"")) ->  | H100: =D_Enk_KOW_syst_2 -> 0 | I100: =Enk_My_KOW_2 -> 0 | J100: =IF(VALUE(I100),I100,IF(H100<>0,H100,"")) ->  | K100: =D_Enk_KOW_syst_3 -> 0 | L100: =Enk_My_KOW_3 -> 0 | M100: =IF(VALUE(L100),L100,IF(K100<>0,K100,"")) ->  | N100: =D_Enk_KOW_syst_4 -> 0 | O100: =Enk_My_KOW_4 -> 0 | P100: =IF(VALUE(O100),O100,IF(N100<>0,N100,"")) ->  | R100: D_Gru_trin3_logKOW_n
B101: logKD | C101: logKD | E101: =B_Gru_trin3_logKB_1 ->  | G101: =IF(ISNUMBER(E101),E101,"") ->  | H101: =B_Gru_trin3_logKB_2 ->  | J101: =IF(ISNUMBER(H101),H101,"") ->  | K101: =B_Gru_trin3_logKB_3 ->  | M101: =IF(ISNUMBER(K101),K101,"") ->  | N101: =B_Gru_trin3_logKB_4 ->  | P101: =IF(ISNUMBER(N101),N101,"") ->  | R101: D_Gru_trin3_logKB_n | S101: beregnes
B102: 1. ordens nedbrydningskonstant | C102: k1_n | D102: dage-1 | E102: =B_Gru_trin3_k1_1 -> 0 | G102: =E102 -> 0 | H102: =B_Gru_trin3_k1_2 -> 0 | J102: =H102 -> 0 | K102: =B_Gru_trin3_k1_3 -> 0 | M102: =K102 -> 0 | N102: =B_Gru_trin3_k1_4 -> 0 | P102: =N102 -> 0 | R102: D_Gru_trin3_k1_n | S102: beregnes
B103: 1. ordens nedbrydningskonstant aerob | C103: - | D103: dage-1 | E103: =D_Enk_k1aerob_syst_1 -> 0 | F103: =IF(ISNUMBER(Enk_MY_k1aerob_1),Enk_MY_k1aerob_1,"-") -> - | G103: =IF(ISNUMBER(F103),F103,IF(ISNUMBER(E103),E103,"")) -> 0 | H103: =D_Enk_k1aerob_syst_2 -> 0 | I103: =IF(ISNUMBER(Enk_MY_k1aerob_2),Enk_MY_k1aerob_2,"-") -> - | J103: =IF(ISNUMBER(I103),I103,IF(ISNUMBER(H103),H103,"")) -> 0 | K103: =D_Enk_k1aerob_syst_3 -> 0 | L103: =IF(ISNUMBER(Enk_MY_k1aerob_3),Enk_MY_k1aerob_3,"-") -> - | M103: =IF(ISNUMBER(L103),L103,IF(ISNUMBER(K103),K103,"")) -> 0 | N103: =D_Enk_k1aerob_syst_4 -> 0 | O103: =IF(ISNUMBER(Enk_MY_k1aerob_4),Enk_MY_k1aerob_4,"-") -> - | P103: =IF(ISNUMBER(O103),O103,IF(ISNUMBER(N103),N103,"")) -> 0 | R103: D_Gru_trin3_k1_aerob_n | S103: stofdata
B104: 1. ordens nedbrydningskonstant anaerob | C104: - | D104: dage-1 | E104: =D_Enk_k1anaerob_syst_1 -> 0 | F104: =IF(ISNUMBER(Enk_MY_k1anaerob_1),Enk_MY_k1anaerob_1,"-") -> - | G104: =IF(ISNUMBER(F104),F104,IF(ISNUMBER(E104),E104,"")) -> 0 | H104: =D_Enk_k1anaerob_syst_2 -> 0 | I104: =IF(ISNUMBER(Enk_MY_k1anaerob_2),Enk_MY_k1anaerob_2,"-") -> - | J104: =IF(ISNUMBER(I104),I104,IF(ISNUMBER(H104),H104,"")) -> 0 | K104: =D_Enk_k1anaerob_syst_3 -> 0 | L104: =IF(ISNUMBER(Enk_MY_k1anaerob_3),Enk_MY_k1anaerob_3,"-") -> - | M104: =IF(ISNUMBER(L104),L104,IF(ISNUMBER(K104),K104,"")) -> 0 | N104: =D_Enk_k1anaerob_syst_4 -> 0 | O104: =IF(ISNUMBER(Enk_MY_k1anaerob_4),Enk_MY_k1anaerob_4,"-") -> - | P104: =IF(ISNUMBER(O104),O104,IF(ISNUMBER(N104),N104,"")) -> 0 | R104: D_Gru_trin3_k1_anaerob_n | S104: stofdata
B105: Forureningskonc._C3_med nedbr. | C105: ned_C3_n | D105: mg/L | E105: =B_Gru_trin3_ned_C3_1 ->  | G105: =IF(D_Enk_stofnavn_1<>"",E105,"") ->  | H105: =B_Gru_trin3_ned_C3_2 ->  | J105: =IF(D_Enk_stofnavn_2<>"",H105,"") ->  | K105: =B_Gru_trin3_ned_C3_3 ->  | M105: =IF(D_Enk_stofnavn_3<>"",K105,"") ->  | N105: =B_Gru_trin3_ned_C3_4 ->  | P105: =IF(D_Enk_stofnavn_4<>"",N105,"") ->  | R105: D_Gru_trin3_ned_C3_n | S105: Beregnes
B106: Forureningskonc._C3_med sorpt.+nedbryd | C106: C3_n | D106: mg/L | E106: =B_Gru_trin3_C3_1 ->  | G106: =IF(D_Enk_stofnavn_1<>"",E106,"") ->  | H106: =B_Gru_trin3_C3_2 ->  | J106: =IF(D_Enk_stofnavn_2<>"",H106,"") ->  | K106: =B_Gru_trin3_C3_3 ->  | M106: =IF(D_Enk_stofnavn_3<>"",K106,"") ->  | N106: =B_Gru_trin3_C3_4 ->  | P106: =IF(D_Enk_stofnavn_4<>"",N106,"") ->  | R106: D_Gru_trin3_C3_n | S106: beregnes
B107: Retardationsfaktor | C107: R | D107: - | E107: =B_Gru_trin3_R_1 ->  | G107: =IF(ISNUMBER(E107),E107,"") ->  | H107: =B_Gru_trin3_R_2 ->  | J107: =IF(ISNUMBER(H107),H107,"") ->  | K107: =B_Gru_trin3_R_3 ->  | M107: =IF(ISNUMBER(K107),K107,"") ->  | N107: =B_Gru_trin3_R_4 ->  | P107: =IF(ISNUMBER(N107),N107,"") ->  | R107: D_Gru_trin3_R_n | S107: beregnes
B108: Gns. porevandshastighed m. sorption | C108: VS | D108: m/år | E108: =B_Gru_trin3_VS_1 ->  | G108: =IF(ISNUMBER(E108),E108,"") ->  | H108: =B_Gru_trin3_VS_2 ->  | J108: =IF(ISNUMBER(H108),H108,"") ->  | K108: =B_Gru_trin3_VS_3 ->  | M108: =IF(ISNUMBER(K108),K108,"") ->  | N108: =B_Gru_trin3_VS_4 ->  | P108: =IF(ISNUMBER(N108),N108,"") ->  | R108: D_Gru_trin3_VS_n | S108: beregnes
B109: Transporttid med sorption | C109: t_sorp | D109: dage | E109: =B_Gru_trin3_t_sorp_1 ->  | G109: =IF(ISNUMBER(E109),E109,"") ->  | H109: =B_Gru_trin3_t_sorp_2 ->  | J109: =IF(ISNUMBER(H109),H109,"") ->  | K109: =B_Gru_trin3_t_sorp_3 ->  | M109: =IF(ISNUMBER(K109),K109,"") ->  | N109: =B_Gru_trin3_t_sorp_4 ->  | P109: =IF(ISNUMBER(N109),N109,"") ->  | R109: D_Gru_trin3_t_sorp_n | S109: beregnes
B110: Overskridelse af Gv-Krit for trin 3 | E110: =B_Gru_trin3_Krit_Overskr_1 -> Intet kriterie | G110: =IF(D_Enk_stofnavn_1<>"",IF(VALUE(F110),F110,IF(E110<>0,E110,"")),"") ->  | H110: =B_Gru_trin3_Krit_Overskr_2 -> Intet kriterie | J110: =IF(D_Enk_stofnavn_2<>"",IF(VALUE(I110),I110,IF(H110<>0,H110,"")),"") ->  | K110: =B_Gru_trin3_Krit_Overskr_3 -> Intet kriterie | M110: =IF(D_Enk_stofnavn_3<>"",IF(VALUE(L110),L110,IF(K110<>0,K110,"")),"") ->  | N110: =B_Gru_trin3_Krit_Overskr_4 -> Intet kriterie | P110: =IF(D_Enk_stofnavn_4<>"",IF(VALUE(O110),O110,IF(N110<>0,N110,"")),"") ->  | R110: D_Gru_trin3_Krit_Overskr_n | S110: beregnes
B112: Anvendt brugerdata | F112: =SUM(G23,G37,G41:G45,F60,F80,F100,F103:F104) -> 0 | G112: =IF(D_Enk_stofnavn_1<>"",IF(F112>0,"Ja, se bemærkning","Nej"),"") ->  | I112: =SUM(G23,G37,G41:G45,I60,I80,I100,I103:I104) -> 0 | J112: =IF(D_Enk_stofnavn_2<>"",IF(I112>0,"Ja, se bemærkning","Nej"),"") ->  | L112: =SUM(G23,G37,G41:G45,L60,L80,L100,L103:L104) -> 0 | M112: =IF(D_Enk_stofnavn_3<>"",IF(L112>0,"Ja, se bemærkning","Nej"),"") ->  | O112: =SUM(G23,G37,G41:G45,O60,O80,O100,O103:O104) -> 0 | P112: =IF(D_Enk_stofnavn_4<>"",IF(O112>0,"Ja, se bemærkning","Nej"),"") -> 
B114: Stof 1 | E114: =D_Gru_stofnavn_1 -> 
B115: Afstand | E115: =Gru_afstand_bruger_1 -> 0 | F115: 0 | G115: 10 | H115: 20 | I115: 30 | J115: 40 | K115: 50 | L115: 75 | M115: 100 | N115: D_Gru_stof1_Afstand_1_n
B116: Kvalitetskriteriet | F116: =D_Enk_GV_Krit_1 ->  | M116: =D_Enk_GV_Krit_1 -> 
B117: Afstand til teoretisk beregningspunkt | D117: =D_Gru_trin1b_LL -> 
B118: Transporttid | E118: =B_Gru_stof1_AfstanB_2_1 ->  | F118: =B_Gru_stof1_AfstanB_2_2 ->  | G118: =B_Gru_stof1_AfstanB_2_3 ->  | H118: =B_Gru_stof1_AfstanB_2_4 ->  | I118: =B_Gru_stof1_AfstanB_2_5 ->  | J118: =B_Gru_stof1_AfstanB_2_6 ->  | K118: =B_Gru_stof1_AfstanB_2_7 ->  | L118: =B_Gru_stof1_AfstanB_2_8 ->  | M118: =B_Gru_stof1_AfstanB_2_9 ->  | N118: D_Gru_stof1_Afstand_2_n
B119: Opblandingsdybde,m | E119: =B_Gru_stof1_AfstanB_3_1 ->  | F119: =B_Gru_stof1_AfstanB_3_2 ->  | G119: =B_Gru_stof1_AfstanB_3_3 ->  | H119: =B_Gru_stof1_AfstanB_3_4 ->  | I119: =B_Gru_stof1_AfstanB_3_5 ->  | J119: =B_Gru_stof1_AfstanB_3_6 ->  | K119: =B_Gru_stof1_AfstanB_3_7 ->  | L119: =B_Gru_stof1_AfstanB_3_8 ->  | M119: =B_Gru_stof1_AfstanB_3_9 ->  | N119: D_Gru_stof1_Afstand_3_n
B120: Forureningskoncentration, C2 | E120: =B_Gru_stof1_AfstanB_4_1 -> 0 | F120: =B_Gru_stof1_AfstanB_4_2 -> 0 | G120: =B_Gru_stof1_AfstanB_4_3 -> 0 | H120: =B_Gru_stof1_AfstanB_4_4 -> 0 | I120: =B_Gru_stof1_AfstanB_4_5 -> 0 | J120: =B_Gru_stof1_AfstanB_4_6 -> 0 | K120: =B_Gru_stof1_AfstanB_4_7 -> 0 | L120: =B_Gru_stof1_AfstanB_4_8 -> 0 | M120: =B_Gru_stof1_AfstanB_4_9 -> 0 | N120: D_Gru_stof1_Afstand_4_n
B121: Konc. med nedbrydning, C3 | E121: =B_Gru_stof1_AfstanB_5_1 ->  | F121: =B_Gru_stof1_AfstanB_5_2 ->  | G121: =B_Gru_stof1_AfstanB_5_3 ->  | H121: =B_Gru_stof1_AfstanB_5_4 ->  | I121: =B_Gru_stof1_AfstanB_5_5 ->  | J121: =B_Gru_stof1_AfstanB_5_6 ->  | K121: =B_Gru_stof1_AfstanB_5_7 ->  | L121: =B_Gru_stof1_AfstanB_5_8 ->  | M121: =B_Gru_stof1_AfstanB_5_9 ->  | N121: D_Gru_stof1_Afstand_5_n
B122: Transporttid (sorpt.) | E122: =B_Gru_stof1_AfstanB_6_1 ->  | F122: =B_Gru_stof1_AfstanB_6_2 ->  | G122: =B_Gru_stof1_AfstanB_6_3 ->  | H122: =B_Gru_stof1_AfstanB_6_4 ->  | I122: =B_Gru_stof1_AfstanB_6_5 ->  | J122: =B_Gru_stof1_AfstanB_6_6 ->  | K122: =B_Gru_stof1_AfstanB_6_7 ->  | L122: =B_Gru_stof1_AfstanB_6_8 ->  | M122: =B_Gru_stof1_AfstanB_6_9 ->  | N122: D_Gru_stof1_Afstand_6_n
B123: Konc. m. sorpt. og nedbr., C3 | D123: 0 | E123: =B_Gru_stof1_AfstanB_7_1 ->  | F123: =B_Gru_stof1_AfstanB_7_2 ->  | G123: =B_Gru_stof1_AfstanB_7_3 ->  | H123: =B_Gru_stof1_AfstanB_7_4 ->  | I123: =B_Gru_stof1_AfstanB_7_5 ->  | J123: =B_Gru_stof1_AfstanB_7_6 ->  | K123: =B_Gru_stof1_AfstanB_7_7 ->  | L123: =B_Gru_stof1_AfstanB_7_8 ->  | M123: =B_Gru_stof1_AfstanB_7_9 ->  | N123: D_Gru_stof1_Afstand_7_n
B130: Stof 2 | E130: =D_Gru_stofnavn_2 -> 
B131: Afstand | E131: =Gru_afstand_bruger_2 -> 0 | F131: 0 | G131: 10 | H131: 20 | I131: 30 | J131: 40 | K131: 50 | L131: 75 | M131: 100 | N131: D_Gru_stof2_Afstand_1_n
B132: Kvalitetskriteriet | F132: =D_enk_GV_Krit_2 ->  | M132: =D_enk_GV_Krit_2 -> 
B133: Afstand til teoretisk beregningspunkt | D133: =D_Gru_trin1b_LL -> 
B134: Transporttid | E134: =B_Gru_stof2_AfstanB_2_1 ->  | F134: =B_Gru_stof2_AfstanB_2_2 ->  | G134: =B_Gru_stof2_AfstanB_2_3 ->  | H134: =B_Gru_stof2_AfstanB_2_4 ->  | I134: =B_Gru_stof2_AfstanB_2_5 ->  | J134: =B_Gru_stof2_AfstanB_2_6 ->  | K134: =B_Gru_stof2_AfstanB_2_7 ->  | L134: =B_Gru_stof2_AfstanB_2_8 ->  | M134: =B_Gru_stof2_AfstanB_2_9 ->  | N134: D_Gru_stof2_Afstand_2_n
B135: Opblandingsdybde,m | E135: =B_Gru_stof2_AfstanB_3_1 ->  | F135: =B_Gru_stof2_AfstanB_3_2 ->  | G135: =B_Gru_stof2_AfstanB_3_3 ->  | H135: =B_Gru_stof2_AfstanB_3_4 ->  | I135: =B_Gru_stof2_AfstanB_3_5 ->  | J135: =B_Gru_stof2_AfstanB_3_6 ->  | K135: =B_Gru_stof2_AfstanB_3_7 ->  | L135: =B_Gru_stof2_AfstanB_3_8 ->  | M135: =B_Gru_stof2_AfstanB_3_9 ->  | N135: D_Gru_stof2_Afstand_3_n
B136: Forureningskoncentration, C2 | E136: =B_Gru_stof2_AfstanB_4_1 -> 0 | F136: =B_Gru_stof2_AfstanB_4_2 -> 0 | G136: =B_Gru_stof2_AfstanB_4_3 -> 0 | H136: =B_Gru_stof2_AfstanB_4_4 -> 0 | I136: =B_Gru_stof2_AfstanB_4_5 -> 0 | J136: =B_Gru_stof2_AfstanB_4_6 -> 0 | K136: =B_Gru_stof2_AfstanB_4_7 -> 0 | L136: =B_Gru_stof2_AfstanB_4_8 -> 0 | M136: =B_Gru_stof2_AfstanB_4_9 -> 0 | N136: D_Gru_stof2_Afstand_4_n
B137: Konc. med nedbrydning, C3 | E137: =B_Gru_stof2_AfstanB_5_1 ->  | F137: =B_Gru_stof2_AfstanB_5_2 ->  | G137: =B_Gru_stof2_AfstanB_5_3 ->  | H137: =B_Gru_stof2_AfstanB_5_4 ->  | I137: =B_Gru_stof2_AfstanB_5_5 ->  | J137: =B_Gru_stof2_AfstanB_5_6 ->  | K137: =B_Gru_stof2_AfstanB_5_7 ->  | L137: =B_Gru_stof2_AfstanB_5_8 ->  | M137: =B_Gru_stof2_AfstanB_5_9 ->  | N137: D_Gru_stof2_Afstand_5_n
B138: Transporttid (sorpt.) | E138: =B_Gru_stof2_AfstanB_6_1 ->  | F138: =B_Gru_stof2_AfstanB_6_2 ->  | G138: =B_Gru_stof2_AfstanB_6_3 ->  | H138: =B_Gru_stof2_AfstanB_6_4 ->  | I138: =B_Gru_stof2_AfstanB_6_5 ->  | J138: =B_Gru_stof2_AfstanB_6_6 ->  | K138: =B_Gru_stof2_AfstanB_6_7 ->  | L138: =B_Gru_stof2_AfstanB_6_8 ->  | M138: =B_Gru_stof2_AfstanB_6_9 ->  | N138: D_Gru_stof2_Afstand_6_n
B139: Konc. m. sorpt. og nedbr., C3 | D139: 0 | E139: =B_Gru_stof2_AfstanB_7_1 ->  | F139: =B_Gru_stof2_AfstanB_7_2 ->  | G139: =B_Gru_stof2_AfstanB_7_3 ->  | H139: =B_Gru_stof2_AfstanB_7_4 ->  | I139: =B_Gru_stof2_AfstanB_7_5 ->  | J139: =B_Gru_stof2_AfstanB_7_6 ->  | K139: =B_Gru_stof2_AfstanB_7_7 ->  | L139: =B_Gru_stof2_AfstanB_7_8 ->  | M139: =B_Gru_stof2_AfstanB_7_9 ->  | N139: D_Gru_stof2_Afstand_7_n
B147: Stof 3 | E147: =D_Gru_stofnavn_3 -> 
B148: Afstand | E148: =Gru_Afstand_bruger_3 -> 0 | F148: 0 | G148: 10 | H148: 20 | I148: 30 | J148: 40 | K148: 50 | L148: 75 | M148: 100 | N148: D_Gru_stof3_Afstand_1_n
B149: Kvalitetskriteriet | F149: =D_Enk_GV_Krit_3 ->  | M149: =D_Enk_GV_Krit_3 -> 
B150: Afstand til teoretisk beregningspunkt | D150: =D_Gru_trin1b_LL -> 
B151: Transporttid | E151: =B_Gru_stof3_AfstanB_2_1 ->  | F151: =B_Gru_stof3_AfstanB_2_2 ->  | G151: =B_Gru_stof3_AfstanB_2_3 ->  | H151: =B_Gru_stof3_AfstanB_2_4 ->  | I151: =B_Gru_stof3_AfstanB_2_5 ->  | J151: =B_Gru_stof3_AfstanB_2_6 ->  | K151: =B_Gru_stof3_AfstanB_2_7 ->  | L151: =B_Gru_stof3_AfstanB_2_8 ->  | M151: =B_Gru_stof3_AfstanB_2_9 ->  | N151: D_Gru_stof3_Afstand_2_n
B152: Opblandingsdybde,m | E152: =B_Gru_stof3_AfstanB_3_1 ->  | F152: =B_Gru_stof3_AfstanB_3_2 ->  | G152: =B_Gru_stof3_AfstanB_3_3 ->  | H152: =B_Gru_stof3_AfstanB_3_4 ->  | I152: =B_Gru_stof3_AfstanB_3_5 ->  | J152: =B_Gru_stof3_AfstanB_3_6 ->  | K152: =B_Gru_stof3_AfstanB_3_7 ->  | L152: =B_Gru_stof3_AfstanB_3_8 ->  | M152: =B_Gru_stof3_AfstanB_3_9 ->  | N152: D_Gru_stof3_Afstand_3_n
B153: Forureningskoncentration, C2 | E153: =B_Gru_stof3_AfstanB_4_1 -> 0 | F153: =B_Gru_stof3_AfstanB_4_2 -> 0 | G153: =B_Gru_stof3_AfstanB_4_3 -> 0 | H153: =B_Gru_stof3_AfstanB_4_4 -> 0 | I153: =B_Gru_stof3_AfstanB_4_5 -> 0 | J153: =B_Gru_stof3_AfstanB_4_6 -> 0 | K153: =B_Gru_stof3_AfstanB_4_7 -> 0 | L153: =B_Gru_stof3_AfstanB_4_8 -> 0 | M153: =B_Gru_stof3_AfstanB_4_9 -> 0 | N153: D_Gru_stof3_Afstand_4_n
B154: Konc. med nedbrydning, C3 | E154: =B_Gru_stof3_AfstanB_5_1 ->  | F154: =B_Gru_stof3_AfstanB_5_2 ->  | G154: =B_Gru_stof3_AfstanB_5_3 ->  | H154: =B_Gru_stof3_AfstanB_5_4 ->  | I154: =B_Gru_stof3_AfstanB_5_5 ->  | J154: =B_Gru_stof3_AfstanB_5_6 ->  | K154: =B_Gru_stof3_AfstanB_5_7 ->  | L154: =B_Gru_stof3_AfstanB_5_8 ->  | M154: =B_Gru_stof3_AfstanB_5_9 ->  | N154: D_Gru_stof3_Afstand_5_n
B155: Transporttid (sorpt.) | E155: =B_Gru_stof3_AfstanB_6_1 ->  | F155: =B_Gru_stof3_AfstanB_6_2 ->  | G155: =B_Gru_stof3_AfstanB_6_3 ->  | H155: =B_Gru_stof3_AfstanB_6_4 ->  | I155: =B_Gru_stof3_AfstanB_6_5 ->  | J155: =B_Gru_stof3_AfstanB_6_6 ->  | K155: =B_Gru_stof3_AfstanB_6_7 ->  | L155: =B_Gru_stof3_AfstanB_6_8 ->  | M155: =B_Gru_stof3_AfstanB_6_9 ->  | N155: D_Gru_stof3_Afstand_6_n
B156: Konc. m. sorpt. og nedbr., C3 | D156: 0 | E156: =B_Gru_stof3_AfstanB_7_1 ->  | F156: =B_Gru_stof3_AfstanB_7_2 ->  | G156: =B_Gru_stof3_AfstanB_7_3 ->  | H156: =B_Gru_stof3_AfstanB_7_4 ->  | I156: =B_Gru_stof3_AfstanB_7_5 ->  | J156: =B_Gru_stof3_AfstanB_7_6 ->  | K156: =B_Gru_stof3_AfstanB_7_7 ->  | L156: =B_Gru_stof3_AfstanB_7_8 ->  | M156: =B_Gru_stof3_AfstanB_7_9 ->  | N156: D_Gru_stof3_Afstand_7_n
B163: Stof 4 | E163: =D_Gru_stofnavn_4 -> 
B164: Afstand | E164: =Gru_afstand_bruger_4 -> 0 | F164: 0 | G164: 10 | H164: 20 | I164: 30 | J164: 40 | K164: 50 | L164: 75 | M164: 100 | N164: D_Gru_stof4_Afstand_1_n
B165: Kvalitetskriteriet | F165: =D_Enk_GV_Krit_4 ->  | M165: =D_Enk_GV_Krit_4 -> 
B166: Afstand til teoretisk beregningspunkt | D166: =D_Gru_trin1b_LL -> 
B167: Transporttid | E167: =B_Gru_stof4_AfstanB_2_1 ->  | F167: =B_Gru_stof4_AfstanB_2_2 ->  | G167: =B_Gru_stof4_AfstanB_2_3 ->  | H167: =B_Gru_stof4_AfstanB_2_4 ->  | I167: =B_Gru_stof4_AfstanB_2_5 ->  | J167: =B_Gru_stof4_AfstanB_2_6 ->  | K167: =B_Gru_stof4_AfstanB_2_7 ->  | L167: =B_Gru_stof4_AfstanB_2_8 ->  | M167: =B_Gru_stof4_AfstanB_2_9 ->  | N167: D_Gru_stof4_Afstand_2_n
B168: Opblandingsdybde,m | E168: =B_Gru_stof4_AfstanB_3_1 ->  | F168: =B_Gru_stof4_AfstanB_3_2 ->  | G168: =B_Gru_stof4_AfstanB_3_3 ->  | H168: =B_Gru_stof4_AfstanB_3_4 ->  | I168: =B_Gru_stof4_AfstanB_3_5 ->  | J168: =B_Gru_stof4_AfstanB_3_6 ->  | K168: =B_Gru_stof4_AfstanB_3_7 ->  | L168: =B_Gru_stof4_AfstanB_3_8 ->  | M168: =B_Gru_stof4_AfstanB_3_9 ->  | N168: D_Gru_stof4_Afstand_3_n
B169: Forureningskoncentration, C2 | E169: =B_Gru_stof4_AfstanB_4_1 -> 0 | F169: =B_Gru_stof4_AfstanB_4_2 -> 0 | G169: =B_Gru_stof4_AfstanB_4_3 -> 0 | H169: =B_Gru_stof4_AfstanB_4_4 -> 0 | I169: =B_Gru_stof4_AfstanB_4_5 -> 0 | J169: =B_Gru_stof4_AfstanB_4_6 -> 0 | K169: =B_Gru_stof4_AfstanB_4_7 -> 0 | L169: =B_Gru_stof4_AfstanB_4_8 -> 0 | M169: =B_Gru_stof4_AfstanB_4_9 -> 0 | N169: D_Gru_stof4_Afstand_4_n
B170: Konc. med nedbrydning, C3 | E170: =B_Gru_stof4_AfstanB_5_1 ->  | F170: =B_Gru_stof4_AfstanB_5_2 ->  | G170: =B_Gru_stof4_AfstanB_5_3 ->  | H170: =B_Gru_stof4_AfstanB_5_4 ->  | I170: =B_Gru_stof4_AfstanB_5_5 ->  | J170: =B_Gru_stof4_AfstanB_5_6 ->  | K170: =B_Gru_stof4_AfstanB_5_7 ->  | L170: =B_Gru_stof4_AfstanB_5_8 ->  | M170: =B_Gru_stof4_AfstanB_5_9 ->  | N170: D_Gru_stof4_Afstand_5_n
B171: Transporttid (sorpt.) | E171: =B_Gru_stof4_AfstanB_6_1 ->  | F171: =B_Gru_stof4_AfstanB_6_2 ->  | G171: =B_Gru_stof4_AfstanB_6_3 ->  | H171: =B_Gru_stof4_AfstanB_6_4 ->  | I171: =B_Gru_stof4_AfstanB_6_5 ->  | J171: =B_Gru_stof4_AfstanB_6_6 ->  | K171: =B_Gru_stof4_AfstanB_6_7 ->  | L171: =B_Gru_stof4_AfstanB_6_8 ->  | M171: =B_Gru_stof4_AfstanB_6_9 ->  | N171: D_Gru_stof4_Afstand_6_n
B172: Konc. m. sorpt. og nedbr., C3 | D172: 0 | E172: =B_Gru_stof4_AfstanB_7_1 ->  | F172: =B_Gru_stof4_AfstanB_7_2 ->  | G172: =B_Gru_stof4_AfstanB_7_3 ->  | H172: =B_Gru_stof4_AfstanB_7_4 ->  | I172: =B_Gru_stof4_AfstanB_7_5 ->  | J172: =B_Gru_stof4_AfstanB_7_6 ->  | K172: =B_Gru_stof4_AfstanB_7_7 ->  | L172: =B_Gru_stof4_AfstanB_7_8 ->  | M172: =B_Gru_stof4_AfstanB_7_9 ->  | N172: D_Gru_stof4_Afstand_7_n
B174: Bemærkninger
B175: Det forurenede område: | C175: D_Gru_DFO_ComUds
C176: FALSE
B177: Magasin: | C177: D_Gru_Mag_ComUds
C178: FALSE
B179: Forurening: | C179: D_Gru_For_ComUds
C180: FALSE
B181: Beregning: | C181: D_Gru_Ber_ComUds
C182: FALSE

Sheet Beregning_Grundvand (hidden)
B2: Beregningslag | R2: Systemnavn | S2: Oprindelsessted
B4: Vanddata
B5: Stoffer | C5: Forkortelse | D5: Enhed | E5: Systemværdi | F5: Indtastet | G5: Anvendes | R5: Systemnavn | S5: Oprindelsessted
B6: Hydraulisk ledningsevne (m/år) | C6: kår | D6: m/år | E6: =D_trin1a_k*(60*60*24*365.25) ->  | G6: =IF(VALUE(F6),F6,IF(E6<>0,E6,"")) ->  | R6: B_Gru_trin1a_kår | S6: beregnes
B7: Vandflux | C7: Q0 | D7: m3/år | E7: =(D_Gru_N*D_Gru_A)/1000 ->  | R7: B_Gru_trin1a_Q0 | S7: beregnes
B8: Darcy hastighed (vand) | C8: VD | D8: m/år | E8: =B_Gru_trin1a_kår*D_Gru_trin1a_i ->  | R8: B_Gru_trin1a_VD | S8: beregnes
B9: Grundvandsflux | C9: Qg | D9: m3/år | E9: =D_Gru_B*D_Gru_dm_1a*B_Gru_trin1a_VD ->  | R9: B_Gru_trin1a_Qg | S9: beregnes
B10: Gns. porevandshastighed | C10: VP | D10: m/år | E10: =B_Gru_trin1a_VD/D_Gru_trin2a_eeff ->  | R10: B_Gru_trin2a_VP | S10: beregnes
B11: Grundvandsflux | C11: Qg_2a | D11: m3/år | E11: =D_Gru_B*B_Gru_trin2a_dm_2a*B_Gru_trin1a_VD ->  | R11: B_Gru_trin2a_Qg_2a | S11: beregnes
B13: Lokalitetsspecifikke data
B14: Stoffer | C14: Forkortelse | D14: Enhed | E14: Systemværdi | F14: Indtastet | G14: Anvendes | R14: Systemnavn | S14: Oprindelsessted
B15: Langsgående dispersivitet | C15: (alfa)L | D15: m | E15: =0.0000042*POWER(B_Gru_trin1b_LL,2)+0.0036*B_Gru_trin1b_LL-0.008 ->  | G15: =IF(E15<0,1E-36,E15) ->  | R15: B_Gru_trin2a_aL | S15: beregnes
B16: Transporttid | C16: t | D16: år | E16: =D_Gru_trin1b_LL/D_Gru_trin2a_VP ->  | G16: =IF(VALUE(F16),F16,IF(E16<>0,E16,"")) ->  | R16: B_Gru_trin2a_t | S16: beregnes
B17: Opblandingstykkelse_trin2a | C17: dm_2a | D17: m | E17: =MAX(D_Gru_dm_1a,MIN(IF(D_Gru_trin2a_dm_max>0,D_Gru_trin2a_dm_max,1E+36),SQRT((72/900)*D_Gru_trin2a_aL*D_Gru_trin2a_VP*D_Gru_trin2a_t))) ->  | G17: =IF(VALUE(F17),F17,IF(E17<>0,E17,"")) ->  | R17: B_Gru_trin2a_dm_2a | S17: beregnes
B18: Afstand til teoretisk beregningspunkt | C18: L | D18: m | E18: =MIN(B_Gru_trin2a_VP,100) ->  | G18: =IF(VALUE(F18),F18,IF(E18<>0,E18,"")) ->  | R18: B_Gru_trin1b_LL | S18: beregnes
B20: GRUNDVAND (Kildestyrkekoncentration - trin1a)
B21: Stoffer | C21: Forkortelse | D21: Enhed | E21: Stof 1 | H21: Stof2 | K21: Stof3 | N21: Sotf4 | R21: Systemnavn | S21: Oprindelsessted
E22: Systemværdi | F22: Indtastet | G22: Anvendes | H22: Systemværdi | I22: Indtastet | J22: Anvendes | K22: Systemværdi | L22: Indtastet | M22: Anvendes | N22: Systemværdi | O22: Indtastet | P22: Anvendes | R22: stof 1
B23: Kildekoncentration | C23: C0_n | D23: mg/L | E23: =IF(D_Gru_trin1a_temp1_TrueFalse=TRUE,D_Gru_trin1a_C0_temp1_1,IF(D_Gru_trin1a_temp2_TrueFalse=TRUE,D_Gru_trin1a_C0_temp2_1,IF(D_Gru_trin1a_temp3_TrueFalse=TRUE,D_Gru_trin1a_C0_temp3_1,IF(D_Gru_trin1a_temp4_TrueFalse=TRUE,D_Gru_trin1a_C0_temp4_1,)))) ->  | G23: =IF(VALUE(F23),F23,IF(E23<>0,E23,"")) ->  | H23: =IF(D_Gru_trin1a_temp1_TrueFalse=TRUE,D_Gru_trin1a_C0_temp1_2,IF(D_Gru_trin1a_temp2_TrueFalse=TRUE,D_Gru_trin1a_C0_temp2_2,IF(D_Gru_trin1a_temp3_TrueFalse=TRUE,D_Gru_trin1a_C0_temp3_2,IF(D_Gru_trin1a_temp4_TrueFalse=TRUE,D_Gru_trin1a_C0_temp4_2,)))) ->  | J23: =IF(VALUE(I23),I23,IF(H23<>0,H23,"")) ->  | K23: =IF(D_Gru_trin1a_temp1_TrueFalse=TRUE,D_Gru_trin1a_C0_temp1_3,IF(D_Gru_trin1a_temp2_TrueFalse=TRUE,D_Gru_trin1a_C0_temp2_3,IF(D_Gru_trin1a_temp3_TrueFalse=TRUE,D_Gru_trin1a_C0_temp3_3,IF(D_Gru_trin1a_temp4_TrueFalse=TRUE,D_Gru_trin1a_C0_temp4_3,)))) ->  | M23: =IF(VALUE(L23),L23,IF(K23<>0,K23,"")) ->  | N23: =IF(D_Gru_trin1a_temp1_TrueFalse=TRUE,D_Gru_trin1a_C0_temp1_4,IF(D_Gru_trin1a_temp2_TrueFalse=TRUE,D_Gru_trin1a_C0_temp2_4,IF(D_Gru_trin1a_temp3_TrueFalse=TRUE,D_Gru_trin1a_C0_temp3_4,IF(D_Gru_trin1a_temp4_TrueFalse=TRUE,D_Gru_trin1a_C0_temp4_4,)))) ->  | P23: =IF(VALUE(O23),O23,IF(N23<>0,N23,"")) ->  | R23: B_Gru_trin1a_C0_n | S23: beregnes
B24: Flux | C24: J0_n | D24: g/år | E24: =IF(ISNUMBER(D_Gru_trin1a_C0_1),D_Gru_trin1a_C0_1*D_Gru_trin1a_Q0,"") ->  | G24: =IF(VALUE(F24),F24,IF(E24<>0,E24,"")) ->  | H24: =IF(ISNUMBER(D_Gru_trin1a_C0_2),D_Gru_trin1a_C0_2*D_Gru_trin1a_Q0,"") ->  | J24: =IF(VALUE(I24),I24,IF(H24<>0,H24,"")) ->  | K24: =IF(ISNUMBER(D_Gru_trin1a_C0_3),D_Gru_trin1a_C0_3*D_Gru_trin1a_Q0,"") ->  | M24: =IF(VALUE(L24),L24,IF(K24<>0,K24,"")) ->  | N24: =IF(ISNUMBER(D_Gru_trin1a_C0_4), (D_Gru_trin1a_C0_4*D_Gru_trin1a_Q0),"") ->  | P24: =IF(VALUE(O24),O24,IF(N24<>0,N24,"")) ->  | R24: B_Gru_trin1a_J0_n | S24: beregnes
B25: Naturlig flux | C25: Jg_n | D25: g/år | E25: =D_Gru_trin1a_Qg*D_Gru_trin1a_Cg_1 ->  | G25: =IF(VALUE(F25),F25,E25) ->  | H25: =D_Gru_trin1a_Qg*D_Gru_trin1a_Cg_2 ->  | J25: =IF(VALUE(I25),I25,H25) ->  | K25: =D_Gru_trin1a_Qg*D_Gru_trin1a_Cg_3 ->  | M25: =IF(VALUE(L25),L25,K25) ->  | N25: =D_Gru_trin1a_Qg*D_Gru_trin1a_Cg_4 ->  | P25: =IF(VALUE(O25),O25,N25) ->  | R25: B_Gru_trin1a_Jg_n | S25: beregnes
B26: Forureningskoncentration_C1 | C26: C1a_n | D26: mg/L | E26: =IF(ISNUMBER((D_Gru_trin1a_J0_1+D_Gru_trin1a_Jg_1)/(D_Gru_trin1a_Q0+D_Gru_trin1a_Qg)),(D_Gru_trin1a_J0_1+D_Gru_trin1a_Jg_1)/(D_Gru_trin1a_Q0+D_Gru_trin1a_Qg),"") ->  | G26: =IF(VALUE(F26),F26,IF(E26<>0,E26,"")) ->  | H26: =IF(ISNUMBER((D_Gru_trin1a_J0_2+D_Gru_trin1a_Jg_2)/(D_Gru_trin1a_Q0+D_Gru_trin1a_Qg)),(D_Gru_trin1a_J0_2+D_Gru_trin1a_Jg_2)/(D_Gru_trin1a_Q0+D_Gru_trin1a_Qg),"") ->  | J26: =IF(VALUE(I26),I26,IF(H26<>0,H26,"")) ->  | K26: =IF(ISNUMBER((D_Gru_trin1a_J0_3+D_Gru_trin1a_Jg_3)/(D_Gru_trin1a_Q0+D_Gru_trin1a_Qg)),(D_Gru_trin1a_J0_3+D_Gru_trin1a_Jg_3)/(D_Gru_trin1a_Q0+D_Gru_trin1a_Qg),"") ->  | M26: =IF(VALUE(L26),L26,IF(K26<>0,K26,"")) ->  | N26: =IF(ISNUMBER((D_Gru_trin1a_J0_4+D_Gru_trin1a_Jg_4)/(D_Gru_trin1a_Q0+D_Gru_trin1a_Qg)),(D_Gru_trin1a_J0_4+D_Gru_trin1a_Jg_4)/(D_Gru_trin1a_Q0+D_Gru_trin1a_Qg),"") ->  | P26: =IF(VALUE(O26),O26,IF(N26<>0,N26,"")) ->  | R26: B_Gru_trin1a_C1_n | S26: beregnes
B27: Overskridelse af GV-krit for trin 1 | D27: gange | E27: =IF(D_Gru_trin1a_Krit_1="","Intet kriterie",IF(ISNUMBER(D_Gru_trin1a_C1_1),IF(D_Gru_trin1a_C1_1>D_Gru_trin1a_Krit_1,D_Gru_trin1a_C1_1/D_Gru_trin1a_Krit_1,"nej"),"")) -> Intet kriterie | G27: =IF(VALUE(F27),F27,IF(E27<>0,E27,"")) -> Intet kriterie | H27: =IF(D_Gru_trin1a_Krit_2="","Intet kriterie",IF(ISNUMBER(D_Gru_trin1a_C1_2),IF(D_Gru_trin1a_C1_2>D_Gru_trin1a_Krit_2,D_Gru_trin1a_C1_2/D_Gru_trin1a_Krit_2,"nej"),"")) -> Intet kriterie | J27: =IF(VALUE(I27),I27,IF(H27<>0,H27,"")) -> Intet kriterie | K27: =IF(D_Gru_trin1a_Krit_3="","Intet kriterie",IF(ISNUMBER(D_Gru_trin1a_C1_3),IF(D_Gru_trin1a_C1_3>D_Gru_trin1a_Krit_3,D_Gru_trin1a_C1_3/D_Gru_trin1a_Krit_3,"nej"),"")) -> Intet kriterie | M27: =IF(VALUE(L27),L27,IF(K27<>0,K27,"")) -> Intet kriterie | N27: =IF(D_Gru_trin1a_Krit_4="","Intet kriterie",IF(ISNUMBER(D_Gru_trin1a_C1_4),IF(D_Gru_trin1a_C1_4>D_Gru_trin1a_Krit_4,D_Gru_trin1a_C1_4/D_Gru_trin1a_Krit_4,"nej"),"")) -> Intet kriterie | P27: =IF(VALUE(O27),O27,IF(N27<>0,N27,"")) -> Intet kriterie | R27: B_Gru_trin1a_Krit_Overskr_n | S27: beregnes
B29: GRUNDVAND (Kildestyrkekoncentration - trin2a)
B30: Stoffer | C30: Forkortelse | D30: Enhed | E30: Stof 1 | H30: Stof2 | K30: Stof3 | N30: Sotf4 | R30: Konstantnavn | S30: Oprindelsessted
E31: Systemværdi | F31: Indtastet | G31: Anvendes | H31: Systemværdi | I31: Indtastet | J31: Anvendes | K31: Systemværdi | L31: Indtastet | M31: Anvendes | N31: Systemværdi | O31: Indtastet | P31: Anvendes | R31: stof 1
B32: Naturlig flux | C32: Jg_2a_n | D32: g/år | E32: =D_Gru_trin1a_Cg_1*D_Gru_trin2a_Qg_2a ->  | G32: =IF(VALUE(F32),F32,E32) ->  | H32: =D_Gru_trin1a_Cg_2*D_Gru_trin2a_Qg_2a ->  | J32: =IF(VALUE(I32),I32,H32) ->  | K32: =D_Gru_trin1a_Cg_3*D_Gru_trin2a_Qg_2a ->  | M32: =IF(VALUE(L32),L32,K32) ->  | N32: =D_Gru_trin1a_Cg_4*D_Gru_trin2a_Qg_2a ->  | P32: =IF(VALUE(O32),O32,N32) ->  | R32: B_Gru_trin2a_Jg_2a_n | S32: beregnes
B33: Forureningskoncentration_C2 | C33: C2a_n | D33: mg/L | E33: =IF(ISNUMBER(D_Gru_trin1a_C0_1),(D_Gru_trin1a_J0_1+D_Gru_trin2a_Jg_2a_1)/(D_Gru_trin1a_Q0+D_Gru_trin2a_Qg_2a),"") ->  | G33: =IF(VALUE(F33),F33,IF(E33<>0,E33,"")) ->  | H33: =IF(ISNUMBER(D_Gru_trin1a_C0_2),(D_Gru_trin1a_J0_2+D_Gru_trin2a_Jg_2a_2)/(D_Gru_trin1a_Q0+D_Gru_trin2a_Qg_2a),"") ->  | J33: =IF(VALUE(I33),I33,IF(H33<>0,H33,"")) ->  | K33: =IF(ISNUMBER(D_Gru_trin1a_C0_3),(D_Gru_trin1a_J0_3+D_Gru_trin2a_Jg_2a_3)/(D_Gru_trin1a_Q0+D_Gru_trin2a_Qg_2a),"") ->  | M33: =IF(VALUE(L33),L33,IF(K33<>0,K33,"")) ->  | N33: =IF(ISNUMBER(D_Gru_trin1a_C0_4),(D_Gru_trin1a_J0_4+D_Gru_trin2a_Jg_2a_4)/(D_Gru_trin1a_Q0+D_Gru_trin2a_Qg_2a),"") ->  | P33: =IF(VALUE(O33),O33,IF(N33<>0,N33,"")) ->  | R33: B_Gru_trin2a_C2_n | S33: beregnes
B34: Overskridelse af GV-krit for trin 2 | E34: =IF(D_Gru_trin1a_Krit_1="","Intet kriterie",IF(ISNUMBER(D_Gru_trin1a_C0_1),IF(D_Gru_trin2a_C2_1>D_Gru_trin1a_Krit_1,D_Gru_trin2a_C2_1/D_Gru_trin1a_Krit_1,"nej"),"")) -> Intet kriterie | G34: =IF(VALUE(F34),F34,IF(E34<>0,E34,"")) -> Intet kriterie | H34: =IF(D_Gru_trin1a_Krit_2="","Intet kriterie",IF(ISNUMBER(D_Gru_trin1a_C0_2),IF(D_Gru_trin2a_C2_2>D_Gru_trin1a_Krit_2,D_Gru_trin2a_C2_2/D_Gru_trin1a_Krit_2,"nej"),"")) -> Intet kriterie | J34: =IF(VALUE(I34),I34,IF(H34<>0,H34,"")) -> Intet kriterie | K34: =IF(D_Gru_trin1a_Krit_3="","Intet kriterie",IF(ISNUMBER(D_Gru_trin1a_C0_3),IF(D_Gru_trin2a_C2_3>D_Gru_trin1a_Krit_3,D_Gru_trin2a_C2_3/D_Gru_trin1a_Krit_3,"nej"),"")) -> Intet kriterie | M34: =IF(VALUE(L34),L34,IF(K34<>0,K34,"")) -> Intet kriterie | N34: =IF(D_Gru_trin1a_Krit_4="","Intet kriterie",IF(ISNUMBER(D_Gru_trin1a_C0_4),IF(D_Gru_trin2a_C2_4>D_Gru_trin1a_Krit_4,D_Gru_trin2a_C2_4/D_Gru_trin1a_Krit_4,"nej"),"")) -> Intet kriterie | P34: =IF(VALUE(O34),O34,IF(N34<>0,N34,"")) -> Intet kriterie | R34: B_Gru_trin2a_Krit_Overskr_n | S34: beregnes
B36: GRUNDVAND (Kildestyrkekoncentration - trin1b+2b)
B37: Stoffer | C37: Forkortelse | D37: Enhed | E37: Stof 1 | H37: Stof2 | K37: Stof3 | N37: Sotf4 | R37: Konstantnavn | S37: Oprindelsessted
E38: Systemværdi | F38: Indtastet | G38: Anvendes | H38: Systemværdi | I38: Indtastet | J38: Anvendes | K38: Systemværdi | L38: Indtastet | M38: Anvendes | N38: Systemværdi | O38: Indtastet | P38: Anvendes | R38: stof 1
B39: Forureningskoncentration_C1_trin1b | C39: C1b_n | D39: mg/L | E39: =D_Gru_trin1b_C1bm_1*D_Gru_trin1b_l/0.25 ->  | G39: =IF(ISNUMBER(E39),E39,"") ->  | H39: =D_Gru_trin1b_C1bm_2*D_Gru_trin1b_l/0.25 ->  | J39: =IF(ISNUMBER(H39),H39,"") ->  | K39: =D_Gru_trin1b_C1bm_3*D_Gru_trin1b_l/0.25 ->  | M39: =IF(ISNUMBER(K39),K39,"") ->  | N39: =D_Gru_trin1b_C1bm_4*D_Gru_trin1b_l/0.25 ->  | P39: =IF(ISNUMBER(N39),N39,"") ->  | R39: B_Gru_trin1b_C1b_n | S39: beregnes
B40: Overskridelse af GV-krit for trin 1 | E40: =IF(D_Gru_trin1a_Krit_1="","Intet kriterie",IF(ISNUMBER(D_Gru_trin1b_C1b_1),IF(D_Gru_trin1b_C1b_1>D_Gru_trin1a_Krit_1,D_Gru_trin1b_C1b_1/D_Gru_trin1a_Krit_1,"nej"),"")) -> Intet kriterie | G40: =IF(VALUE(F40),F40,IF(E40<>0,E40,"")) -> Intet kriterie | H40: =IF(D_Gru_trin1a_Krit_2="","Intet kriterie",IF(ISNUMBER(D_Gru_trin1b_C1b_2),IF(D_Gru_trin1b_C1b_2>D_Gru_trin1a_Krit_2,D_Gru_trin1b_C1b_2/D_Gru_trin1a_Krit_2,"nej"),"")) -> Intet kriterie | J40: =IF(VALUE(I40),I40,IF(H40<>0,H40,"")) -> Intet kriterie | K40: =IF(D_Gru_trin1a_Krit_3="","Intet kriterie",IF(ISNUMBER(D_Gru_trin1b_C1b_3),IF(D_Gru_trin1b_C1b_3>D_Gru_trin1a_Krit_3,D_Gru_trin1b_C1b_3/D_Gru_trin1a_Krit_3,"nej"),"")) -> Intet kriterie | M40: =IF(VALUE(L40),L40,IF(K40<>0,K40,"")) -> Intet kriterie | N40: =IF(D_Gru_trin1a_Krit_4="","Intet kriterie",IF(ISNUMBER(D_Gru_trin1b_C1b_4),IF(D_Gru_trin1b_C1b_4>D_Gru_trin1a_Krit_4,D_Gru_trin1b_C1b_4/D_Gru_trin1a_Krit_4,"nej"),"")) -> Intet kriterie | P40: =IF(VALUE(O40),O40,IF(N40<>0,N40,"")) -> Intet kriterie | R40: B_Gru_trin1b_Krit_Overskr_n | S40: beregnes
B41: Forureningskoncentration_C2_trin2b | C41: C2b_n | D41: mg/L | E41: =D_Gru_trin1b_C1b_1*(D_Gru_dm_1a/D_Gru_trin2a_dm_2a) ->  | G41: =IF(ISNUMBER(E41),E41,"") ->  | H41: =D_Gru_trin1b_C1b_2*(D_Gru_dm_1a/D_Gru_trin2a_dm_2a) ->  | J41: =IF(ISNUMBER(H41),H41,"") ->  | K41: =D_Gru_trin1b_C1b_3*(D_Gru_dm_1a/D_Gru_trin2a_dm_2a) ->  | M41: =IF(ISNUMBER(K41),K41,"") ->  | N41: =D_Gru_trin1b_C1b_4*(D_Gru_dm_1a/D_Gru_trin2a_dm_2a) ->  | P41: =IF(ISNUMBER(N41),N41,"") ->  | R41: B_Gru_trin2b_C2b_n | S41: beregnes
B42: Overskridelse af GV-krit for trin 2 | E42: =IF(D_Gru_trin1a_Krit_1="","Intet kriterie",IF(ISNUMBER(D_Gru_trin2b_C2b_1),IF(D_Gru_trin2b_C2b_1>D_Gru_trin1a_Krit_1,D_Gru_trin2b_C2b_1/D_Gru_trin1a_Krit_1,"nej"),"")) -> Intet kriterie | G42: =IF(VALUE(F42),F42,IF(E42<>0,E42,"")) -> Intet kriterie | H42: =IF(D_Gru_trin1a_Krit_2="","Intet kriterie",IF(ISNUMBER(D_Gru_trin2b_C2b_2),IF(D_Gru_trin2b_C2b_2>D_Gru_trin1a_Krit_2,D_Gru_trin2b_C2b_2/D_Gru_trin1a_Krit_2,"nej"),"")) -> Intet kriterie | J42: =IF(VALUE(I42),I42,IF(H42<>0,H42,"")) -> Intet kriterie | K42: =IF(D_Gru_trin1a_Krit_3="","Intet kriterie",IF(ISNUMBER(D_Gru_trin2b_C2b_3),IF(D_Gru_trin2b_C2b_3>D_Gru_trin1a_Krit_3,D_Gru_trin2b_C2b_3/D_Gru_trin1a_Krit_3,"nej"),"")) -> Intet kriterie | M42: =IF(VALUE(L42),L42,IF(K42<>0,K42,"")) -> Intet kriterie | N42: =IF(D_Gru_trin1a_Krit_4="","Intet kriterie",IF(ISNUMBER(D_Gru_trin2b_C2b_4),IF(D_Gru_trin2b_C2b_4>D_Gru_trin1a_Krit_4,D_Gru_trin2b_C2b_4/D_Gru_trin1a_Krit_4,"nej"),"")) -> Intet kriterie | P42: =IF(VALUE(O42),O42,IF(N42<>0,N42,"")) -> Intet kriterie | R42: B_Gru_trin2b_Krit_Overskr_n | S42: beregnes
B44: GRUNDVAND (Konc. med sorption og nedbrydning - trin3)
B45: Stoffer | C45: Forkortelse | D45: Enhed | E45: Stof 1 | H45: Stof 2 | K45: Stof 3 | N45: Stof 4 | R45: Konstantnavn | S45: Oprindelsessted
E46: Systemværdi | F46: Indtastet | G46: Anvendes | H46: Systemværdi | I46: Indtastet | J46: Anvendes | K46: Systemværdi | L46: Indtastet | M46: Anvendes | N46: Systemværdi | O46: Indtastet | P46: Anvendes
B47: Forureningskoncentration | C47: C2_n | D47: mg/L | E47: =IF(D_Gru_beregn=TRUE,D_Gru_trin2a_C2_1,IF(D_Gru_målt=TRUE,D_Gru_trin2b_C2b_1,)) ->  | G47: =IF(VALUE(F47),F47,IF(E47<>0,E47,"")) ->  | H47: =IF(D_Gru_beregn=TRUE,D_Gru_trin2a_C2_2,IF(D_Gru_målt=TRUE,D_Gru_trin2b_C2b_2,)) ->  | J47: =IF(VALUE(I47),I47,IF(H47<>0,H47,"")) ->  | K47: =IF(D_Gru_beregn=TRUE,D_Gru_trin2a_C2_3,IF(D_Gru_målt=TRUE,D_Gru_trin2b_C2b_3,)) ->  | M47: =IF(VALUE(L47),L47,IF(K47<>0,K47,"")) ->  | N47: =IF(D_Gru_beregn=TRUE,D_Gru_trin2a_C2_4,IF(D_Gru_målt=TRUE,D_Gru_trin2b_C2b_4,)) ->  | P47: =IF(VALUE(O47),O47,IF(N47<>0,N47,"")) ->  | R47: B_Gru_trin3_C2_n | S47: beregnes
B48: Fordelingskoefficienten | C48: KD_n | D48: - | E48: =10^D_Gru_trin3_logKD_1 ->  | H48: =10^D_Gru_trin3_logKD_2 ->  | J48: =IF(VALUE(I48),I48,IF(H48<>0,H48,"")) ->  | K48: =10^D_Gru_trin3_logKD_3 ->  | M48: =IF(VALUE(L48),L48,IF(K48<>0,K48,"")) ->  | N48: =10^D_Gru_trin3_logKD_4 ->  | P48: =IF(VALUE(O48),O48,IF(N48<>0,N48,"")) ->  | R48: B_Gru_trin3_KB_n | S48: beregnes
B49: logKD | C49: logKD | E49: =1.04*D_Gru_trin3_logKOW_1+LOG(D_Gru_foc)-0.84 ->  | H49: =1.04*D_Gru_trin3_logKOW_2+LOG(D_Gru_foc)-0.84 ->  | K49: =1.04*D_Gru_trin3_logKOW_3+LOG(D_Gru_foc)-0.84 ->  | N49: =1.04*D_Gru_trin3_logKOW_4+LOG(D_Gru_foc)-0.84 ->  | R49: B_Gru_trin3_logKB_n | S49: beregnes
B50: 1. ordens nedbrydningskonstant | C50: k1_n | D50: dage-1 | E50: =IF(D_Gru_aerob=TRUE,D_Gru_trin3_k1_aerob_1,IF(D_Gru_anaerob=TRUE,D_Gru_trin3_k1_anaerob_1,)) -> 0 | G50: =E50 -> 0 | H50: =IF(D_Gru_aerob=TRUE,D_Gru_trin3_k1_aerob_2,IF(D_Gru_anaerob=TRUE,D_Gru_trin3_k1_anaerob_2,)) -> 0 | J50: =H50 -> 0 | K50: =IF(D_Gru_aerob=TRUE,D_Gru_trin3_k1_aerob_3,IF(D_Gru_anaerob=TRUE,D_Gru_trin3_k1_anaerob_3,)) -> 0 | M50: =K50 -> 0 | N50: =IF(D_Gru_aerob=TRUE,D_Gru_trin3_k1_aerob_4,IF(D_Gru_anaerob=TRUE,D_Gru_trin3_k1_anaerob_4,)) -> 0 | P50: =N50 -> 0 | R50: B_Gru_trin3_k1_n | S50: beregnes
B51: Forureningskonc._C3_med nedbr. | C51: ned_C3_n | D51: mg/L | E51: =IF(ISNUMBER(D_Gru_trin3_C2_1),D_Gru_trin3_C2_1*EXP(-D_Gru_trin3_k1_1*D_Gru_trin2a_t*365.25),"") ->  | G51: =E51 ->  | H51: =IF(ISNUMBER(D_Gru_trin3_C2_2),D_Gru_trin3_C2_2*EXP(-D_Gru_trin3_k1_2*D_Gru_trin2a_t*365.25),"") ->  | J51: =H51 ->  | K51: =IF(ISNUMBER(D_Gru_trin3_C2_3),D_Gru_trin3_C2_3*EXP(-D_Gru_trin3_k1_3*D_Gru_trin2a_t*365.25),"") ->  | M51: =K51 ->  | N51: =IF(ISNUMBER(D_Gru_trin3_C2_4),D_Gru_trin3_C2_4*EXP(-D_Gru_trin3_k1_4*D_Gru_trin2a_t*365.25),"") ->  | P51: =IF(ISNUMBER(N51),N51,"") ->  | R51: B_Gru_trin3_ned_C3_n | S51: beregnes
B52: Forureningskonc._C3_med sorpt.+nedbryd | C52: C3_n | D52: mg/L | E52: =IF(ISNUMBER(D_Gru_trin3_C2_1),D_Gru_trin3_C2_1*EXP(-D_Gru_trin3_k1_1*D_Gru_trin3_t_sorp_1),"") ->  | G52: =IF(ISNUMBER(E52),E52,"") ->  | H52: =IF(ISNUMBER(D_Gru_trin3_C2_2),D_Gru_trin3_C2_2*EXP(-D_Gru_trin3_k1_2*D_Gru_trin3_t_sorp_2),"") ->  | J52: =IF(ISNUMBER(H52),H52,"") ->  | K52: =IF(ISNUMBER(D_Gru_trin3_C2_3),D_Gru_trin3_C2_3*EXP(-D_Gru_trin3_k1_3*D_Gru_trin3_t_sorp_3),"") ->  | M52: =IF(ISNUMBER(K52),K52,"") ->  | N52: =IF(ISNUMBER(D_Gru_trin3_C2_4),D_Gru_trin3_C2_4*EXP(-D_Gru_trin3_k1_4*D_Gru_trin3_t_sorp_4),"") ->  | P52: =IF(ISNUMBER(N52),N52,"") ->  | R52: B_Gru_trin3_C3_n | S52: beregnes
B53: Retardationsfaktor | C53: R | D53: - | E53: =1+D_Gru_rhob/D_Gru_trin3_eW*D_Gru_trin3_KD_1 ->  | H53: =1+D_Gru_rhob/D_Gru_trin3_eW*D_Gru_trin3_KD_2 ->  | K53: =1+D_Gru_rhob/D_Gru_trin3_eW*D_Gru_trin3_KD_3 ->  | N53: =1+D_Gru_rhob/D_Gru_trin3_eW*D_Gru_trin3_KD_4 ->  | R53: B_Gru_trin3_R_n | S53: beregnes
B54: Gns. porevandshastighed m. sorption | C54: VS | D54: m/år | E54: =D_Gru_trin2a_VP/D_Gru_trin3_R_1 ->  | H54: =D_Gru_trin2a_VP/D_Gru_trin3_R_2 ->  | K54: =D_Gru_trin2a_VP/D_Gru_trin3_R_3 ->  | N54: =D_Gru_trin2a_VP/D_Gru_trin3_R_4 ->  | R54: B_Gru_trin3_VS_n | S54: beregnes
B55: Transporttid med sorption | C55: t_sorp | D55: dage | E55: =D_Gru_trin1b_LL/D_Gru_trin3_VS_1*365.25 ->  | H55: =D_Gru_trin1b_LL/D_Gru_trin3_VS_2*365.25 ->  | K55: =D_Gru_trin1b_LL/D_Gru_trin3_VS_3*365.25 ->  | N55: =D_Gru_trin1b_LL/D_Gru_trin3_VS_4*365.25 ->  | R55: B_Gru_trin3_t_sorp_n | S55: beregnes
B56: Overskridelse af Gv-Krit for trin 3 | E56: =IF(D_Gru_trin1a_Krit_1="","Intet kriterie",IF(ISNUMBER(D_Gru_trin3_C3_1),IF(D_Gru_trin3_C3_1>D_Gru_trin1a_Krit_1,D_Gru_trin3_C3_1/D_Gru_trin1a_Krit_1,"nej"),"")) -> Intet kriterie | G56: Intet kriterie | H56: =IF(D_Gru_trin1a_Krit_2="","Intet kriterie",IF(ISNUMBER(D_Gru_trin3_C3_2),IF(D_Gru_trin3_C3_2>D_Gru_trin1a_Krit_2,D_Gru_trin3_C3_2/D_Gru_trin1a_Krit_2,"nej"),"")) -> Intet kriterie | J56: Intet kriterie | K56: =IF(D_Gru_trin1a_Krit_3="","Intet kriterie",IF(ISNUMBER(D_Gru_trin3_C3_3),IF(D_Gru_trin3_C3_3>D_Gru_trin1a_Krit_3,D_Gru_trin3_C3_3/D_Gru_trin1a_Krit_3,"nej"),"")) -> Intet kriterie | M56: Intet kriterie | N56: =IF(D_Gru_trin1a_Krit_4="","Intet kriterie",IF(ISNUMBER(D_Gru_trin3_C3_4),IF(D_Gru_trin3_C3_4>D_Gru_trin1a_Krit_4,D_Gru_trin3_C3_4/D_Gru_trin1a_Krit_4,"nej"),"")) -> Intet kriterie | P56: Intet kriterie | R56: B_Gru_trin3_Krit_Overskr_n | S56: beregnes
B58: Stof 1 | C58: =D_Gru_stofnavn_1 ->  | E58: =D_Gru_stof1_Afstand_1_1 -> 0 | F58: 0 | G58: 10 | H58: 20 | I58: 30 | J58: 40 | K58: 50 | L58: 75 | M58: 100
B59: Transporttid | E59: =D_Gru_stof1_Afstand_1_1/D_Gru_trin2a_VP ->  | F59: =D_Gru_stof1_Afstand_1_2/D_Gru_trin2a_VP ->  | G59: =D_Gru_stof1_Afstand_1_3/D_Gru_trin2a_VP ->  | H59: =D_Gru_stof1_Afstand_1_4/D_Gru_trin2a_VP ->  | I59: =D_Gru_stof1_Afstand_1_5/D_Gru_trin2a_VP ->  | J59: =D_Gru_stof1_Afstand_1_6/D_Gru_trin2a_VP ->  | K59: =D_Gru_stof1_Afstand_1_7/D_Gru_trin2a_VP ->  | L59: =D_Gru_stof1_Afstand_1_8/D_Gru_trin2a_VP ->  | M59: =D_Gru_stof1_Afstand_1_9/D_Gru_trin2a_VP ->  | N59: B_Gru_stof1_AfstanB_2_n
B60: Langsgående dispersivitet | E60: =IF((0.0000042*POWER(D_Gru_stof1_Afstand_1_1,2)+0.0036*D_Gru_stof1_Afstand_1_1-0.008)<0,1E-36,(0.0000042*POWER(D_Gru_stof1_Afstand_1_1,2)+0.0036*D_Gru_stof1_Afstand_1_1-0.008)) -> 1e-36 | F60: =IF((0.0000042*POWER(D_Gru_stof1_Afstand_1_2,2)+0.0036*D_Gru_stof1_Afstand_1_2-0.008)<0,1E-36,(0.0000042*POWER(D_Gru_stof1_Afstand_1_2,2)+0.0036*D_Gru_stof1_Afstand_1_2-0.008)) -> 1e-36 | G60: =IF((0.0000042*POWER(D_Gru_stof1_Afstand_1_3,2)+0.0036*D_Gru_stof1_Afstand_1_3-0.008)<0,1E-36,(0.0000042*POWER(D_Gru_stof1_Afstand_1_3,2)+0.0036*D_Gru_stof1_Afstand_1_3-0.008)) -> 0.02842 | H60: =IF((0.0000042*POWER(D_Gru_stof1_Afstand_1_4,2)+0.0036*D_Gru_stof1_Afstand_1_4-0.008)<0,1E-36,(0.0000042*POWER(D_Gru_stof1_Afstand_1_4,2)+0.0036*D_Gru_stof1_Afstand_1_4-0.008)) -> 0.06568 | I60: =IF((0.0000042*POWER(D_Gru_stof1_Afstand_1_5,2)+0.0036*D_Gru_stof1_Afstand_1_5-0.008)<0,1E-36,(0.0000042*POWER(D_Gru_stof1_Afstand_1_5,2)+0.0036*D_Gru_stof1_Afstand_1_5-0.008)) -> 0.10378 | J60: =IF((0.0000042*POWER(D_Gru_stof1_Afstand_1_6,2)+0.0036*D_Gru_stof1_Afstand_1_6-0.008)<0,1E-36,(0.0000042*POWER(D_Gru_stof1_Afstand_1_6,2)+0.0036*D_Gru_stof1_Afstand_1_6-0.008)) -> 0.14272 | K60: =IF((0.0000042*POWER(D_Gru_stof1_Afstand_1_7,2)+0.0036*D_Gru_stof1_Afstand_1_7-0.008)<0,1E-36,(0.0000042*POWER(D_Gru_stof1_Afstand_1_7,2)+0.0036*D_Gru_stof1_Afstand_1_7-0.008)) -> 0.1825 | L60: =IF((0.0000042*POWER(D_Gru_stof1_Afstand_1_8,2)+0.0036*D_Gru_stof1_Afstand_1_8-0.008)<0,1E-36,(0.0000042*POWER(D_Gru_stof1_Afstand_1_8,2)+0.0036*D_Gru_stof1_Afstand_1_8-0.008)) -> 0.285625 | M60: =IF((0.0000042*POWER(D_Gru_stof1_Afstand_1_9,2)+0.0036*D_Gru_stof1_Afstand_1_9-0.008)<0,1E-36,(0.0000042*POWER(D_Gru_stof1_Afstand_1_9,2)+0.0036*D_Gru_stof1_Afstand_1_9-0.008)) -> 0.394
B61: Opblandingsdybde,m | E61: =MAX(D_Gru_dm_1a,MIN(IF(D_Gru_trin2a_dm_max>0,D_Gru_trin2a_dm_max,1E+36),SQRT((72/900)*E60*D_Gru_trin2a_VP*D_Gru_stof1_Afstand_2_1))) ->  | F61: =MAX(D_Gru_dm_1a,MIN(IF(D_Gru_trin2a_dm_max>0,D_Gru_trin2a_dm_max,1E+36),SQRT((72/900)*F60*D_Gru_trin2a_VP*D_Gru_stof1_Afstand_2_2))) ->  | G61: =MAX(D_Gru_dm_1a,MIN(IF(D_Gru_trin2a_dm_max>0,D_Gru_trin2a_dm_max,1E+36),SQRT((72/900)*G60*D_Gru_trin2a_VP*D_Gru_stof1_Afstand_2_3))) ->  | H61: =MAX(D_Gru_dm_1a,MIN(IF(D_Gru_trin2a_dm_max>0,D_Gru_trin2a_dm_max,1E+36),SQRT((72/900)*H60*D_Gru_trin2a_VP*D_Gru_stof1_Afstand_2_4))) ->  | I61: =MAX(D_Gru_dm_1a,MIN(IF(D_Gru_trin2a_dm_max>0,D_Gru_trin2a_dm_max,1E+36),SQRT((72/900)*I60*D_Gru_trin2a_VP*D_Gru_stof1_Afstand_2_5))) ->  | J61: =MAX(D_Gru_dm_1a,MIN(IF(D_Gru_trin2a_dm_max>0,D_Gru_trin2a_dm_max,1E+36),SQRT((72/900)*J60*D_Gru_trin2a_VP*D_Gru_stof1_Afstand_2_6))) ->  | K61: =MAX(D_Gru_dm_1a,MIN(IF(D_Gru_trin2a_dm_max>0,D_Gru_trin2a_dm_max,1E+36),SQRT((72/900)*K60*D_Gru_trin2a_VP*D_Gru_stof1_Afstand_2_7))) ->  | L61: =MAX(D_Gru_dm_1a,MIN(IF(D_Gru_trin2a_dm_max>0,D_Gru_trin2a_dm_max,1E+36),SQRT((72/900)*L60*D_Gru_trin2a_VP*D_Gru_stof1_Afstand_2_8))) ->  | M61: =MAX(D_Gru_dm_1a,MIN(IF(D_Gru_trin2a_dm_max>0,D_Gru_trin2a_dm_max,1E+36),SQRT((72/900)*M60*D_Gru_trin2a_VP*D_Gru_stof1_Afstand_2_9))) ->  | N61: B_Gru_stof1_AfstanB_3_n
B62: Forureningskoncentration, C2 | E62: =IF(D_Gru_beregn=TRUE,IF(ISNUMBER(D_Gru_trin1a_J0_1),(D_Gru_trin1a_J0_1+D_Gru_B*D_Gru_stof1_Afstand_3_1*D_Gru_trin1a_VD*D_Gru_trin1a_Cg_1)/(D_Gru_trin1a_Q0+D_Gru_B*D_Gru_stof1_Afstand_3_1*D_Gru_trin1a_VD),0),D_Gru_trin1b_C1b_1*(0.25/D_Gru_stof1_Afstand_3_1)) -> 0 | F62: =IF(D_Gru_beregn=TRUE,IF(ISNUMBER(D_Gru_trin1a_J0_1),(D_Gru_trin1a_J0_1+D_Gru_B*D_Gru_stof1_Afstand_3_2*D_Gru_trin1a_VD*D_Gru_trin1a_Cg_1)/(D_Gru_trin1a_Q0+D_Gru_B*D_Gru_stof1_Afstand_3_2*D_Gru_trin1a_VD),0),D_Gru_trin1b_C1b_1*(0.25/D_Gru_stof1_Afstand_3_2)) -> 0 | G62: =IF(D_Gru_beregn=TRUE,IF(ISNUMBER(D_Gru_trin1a_J0_1),(D_Gru_trin1a_J0_1+D_Gru_B*D_Gru_stof1_Afstand_3_3*D_Gru_trin1a_VD*D_Gru_trin1a_Cg_1)/(D_Gru_trin1a_Q0+D_Gru_B*D_Gru_stof1_Afstand_3_3*D_Gru_trin1a_VD),0),D_Gru_trin1b_C1b_1*(0.25/D_Gru_stof1_Afstand_3_3)) -> 0 | H62: =IF(D_Gru_beregn=TRUE,IF(ISNUMBER(D_Gru_trin1a_J0_1),(D_Gru_trin1a_J0_1+D_Gru_B*D_Gru_stof1_Afstand_3_4*D_Gru_trin1a_VD*D_Gru_trin1a_Cg_1)/(D_Gru_trin1a_Q0+D_Gru_B*D_Gru_stof1_Afstand_3_4*D_Gru_trin1a_VD),0),D_Gru_trin1b_C1b_1*(0.25/D_Gru_stof1_Afstand_3_4)) -> 0 | I62: =IF(D_Gru_beregn=TRUE,IF(ISNUMBER(D_Gru_trin1a_J0_1),(D_Gru_trin1a_J0_1+D_Gru_B*D_Gru_stof1_Afstand_3_5*D_Gru_trin1a_VD*D_Gru_trin1a_Cg_1)/(D_Gru_trin1a_Q0+D_Gru_B*D_Gru_stof1_Afstand_3_5*D_Gru_trin1a_VD),0),D_Gru_trin1b_C1b_1*(0.25/D_Gru_stof1_Afstand_3_5)) -> 0 | J62: =IF(D_Gru_beregn=TRUE,IF(ISNUMBER(D_Gru_trin1a_J0_1),(D_Gru_trin1a_J0_1+D_Gru_B*D_Gru_stof1_Afstand_3_6*D_Gru_trin1a_VD*D_Gru_trin1a_Cg_1)/(D_Gru_trin1a_Q0+D_Gru_B*D_Gru_stof1_Afstand_3_6*D_Gru_trin1a_VD),0),D_Gru_trin1b_C1b_1*(0.25/D_Gru_stof1_Afstand_3_6)) -> 0 | K62: =IF(D_Gru_beregn=TRUE,IF(ISNUMBER(D_Gru_trin1a_J0_1),(D_Gru_trin1a_J0_1+D_Gru_B*D_Gru_stof1_Afstand_3_7*D_Gru_trin1a_VD*D_Gru_trin1a_Cg_1)/(D_Gru_trin1a_Q0+D_Gru_B*D_Gru_stof1_Afstand_3_7*D_Gru_trin1a_VD),0),D_Gru_trin1b_C1b_1*(0.25/D_Gru_stof1_Afstand_3_7)) -> 0 | L62: =IF(D_Gru_beregn=TRUE,IF(ISNUMBER(D_Gru_trin1a_J0_1),(D_Gru_trin1a_J0_1+D_Gru_B*D_Gru_stof1_Afstand_3_8*D_Gru_trin1a_VD*D_Gru_trin1a_Cg_1)/(D_Gru_trin1a_Q0+D_Gru_B*D_Gru_stof1_Afstand_3_8*D_Gru_trin1a_VD),0),D_Gru_trin1b_C1b_1*(0.25/D_Gru_stof1_Afstand_3_8)) -> 0 | M62: =IF(D_Gru_beregn=TRUE,IF(ISNUMBER(D_Gru_trin1a_J0_1),(D_Gru_trin1a_J0_1+D_Gru_B*D_Gru_stof1_Afstand_3_9*D_Gru_trin1a_VD*D_Gru_trin1a_Cg_1)/(D_Gru_trin1a_Q0+D_Gru_B*D_Gru_stof1_Afstand_3_9*D_Gru_trin1a_VD),0),D_Gru_trin1b_C1b_1*(0.25/D_Gru_stof1_Afstand_3_9)) -> 0 | N62: B_Gru_stof1_AfstanB_4_n
B63: Konc. med nedbrydning, C3 | E63: =D_Gru_stof1_Afstand_4_1*EXP(-D_Gru_trin3_k1_1*D_Gru_stof1_Afstand_2_1*365.25) ->  | F63: =D_Gru_stof1_Afstand_4_2*EXP(-D_Gru_trin3_k1_1*D_Gru_stof1_Afstand_2_2*365.25) ->  | G63: =D_Gru_stof1_Afstand_4_3*EXP(-D_Gru_trin3_k1_1*D_Gru_stof1_Afstand_2_3*365.25) ->  | H63: =D_Gru_stof1_Afstand_4_4*EXP(-D_Gru_trin3_k1_1*D_Gru_stof1_Afstand_2_4*365.25) ->  | I63: =D_Gru_stof1_Afstand_4_5*EXP(-D_Gru_trin3_k1_1*D_Gru_stof1_Afstand_2_5*365.25) ->  | J63: =D_Gru_stof1_Afstand_4_6*EXP(-D_Gru_trin3_k1_1*D_Gru_stof1_Afstand_2_6*365.25) ->  | K63: =D_Gru_stof1_Afstand_4_7*EXP(-D_Gru_trin3_k1_1*D_Gru_stof1_Afstand_2_7*365.25) ->  | L63: =D_Gru_stof1_Afstand_4_8*EXP(-D_Gru_trin3_k1_1*D_Gru_stof1_Afstand_2_8*365.25) ->  | M63: =D_Gru_stof1_Afstand_4_9*EXP(-D_Gru_trin3_k1_1*D_Gru_stof1_Afstand_2_9*365.25) ->  | N63: B_Gru_stof1_AfstanB_5_n
B64: Transporttid (sorpt.) | E64: =D_Gru_stof1_Afstand_1_1/D_Gru_trin3_VS_1 ->  | F64: =D_Gru_stof1_Afstand_1_2/D_Gru_trin3_VS_1 ->  | G64: =D_Gru_stof1_Afstand_1_3/D_Gru_trin3_VS_1 ->  | H64: =D_Gru_stof1_Afstand_1_4/D_Gru_trin3_VS_1 ->  | I64: =D_Gru_stof1_Afstand_1_5/D_Gru_trin3_VS_1 ->  | J64: =D_Gru_stof1_Afstand_1_6/D_Gru_trin3_VS_1 ->  | K64: =D_Gru_stof1_Afstand_1_7/D_Gru_trin3_VS_1 ->  | L64: =D_Gru_stof1_Afstand_1_8/D_Gru_trin3_VS_1 ->  | M64: =D_Gru_stof1_Afstand_1_9/D_Gru_trin3_VS_1 ->  | N64: B_Gru_stof1_AfstanB_6_n
B65: Konc. m. sorpt. og nedbr., C3 | E65: =D_Gru_stof1_Afstand_4_1*EXP(-D_Gru_trin3_k1_1*D_Gru_stof1_Afstand_6_1*365.25) ->  | F65: =D_Gru_stof1_Afstand_4_2*EXP(-D_Gru_trin3_k1_1*D_Gru_stof1_Afstand_6_2*365.25) ->  | G65: =D_Gru_stof1_Afstand_4_3*EXP(-D_Gru_trin3_k1_1*D_Gru_stof1_Afstand_6_3*365.25) ->  | H65: =D_Gru_stof1_Afstand_4_4*EXP(-D_Gru_trin3_k1_1*D_Gru_stof1_Afstand_6_4*365.25) ->  | I65: =D_Gru_stof1_Afstand_4_5*EXP(-D_Gru_trin3_k1_1*D_Gru_stof1_Afstand_6_5*365.25) ->  | J65: =D_Gru_stof1_Afstand_4_6*EXP(-D_Gru_trin3_k1_1*D_Gru_stof1_Afstand_6_6*365.25) ->  | K65: =D_Gru_stof1_Afstand_4_7*EXP(-D_Gru_trin3_k1_1*D_Gru_stof1_Afstand_6_7*365.25) ->  | L65: =D_Gru_stof1_Afstand_4_8*EXP(-D_Gru_trin3_k1_1*D_Gru_stof1_Afstand_6_8*365.25) ->  | M65: =D_Gru_stof1_Afstand_4_9*EXP(-D_Gru_trin3_k1_1*D_Gru_stof1_Afstand_6_9*365.25) ->  | N65: B_Gru_stof1_AfstanB_7_n
B72: Stof 2 | C72: =D_Gru_stofnavn_2 ->  | E72: =Gru_afstand_bruger_2 -> 0 | F72: 0 | G72: 10 | H72: 20 | I72: 30 | J72: 40 | K72: 50 | L72: 75 | M72: 100
B73: Transporttid | E73: =D_Gru_stof2_Afstand_1_1/D_Gru_trin2a_VP ->  | F73: =D_Gru_stof2_Afstand_1_2/D_Gru_trin2a_VP ->  | G73: =D_Gru_stof2_Afstand_1_3/D_Gru_trin2a_VP ->  | H73: =D_Gru_stof2_Afstand_1_4/D_Gru_trin2a_VP ->  | I73: =D_Gru_stof2_Afstand_1_5/D_Gru_trin2a_VP ->  | J73: =D_Gru_stof2_Afstand_1_6/D_Gru_trin2a_VP ->  | K73: =D_Gru_stof2_Afstand_1_7/D_Gru_trin2a_VP ->  | L73: =D_Gru_stof2_Afstand_1_8/D_Gru_trin2a_VP ->  | M73: =D_Gru_stof2_Afstand_1_9/D_Gru_trin2a_VP ->  | N73: B_Gru_stof2_AfstanB_2_n
B74: Langsgående dispersivitet | E74: =IF((0.0000042*POWER(D_Gru_stof2_Afstand_1_1,2)+0.0036*D_Gru_stof2_Afstand_1_1-0.008)<0,1E-36,(0.0000042*POWER(D_Gru_stof2_Afstand_1_1,2)+0.0036*D_Gru_stof2_Afstand_1_1-0.008)) -> 1e-36 | F74: =IF((0.0000042*POWER(D_Gru_stof2_Afstand_1_2,2)+0.0036*D_Gru_stof2_Afstand_1_2-0.008)<0,1E-36,(0.0000042*POWER(D_Gru_stof2_Afstand_1_2,2)+0.0036*D_Gru_stof2_Afstand_1_2-0.008)) -> 1e-36 | G74: =IF((0.0000042*POWER(D_Gru_stof2_Afstand_1_3,2)+0.0036*D_Gru_stof2_Afstand_1_3-0.008)<0,1E-36,(0.0000042*POWER(D_Gru_stof2_Afstand_1_3,2)+0.0036*D_Gru_stof2_Afstand_1_3-0.008)) -> 0.02842 | H74: =IF((0.0000042*POWER(D_Gru_stof2_Afstand_1_4,2)+0.0036*D_Gru_stof2_Afstand_1_4-0.008)<0,1E-36,(0.0000042*POWER(D_Gru_stof2_Afstand_1_4,2)+0.0036*D_Gru_stof2_Afstand_1_4-0.008)) -> 0.06568 | I74: =IF((0.0000042*POWER(D_Gru_stof2_Afstand_1_5,2)+0.0036*D_Gru_stof2_Afstand_1_5-0.008)<0,1E-36,(0.0000042*POWER(D_Gru_stof2_Afstand_1_5,2)+0.0036*D_Gru_stof2_Afstand_1_5-0.008)) -> 0.10378 | J74: =IF((0.0000042*POWER(D_Gru_stof2_Afstand_1_6,2)+0.0036*D_Gru_stof2_Afstand_1_6-0.008)<0,1E-36,(0.0000042*POWER(D_Gru_stof2_Afstand_1_6,2)+0.0036*D_Gru_stof2_Afstand_1_6-0.008)) -> 0.14272 | K74: =IF((0.0000042*POWER(D_Gru_stof2_Afstand_1_7,2)+0.0036*D_Gru_stof2_Afstand_1_7-0.008)<0,1E-36,(0.0000042*POWER(D_Gru_stof2_Afstand_1_7,2)+0.0036*D_Gru_stof2_Afstand_1_7-0.008)) -> 0.1825 | L74: =IF((0.0000042*POWER(D_Gru_stof2_Afstand_1_8,2)+0.0036*D_Gru_stof2_Afstand_1_8-0.008)<0,1E-36,(0.0000042*POWER(D_Gru_stof2_Afstand_1_8,2)+0.0036*D_Gru_stof2_Afstand_1_8-0.008)) -> 0.285625 | M74: =IF((0.0000042*POWER(D_Gru_stof2_Afstand_1_9,2)+0.0036*D_Gru_stof2_Afstand_1_9-0.008)<0,1E-36,(0.0000042*POWER(D_Gru_stof2_Afstand_1_9,2)+0.0036*D_Gru_stof2_Afstand_1_9-0.008)) -> 0.394
B75: Opblandingsdybde,m | E75: =MAX(D_Gru_dm_1a,MIN(IF(D_Gru_trin2a_dm_max>0,D_Gru_trin2a_dm_max,1E+36),SQRT((72/900)*E74*D_Gru_trin2a_VP*D_Gru_stof2_Afstand_2_1))) ->  | F75: =MAX(D_Gru_dm_1a,MIN(IF(D_Gru_trin2a_dm_max>0,D_Gru_trin2a_dm_max,1E+36),SQRT((72/900)*F74*D_Gru_trin2a_VP*D_Gru_stof2_Afstand_2_2))) ->  | G75: =MAX(D_Gru_dm_1a,MIN(IF(D_Gru_trin2a_dm_max>0,D_Gru_trin2a_dm_max,1E+36),SQRT((72/900)*G74*D_Gru_trin2a_VP*D_Gru_stof2_Afstand_2_3))) ->  | H75: =MAX(D_Gru_dm_1a,MIN(IF(D_Gru_trin2a_dm_max>0,D_Gru_trin2a_dm_max,1E+36),SQRT((72/900)*H74*D_Gru_trin2a_VP*D_Gru_stof2_Afstand_2_4))) ->  | I75: =MAX(D_Gru_dm_1a,MIN(IF(D_Gru_trin2a_dm_max>0,D_Gru_trin2a_dm_max,1E+36),SQRT((72/900)*I74*D_Gru_trin2a_VP*D_Gru_stof2_Afstand_2_5))) ->  | J75: =MAX(D_Gru_dm_1a,MIN(IF(D_Gru_trin2a_dm_max>0,D_Gru_trin2a_dm_max,1E+36),SQRT((72/900)*J74*D_Gru_trin2a_VP*D_Gru_stof2_Afstand_2_6))) ->  | K75: =MAX(D_Gru_dm_1a,MIN(IF(D_Gru_trin2a_dm_max>0,D_Gru_trin2a_dm_max,1E+36),SQRT((72/900)*K74*D_Gru_trin2a_VP*D_Gru_stof2_Afstand_2_7))) ->  | L75: =MAX(D_Gru_dm_1a,MIN(IF(D_Gru_trin2a_dm_max>0,D_Gru_trin2a_dm_max,1E+36),SQRT((72/900)*L74*D_Gru_trin2a_VP*D_Gru_stof2_Afstand_2_8))) ->  | M75: =MAX(D_Gru_dm_1a,MIN(IF(D_Gru_trin2a_dm_max>0,D_Gru_trin2a_dm_max,1E+36),SQRT((72/900)*M74*D_Gru_trin2a_VP*D_Gru_stof2_Afstand_2_9))) ->  | N75: B_Gru_stof2_AfstanB_3_n
B76: Forureningskoncentration, C2 | E76: =IF(D_Gru_beregn=TRUE,IF(ISNUMBER(D_Gru_trin1a_J0_2),(D_Gru_trin1a_J0_2+D_Gru_B*D_Gru_stof2_Afstand_3_1*D_Gru_trin1a_VD*D_Gru_trin1a_Cg_2)/(D_Gru_trin1a_Q0+D_Gru_B*D_Gru_stof2_Afstand_3_1*D_Gru_trin1a_VD),0),D_Gru_trin1b_C1b_2*(0.25/D_Gru_stof2_Afstand_3_1)) -> 0 | F76: =IF(D_Gru_beregn=TRUE,IF(ISNUMBER(D_Gru_trin1a_J0_2),(D_Gru_trin1a_J0_2+D_Gru_B*D_Gru_stof2_Afstand_3_2*D_Gru_trin1a_VD*D_Gru_trin1a_Cg_2)/(D_Gru_trin1a_Q0+D_Gru_B*D_Gru_stof2_Afstand_3_2*D_Gru_trin1a_VD),0),D_Gru_trin1b_C1b_2*(0.25/D_Gru_stof2_Afstand_3_2)) -> 0 | G76: =IF(D_Gru_beregn=TRUE,IF(ISNUMBER(D_Gru_trin1a_J0_2),(D_Gru_trin1a_J0_2+D_Gru_B*D_Gru_stof2_Afstand_3_3*D_Gru_trin1a_VD*D_Gru_trin1a_Cg_2)/(D_Gru_trin1a_Q0+D_Gru_B*D_Gru_stof2_Afstand_3_3*D_Gru_trin1a_VD),0),D_Gru_trin1b_C1b_2*(0.25/D_Gru_stof2_Afstand_3_3)) -> 0 | H76: =IF(D_Gru_beregn=TRUE,IF(ISNUMBER(D_Gru_trin1a_J0_2),(D_Gru_trin1a_J0_2+D_Gru_B*D_Gru_stof2_Afstand_3_4*D_Gru_trin1a_VD*D_Gru_trin1a_Cg_2)/(D_Gru_trin1a_Q0+D_Gru_B*D_Gru_stof2_Afstand_3_4*D_Gru_trin1a_VD),0),D_Gru_trin1b_C1b_2*(0.25/D_Gru_stof2_Afstand_3_4)) -> 0 | I76: =IF(D_Gru_beregn=TRUE,IF(ISNUMBER(D_Gru_trin1a_J0_2),(D_Gru_trin1a_J0_2+D_Gru_B*D_Gru_stof2_Afstand_3_5*D_Gru_trin1a_VD*D_Gru_trin1a_Cg_2)/(D_Gru_trin1a_Q0+D_Gru_B*D_Gru_stof2_Afstand_3_5*D_Gru_trin1a_VD),0),D_Gru_trin1b_C1b_2*(0.25/D_Gru_stof2_Afstand_3_5)) -> 0 | J76: =IF(D_Gru_beregn=TRUE,IF(ISNUMBER(D_Gru_trin1a_J0_2),(D_Gru_trin1a_J0_2+D_Gru_B*D_Gru_stof2_Afstand_3_6*D_Gru_trin1a_VD*D_Gru_trin1a_Cg_2)/(D_Gru_trin1a_Q0+D_Gru_B*D_Gru_stof2_Afstand_3_6*D_Gru_trin1a_VD),0),D_Gru_trin1b_C1b_2*(0.25/D_Gru_stof2_Afstand_3_6)) -> 0 | K76: =IF(D_Gru_beregn=TRUE,IF(ISNUMBER(D_Gru_trin1a_J0_2),(D_Gru_trin1a_J0_2+D_Gru_B*D_Gru_stof2_Afstand_3_7*D_Gru_trin1a_VD*D_Gru_trin1a_Cg_2)/(D_Gru_trin1a_Q0+D_Gru_B*D_Gru_stof2_Afstand_3_7*D_Gru_trin1a_VD),0),D_Gru_trin1b_C1b_2*(0.25/D_Gru_stof2_Afstand_3_7)) -> 0 | L76: =IF(D_Gru_beregn=TRUE,IF(ISNUMBER(D_Gru_trin1a_J0_2),(D_Gru_trin1a_J0_2+D_Gru_B*D_Gru_stof2_Afstand_3_8*D_Gru_trin1a_VD*D_Gru_trin1a_Cg_2)/(D_Gru_trin1a_Q0+D_Gru_B*D_Gru_stof2_Afstand_3_8*D_Gru_trin1a_VD),0),D_Gru_trin1b_C1b_2*(0.25/D_Gru_stof2_Afstand_3_8)) -> 0 | M76: =IF(D_Gru_beregn=TRUE,IF(ISNUMBER(D_Gru_trin1a_J0_2),(D_Gru_trin1a_J0_2+D_Gru_B*D_Gru_stof2_Afstand_3_9*D_Gru_trin1a_VD*D_Gru_trin1a_Cg_2)/(D_Gru_trin1a_Q0+D_Gru_B*D_Gru_stof2_Afstand_3_9*D_Gru_trin1a_VD),0),D_Gru_trin1b_C1b_2*(0.25/D_Gru_stof2_Afstand_3_9)) -> 0 | N76: B_Gru_stof2_AfstanB_4_n
B77: Konc. med nedbrydning, C3 | E77: =D_Gru_stof2_Afstand_4_1*EXP(-D_Gru_trin3_k1_2*D_Gru_stof2_Afstand_2_1*365.25) ->  | F77: =D_Gru_stof2_Afstand_4_2*EXP(-D_Gru_trin3_k1_2*D_Gru_stof2_Afstand_2_2*365.25) ->  | G77: =D_Gru_stof2_Afstand_4_3*EXP(-D_Gru_trin3_k1_2*D_Gru_stof2_Afstand_2_3*365.25) ->  | H77: =D_Gru_stof2_Afstand_4_4*EXP(-D_Gru_trin3_k1_2*D_Gru_stof2_Afstand_2_4*365.25) ->  | I77: =D_Gru_stof2_Afstand_4_5*EXP(-D_Gru_trin3_k1_2*D_Gru_stof2_Afstand_2_5*365.25) ->  | J77: =D_Gru_stof2_Afstand_4_6*EXP(-D_Gru_trin3_k1_2*D_Gru_stof2_Afstand_2_6*365.25) ->  | K77: =D_Gru_stof2_Afstand_4_7*EXP(-D_Gru_trin3_k1_2*D_Gru_stof2_Afstand_2_7*365.25) ->  | L77: =D_Gru_stof2_Afstand_4_8*EXP(-D_Gru_trin3_k1_2*D_Gru_stof2_Afstand_2_8*365.25) ->  | M77: =D_Gru_stof2_Afstand_4_9*EXP(-D_Gru_trin3_k1_2*D_Gru_stof2_Afstand_2_9*365.25) ->  | N77: B_Gru_stof2_AfstanB_5_n
B78: Transporttid (sorpt.) | E78: =D_Gru_stof2_Afstand_1_1/D_Gru_trin3_VS_2 ->  | F78: =D_Gru_stof2_Afstand_1_2/D_Gru_trin3_VS_2 ->  | G78: =D_Gru_stof2_Afstand_1_3/D_Gru_trin3_VS_2 ->  | H78: =D_Gru_stof2_Afstand_1_4/D_Gru_trin3_VS_2 ->  | I78: =D_Gru_stof2_Afstand_1_5/D_Gru_trin3_VS_2 ->  | J78: =D_Gru_stof2_Afstand_1_6/D_Gru_trin3_VS_2 ->  | K78: =D_Gru_stof2_Afstand_1_7/D_Gru_trin3_VS_2 ->  | L78: =D_Gru_stof2_Afstand_1_8/D_Gru_trin3_VS_2 ->  | M78: =D_Gru_stof2_Afstand_1_9/D_Gru_trin3_VS_2 ->  | N78: B_Gru_stof2_AfstanB_6_n
B79: Konc. m. sorpt. og nedbr., C3 | E79: =D_Gru_stof2_Afstand_4_1*EXP(-D_Gru_trin3_k1_2*D_Gru_stof2_Afstand_6_1*365.25) ->  | F79: =D_Gru_stof2_Afstand_4_2*EXP(-D_Gru_trin3_k1_2*D_Gru_stof2_Afstand_6_2*365.25) ->  | G79: =D_Gru_stof2_Afstand_4_3*EXP(-D_Gru_trin3_k1_2*D_Gru_stof2_Afstand_6_3*365.25) ->  | H79: =D_Gru_stof2_Afstand_4_4*EXP(-D_Gru_trin3_k1_2*D_Gru_stof2_Afstand_6_4*365.25) ->  | I79: =D_Gru_stof2_Afstand_4_5*EXP(-D_Gru_trin3_k1_2*D_Gru_stof2_Afstand_6_5*365.25) ->  | J79: =D_Gru_stof2_Afstand_4_6*EXP(-D_Gru_trin3_k1_2*D_Gru_stof2_Afstand_6_6*365.25) ->  | K79: =D_Gru_stof2_Afstand_4_7*EXP(-D_Gru_trin3_k1_2*D_Gru_stof2_Afstand_6_7*365.25) ->  | L79: =D_Gru_stof2_Afstand_4_8*EXP(-D_Gru_trin3_k1_2*D_Gru_stof2_Afstand_6_8*365.25) ->  | M79: =D_Gru_stof2_Afstand_4_9*EXP(-D_Gru_trin3_k1_2*D_Gru_stof2_Afstand_6_9*365.25) ->  | N79: B_Gru_stof2_AfstanB_7_n
B87: Stof 3 | C87: =D_Gru_stofnavn_3 ->  | E87: =Gru_Afstand_bruger_3 -> 0 | F87: 0 | G87: 10 | H87: 20 | I87: 30 | J87: 40 | K87: 50 | L87: 75 | M87: 100
B88: Transporttid | E88: =D_Gru_stof3_Afstand_1_1/D_Gru_trin2a_VP ->  | F88: =D_Gru_stof3_Afstand_1_2/D_Gru_trin2a_VP ->  | G88: =D_Gru_stof3_Afstand_1_3/D_Gru_trin2a_VP ->  | H88: =D_Gru_stof3_Afstand_1_4/D_Gru_trin2a_VP ->  | I88: =D_Gru_stof3_Afstand_1_5/D_Gru_trin2a_VP ->  | J88: =D_Gru_stof3_Afstand_1_6/D_Gru_trin2a_VP ->  | K88: =D_Gru_stof3_Afstand_1_7/D_Gru_trin2a_VP ->  | L88: =D_Gru_stof3_Afstand_1_8/D_Gru_trin2a_VP ->  | M88: =D_Gru_stof3_Afstand_1_9/D_Gru_trin2a_VP ->  | N88: B_Gru_stof3_AfstanB_2_n
B89: Langsgående dispersivitet | E89: =IF((0.0000042*POWER(D_Gru_stof3_Afstand_1_1,2)+0.0036*D_Gru_stof3_Afstand_1_1-0.008)<0,1E-36,(0.0000042*POWER(D_Gru_stof3_Afstand_1_1,2)+0.0036*D_Gru_stof3_Afstand_1_1-0.008)) -> 1e-36 | F89: =IF((0.0000042*POWER(D_Gru_stof3_Afstand_1_2,2)+0.0036*D_Gru_stof3_Afstand_1_2-0.008)<0,1E-36,(0.0000042*POWER(D_Gru_stof3_Afstand_1_2,2)+0.0036*D_Gru_stof3_Afstand_1_2-0.008)) -> 1e-36 | G89: =IF((0.0000042*POWER(D_Gru_stof3_Afstand_1_3,2)+0.0036*D_Gru_stof3_Afstand_1_3-0.008)<0,1E-36,(0.0000042*POWER(D_Gru_stof3_Afstand_1_3,2)+0.0036*D_Gru_stof3_Afstand_1_3-0.008)) -> 0.02842 | H89: =IF((0.0000042*POWER(D_Gru_stof3_Afstand_1_4,2)+0.0036*D_Gru_stof3_Afstand_1_4-0.008)<0,1E-36,(0.0000042*POWER(D_Gru_stof3_Afstand_1_4,2)+0.0036*D_Gru_stof3_Afstand_1_4-0.008)) -> 0.06568 | I89: =IF((0.0000042*POWER(D_Gru_stof3_Afstand_1_5,2)+0.0036*D_Gru_stof3_Afstand_1_5-0.008)<0,1E-36,(0.0000042*POWER(D_Gru_stof3_Afstand_1_5,2)+0.0036*D_Gru_stof3_Afstand_1_5-0.008)) -> 0.10378 | J89: =IF((0.0000042*POWER(D_Gru_stof3_Afstand_1_6,2)+0.0036*D_Gru_stof3_Afstand_1_6-0.008)<0,1E-36,(0.0000042*POWER(D_Gru_stof3_Afstand_1_6,2)+0.0036*D_Gru_stof3_Afstand_1_6-0.008)) -> 0.14272 | K89: =IF((0.0000042*POWER(D_Gru_stof3_Afstand_1_7,2)+0.0036*D_Gru_stof3_Afstand_1_7-0.008)<0,1E-36,(0.0000042*POWER(D_Gru_stof3_Afstand_1_7,2)+0.0036*D_Gru_stof3_Afstand_1_7-0.008)) -> 0.1825 | L89: =IF((0.0000042*POWER(D_Gru_stof3_Afstand_1_8,2)+0.0036*D_Gru_stof3_Afstand_1_8-0.008)<0,1E-36,(0.0000042*POWER(D_Gru_stof3_Afstand_1_8,2)+0.0036*D_Gru_stof3_Afstand_1_8-0.008)) -> 0.285625 | M89: =IF((0.0000042*POWER(D_Gru_stof3_Afstand_1_9,2)+0.0036*D_Gru_stof3_Afstand_1_9-0.008)<0,1E-36,(0.0000042*POWER(D_Gru_stof3_Afstand_1_9,2)+0.0036*D_Gru_stof3_Afstand_1_9-0.008)) -> 0.394
B90: Opblandingsdybde,m | E90: =MAX(D_Gru_dm_1a,MIN(IF(D_Gru_trin2a_dm_max>0,D_Gru_trin2a_dm_max,1E+36),SQRT((72/900)*E89*D_Gru_trin2a_VP*D_Gru_stof3_Afstand_2_1))) ->  | F90: =MAX(D_Gru_dm_1a,MIN(IF(D_Gru_trin2a_dm_max>0,D_Gru_trin2a_dm_max,1E+36),SQRT((72/900)*F89*D_Gru_trin2a_VP*D_Gru_stof3_Afstand_2_2))) ->  | G90: =MAX(D_Gru_dm_1a,MIN(IF(D_Gru_trin2a_dm_max>0,D_Gru_trin2a_dm_max,1E+36),SQRT((72/900)*G89*D_Gru_trin2a_VP*D_Gru_stof3_Afstand_2_3))) ->  | H90: =MAX(D_Gru_dm_1a,MIN(IF(D_Gru_trin2a_dm_max>0,D_Gru_trin2a_dm_max,1E+36),SQRT((72/900)*H89*D_Gru_trin2a_VP*D_Gru_stof3_Afstand_2_4))) ->  | I90: =MAX(D_Gru_dm_1a,MIN(IF(D_Gru_trin2a_dm_max>0,D_Gru_trin2a_dm_max,1E+36),SQRT((72/900)*I89*D_Gru_trin2a_VP*D_Gru_stof3_Afstand_2_5))) ->  | J90: =MAX(D_Gru_dm_1a,MIN(IF(D_Gru_trin2a_dm_max>0,D_Gru_trin2a_dm_max,1E+36),SQRT((72/900)*J89*D_Gru_trin2a_VP*D_Gru_stof3_Afstand_2_6))) ->  | K90: =MAX(D_Gru_dm_1a,MIN(IF(D_Gru_trin2a_dm_max>0,D_Gru_trin2a_dm_max,1E+36),SQRT((72/900)*K89*D_Gru_trin2a_VP*D_Gru_stof3_Afstand_2_7))) ->  | L90: =MAX(D_Gru_dm_1a,MIN(IF(D_Gru_trin2a_dm_max>0,D_Gru_trin2a_dm_max,1E+36),SQRT((72/900)*L89*D_Gru_trin2a_VP*D_Gru_stof3_Afstand_2_8))) ->  | M90: =MAX(D_Gru_dm_1a,MIN(IF(D_Gru_trin2a_dm_max>0,D_Gru_trin2a_dm_max,1E+36),SQRT((72/900)*M89*D_Gru_trin2a_VP*D_Gru_stof3_Afstand_2_9))) ->  | N90: B_Gru_stof3_AfstanB_3_n
B91: Forureningskoncentration, C2 | E91: =IF(D_Gru_beregn=TRUE,IF(ISNUMBER(D_Gru_trin1a_J0_3),(D_Gru_trin1a_J0_3+D_Gru_B*D_Gru_stof3_Afstand_3_1*D_Gru_trin1a_VD*D_Gru_trin1a_Cg_3)/(D_Gru_trin1a_Q0+D_Gru_B*D_Gru_stof3_Afstand_3_1*D_Gru_trin1a_VD),0),D_Gru_trin1b_C1b_3*(0.25/D_Gru_stof3_Afstand_3_1)) -> 0 | F91: =IF(D_Gru_beregn=TRUE,IF(ISNUMBER(D_Gru_trin1a_J0_3),(D_Gru_trin1a_J0_3+D_Gru_B*D_Gru_stof3_Afstand_3_2*D_Gru_trin1a_VD*D_Gru_trin1a_Cg_3)/(D_Gru_trin1a_Q0+D_Gru_B*D_Gru_stof3_Afstand_3_2*D_Gru_trin1a_VD),0),D_Gru_trin1b_C1b_3*(0.25/D_Gru_stof3_Afstand_3_2)) -> 0 | G91: =IF(D_Gru_beregn=TRUE,IF(ISNUMBER(D_Gru_trin1a_J0_3),(D_Gru_trin1a_J0_3+D_Gru_B*D_Gru_stof3_Afstand_3_3*D_Gru_trin1a_VD*D_Gru_trin1a_Cg_3)/(D_Gru_trin1a_Q0+D_Gru_B*D_Gru_stof3_Afstand_3_3*D_Gru_trin1a_VD),0),D_Gru_trin1b_C1b_3*(0.25/D_Gru_stof3_Afstand_3_3)) -> 0 | H91: =IF(D_Gru_beregn=TRUE,IF(ISNUMBER(D_Gru_trin1a_J0_3),(D_Gru_trin1a_J0_3+D_Gru_B*D_Gru_stof3_Afstand_3_4*D_Gru_trin1a_VD*D_Gru_trin1a_Cg_3)/(D_Gru_trin1a_Q0+D_Gru_B*D_Gru_stof3_Afstand_3_4*D_Gru_trin1a_VD),0),D_Gru_trin1b_C1b_3*(0.25/D_Gru_stof3_Afstand_3_4)) -> 0 | I91: =IF(D_Gru_beregn=TRUE,IF(ISNUMBER(D_Gru_trin1a_J0_3),(D_Gru_trin1a_J0_3+D_Gru_B*D_Gru_stof3_Afstand_3_5*D_Gru_trin1a_VD*D_Gru_trin1a_Cg_3)/(D_Gru_trin1a_Q0+D_Gru_B*D_Gru_stof3_Afstand_3_5*D_Gru_trin1a_VD),0),D_Gru_trin1b_C1b_3*(0.25/D_Gru_stof3_Afstand_3_5)) -> 0 | J91: =IF(D_Gru_beregn=TRUE,IF(ISNUMBER(D_Gru_trin1a_J0_3),(D_Gru_trin1a_J0_3+D_Gru_B*D_Gru_stof3_Afstand_3_6*D_Gru_trin1a_VD*D_Gru_trin1a_Cg_3)/(D_Gru_trin1a_Q0+D_Gru_B*D_Gru_stof3_Afstand_3_6*D_Gru_trin1a_VD),0),D_Gru_trin1b_C1b_3*(0.25/D_Gru_stof3_Afstand_3_6)) -> 0 | K91: =IF(D_Gru_beregn=TRUE,IF(ISNUMBER(D_Gru_trin1a_J0_3),(D_Gru_trin1a_J0_3+D_Gru_B*D_Gru_stof3_Afstand_3_7*D_Gru_trin1a_VD*D_Gru_trin1a_Cg_3)/(D_Gru_trin1a_Q0+D_Gru_B*D_Gru_stof3_Afstand_3_7*D_Gru_trin1a_VD),0),D_Gru_trin1b_C1b_3*(0.25/D_Gru_stof3_Afstand_3_7)) -> 0 | L91: =IF(D_Gru_beregn=TRUE,IF(ISNUMBER(D_Gru_trin1a_J0_3),(D_Gru_trin1a_J0_3+D_Gru_B*D_Gru_stof3_Afstand_3_8*D_Gru_trin1a_VD*D_Gru_trin1a_Cg_3)/(D_Gru_trin1a_Q0+D_Gru_B*D_Gru_stof3_Afstand_3_8*D_Gru_trin1a_VD),0),D_Gru_trin1b_C1b_3*(0.25/D_Gru_stof3_Afstand_3_8)) -> 0 | M91: =IF(D_Gru_beregn=TRUE,IF(ISNUMBER(D_Gru_trin1a_J0_3),(D_Gru_trin1a_J0_3+D_Gru_B*D_Gru_stof3_Afstand_3_9*D_Gru_trin1a_VD*D_Gru_trin1a_Cg_3)/(D_Gru_trin1a_Q0+D_Gru_B*D_Gru_stof3_Afstand_3_9*D_Gru_trin1a_VD),0),D_Gru_trin1b_C1b_3*(0.25/D_Gru_stof3_Afstand_3_9)) -> 0 | N91: B_Gru_stof3_AfstanB_4_n
B92: Konc. med nedbrydning, C3 | E92: =D_Gru_stof3_Afstand_4_1*EXP(-D_Gru_trin3_k1_3*D_Gru_stof3_Afstand_2_1*365.25) ->  | F92: =D_Gru_stof3_Afstand_4_2*EXP(-D_Gru_trin3_k1_3*D_Gru_stof3_Afstand_2_2*365.25) ->  | G92: =D_Gru_stof3_Afstand_4_3*EXP(-D_Gru_trin3_k1_3*D_Gru_stof3_Afstand_2_3*365.25) ->  | H92: =D_Gru_stof3_Afstand_4_4*EXP(-D_Gru_trin3_k1_3*D_Gru_stof3_Afstand_2_4*365.25) ->  | I92: =D_Gru_stof3_Afstand_4_5*EXP(-D_Gru_trin3_k1_3*D_Gru_stof3_Afstand_2_5*365.25) ->  | J92: =D_Gru_stof3_Afstand_4_6*EXP(-D_Gru_trin3_k1_3*D_Gru_stof3_Afstand_2_6*365.25) ->  | K92: =D_Gru_stof3_Afstand_4_7*EXP(-D_Gru_trin3_k1_3*D_Gru_stof3_Afstand_2_7*365.25) ->  | L92: =D_Gru_stof3_Afstand_4_8*EXP(-D_Gru_trin3_k1_3*D_Gru_stof3_Afstand_2_8*365.25) ->  | M92: =D_Gru_stof3_Afstand_4_9*EXP(-D_Gru_trin3_k1_3*D_Gru_stof3_Afstand_2_9*365.25) ->  | N92: B_Gru_stof3_AfstanB_5_n
B93: Transporttid (sorpt.) | E93: =D_Gru_stof3_Afstand_1_1/D_Gru_trin3_VS_3 ->  | F93: =D_Gru_stof3_Afstand_1_2/D_Gru_trin3_VS_3 ->  | G93: =D_Gru_stof3_Afstand_1_3/D_Gru_trin3_VS_3 ->  | H93: =D_Gru_stof3_Afstand_1_4/D_Gru_trin3_VS_3 ->  | I93: =D_Gru_stof3_Afstand_1_5/D_Gru_trin3_VS_3 ->  | J93: =D_Gru_stof3_Afstand_1_6/D_Gru_trin3_VS_3 ->  | K93: =D_Gru_stof3_Afstand_1_7/D_Gru_trin3_VS_3 ->  | L93: =D_Gru_stof3_Afstand_1_8/D_Gru_trin3_VS_3 ->  | M93: =D_Gru_stof3_Afstand_1_9/D_Gru_trin3_VS_3 ->  | N93: B_Gru_stof3_AfstanB_6_n
B94: Konc. m. sorpt. og nedbr., C3 | E94: =D_Gru_stof3_Afstand_4_1*EXP(-D_Gru_trin3_k1_3*D_Gru_stof3_Afstand_6_1*365.25) ->  | F94: =D_Gru_stof3_Afstand_4_2*EXP(-D_Gru_trin3_k1_3*D_Gru_stof3_Afstand_6_2*365.25) ->  | G94: =D_Gru_stof3_Afstand_4_3*EXP(-D_Gru_trin3_k1_3*D_Gru_stof3_Afstand_6_3*365.25) ->  | H94: =D_Gru_stof3_Afstand_4_4*EXP(-D_Gru_trin3_k1_3*D_Gru_stof3_Afstand_6_4*365.25) ->  | I94: =D_Gru_stof3_Afstand_4_5*EXP(-D_Gru_trin3_k1_3*D_Gru_stof3_Afstand_6_5*365.25) ->  | J94: =D_Gru_stof3_Afstand_4_6*EXP(-D_Gru_trin3_k1_3*D_Gru_stof3_Afstand_6_6*365.25) ->  | K94: =D_Gru_stof3_Afstand_4_7*EXP(-D_Gru_trin3_k1_3*D_Gru_stof3_Afstand_6_7*365.25) ->  | L94: =D_Gru_stof3_Afstand_4_8*EXP(-D_Gru_trin3_k1_3*D_Gru_stof3_Afstand_6_8*365.25) ->  | M94: =D_Gru_stof3_Afstand_4_9*EXP(-D_Gru_trin3_k1_3*D_Gru_stof3_Afstand_6_9*365.25) ->  | N94: B_Gru_stof3_AfstanB_7_n
B101: Stof 4 | C101: =D_Gru_stofnavn_4 ->  | E101: =Gru_afstand_bruger_4 -> 0 | F101: 0 | G101: 10 | H101: 20 | I101: 30 | J101: 40 | K101: 50 | L101: 75 | M101: 100
B102: Transporttid | E102: =D_Gru_stof4_Afstand_1_1/D_Gru_trin2a_VP ->  | F102: =D_Gru_stof4_Afstand_1_2/D_Gru_trin2a_VP ->  | G102: =D_Gru_stof4_Afstand_1_3/D_Gru_trin2a_VP ->  | H102: =D_Gru_stof4_Afstand_1_4/D_Gru_trin2a_VP ->  | I102: =D_Gru_stof4_Afstand_1_5/D_Gru_trin2a_VP ->  | J102: =D_Gru_stof4_Afstand_1_6/D_Gru_trin2a_VP ->  | K102: =D_Gru_stof4_Afstand_1_7/D_Gru_trin2a_VP ->  | L102: =D_Gru_stof4_Afstand_1_8/D_Gru_trin2a_VP ->  | M102: =D_Gru_stof4_Afstand_1_9/D_Gru_trin2a_VP ->  | N102: B_Gru_stof4_AfstanB_2_n
B103: Langsgående dispersivitet | E103: =IF((0.0000042*POWER(D_Gru_stof4_Afstand_1_1,2)+0.0036*D_Gru_stof4_Afstand_1_1-0.008)<0,1E-36,(0.0000042*POWER(D_Gru_stof4_Afstand_1_1,2)+0.0036*D_Gru_stof4_Afstand_1_1-0.008)) -> 1e-36 | F103: =IF((0.0000042*POWER(D_Gru_stof4_Afstand_1_2,2)+0.0036*D_Gru_stof4_Afstand_1_2-0.008)<0,1E-36,(0.0000042*POWER(D_Gru_stof4_Afstand_1_2,2)+0.0036*D_Gru_stof4_Afstand_1_2-0.008)) -> 1e-36 | G103: =IF((0.0000042*POWER(D_Gru_stof4_Afstand_1_3,2)+0.0036*D_Gru_stof4_Afstand_1_3-0.008)<0,1E-36,(0.0000042*POWER(D_Gru_stof4_Afstand_1_3,2)+0.0036*D_Gru_stof4_Afstand_1_3-0.008)) -> 0.02842 | H103: =IF((0.0000042*POWER(D_Gru_stof4_Afstand_1_4,2)+0.0036*D_Gru_stof4_Afstand_1_4-0.008)<0,1E-36,(0.0000042*POWER(D_Gru_stof4_Afstand_1_4,2)+0.0036*D_Gru_stof4_Afstand_1_4-0.008)) -> 0.06568 | I103: =IF((0.0000042*POWER(D_Gru_stof4_Afstand_1_5,2)+0.0036*D_Gru_stof4_Afstand_1_5-0.008)<0,1E-36,(0.0000042*POWER(D_Gru_stof4_Afstand_1_5,2)+0.0036*D_Gru_stof4_Afstand_1_5-0.008)) -> 0.10378 | J103: =IF((0.0000042*POWER(D_Gru_stof4_Afstand_1_6,2)+0.0036*D_Gru_stof4_Afstand_1_6-0.008)<0,1E-36,(0.0000042*POWER(D_Gru_stof4_Afstand_1_6,2)+0.0036*D_Gru_stof4_Afstand_1_6-0.008)) -> 0.14272 | K103: =IF((0.0000042*POWER(D_Gru_stof4_Afstand_1_7,2)+0.0036*D_Gru_stof4_Afstand_1_7-0.008)<0,1E-36,(0.0000042*POWER(D_Gru_stof4_Afstand_1_7,2)+0.0036*D_Gru_stof4_Afstand_1_7-0.008)) -> 0.1825 | L103: =IF((0.0000042*POWER(D_Gru_stof4_Afstand_1_8,2)+0.0036*D_Gru_stof4_Afstand_1_8-0.008)<0,1E-36,(0.0000042*POWER(D_Gru_stof4_Afstand_1_8,2)+0.0036*D_Gru_stof4_Afstand_1_8-0.008)) -> 0.285625 | M103: =IF((0.0000042*POWER(D_Gru_stof4_Afstand_1_9,2)+0.0036*D_Gru_stof4_Afstand_1_9-0.008)<0,1E-36,(0.0000042*POWER(D_Gru_stof4_Afstand_1_9,2)+0.0036*D_Gru_stof4_Afstand_1_9-0.008)) -> 0.394
B104: Opblandingsdybde,m | E104: =MAX(D_Gru_dm_1a,MIN(IF(D_Gru_trin2a_dm_max>0,D_Gru_trin2a_dm_max,1E+36),SQRT((72/900)*E103*D_Gru_trin2a_VP*D_Gru_stof4_Afstand_2_1))) ->  | F104: =MAX(D_Gru_dm_1a,MIN(IF(D_Gru_trin2a_dm_max>0,D_Gru_trin2a_dm_max,1E+36),SQRT((72/900)*F103*D_Gru_trin2a_VP*D_Gru_stof4_Afstand_2_2))) ->  | G104: =MAX(D_Gru_dm_1a,MIN(IF(D_Gru_trin2a_dm_max>0,D_Gru_trin2a_dm_max,1E+36),SQRT((72/900)*G103*D_Gru_trin2a_VP*D_Gru_stof4_Afstand_2_3))) ->  | H104: =MAX(D_Gru_dm_1a,MIN(IF(D_Gru_trin2a_dm_max>0,D_Gru_trin2a_dm_max,1E+36),SQRT((72/900)*H103*D_Gru_trin2a_VP*D_Gru_stof4_Afstand_2_4))) ->  | I104: =MAX(D_Gru_dm_1a,MIN(IF(D_Gru_trin2a_dm_max>0,D_Gru_trin2a_dm_max,1E+36),SQRT((72/900)*I103*D_Gru_trin2a_VP*D_Gru_stof4_Afstand_2_5))) ->  | J104: =MAX(D_Gru_dm_1a,MIN(IF(D_Gru_trin2a_dm_max>0,D_Gru_trin2a_dm_max,1E+36),SQRT((72/900)*J103*D_Gru_trin2a_VP*D_Gru_stof4_Afstand_2_6))) ->  | K104: =MAX(D_Gru_dm_1a,MIN(IF(D_Gru_trin2a_dm_max>0,D_Gru_trin2a_dm_max,1E+36),SQRT((72/900)*K103*D_Gru_trin2a_VP*D_Gru_stof4_Afstand_2_7))) ->  | L104: =MAX(D_Gru_dm_1a,MIN(IF(D_Gru_trin2a_dm_max>0,D_Gru_trin2a_dm_max,1E+36),SQRT((72/900)*L103*D_Gru_trin2a_VP*D_Gru_stof4_Afstand_2_8))) ->  | M104: =MAX(D_Gru_dm_1a,MIN(IF(D_Gru_trin2a_dm_max>0,D_Gru_trin2a_dm_max,1E+36),SQRT((72/900)*M103*D_Gru_trin2a_VP*D_Gru_stof4_Afstand_2_9))) ->  | N104: B_Gru_stof4_AfstanB_3_n
B105: Forureningskoncentration, C2 | E105: =IF(D_Gru_beregn=TRUE,IF(ISNUMBER(D_Gru_trin1a_J0_4),(D_Gru_trin1a_J0_4+D_Gru_B*D_Gru_stof4_Afstand_3_1*D_Gru_trin1a_VD*D_Gru_trin1a_Cg_4)/(D_Gru_trin1a_Q0+D_Gru_B*D_Gru_stof4_Afstand_3_1*D_Gru_trin1a_VD),0),D_Gru_trin1b_C1b_4*(0.25/D_Gru_stof4_Afstand_3_1)) -> 0 | F105: =IF(D_Gru_beregn=TRUE,IF(ISNUMBER(D_Gru_trin1a_J0_4),(D_Gru_trin1a_J0_4+D_Gru_B*D_Gru_stof4_Afstand_3_2*D_Gru_trin1a_VD*D_Gru_trin1a_Cg_4)/(D_Gru_trin1a_Q0+D_Gru_B*D_Gru_stof4_Afstand_3_2*D_Gru_trin1a_VD),0),D_Gru_trin1b_C1b_4*(0.25/D_Gru_stof4_Afstand_3_2)) -> 0 | G105: =IF(D_Gru_beregn=TRUE,IF(ISNUMBER(D_Gru_trin1a_J0_4),(D_Gru_trin1a_J0_4+D_Gru_B*D_Gru_stof4_Afstand_3_3*D_Gru_trin1a_VD*D_Gru_trin1a_Cg_4)/(D_Gru_trin1a_Q0+D_Gru_B*D_Gru_stof4_Afstand_3_3*D_Gru_trin1a_VD),0),D_Gru_trin1b_C1b_4*(0.25/D_Gru_stof4_Afstand_3_3)) -> 0 | H105: =IF(D_Gru_beregn=TRUE,IF(ISNUMBER(D_Gru_trin1a_J0_4),(D_Gru_trin1a_J0_4+D_Gru_B*D_Gru_stof4_Afstand_3_4*D_Gru_trin1a_VD*D_Gru_trin1a_Cg_4)/(D_Gru_trin1a_Q0+D_Gru_B*D_Gru_stof4_Afstand_3_4*D_Gru_trin1a_VD),0),D_Gru_trin1b_C1b_4*(0.25/D_Gru_stof4_Afstand_3_4)) -> 0 | I105: =IF(D_Gru_beregn=TRUE,IF(ISNUMBER(D_Gru_trin1a_J0_4),(D_Gru_trin1a_J0_4+D_Gru_B*D_Gru_stof4_Afstand_3_5*D_Gru_trin1a_VD*D_Gru_trin1a_Cg_4)/(D_Gru_trin1a_Q0+D_Gru_B*D_Gru_stof4_Afstand_3_5*D_Gru_trin1a_VD),0),D_Gru_trin1b_C1b_4*(0.25/D_Gru_stof4_Afstand_3_5)) -> 0 | J105: =IF(D_Gru_beregn=TRUE,IF(ISNUMBER(D_Gru_trin1a_J0_4),(D_Gru_trin1a_J0_4+D_Gru_B*D_Gru_stof4_Afstand_3_6*D_Gru_trin1a_VD*D_Gru_trin1a_Cg_4)/(D_Gru_trin1a_Q0+D_Gru_B*D_Gru_stof4_Afstand_3_6*D_Gru_trin1a_VD),0),D_Gru_trin1b_C1b_4*(0.25/D_Gru_stof4_Afstand_3_6)) -> 0 | K105: =IF(D_Gru_beregn=TRUE,IF(ISNUMBER(D_Gru_trin1a_J0_4),(D_Gru_trin1a_J0_4+D_Gru_B*D_Gru_stof4_Afstand_3_7*D_Gru_trin1a_VD*D_Gru_trin1a_Cg_4)/(D_Gru_trin1a_Q0+D_Gru_B*D_Gru_stof4_Afstand_3_7*D_Gru_trin1a_VD),0),D_Gru_trin1b_C1b_4*(0.25/D_Gru_stof4_Afstand_3_7)) -> 0 | L105: =IF(D_Gru_beregn=TRUE,IF(ISNUMBER(D_Gru_trin1a_J0_4),(D_Gru_trin1a_J0_4+D_Gru_B*D_Gru_stof4_Afstand_3_8*D_Gru_trin1a_VD*D_Gru_trin1a_Cg_4)/(D_Gru_trin1a_Q0+D_Gru_B*D_Gru_stof4_Afstand_3_8*D_Gru_trin1a_VD),0),D_Gru_trin1b_C1b_4*(0.25/D_Gru_stof4_Afstand_3_8)) -> 0 | M105: =IF(D_Gru_beregn=TRUE,IF(ISNUMBER(D_Gru_trin1a_J0_4),(D_Gru_trin1a_J0_4+D_Gru_B*D_Gru_stof4_Afstand_3_9*D_Gru_trin1a_VD*D_Gru_trin1a_Cg_4)/(D_Gru_trin1a_Q0+D_Gru_B*D_Gru_stof4_Afstand_3_9*D_Gru_trin1a_VD),0),D_Gru_trin1b_C1b_4*(0.25/D_Gru_stof4_Afstand_3_9)) -> 0 | N105: B_Gru_stof4_AfstanB_4_n
B106: Konc. med nedbrydning, C3 | E106: =D_Gru_stof4_Afstand_4_1*EXP(-D_Gru_trin3_k1_4*D_Gru_stof4_Afstand_2_1*365.25) ->  | F106: =D_Gru_stof4_Afstand_4_2*EXP(-D_Gru_trin3_k1_4*D_Gru_stof4_Afstand_2_2*365.25) ->  | G106: =D_Gru_stof4_Afstand_4_3*EXP(-D_Gru_trin3_k1_4*D_Gru_stof4_Afstand_2_3*365.25) ->  | H106: =D_Gru_stof4_Afstand_4_4*EXP(-D_Gru_trin3_k1_4*D_Gru_stof4_Afstand_2_4*365.25) ->  | I106: =D_Gru_stof4_Afstand_4_5*EXP(-D_Gru_trin3_k1_4*D_Gru_stof4_Afstand_2_5*365.25) ->  | J106: =D_Gru_stof4_Afstand_4_6*EXP(-D_Gru_trin3_k1_4*D_Gru_stof4_Afstand_2_6*365.25) ->  | K106: =D_Gru_stof4_Afstand_4_7*EXP(-D_Gru_trin3_k1_4*D_Gru_stof4_Afstand_2_7*365.25) ->  | L106: =D_Gru_stof4_Afstand_4_8*EXP(-D_Gru_trin3_k1_4*D_Gru_stof4_Afstand_2_8*365.25) ->  | M106: =D_Gru_stof4_Afstand_4_9*EXP(-D_Gru_trin3_k1_4*D_Gru_stof4_Afstand_2_9*365.25) ->  | N106: B_Gru_stof4_AfstanB_5_n
B107: Transporttid (sorpt.) | E107: =D_Gru_stof4_Afstand_1_1/D_Gru_trin3_VS_4 ->  | F107: =D_Gru_stof4_Afstand_1_2/D_Gru_trin3_VS_4 ->  | G107: =D_Gru_stof4_Afstand_1_3/D_Gru_trin3_VS_4 ->  | H107: =D_Gru_stof4_Afstand_1_4/D_Gru_trin3_VS_4 ->  | I107: =D_Gru_stof4_Afstand_1_5/D_Gru_trin3_VS_4 ->  | J107: =D_Gru_stof4_Afstand_1_6/D_Gru_trin3_VS_4 ->  | K107: =D_Gru_stof4_Afstand_1_7/D_Gru_trin3_VS_4 ->  | L107: =D_Gru_stof4_Afstand_1_8/D_Gru_trin3_VS_4 ->  | M107: =D_Gru_stof4_Afstand_1_9/D_Gru_trin3_VS_4 ->  | N107: B_Gru_stof4_AfstanB_6_n
B108: Konc. m. sorpt. og nedbr., C3 | E108: =D_Gru_stof4_Afstand_4_1*EXP(-D_Gru_trin3_k1_4*D_Gru_stof4_Afstand_6_1*365.25) ->  | F108: =D_Gru_stof4_Afstand_4_2*EXP(-D_Gru_trin3_k1_4*D_Gru_stof4_Afstand_6_2*365.25) ->  | G108: =D_Gru_stof4_Afstand_4_3*EXP(-D_Gru_trin3_k1_4*D_Gru_stof4_Afstand_6_3*365.25) ->  | H108: =D_Gru_stof4_Afstand_4_4*EXP(-D_Gru_trin3_k1_4*D_Gru_stof4_Afstand_6_4*365.25) ->  | I108: =D_Gru_stof4_Afstand_4_5*EXP(-D_Gru_trin3_k1_4*D_Gru_stof4_Afstand_6_5*365.25) ->  | J108: =D_Gru_stof4_Afstand_4_6*EXP(-D_Gru_trin3_k1_4*D_Gru_stof4_Afstand_6_6*365.25) ->  | K108: =D_Gru_stof4_Afstand_4_7*EXP(-D_Gru_trin3_k1_4*D_Gru_stof4_Afstand_6_7*365.25) ->  | L108: =D_Gru_stof4_Afstand_4_8*EXP(-D_Gru_trin3_k1_4*D_Gru_stof4_Afstand_6_8*365.25) ->  | M108: =D_Gru_stof4_Afstand_4_9*EXP(-D_Gru_trin3_k1_4*D_Gru_stof4_Afstand_6_9*365.25) ->  | N108: B_Gru_stof4_AfstanB_7_n
B110: Bemærkninger
B111: Det forurenede område:
C112: D_Gru_DFO_Com
B113: Magasin:
C114: D_Gru_Mag_Com
B115: Forurening:
C116: D_Gru_For_Com
B117: Beregning:
C118: D_Gru_Ber_Com

Sheet Udskrift_Grundvand (hidden)
A1: Grundvand
A2: Lokaliteten
A3: Navn: | B3: =Lok_navn ->  | H3: Lokalitetsnr.: | I3: =Lok_Loknr -> 
A4: Adresse: | B4: =Lok_adr ->  | H4: Postnr/by: | I4: =Lok_postnr -> 
A5: Matrikel nr.: | B5: =Lok_matr ->  | H5: Projekt nr.: | I5: =Lok_projekt -> 
A6: Note | B6: =Lok_note -> 
A8: Det forurenede område
A9: Kommentar | B9: =IF( D_Gru_DFO_ComUds,"ja","nej") -> nej
A10: Beregningstypen | C10: =IF( D_Gru_beregn,"A: Beregnet koncentration","B: Målt koncentration") -> A: Beregnet koncentration
A12: Areal af det forurenede område | B12: A | C12: =IF(D_Gru_målt,"",(IF(Gru_Y<>"",D_Gru_A,""))) ->  | E12: m² | F12: Filterlængde l | H12: =IF(D_Gru_målt,(IF(Gru_FilterL<>"",Gru_FilterL,"")),"") ->  | J12: m
A13: Bredde af det forurenede område | B13: B | C13: =IF(D_Gru_målt,"",(IF(Gru_X<>"",Gru_X,""))) ->  | E13: m
C15: Standard data | E15: Indtastede data (angives med fed)
A16: Nettonedbør | B16: N | C16: =IF(D_Gru_målt,"",(IF(D_Gru_N_syst<>"",D_Gru_N_syst,""))) ->  | F16: =IF(D_Gru_målt,"",(IF(Gru_My_Nedbør<>"",Gru_My_Nedbør,""))) ->  | I16: mm/år
A17: Kommune/Egn | C17: =IF(D_Gru_målt,"",(IF(D_Gru_Kommune_syst<>"",D_Gru_Kommune_syst,""))) ->  | F17: =IF(D_Gru_målt,"",(IF(Gru_My_Kommune<>"",Gru_My_Kommune,""))) -> 
A19: Det først betydende magasin
A20: Kommentar | B20: =IF( D_Gru_Mag_ComUds,"ja","nej") -> nej | C20: Standard data | E20: Indtastede data (angives med fed)
A21: Aguifer | C21: =D_Gru_Aqui -> 
A22: Effektiv porøsitet | B22: eeff | C22: =IF(D_Gru_trin2a_eeff_syst<>"",D_Gru_trin2a_eeff_syst,"") ->  | E22: =IF(Gru_My_eff<>"",Gru_My_eff,"") -> 
A23: Porøsitet, vandmættet | B23: eW | C23: =IF(D_Gru_trin3_eW_syst<>"",D_Gru_trin3_eW_syst,"") ->  | E23: =IF(Gru_My_ew<>"",Gru_My_ew,"") -> 
A24: Bulkmassefylde | B24: (rho)b | C24: =IF(D_Gru_rhob_syst<>"",D_Gru_rhob_syst,"") ->  | E24: =IF(Gru_My_p<>"",Gru_My_p,"") ->  | G24: kg/l
A25: % organisk indhold | B25: foc | C25: =IF(D_Gru_foc_syst<>"",D_Gru_foc_syst,"") ->  | E25: =IF(Gru_My_foc<>"",Gru_My_foc,"") -> 
A26: Tykkelse af GV-magasin | B26: dm_max | E26: =IF(Gru_maxdm<>"",Gru_maxdm,"") ->  | G26: m
A27: Hydraulisk gradient | B27: i | E27: =IF(Gru_i<>"",Gru_i,"") ->  | G27: m/m
A28: Hydraulisk ledningsevne | B28: k | C28: =IF(D_Gru_trin1a_k_syst<>"",D_Gru_trin1a_k_syst,"") ->  | E28: =IF(Gru_My_k<>"",Gru_My_k,"") ->  | G28: m/s
A29: Gns. Porevandshastighed | B29: Vp | C29: =IF(D_Gru_trin2a_VP<>"",D_Gru_trin2a_VP,"") ->  | G29: m/år
A30: Beregningspunkt | B30: L | C30: =IF(D_Gru_trin1b_LL<>"",D_Gru_trin1b_LL,"") ->  | G30: m
A32: Stoffer og stofegenskaber
A33: Kommentar | B33: =IF( D_Gru_For_ComUds,"ja","nej") -> nej | C33: Stof 1 | E33: Stof 2 | G33: Stof 3 | I33: Stof 4
A34: Forureningskomponent | C34: =D_Gru_stofnavn_1 ->  | E34: =D_Gru_stofnavn_2 ->  | G34: =D_Gru_stofnavn_3 ->  | I34: =D_Gru_stofnavn_4 ->  | N34: =C34 ->  | O34: =E34 ->  | P34: =G34 ->  | Q34: =I34 -> 
A36: Målepunkt | C36: =IF(D_Enk_stofnavn_1<>"",D_Enk_MP_1,"") ->  | E36: =IF(D_Enk_stofnavn_2<>"",D_Enk_MP_2,"") ->  | G36: =IF(D_Enk_stofnavn_3<>"",D_Enk_MP_3,"") ->  | I36: =IF(D_Enk_stofnavn_4<>"",D_Enk_MP_4,"") ->  | N36: =C36 ->  | O36: =E36 ->  | P36: =G36 ->  | Q36: =I36 -> 
A37: Dato | C37: =IF(D_Enk_stofnavn_1<>"",D_Enk_dato_1,"") ->  | E37: =IF(D_Enk_stofnavn_2<>"",D_Enk_dato_2,"") ->  | G37: =IF(D_Enk_stofnavn_3<>"",D_Enk_dato_3,"") ->  | I37: =IF(D_Enk_stofnavn_4<>"",D_Enk_dato_4,"") -> 
A38: Målt GV-koncentration | C38: =IF(D_Enk_stofnavn_1<>"",IF(Enk_My_CV_1>0,Enk_My_CV_1,""),"") ->  | E38: =IF(D_Enk_stofnavn_2<>"",IF(Enk_My_CV_2>0,Enk_My_CV_2,""),"") ->  | G38: =IF(D_Enk_stofnavn_3<>"",IF(Enk_My_CV_3>0,Enk_My_CV_3,""),"") ->  | I38: =IF(D_Enk_stofnavn_4<>"",IF(Enk_My_CV_4>0,Enk_My_CV_4,""),"") ->  | K38: mg/l
A39: Baggrundskoncentration | C39: =IF(Gru_Trin1a_my_Cg_1<>"",Gru_Trin1a_my_Cg_1,"") ->  | E39: =IF(Gru_Trin1a_my_Cg_2<>"",Gru_Trin1a_my_Cg_2,"") ->  | G39: =IF(Gru_Trin1a_my_Cg_3<>"",Gru_Trin1a_my_Cg_3,"") ->  | I39: =IF(Gru_Trin1a_my_Cg_4<>"",Gru_Trin1a_my_Cg_4,"") ->  | K39: mg/l
A41: Beregning: Grundvand | C41: Angiv signifikant ciffer | E41: 3
A43: Kommentar | B43: =IF( D_Gru_Ber_ComUds,"ja","nej") -> nej | C43: Stof 1 | E43: Stof 2 | G43: Stof 3 | I43: Stof 4
A44: Kildestyrken anvendt i beregning | C44: =IF(D_Enk_stofnavn_1<>"",(IF(D_Gru_beregn=TRUE,D_Gru_trin1a_C0_1,IF(D_Gru_målt=TRUE,D_Gru_trin1b_C1bm_1))),"") ->  | E44: =IF(D_Enk_stofnavn_2<>"",(IF(D_Gru_beregn=TRUE,D_Gru_trin1a_C0_2,IF(D_Gru_målt=TRUE,D_Gru_trin1b_C1bm_2))),"") ->  | G44: =IF(D_Enk_stofnavn_3<>"",(IF(D_Gru_beregn=TRUE,D_Gru_trin1a_C0_3,IF(D_Gru_målt=TRUE,D_Gru_trin1b_C1bm_3))),"") ->  | I44: =IF(D_Enk_stofnavn_4<>"",(IF(D_Gru_beregn=TRUE,D_Gru_trin1a_C0_4,IF(D_Gru_målt=TRUE,D_Gru_trin1b_C1bm_4))),"") ->  | K44: mg/l | M44: Kildestyrken | N44: =C44*1000000 ->  | O44: =E44*1000000 ->  | P44: =G44*1000000 ->  | Q44: =I44*1000000 ->  | R44: ng/l
A45: Beregnet værdi anvendt | C45: =IF(ISNUMBER(C44),IF(OR(C46="ja",C47="ja",(ISNUMBER(Enk_My_CV_1))),"nej","ja"),"") ->  | E45: =IF(ISNUMBER(E44),IF(OR(E46="ja",E47="ja",(ISNUMBER(Enk_My_CV_2))),"nej","ja"),"") ->  | G45: =IF(ISNUMBER(G44),IF(OR(G46="ja",G47="ja",(ISNUMBER(Enk_My_CV_3))),"nej","ja"),"") ->  | I45: =IF(ISNUMBER(I44),IF(OR(I46="ja",I47="ja",(ISNUMBER(Enk_My_CV_4))),"nej","ja"),"") -> 
A46: =IF(C46="Ja",CONCATENATE("Værdier fra ",D_ver_model), "Værdien fra vertikaltransport anvendt") -> Værdien fra vertikaltransport anvendt | C46: =IF(D_Gru_målt=TRUE,"nej",IF(OR(D_Gru_trin1a_temp2_TrueFalse=TRUE,D_Gru_trin1a_temp3_TrueFalse=TRUE,),"Ja","Nej")) -> Nej | E46: =IF(D_Gru_målt=TRUE,"nej",IF(OR(D_Gru_trin1a_temp2_TrueFalse=TRUE,D_Gru_trin1a_temp3_TrueFalse=TRUE,),"Ja","Nej")) -> Nej | G46: =IF(D_Gru_målt=TRUE,"nej",IF(OR(D_Gru_trin1a_temp2_TrueFalse=TRUE,D_Gru_trin1a_temp3_TrueFalse=TRUE,),"Ja","Nej")) -> Nej | I46: =IF(D_Gru_målt=TRUE,"nej",IF(OR(D_Gru_trin1a_temp2_TrueFalse=TRUE,D_Gru_trin1a_temp3_TrueFalse=TRUE,),"Ja","Nej")) -> Nej
A47: Testværdi anvendt | C47: =IF(ISNUMBER(C44),IF(D_Gru_målt=TRUE,(IF(ISNUMBER(Gru_My_C1bm_1),"ja","nej")),(IF(AND(D_Gru_trin1a_temp4_TrueFalse=TRUE),"ja","nej"))),"") ->  | E47: =IF(ISNUMBER(E44),IF(D_Gru_målt=TRUE,(IF(ISNUMBER(Gru_My_C1bm_2),"ja","nej")),(IF(AND(D_Gru_trin1a_temp4_TrueFalse=TRUE),"ja","nej"))),"") ->  | G47: =IF(ISNUMBER(G44),IF(D_Gru_målt=TRUE,(IF(ISNUMBER(Gru_My_C1bm_3),"ja","nej")),(IF(AND(D_Gru_trin1a_temp4_TrueFalse=TRUE),"ja","nej"))),"") ->  | I47: =IF(ISNUMBER(I44),IF(D_Gru_målt=TRUE,(IF(ISNUMBER(Gru_My_C1bm_4),"ja","nej")),(IF(AND(D_Gru_trin1a_temp4_TrueFalse=TRUE),"ja","nej"))),"") -> 
A48: Grundvandskvalitetskriterie | C48: =IF(D_Enk_GV_krit_syst_1<>"",D_Enk_GV_krit_syst_1/1000,"") ->  | D48: =IF(Enk_My_GV_krit_1<>"",Enk_My_GV_krit_1/1000,"") ->  | E48: =IF(D_Enk_GV_krit_syst_2<>"",D_Enk_GV_krit_syst_2/1000,"") ->  | F48: =IF(Enk_My_GV_krit_2<>"",Enk_My_GV_krit_2/1000,"") ->  | G48: =IF(D_Enk_GV_krit_syst_3<>"",D_Enk_GV_krit_syst_3/1000,"") ->  | H48: =IF(Enk_My_GV_krit_3<>"",Enk_My_GV_krit_3/1000,"") ->  | I48: =IF(D_Enk_GV_krit_syst_4<>"",D_Enk_GV_krit_syst_4/1000,"") ->  | J48: =IF(Enk_My_GV_krit_4<>"",Enk_My_GV_krit_4/1000,"") ->  | K48: mg/l
A49: Grundvandskoncentration: Trin 1 | C49: =IF(ISNUMBER(D_gru_trin1_GVkonc_1),ROUND(D_gru_trin1_GVkonc_1,Gru_ciffer-(INT(LOG(D_gru_trin1_GVkonc_1))+1)),"") ->  | E49: =IF(ISNUMBER(D_gru_trin1_GVkonc_2),ROUND(D_gru_trin1_GVkonc_2,Gru_ciffer-(INT(LOG(D_gru_trin1_GVkonc_2))+1)),"") ->  | G49: =IF(ISNUMBER(D_Gru_trin1_GVkonc_3),ROUND(D_Gru_trin1_GVkonc_3,Gru_ciffer-(INT(LOG(D_Gru_trin1_GVkonc_3))+1)),"") ->  | I49: =IF(ISNUMBER(D_gru_trin1_GVKonc_4),ROUND(D_gru_trin1_GVKonc_4,Gru_ciffer-(INT(LOG(D_gru_trin1_GVKonc_4))+1)),"") ->  | K49: mg/l | M49: Trin 1-beregning | N49: =C49*1000000 ->  | O49: =E49*1000000 ->  | P49: =G49*1000000 ->  | Q49: =I49*1000000 ->  | R49: ng/l
A50: Overskridelse af kriteriet Trin 1 | C50: =IF(D_Gru_trin1_oversk_1<>"",IF(ISNUMBER(D_Gru_trin1_oversk_1),ROUND(D_Gru_trin1_oversk_1,Gru_ciffer-(INT(LOG(D_Gru_trin1_oversk_1))+1)),D_Gru_trin1_oversk_1),"") ->  | E50: =IF(D_Gru_trin1_oversk_2<>"",IF(ISNUMBER(D_Gru_trin1_oversk_2),ROUND(D_Gru_trin1_oversk_2,Gru_ciffer-(INT(LOG(D_Gru_trin1_oversk_2))+1)),D_Gru_trin1_oversk_2),"") ->  | G50: =IF(D_gru_trin1_oversk_3<>"",IF(ISNUMBER(D_gru_trin1_oversk_3),ROUND(D_gru_trin1_oversk_3,Gru_ciffer-(INT(LOG(D_gru_trin1_oversk_3))+1)),D_gru_trin1_oversk_3),"") ->  | I50: =IF(D_Gru_trin1_oversk_4<>"",IF(ISNUMBER(D_Gru_trin1_oversk_4),ROUND(D_Gru_trin1_oversk_4,Gru_ciffer-(INT(LOG(D_Gru_trin1_oversk_4))+1)),D_Gru_trin1_oversk_4),"") -> 
A51: Grundvandskoncentration: Trin 2 | C51: =IF(ISNUMBER(D_Gru_Trin2_GVKonc_1),ROUND(D_Gru_Trin2_GVKonc_1,Gru_ciffer-(INT(LOG(D_Gru_Trin2_GVKonc_1))+1)),"") ->  | E51: =IF(ISNUMBER(D_Gru_Trin2_GVKonc_2),ROUND(D_Gru_Trin2_GVKonc_2,Gru_ciffer-(INT(LOG(D_Gru_Trin2_GVKonc_2))+1)),"") ->  | G51: =IF(ISNUMBER(D_Gru_Trin2_GVKonc_3),ROUND(D_Gru_Trin2_GVKonc_3,Gru_ciffer-(INT(LOG(D_Gru_Trin2_GVKonc_3))+1)),"") ->  | I51: =IF(ISNUMBER(D_Gru_Trin2_GVKonc_4),ROUND(D_Gru_Trin2_GVKonc_4,Gru_ciffer-(INT(LOG(D_Gru_Trin2_GVKonc_4))+1)),"") ->  | K51: mg/l | M51: Trin 2-beregning | N51: =C51*1000000 ->  | O51: =E51*1000000 ->  | P51: =G51*1000000 ->  | Q51: =I51*1000000 ->  | R51: ng/l
A52: Overskridelse af kriteriet Trin 2 | C52: =IF(D_gru_trin2_overskr_1<>"",IF(ISNUMBER(D_gru_trin2_overskr_1),(ROUND(D_gru_trin2_overskr_1,Gru_ciffer-(INT(LOG(D_gru_trin2_overskr_1))+1))),D_gru_trin2_overskr_1),"") ->  | E52: =IF(D_Gru_trin2_overskr_2<>"",IF(ISNUMBER(D_Gru_trin2_overskr_2),(ROUND(D_Gru_trin2_overskr_2,Gru_ciffer-(INT(LOG(D_Gru_trin2_overskr_2))+1))),D_Gru_trin2_overskr_2),"") ->  | G52: =IF(D_Gru_trin2_overskr_3<>"",IF(ISNUMBER(D_Gru_trin2_overskr_3),(ROUND(D_Gru_trin2_overskr_3,Gru_ciffer-(INT(LOG(D_Gru_trin2_overskr_3))+1))),D_Gru_trin2_overskr_3),"") ->  | I52: =IF(D_Gru_trin2_overskr_4<>"",IF(ISNUMBER(D_Gru_trin2_overskr_4),(ROUND(D_Gru_trin2_overskr_4,Gru_ciffer-(INT(LOG(D_Gru_trin2_overskr_4))+1))),D_Gru_trin2_overskr_4),"") -> 
A54: Trin 3 inklusive sorption og nedbryding
A56: Nedbrydningsforhold: | C56: =IF( D_Gru_aerob,"Aerobe forhold","Anaerobe forhold") -> Aerobe forhold
A58: 1. ordens nedbrydningskonst. aerob | C58: =IF(D_Enk_k1aerob_syst_1<>"",D_Enk_k1aerob_syst_1,"") ->  | D58: =IF(Enk_MY_k1aerob_1<>"",Enk_MY_k1aerob_1,"") ->  | E58: =IF(D_Enk_k1aerob_syst_2<>"",D_Enk_k1aerob_syst_2,"") ->  | F58: =IF(Enk_MY_k1aerob_2<>"",Enk_MY_k1aerob_2,"") ->  | G58: =IF(D_Enk_k1aerob_syst_3<>"",D_Enk_k1aerob_syst_3,"") ->  | H58: =IF(Enk_MY_k1aerob_3<>"",Enk_MY_k1aerob_3,"") ->  | I58: =IF(D_Enk_k1aerob_syst_4<>"",D_Enk_k1aerob_syst_4,"") ->  | J58: =IF(Enk_MY_k1aerob_4<>"",Enk_MY_k1aerob_4,"") ->  | K58: dage-1
A59: 1. ordens nedbrydningskonst. anaerob | C59: =IF(D_Enk_k1anaerob_syst_1<>"",D_Enk_k1anaerob_syst_1,"") ->  | D59: =IF(Enk_MY_k1anaerob_1<>"",Enk_MY_k1anaerob_1,"") ->  | E59: =IF(D_Enk_k1anaerob_syst_2<>"",D_Enk_k1anaerob_syst_2,"") ->  | F59: =IF(Enk_MY_k1anaerob_2<>"",Enk_MY_k1anaerob_2,"") ->  | G59: =IF(D_Enk_k1anaerob_syst_3<>"",D_Enk_k1anaerob_syst_3,"") ->  | H59: =IF(Enk_MY_k1anaerob_3<>"",Enk_MY_k1anaerob_3,"") ->  | I59: =IF(D_Enk_k1anaerob_syst_4<>"",D_Enk_k1anaerob_syst_4,"") ->  | J59: =IF(Enk_MY_k1anaerob_4<>"",Enk_MY_k1anaerob_4,"") ->  | K59: dage-1
A60: log kOW | C60: =IF(D_Enk_KOW_syst_1<>"",D_Enk_KOW_syst_1,"") ->  | D60: =IF(Enk_My_KOW_1<>"",Enk_My_KOW_1,"") ->  | E60: =IF(D_Enk_KOW_syst_2<>"",D_Enk_KOW_syst_2,"") ->  | F60: =IF(Enk_My_KOW_2<>"",Enk_My_KOW_2,"") ->  | G60: =IF(D_Enk_KOW_syst_3<>"",D_Enk_KOW_syst_3,"") ->  | H60: =IF(Enk_My_KOW_3<>"",Enk_My_KOW_3,"") ->  | I60: =IF(D_Enk_KOW_syst_4<>"",D_Enk_KOW_syst_4,"") ->  | J60: =IF(Enk_My_KOW_4<>"",Enk_My_KOW_4,"") -> 
A61: Retardationskoefficient | C61: =D_Gru_trin3_R_1 ->  | E61: =D_Gru_trin3_R_2 ->  | G61: =D_Gru_trin3_R_3 ->  | I61: =D_Gru_trin3_R_4 -> 
A62: Forureningsflux vertikal (Trin 1a) | C62: =IF(ISNUMBER(D_gru_trin3_fluxvert_1),IF(D_gru_trin3_fluxvert_1<>0,ROUND(D_gru_trin3_fluxvert_1,2-INT((LOG(D_gru_trin3_fluxvert_1))+1)),0),"") ->  | E62: =IF(ISNUMBER(D_gru_trin3_fluxvert_2),IF(D_gru_trin3_fluxvert_2<>0,ROUND(D_gru_trin3_fluxvert_2,2-INT((LOG(D_gru_trin3_fluxvert_2))+1)),0),"") ->  | G62: =IF(ISNUMBER(D_gru_trin3_fluxvert_3),IF(D_gru_trin3_fluxvert_3<>0,ROUND(D_gru_trin3_fluxvert_3,2-INT((LOG(D_gru_trin3_fluxvert_3))+1)),0),"") ->  | I62: =IF(ISNUMBER(D_Gru_Trin3_fluxvert_4),IF(D_Gru_Trin3_fluxvert_4<>0,ROUND(D_Gru_Trin3_fluxvert_4,2-INT((LOG(D_Gru_Trin3_fluxvert_4))+1)),0),"") ->  | K62: g/år
A63: (GV-konc. med kun nedbryd.: Trin 3) | C63: =IF(ISNUMBER(D_Gru_trin3_ned_C3_1),IF(D_Gru_trin3_ned_C3_1<>0,ROUND(D_Gru_trin3_ned_C3_1,Gru_ciffer-INT((LOG(D_Gru_trin3_ned_C3_1))+1)),0),"") ->  | E63: =IF(ISNUMBER(D_Gru_trin3_ned_C3_2),IF(D_Gru_trin3_ned_C3_2<>0,ROUND(D_Gru_trin3_ned_C3_2,Gru_ciffer-INT((LOG(D_Gru_trin3_ned_C3_2))+1)),0),"") ->  | G63: =IF(ISNUMBER(D_Gru_trin3_ned_C3_3),IF(D_Gru_trin3_ned_C3_3<>0,ROUND(D_Gru_trin3_ned_C3_3,Gru_ciffer-INT((LOG(D_Gru_trin3_ned_C3_3))+1)),0),"") ->  | I63: =IF(ISNUMBER(D_Gru_trin3_ned_C3_4),IF(D_Gru_trin3_ned_C3_4<>0,ROUND(D_Gru_trin3_ned_C3_4,Gru_ciffer-INT((LOG(D_Gru_trin3_ned_C3_4))+1)),0),"") ->  | K63: mg/l
A64: GV-konc. med sorpt. og nedbryd: Trin 3 | C64: =IF(ISNUMBER(D_Gru_trin3_C3_1),IF(D_Gru_trin3_C3_1<>0,ROUND(D_Gru_trin3_C3_1,Gru_ciffer-INT((LOG(D_Gru_trin3_C3_1))+1)),0),"") ->  | E64: =IF(ISNUMBER(D_Gru_trin3_C3_2),IF(D_Gru_trin3_C3_2<>0,ROUND(D_Gru_trin3_C3_2,Gru_ciffer-INT((LOG(D_Gru_trin3_C3_2))+1)),0),"") ->  | G64: =IF(ISNUMBER(D_Gru_trin3_C3_3),IF(D_Gru_trin3_C3_3<>0,ROUND(D_Gru_trin3_C3_3,Gru_ciffer-INT((LOG(D_Gru_trin3_C3_3))+1)),0),"") ->  | I64: =IF(ISNUMBER(D_Gru_trin3_C3_4),IF(D_Gru_trin3_C3_4<>0,ROUND(D_Gru_trin3_C3_4,Gru_ciffer-INT((LOG(D_Gru_trin3_C3_4))+1)),0),"") ->  | K64: mg/l | M64: Trin 3-beregning | N64: =C64*1000000 ->  | O64: =E64*1000000 ->  | P64: =G64*1000000 ->  | Q64: =I64*1000000 ->  | R64: ng/l
A65: Overskridelse af kriteriet Trin 3 | C65: =IF(D_Gru_trin3_Krit_Overskr_1<>"",IF(ISNUMBER(D_Gru_trin3_Krit_Overskr_1),ROUND(D_Gru_trin3_Krit_Overskr_1,Gru_ciffer-(INT(LOG(D_Gru_trin3_Krit_Overskr_1))+1)),D_Gru_trin3_Krit_Overskr_1),"") ->  | E65: =IF(D_Gru_trin3_Krit_Overskr_2<>"",IF(ISNUMBER(D_Gru_trin3_Krit_Overskr_2),ROUND(D_Gru_trin3_Krit_Overskr_2,Gru_ciffer-(INT(LOG(D_Gru_trin3_Krit_Overskr_2))+1)),D_Gru_trin3_Krit_Overskr_2),"") ->  | G65: =IF(D_Gru_trin3_Krit_Overskr_3<>"",IF(ISNUMBER(D_Gru_trin3_Krit_Overskr_3),ROUND(D_Gru_trin3_Krit_Overskr_3,Gru_ciffer-(INT(LOG(D_Gru_trin3_Krit_Overskr_3))+1)),D_Gru_trin3_Krit_Overskr_3),"") ->  | I65: =IF(D_Gru_trin3_Krit_Overskr_4<>"",IF(ISNUMBER(D_Gru_trin3_Krit_Overskr_4),ROUND(D_Gru_trin3_Krit_Overskr_4,Gru_ciffer-(INT(LOG(D_Gru_trin3_Krit_Overskr_4))+1)),D_Gru_trin3_Krit_Overskr_4),"") -> 
A66: Anvendt brugerdata | C66: =D_GRU_brugerdata_1 ->  | E66: =D_GRU_brugerdata_2 ->  | G66: =D_GRU_brugerdata_3 ->  | I66: =D_GRU_brugerdata_4 -> 
A68: Beregningerne udført af | K68: Beregningerne kontrolleret /godkendt af
A69: Firmanavn | B69: =Lok_firma ->  | G69: Kontrolleret
A70: Navn/initialer | B70: =Lok_init ->  | G70: Godkendt
A71: Dato/Underskrift
A73: Beregningerne er udført med de ovenfor angivne data og uden at der er foretaget ændringer af beregningsformler
A75: Bemærkninger | B75: =IF(D_Gru_DFO_Com <> "", D_Gru_DFO_Com, "") -> 
A76: om det forurenede område
A77: (herunder nettonedbør)
A88: Bemærkninger | B88: =IF(D_Gru_Mag_Com <> "", D_Gru_Mag_Com, "") -> 
A89: om magasinparametre
A101: Bemærkninger | B101: =IF(D_Gru_For_Com<>"",D_Gru_For_Com,"") -> 
A102: om forurening
A114: Bemærkninger | B114: =IF(D_Gru_Ber_Com<>"",D_Gru_Ber_Com,"") -> 
A115: om beregning, f.eks. om
A116: aerobe eller anaerobe forhold
A126: Bemærkninger | B126: =IF(D_Enk_Kem_Com<>"",D_Enk_Kem_Com,"") -> 
A127: om fysisk/kemiske data
A136: Koncentrationsudvikling: | B136: =D_Gru_stofnavn_1 -> 
A151: Koncentrationsudvikling: | B151: =D_Gru_stofnavn_2 -> 
A166: Koncentrationsudvikling: | B166: =D_Gru_stofnavn_3 -> 
A181: Koncentrationsudvikling: | B181: =D_Gru_stofnavn_4 -> 

Sheet Vejledning_Grundvand (hidden)
B1: Vejledning - Grundvand
B2: Formål
B3: I dette regneark kan der foretages en beregning af konsekvenser for grundvand, jf. appendiks 5.6 i MST´s Oprydningsvejledning fra 1998. A - Baseret på kildestyrkekoncentrationen B - Baseret på den målte koncentration i det første betydende grundvandsmagasin
B9: BEREGNINGER:
B10: Det forurenede areal - trin 1A
B11: Arealet og bredden af det forurenede område skal indtastes og der vælges enten nedbørs-data fra standardlisten, "Egen liste" eller indtastes egenværdier. Det er også muligt at anvende og oprette egne nedbørsdata.
B14: Det forurenede areal - trin 1B
B15: Kun filterlængden skal indtastes.
B17: Det første betydende magasin
B18: Vælg aquifermateriale og indtast de hydrauliske parametre for det første betydende magasin, hvori risikoen skal beregnes.
B21: Forureningsdata - trin 1A
B22: I trin 1a kan man vælge, hvilke forureningsdata, der skal anvendes i beregningen, dvs. de målte eller de beregnede koncentrationer fra fugacitetsmodulet, de beregnede porevands-koncentrationer fra vertikaltransport i den umættede zone (modul A/C) eller egne testværdier.
B26: Forureningsdata - trin 1B
B27: I trin 1b kan man kun anvende målte koncentrationer i grundvandet , som overføres direkte fra "Enkeltstoffer", men der kan dog altid indtastes andre testværdier.
B30: Nedbrydning i trin 3
B31: Der vælges, om der er tale om aerobe eller anaerobe forhold. Nedbrydnings-konstanter hentes fra kemiske data i "Enkeltstoffer", hvor det er muligt at indsætte andre værdier, såfremt der ikke ønskes anvendt standardværdier fra databasen.
B35: GENERELT
B36: Hvis der er anført værdier i de hvide felter vil beregningen altid blive foretaget med disse. Ved at klikke på Knappe "Bemærkninger" er det muligt at indføre oplysninger om hvorfor der er valgt andre værdier end standardværdierne
B40: OVERFØR VÆRDIER:
B41: Knappen anvendes til at overføre data fra det ark man står i til det tilsvarende ark under olie & benzin modulet, således at data kun skal indtastes en gang. Det er kun data om f.eks. akvifermateriale og bygningsdata som overføres. Data om stoffer og koncen-trationer overføres ikke. Hvis der allerede er indtastet data i til det tilsvarende ark under olie & benzin modulet, så vil disse data blive slettet og erstattet af de data som overføres.
B48: ANVENDELSEN AF LISTEVÆRDIER
B49: Der findes i JAGG 2.0 to typer af listeværdier: Standardlisteværdier, hvis indhold er godkendt af Miljøstyrelsen, og listeværdier med brugerens egne indtastede værdier.
B52: Når en Standardværdiliste er åbnet er der mulighed for følgende operationer: · At navigere ned gennem listen ved at anvende rullebjælken · At sortere forekomsterne ved at klikke på sorteringsknapperne · At vælge en forekomst ved at klikke på den ønskede værdi og herefter klikke [OK], eller ved at dobbeltklikke på den ønskede værdi · At vælge en forekomst ved at skrive dens navn i søgefeltet og herefter klikke [OK] · At fortryde og lukke standardlisten ved at klikke [Fortryd] · At slette en valgt forekomst ved at sætte flueben ved "Nulstil systemværdier" /"Nulstil indtastede værdier" · At slette indtastede værdier
B62: BEMÆRKNINGER:
B63: Der er mulighed for at indtaste bemærkninger til de valgte date. Bemærkningerne knytter sig normalt til et dataområde, f.eks.. jordforhold, kemiske stoffer, og beregninger. Bemærkninger indtastes ved at klikke på bemærkningsfeltet. Et bemærkningsfelt kan maksimalt indeholde 500 tegn. Hvis der er indtastet data i et bemærkningsfelt skifter knappen farve fra mørkeblå til lyseblå. Når bemærkningsfeltet er åbent er der mulighed for følgende operationer: [OK] Den indtastede tekst gemmes [Fortryd] Bemærkningsfeltet lukkes uden at gemme ændringer [Slet tekst] Alt tekst i bemærkningsfeltet slettes
B75: NULSTIL VÆRDIER:
B76: Den røde knap [Nulstil værdier] sletter alle indtastede værdier i dette ark, både data til beregninger og data i bemærkningsfelter.
B79: SLETNING AF ENKELTVÆRDIER:
B80: Værdier der fremkommet fra valglister kan slettes / nulstilles ved at åbne valglisten igen, og sætte flueben i feltet “Nulstil systemværdier” og herefter klikke "OK". Dette gælder både for systemvalglister og Egne lister.
B84: UDSKRIV VÆRDIER:
B85: Der er udarbejdet et særskilt udskriftsark, hvor data er tilpasset A4 formatet. Udskriftarket åbnes ved at klikke på knappen [Udskrift]. Udskriftsarket åbnes som en form for "vis udskrift". Udover at vise data er udskriftarket også indrettet så der med rødt markers hvis der mangler vitale oplysninger for at beregningerne kan gennemføres.
B91: DATAARKET:
B92: Dataarket viser alle data der indgår i beregningerne inkl. resultat af mellemberegninger.

Sheet Indeklima (hidden)
A1: Beregning af indeklimakoncentration
A2: i bygning med terrændæk
A4: Lokalitetsnavn: | H4: =IF(Ops_navn<>"",Ops_navn,"") -> 
A6: Adresse: | H6: =IF(Ops_adr<>"",Ops_adr,"") ->  | R6: Postnr./By: | T6: =IF(Ops_post<>"",Ops_post,"") -> 
A8: Lokalitetsnummer: | H8: =IF(Ops_lok<>"",Ops_lok,"") ->  | R8: Projektnr: | T8: =IF(Ops_pro<>"",Ops_pro,"") -> 
H10: For krybekælder: benyt knap til højre
A11: Beregning udføres for : | H11: =D_Enk_stofnavn_1 ->  | N11: =D_Enk_stofnavn_2 ->  | T11: =D_Enk_stofnavn_3 ->  | Z11: =D_Enk_stofnavn_4 -> 
A14: Influenszone og membran | I14: Indtast data for evt. membran og kapillarbrydende lag og for jordlag mellem prøvetagningspunktet og bygningen.
K17: Jordlag Dybde fra | N17: Jordlag Dybde til | Q17: Lag-tykkelse | T17: Poreluft-volumen | W17: Vand-indhold | Z17: Samlet porøsitet | AB17: Volumen af jordskellet | AF17: Materiale-konstant
F18: Jordtype/Membran
K19: m u.gulv | N19: m u.gulv | Q19: (m) | T19: VL | W19: VV | Z19: e=VL+VV | AC19: VJ
F20: =D_Ind_navnb_1_syst -> 0 | Q20: =D_Ind_Xb_1_syst -> 0 | S20: mm | AF20: =D_Ind_Nb_1_int -> 0
AF21: =D_Ind_Nb_1_sys -> 0
AI22: =D_Ind_b_mangeljt_1 -> 
F24: =D_Ind_navnb_2_syst -> 0 | T24: =D_Ind_VLb_2_int -> 0 | W24: =D_Ind_VVb_2_int -> 0 | Z24: =[0]!D_Ind_eb_2 -> 0 | AC24: =[0]!D_Ind_VJb_2 -> 1 | AF24: =[0]!D_Ind_Nb_2 -> 0
T25: =D_Ind_VLb_2_syst -> 0 | W25: =D_Ind_VVb_2_syst -> 0
AI26: =D_Ind_b_mangeljt_2 -> 
A28: Jordparametre
F30: =IF(D_Ind_jordtype_1_syst<>"",D_Ind_jordtype_1_syst,"") ->  | K30: =IF(D_Ind_jordtype_1=0,"",B_Ind_Xb_tot) ->  | T30: =IF(D_Ind_VL_1_int<>"",D_Ind_VL_1_int,"") ->  | W30: =IF(D_Ind_VV_1_int<>"",D_Ind_VV_1_int,"") ->  | Z30: =D_Ind_e_1 -> 0 | AC30: =D_Ind_VJ_1 -> 1 | AF30: =D_Ind_N_1 -> 0
T31: =IF(D_Ind_VL_1_syst<>"",D_Ind_VL_1_syst,"") ->  | W31: =IF(D_Ind_VV_1_syst<>"",D_Ind_VV_1_syst,"") -> 
Q32: =D_Ind_X_1 -> 0 | AI32: =D_Ind_mangeljt_1 -> 
F34: =IF(D_Ind_jordtype_2_syst<>"",D_Ind_jordtype_2_syst,"") ->  | T34: =IF(D_Ind_VL_2_int<>"",D_Ind_VL_2_int,"") ->  | W34: =IF(D_Ind_VV_2_int<>"",D_Ind_VV_2_int,"") ->  | Z34: =D_Ind_e_2 -> 0 | AC34: =D_Ind_VJ_2 -> 1 | AF34: =D_Ind_N_2 -> 0
T35: =IF(D_Ind_VL_2_syst<>"",D_Ind_VL_2_syst,"") ->  | W35: =IF(D_Ind_VV_2_syst<>"",D_Ind_VV_2_syst,"") -> 
K36: =IF(D_Ind_jordtype_2=0,"",D_Ind_lagfra_2) ->  | Q36: =D_Ind_X_2 -> 0 | AI36: =D_Ind_mangeljt_2 -> 
F38: =IF(D_Ind_jordtype_3_syst<>"",D_Ind_jordtype_3_syst,"") ->  | T38: =IF(D_Ind_VL_3_int<>"",D_Ind_VL_3_int,"") ->  | W38: =IF(D_Ind_VV_3_int<>"",D_Ind_VV_3_int,"") ->  | Z38: =D_Ind_e_3 -> 0 | AC38: =D_Ind_VJ_3 -> 1 | AF38: =D_Ind_N_3 -> 0
T39: =IF(D_Ind_VL_3_syst<>"",D_Ind_VL_3_syst,"") ->  | W39: =IF(D_Ind_VV_3_syst<>"",D_Ind_VV_3_syst,"") -> 
K40: =IF(D_Ind_jordtype_3=0,"",D_Ind_lagfra_3) ->  | Q40: =D_Ind_X_3 -> 0 | AI40: =D_Ind_mangeljt_3 -> 
F42: =IF(D_Ind_jordtype_4_syst<>"",D_Ind_jordtype_4_syst,"") ->  | T42: =IF(D_Ind_VL_4_int<>"",D_Ind_VL_4_int,"") ->  | W42: =IF(D_Ind_VV_4_int<>"",D_Ind_VV_4_int,"") ->  | Z42: =D_Ind_e_4 -> 0 | AC42: =D_Ind_VJ_4 -> 1 | AF42: =D_Ind_N_4 -> 0
T43: =IF(D_Ind_VL_4_syst<>"",D_Ind_VL_4_syst,"") ->  | W43: =IF(D_Ind_VV_4_syst<>"",D_Ind_VV_4_syst,"") -> 
K44: =IF(D_Ind_jordtype_4=0,"",D_Ind_lagfra_4) ->  | Q44: =D_Ind_X_4 -> 0 | AI44: =D_Ind_mangeljt_4 -> 
Q45: =D_Ind_negativ_X_tot -> 
O46: Samlede lagtykkelse | Q46: =D_Ind_X_tot -> 0 | S46: m | AD46: Samlet materialekonstant KW | AF46: =D_Ind_N_tot -> 
A48: Bygningsdata | H48: Vælg type af terrændæk, eller indtast egen data
A51: Terrændæk
A55: Type af terrændæk | G55: =IF(D_Ind_Inddæk_syst<>"",D_Ind_Inddæk_syst,"") -> 
A58: Betontværsnit | F58: hb | H58: =IF(D_Ind_hb_syst<>"",D_Ind_hb_syst,"") ->  | N58: mm
A60: Relativ luftfugtighed | F60: RF | H60: =IF(D_Ind_RF_syst<>"",D_Ind_RF_syst,"") ->  | N60: % | Q60: Armeringsdiameter | X60: da | Z60: =IF(D_Ind_daCh<>"",D_Ind_daCh,"") ->  | AF60: mm
A62: Vand/cement-tallet | F62: v/c | H62: =IF(D_Ind_wc_syst<>"",D_Ind_wc_syst,"") ->  | Q62: Armeringskonstant | X62: k | Z62: =IF(D_Ind_k_syst<>"",D_Ind_k_syst,"") -> 
A64: Cementindhold | F64: CM | H64: =IF(D_Ind_CM_syst<>"",D_Ind_CM_syst,"") ->  | N64: kg/m3 | Q64: Afstand mellem armeringsjern | X64: Db | Z64: =IF(D_Ind_Db_syst<>"",D_Ind_Db_syst,"") ->  | AF64: mm
A66: Svindtid | F66: ts | H66: =IF(D_Ind_ts_syst<>"",D_Ind_ts_syst,"") ->  | N66: døgn | Q66: Dynamisk viskositet af luft | X66: m | Z66: =D_Ind_my_syst -> 1.8e-05 | AF66: kg/(m * s)
A68: Elasticitetskoeff. Beton | F68: Eb | H68: =D_Ind_Eb_syst -> 20000 | N68: MPa | Q68: Elasticitetskoeff. Stål | X68: Es | Z68: =D_Ind_Es_syst -> 210000 | AF68: MPa
A70: Materialekonst. for beton | F70: Nb | H70: =IF(D_Ind_Nb_syst<>"",D_Ind_Nb_syst,"") -> 
A74: Bygningsdata | H74: Indtast bygnings data | Q74: Beregnede bygningsdata | Z74: Anvend beregnede bygningsdata, eller indtast målte data
A78: Rumtype/anvendelse
A80: Loftshøjde | F80: Lh | N80: m | Q80: Revnevidde | X80: w | Z80: =D_Ind_w_Ber ->  | AF80: mm
A82: Luftskifte | F82: Ls | H82: =D_Ind_Ls_Sys -> 8.3e-05 | N82: s-1 | Q82: Gnmsn. revneafstand | X82: lw | Z82: =D_Ind_lw_Ber ->  | AF82: mm
A84: Gulvbredde | F84: lb | N84: m | Q84: Total revnelængde | X84: ltot | Z84: =D_Ind_ltot_Ber -> 0 | AF84: m
A86: Gulvlængde | F86: ll | N86: m | Q86: Vol. strøm gennem beton | X86: qb | Z86: =D_Ind_q_Ber ->  | AF86: m³/s
A88: Trykforskel over betondæk | F88: DP | H88: =D_Ind_DP_Sys -> 5 | N88: Pa | Q88: Vol. strøm gennem beton pr. m² | X88: Qb | Z88: =D_Ind_q/(Ind_My_Lb*Ind_My_Ll) ->  | AF88: m³/(s · m²)
A91: Forurening | H91: Data for forureningen er overført fra fugacitetsmodulet Indtast baggrundskoncentration
A95: Stofnavn | H95: =[0]!D_Ind_stofnavn_1 ->  | N95: =[0]!D_Ind_stofnavn_2 ->  | T95: =[0]!D_Ind_stofnavn_3 ->  | Z95: =[0]!D_Ind_stofnavn_4 -> 
A97: Målepunkt | H97: =D_Enk_MP_1 ->  | N97: =D_Enk_MP_2 ->  | T97: =D_Enk_MP_3 ->  | Z97: =D_Enk_MP_4 -> 
A98: Dato | H98: =D_Enk_dato_1 ->  | N98: =D_Enk_dato_2 ->  | T98: =D_Enk_dato_3 ->  | Z98: =D_Enk_dato_4 -> 
A100: Poreluftskoncentration | F100: CL | H100: =D_Ind_CL_1_1 ->  | N100: =D_Ind_CL_2_1 ->  | T100: =D_Ind_CL_3_1 ->  | Z100: =D_Ind_CL_4_1 ->  | AF100: mg/m³
A102: Test af andre værdier | AF102: mg/m³
A104: Baggrundskoncentration | F104: C0 | AF104: mg/m³
A106: Diffusionskoefficient i luft | F106: DL | H106: =D_Enk_DL_1 -> 0 | N106: =D_Enk_DL_2 -> 0 | T106: =D_Enk_DL_3 -> 0 | Z106: =D_Enk_DL_4 -> 0 | AF106: m²/s
A108: Beregning: Indeklima
A110: Stoffluxgennem beton | F110: J | H110: =D_Ind_Jz_1_syst ->  | N110: =D_Ind_Jz_2_syst ->  | T110: =D_Ind_Jz_3_syst ->  | Z110: =D_Ind_Jz_4_syst ->  | AF110: mg/(s· m²)
A113: Poreluftkonc. under gulv | F113: Cp | H113: =D_Ind_Cp_1_syst ->  | N113: =D_Ind_Cp_2_syst ->  | T113: =D_Ind_Cp_3_syst ->  | Z113: =D_Ind_Cp_4_syst ->  | AF113: mg/m³
A115: Diffusivt bidrag til indeluft | F115: Cdi | H115: =D_Ind_Cdi_1 ->  | N115: =D_Ind_Cdi_2 ->  | T115: =D_Ind_Cdi_3 ->  | Z115: =D_Ind_Cdi_4 ->  | AF115: mg/m³
A118: Totalt bidrag til indeluft | F118: Ci | H118: =D_Ind_Ci_1 ->  | N118: =D_Ind_Ci_2 ->  | T118: =D_Ind_Ci_3 ->  | Z118: =D_Ind_Ci_4 ->  | AF118: mg/m³
A121: Afdampningskriterie | H121: =D_Ind_afd_krit_1 -> 0 | N121: =D_Ind_afd_krit_2 -> 0 | T121: =D_Ind_afd_krit_3 -> 0 | Z121: =D_Ind_afd_krit_4 -> 0 | AF121: mg/m³
A123: Overskridelse af kriteriet | H123: =D_Ind_oskr_1 -> Intet kriterie | N123: =D_Ind_oskr_2 -> Intet kriterie | T123: =D_Ind_oskr_3 -> Intet kriterie | Z123: =D_Ind_oskr_4 -> Intet kriterie | AF123: gange
A125: Anvendt Brugerdata | H125: =Dataark_Indeklima!H108 -> Nej | N125: =Dataark_Indeklima!L108 -> Nej | T125: =Dataark_Indeklima!P108 -> Nej | Z125: =Dataark_Indeklima!T108 -> Nej

Sheet Indeklima_Krybekælder (hidden)
A1: Beregning af indeklimakoncentration
A2: i bygning med krybekælder
A4: Lokalitetsnavn: | H4: =IF(Ops_navn<>"",Ops_navn,"") -> 
A6: Adresse: | H6: =IF(Ops_adr<>"",Ops_adr,"") ->  | R6: Postnr./By: | T6: =IF(Ops_post<>"",Ops_post,"") -> 
A8: Lokalitetsnummer: | H8: =IF(Ops_lok<>"",Ops_lok,"") ->  | R8: Projektnr: | T8: =IF(Ops_pro<>"",Ops_pro,"") -> 
H10: For terrændæk/kælder: benyt knap til højre
A12: Beregning udføres for : | H12: =D_Enk_stofnavn_1 ->  | N12: =D_Enk_stofnavn_2 ->  | T12: =D_Enk_stofnavn_3 ->  | Z12: =D_Enk_stofnavn_4 -> 
A15: Ventilleret krybekælder
A17: Jordparametre og gulv i krybekælderen | M17: Indtast data om krybekælderens gulv og om jordlag
K19: Jordlag Dybde fra | N19: Jordlag Dybde til | Q19: Lag-tykkelse | T19: Poreluft-volumen | W19: Vand-indhold | Z19: Samlet porøsitet | AB19: Volumen af jordskellet | AF19: Materiale-konstant
F20: Jordtype/Membran
K21: m u.gulv | N21: m u.gulv | Q21: (m) | T21: VL | W21: VV | Z21: e=VL+VV | AC21: VJ
F23: =IF(D_IndK_navnb_1_syst<>"",D_IndK_navnb_1_syst,"") ->  | Q23: =IF(D_IndK_Xb_1_syst<>"",D_IndK_Xb_1_syst,"") ->  | S23: mm | AF23: =IF(D_IndK_Nb_1_syst<>"",D_IndK_Nb_1_syst,"") -> 
AI25: =D_IndK_b_mangeljt_1 -> 
F27: =IF(D_IndK_navnb_2_syst<>"",D_IndK_navnb_2_syst,"") ->  | Q27: =IF(D_IndK_Xb_2_syst<>"",D_IndK_Xb_2_syst,"") ->  | S27: mm | AF27: =IF(D_IndK_Nb_2_int<>"",D_IndK_Nb_2_int,"") -> 
AF28: =IF(D_IndK_Nb_2_syst<>"",D_IndK_Nb_2_syst,"") -> 
AI29: =D_IndK_b_mangeljt_2 -> 
F31: =IF(D_IndK_jordtype_1_syst<>"",D_IndK_jordtype_1_syst,"") ->  | T31: =IF(D_IndK_VL_1_int<>"",D_IndK_VL_1_int,"") ->  | W31: =IF(D_IndK_VV_1_int<>"",D_IndK_VV_1_int,"") ->  | Z31: =D_IndK_e_1 -> 0 | AC31: =D_IndK_VJ_1 -> 1 | AF31: =D_IndK_N_1 -> 0
T32: =IF(D_IndK_VL_1_syst<>"",D_IndK_VL_1_syst,"") ->  | W32: =IF(D_IndK_VV_1_syst<>"",D_IndK_VV_1_syst,"") -> 
K33: =IF(D_IndK_jordtype_1=0,"",D_IndK_lagfra_1) ->  | Q33: =D_IndK_X_1 -> 0 | AI33: =D_IndK_mangeljt_1 -> 
F35: =IF(D_IndK_jordtype_2_syst<>"",D_IndK_jordtype_2_syst,"") ->  | T35: =IF(D_IndK_VL_2_int<>"",D_IndK_VL_2_int,"") ->  | W35: =IF(D_IndK_VV_2_int<>"",D_IndK_VV_2_int,"") ->  | Z35: =D_IndK_e_2 -> 0 | AC35: =D_IndK_VJ_2 -> 1 | AF35: =D_IndK_N_2 -> 0
T36: =IF(D_IndK_VL_2_syst<>"",D_IndK_VL_2_syst,"") ->  | W36: =IF(D_IndK_VV_2_syst<>"",D_IndK_VV_2_syst,"") -> 
K37: =IF(D_IndK_jordtype_2=0,"",D_IndK_lagfra_2) ->  | Q37: =D_IndK_X_2 -> 0 | AI37: =D_IndK_mangeljt_2 -> 
F39: =IF(D_IndK_jordtype_3_syst<>"",D_IndK_jordtype_3_syst,"") ->  | T39: =IF(D_IndK_VL_3_int<>"",D_IndK_VL_3_int,"") ->  | W39: =IF(D_IndK_VV_3_int<>"",D_IndK_VV_3_int,"") ->  | Z39: =D_IndK_e_3 -> 0 | AC39: =D_IndK_VJ_3 -> 1 | AF39: =D_IndK_N_3 -> 0
T40: =IF(D_IndK_VL_3_syst<>"",D_IndK_VL_3_syst,"") ->  | W40: =IF(D_IndK_VV_3_syst<>"",D_IndK_VV_3_syst,"") -> 
K41: =IF(D_IndK_jordtype_3=0,"",D_IndK_lagfra_3) ->  | Q41: =D_IndK_X_3 -> 0 | AI41: =D_IndK_mangeljt_3 -> 
F43: =IF(D_IndK_jordtype_4_syst<>"",D_IndK_jordtype_4_syst,"") ->  | T43: =IF(D_IndK_VL_4_int<>"",D_IndK_VL_4_int,"") ->  | W43: =IF(D_IndK_VV_4_int<>"",D_IndK_VV_4_int,"") ->  | Z43: =D_IndK_e_4 -> 0 | AC43: =D_IndK_VJ_4 -> 1 | AF43: =D_IndK_N_4 -> 0
T44: =IF(D_IndK_VL_4_syst<>"",D_IndK_VL_4_syst,"") ->  | W44: =IF(D_IndK_VV_4_syst<>"",D_IndK_VV_4_syst,"") -> 
K45: =IF(D_IndK_jordtype_4=0,"",D_IndK_lagfra_4) ->  | Q45: =D_IndK_X_4 -> 0 | AI45: =D_IndK_mangeljt_4 -> 
Q46: =D_IndK_negativ_X_tot -> 
O47: Samlede lagtykkelse | Q47: =D_IndK_X_tot -> 0 | S47: m for jordlag | AD47: Samlet materialekonstant KW | AF47: =D_IndK_N_tot -> 
A50: Bygningsdata | H50: Indtast data om etagen over krybekælderen
A52: Rumtype/anvendelse
A54: Loftshøjde | F54: Lh | M54: m
A56: Luftskifte | F56: Ls | H56: =D_IndK_Ls_syst -> 8.3e-05 | M56: s-1
A58: Gulvbredde | F58: lb | M58: m
A60: Gulvlængde | F60: ll | M60: m
A63: Data for krybekælder | H63: Indtast data om krybekælderen
H65: =D_IndKk_anv -> 0
A67: Reduktionsfaktoren | G67: Rkr | H67: =IF(ISNUMBER(D_IndKk_Rkr_syst),D_IndKk_Rkr_syst,"") -> 
A69: Loftshøjde | G69: Lh | M69: m
A71: Gulvbredde | G71: lb | H71: =D_IndK_Lb -> 0 | M71: m
A73: Gulvlængde | G73: ll | H73: =D_IndK_Ll -> 0 | M73: m
A75: Luftskifte | G75: Ls | H75: =D_IndKk_Ls_berg ->  | M75: s-1
A76: Vol. strøm gennem loft i
A77: krybekælderen | G77: qgv | H77: =D_IndK_qgv_Beregn ->  | M77: m³/s | O77: =D_IndK_q_check -> 
A79: Reduktionsfaktor beregn. | G79: Rkr | H79: =D_IndKk_Rkr_bereg ->  | O79: =D_IndK_Rkr_check -> 
A82: Forurening | H82: Data for forureningen er overført fra fugacitetsmodulet Indtast baggrundskoncentration samt eventuel manglende diffusionskoefficient
A86: Stofnavn | H86: =D_Ind_stofnavn_1 ->  | N86: =D_Ind_stofnavn_2 ->  | T86: =D_Ind_stofnavn_3 ->  | Z86: =D_Ind_stofnavn_4 -> 
A88: Målepunkt | H88: =D_Enk_MP_1 ->  | N88: =D_Enk_MP_2 ->  | T88: =D_Enk_MP_3 ->  | Z88: =D_Enk_MP_4 -> 
A89: Dato | H89: =D_Enk_dato_1 ->  | N89: =D_Enk_dato_2 ->  | T89: =D_Enk_dato_3 ->  | Z89: =D_Enk_dato_4 -> 
A91: Poreluftskoncentration | F91: CL | H91: =D_IndK_CL_1 -> 0 | N91: =D_IndK_CL_2 -> 0 | T91: =D_IndK_CL_3 -> 0 | Z91: =D_IndK_CL_4 -> 0 | AF91: mg/m³
A93: Test af andre værdier | AF93: mg/m³
A95: Baggrundskoncentration | F95: C0 | AF95: mg/m³
A97: Diffusionskoefficient i luft | F97: DL | H97: =D_Ind_DL_1 -> 0 | N97: =D_Ind_DL_2 -> 0 | T97: =D_Ind_DL_3 -> 0 | Z97: =D_Ind_DL_4 -> 0 | AF97: m²/s
A99: Beregning: Indeklima
A101: Luft konc. i krybekælder | F101: Ck-beregn | H101: =D_IndKk_Ckr_1_beregn ->  | N101: =D_IndKk_Ckr_2_beregn ->  | T101: =D_IndKk_Ckr_3_beregn ->  | Z101: =D_IndKk_Ckr_4_beregn ->  | AF101: mg/m³
F102: Ck-målt
A105: Totalt bidrag til indeluft | F105: Ci | H105: =D_IndK_Ci_1 ->  | N105: =D_IndK_Ci_2 ->  | T105: =D_IndK_Ci_3 ->  | Z105: =D_IndK_Ci_4 ->  | AF105: mg/m³
A108: Afdampningskriterie | H108: =D_Ind_afd_krit_1 -> 0 | N108: =D_Ind_afd_krit_2 -> 0 | T108: =D_Ind_afd_krit_3 -> 0 | Z108: =D_Ind_afd_krit_4 -> 0 | AF108: mg/m³
A110: Overskridelse af kriteriet | H110: =D_IndK_oskr_1 -> Intet kriterie | N110: =D_IndK_oskr_2 -> Intet kriterie | T110: =D_IndK_oskr_3 -> Intet kriterie | Z110: =D_IndK_oskr_4 -> Intet kriterie | AF110: gange
A112: Anvendt Brugerdata | H112: =Dataark_Indeklima!H196 -> Nej | N112: =Dataark_Indeklima!L196 -> Nej | T112: =Dataark_Indeklima!P196 -> Nej | Z112: =Dataark_Indeklima!T196 -> Nej

Sheet Dataark_Indeklima (hidden)
B2: Dataark - Indeklima | Z2: Systemnavn | AA2: Oprindelsessted
B4: Terrændæk, kælder | C4: FALSE
B5: Krybekælder | C5: TRUE
B7: Influenszone og membran
E9: Membran (1) | I9: Kapilarbrydende lag (2)
C10: Forkortelse | D10: Enhed | E10: interval | F10: Systemværdi | G10: Indtastet | H10: Anvendes | I10: interval | J10: Systemværdi | K10: Indtastet | L10: Anvendes | M10: SAMLET
B11: Navn | G11: =Ind_My_Memb -> 0 | H11: =IF(ISTEXT(G11),G11,F11) -> 0 | K11: =Ind_My_Kab_2 -> 0 | L11: =IF(ISTEXT(K11),K11,J11) -> 0 | Z11: D_Ind_navnb_n | AA11: Indput
B12: Tykkelse af lag | C12: Xb | D12: m | G12: =Ind_My_Xb_1 -> 0 | H12: =IF(VALUE(G12),G12,F12) -> 0 | K12: =Ind_My_Xb_2 -> 0 | L12: =K12 -> 0 | M12: =B_Ind_Xb_tot -> 0 | Z12: D_Ind_Xb_n | AA12: Indput
B13: Poreluftvolumen | C13: VL | K13: =Ind_My_Kab_VL_2 -> 0 | L13: =IF(VALUE(K13),K13,J13) -> 0 | Z13: D_Ind_VLb_n | AA13: Indput
B14: Vand-indhold | C14: VV | K14: =Ind_My_Kab_VV_2 -> 0 | L14: =IF(VALUE(K14),K14,J14) -> 0 | Z14: D_Ind_VVb_n | AA14: Indput
B15: Samlet porøsitet | C15: e=VL+VV | L15: =B_Ind_eb_2 -> 0 | Z15: D_Ind_eb_n | AA15: beregnes
B16: Volumen af jordskellet | C16: VJ | L16: =B_Ind_VJb_2 -> 1 | Z16: D_Ind_VJb_n | AA16: beregnes
B17: Materialekonstant (app 5.3 - lign 64) | C17: tb | G17: =Ind_My_Nb_n -> 0 | H17: =IF(VALUE(G17),G17,F17) -> 0 | L17: =B_Ind_Nb_2 -> 0 | Z17: D_Ind_Nb_n | AA17: beregnes
B18: Korigeret materialekonstant | C18: N-kor | H18: =B_Ind_Nb_kor_1 -> 1 | L18: =B_Ind_Nb_kor_2 -> 1 | Z18: D_Ind_Nb_kor_n | AA18: beregnes
B19: Check af manglende type | H19: =IF(AND(D_Ind_Xb_1>0,D_Ind_navnb_1=0),"Fejl! Typeangivelse mangler","") ->  | L19: =IF(AND(D_Ind_Xb_2>0,D_Ind_navnb_2=0),"Fejl! Typeangivelse mangler","") ->  | Z19: D_Ind_b_mangeljt_x | AA19: Beregnes i dataark
B20: Mellemregning (app. 5.3 - Lign 80) | H20: =B_Ind_Nb_mel_1 -> 0 | L20: =B_Ind_Nb_mel_2 -> 0 | Z20: D_Ind_Nb_mel_n | AA20: beregnes
B22: Jord
E24: Jordlag 1 | I24: Jordlag 2 | M24: Jordlag 3 | Q24: Jordlag 4
B25: Navn | C25: Forkortelse | D25: Enhed | E25: interval | F25: Systemværdi | G25: Indtastet | H25: Anvendes | I25: interval | J25: Systemværdi | K25: Indtastet | L25: Anvendes | M25: interval | N25: Systemværdi | O25: Indtastet | P25: Anvendes | Q25: interval | R25: Systemværdi | S25: Indtastet | T25: Anvendes | U25: SAMLET
B26: Jordtype | G26: =Ind_My_Jord1 -> 0 | H26: =IF(ISTEXT(G26),G26,F26) -> 0 | K26: =Ind_My_Jord2 -> 0 | L26: =IF(ISTEXT(K26),K26,J26) -> 0 | O26: =Ind_My_Jord3 -> 0 | P26: =IF(ISTEXT(O26),O26,N26) -> 0 | S26: =Ind_My_Jord4 -> 0 | T26: =IF(ISTEXT(S26),S26,R26) -> 0 | Z26: D_Ind_jordtype_n | AA26: Indput
B27: Jordlag, Dybde fra | C27: x1 | D27: m u.t. | F27: =B_Ind_Xb_tot -> 0 | G27: =Ind_Jord_df -> 0 | H27: =IF(VALUE(G27),G27,F27) -> 0 | J27: =D_Ind_lagtil_1 -> 0 | L27: =J27 -> 0 | N27: =D_Ind_lagtil_2 -> 0 | P27: =N27 -> 0 | R27: =D_Ind_lagtil_3 -> 0 | T27: =R27 -> 0 | Z27: D_Ind_lagfra_n | AA27: Indput
B28: Jordlag, Dybde til | C28: x2 | D28: m u.t. | G28: =Ind_Jord_dt1 -> 0 | H28: =G28 -> 0 | K28: =Ind_Jord_dt2 -> 0 | L28: =K28 -> 0 | O28: =Ind_Jord_dt3 -> 0 | P28: =O28 -> 0 | S28: =Ind_Jord_dt4 -> 0 | T28: =IF(VALUE(S28),S28,R28) -> 0 | Z28: D_Ind_lagtil_n | AA28: Indput
B29: Tykkelse af jordlag | C29: X | D29: m | H29: =B_Ind_X_1 -> 0 | L29: =B_Ind_X_2 -> 0 | P29: =B_Ind_X_3 -> 0 | T29: =B_Ind_X_4 -> 0 | U29: =B_Ind_X_tot -> 0 | Z29: D_Ind_X_n | AA29: beregnes
B30: Check af negativ højde | H30: =B_Ind_negativ_X_1 -> 0 | L30: =B_Ind_negativ_X_2 -> 0 | P30: =B_Ind_negativ_X_3 -> 0 | T30: =B_Ind_negativ_X_4 -> 0 | U30: =B_Ind_negativ_X_tot ->  | Z30: D_Ind_negativ_X_n | AA30: beregnes
B31: Poreluftvolumen | C31: VL | G31: =Ind_My_VL1 -> 0 | H31: =IF(VALUE(G31),G31,F31) -> 0 | K31: =Ind_My_VL2 -> 0 | L31: =IF(VALUE(K31),K31,J31) -> 0 | O31: =Ind_My_VL3 -> 0 | P31: =IF(VALUE(O31),O31,N31) -> 0 | S31: =Ind_My_VL4 -> 0 | T31: =IF(VALUE(S31),S31,R31) -> 0 | Z31: D_Ind_VL_n | AA31: Indput
B32: Vand-indhold | C32: VV | G32: =Ind_My_VV1 -> 0 | H32: =IF(VALUE(G32),G32,F32) -> 0 | K32: =Ind_My_VV2 -> 0 | L32: =IF(VALUE(K32),K32,J32) -> 0 | O32: =Ind_My_VV3 -> 0 | P32: =IF(VALUE(O32),O32,N32) -> 0 | S32: =Ind_My_VV4 -> 0 | T32: =IF(VALUE(S32),S32,R32) -> 0 | Z32: D_Ind_VV_n | AA32: Indput
B33: Samlet porøsitet | C33: e=VL+VV | H33: =B_Ind_e_1 -> 0 | L33: =B_Ind_e_2 -> 0 | P33: =B_Ind_e_3 -> 0 | T33: =B_Ind_e_4 -> 0 | Z33: D_Ind_e_n | AA33: beregnes
B34: Volumen af jordskellet | C34: VJ | H34: =B_Ind_VJ_1 -> 1 | L34: =B_Ind_VJ_2 -> 1 | P34: =B_Ind_VJ_3 -> 1 | T34: =B_Ind_VJ_4 -> 1 | Z34: D_Ind_VJ_n | AA34: beregnes
B35: Materialekonstant (app 5.3 - lign 64) | C35: t | H35: =B_Ind_N_1 -> 0 | L35: =B_Ind_N_2 -> 0 | P35: =B_Ind_N_3 -> 0 | T35: =B_Ind_N_4 -> 0 | Z35: D_Ind_N_n | AA35: beregnes
B36: Korigeret materialekonstant | C36: N-kor | H36: =B_Ind_N_kor_1 -> 1 | L36: =B_Ind_N_kor_2 -> 1 | P36: =B_Ind_N_kor_3 -> 1 | T36: =B_Ind_N_kor_4 -> 1 | Z36: D_Ind_N_kor_n | AA36: beregnes
B37: Mellemregning (app. 5.3 - Lign 80) | H37: =B_Ind_N_mel_1 -> 0 | L37: =B_Ind_N_mel_2 -> 0 | P37: =B_Ind_N_mel_3 -> 0 | T37: =B_Ind_N_mel_4 -> 0 | Z37: D_Ind_N_mel_n | AA37: beregnes
B38: Check af manglende jordtype | H38: =IF(AND(D_Ind_lagtil_1>0,D_Ind_jordtype_1=0),"Fejl! Jordtype mangler","") ->  | L38: =IF(AND(D_Ind_lagtil_2>0,D_Ind_jordtype_2=0),"FEJL! Jordtype mangler","") ->  | P38: =IF(AND(D_Ind_lagtil_3>0,D_Ind_jordtype_3=0),"FEJL! Jordtype mangler","") ->  | T38: =IF(AND(D_Ind_lagtil_4>0,D_Ind_jordtype_4=0),"FEJL! Jordtype mangler","") ->  | Z38: D_Ind_mangeljt_x | AA38: Beregnes i dataark
B39: Samlet materiale konstant (app 5.3 - lign. 80) | C39: t* | U39: =B_Ind_N_tot ->  | Z39: D_Ind_N_tot | AA39: beregnes
B41: Bygningsdata
B43: Terrændæk
C45: Forkortelse | D45: Enhed | E45: Systemværdi | F45: Indtastet | G45: Anvendes
B46: Type af terrændæk | F46: =Ind_My_Inddæk -> 0 | G46: =IF(ISTEXT(F46),F46,E46) -> 0 | Z46: D_Ind_Inddæk | AA46: Indput
B47: Betontværsnit | C47: hb | D47: mm | F47: =Ind_My_hb -> 0 | G47: =IF(VALUE(F47),F47,E47) -> 0 | Z47: D_Ind_hb | AA47: Indput
B48: Relativ luftfugtighed | C48: RF | D48: % | F48: =Ind_My_RF -> 0 | G48: =IF(VALUE(F48),F48,E48) -> 0 | Z48: D_Ind_RF | AA48: Indput
B49: Vand/cement-tallet | C49: v/c | F49: =Ind_My_wc -> 0 | G49: 0 | Z49: D_Ind_wc | AA49: Indput
B50: Cementindhold | C50: CM | D50: kg/m3 | F50: =Ind_My_CM -> 0 | G50: 0 | Z50: D_Ind_CM | AA50: Indput
B51: Svindtid | C51: ts | D51: døgn | F51: =Ind_My_ts -> 0 | G51: 0 | Z51: D_Ind_ts | AA51: Indput
B52: Materialekonst. for beton | C52: Nb | F52: =Ind_My_Nb -> 0 | G52: 0 | Z52: D_Ind_Nb | AA52: Indput
B53: Armeringsdiameter | C53: da | D53: mm | F53: =Ind_My_da -> 0 | G53: 0 | Z53: D_Ind_da | AA53: Indput
B54: Armeringskonstant | C54: k | F54: =Ind_My_k -> 0 | G54: 0 | Z54: D_Ind_k | AA54: Indput
B55: Afstand mellem armeringsjern | C55: Db | D55: mm | F55: =IF(VALUE(Ind_My_Db),Ind_My_Db,"") ->  | G55: =IF(ISNUMBER(F55),F55,IF(ISNUMBER(E55),E55,"")) ->  | Z55: D_Ind_Db | AA55: Indput
B56: Dynamisk viskositet af luft | C56: m | D56: kg/(m * s) | E56: 1.8e-05 | F56: =Ind_My_my -> 0 | G56: 1.8e-05 | Z56: D_Ind_my | AA56: Systemværdi
B57: Elasticitetskoeff. Stål | C57: Es | D57: MPa | E57: 210000 | F57: =Ind_My_Es -> 0 | G57: 210000 | Z57: D_Ind_Es | AA57: Systemværdi
B58: Elasticitetskoeff. Beton | C58: Eb | D58: MPa | E58: 20000 | F58: =Ind_My_Eb -> 0 | G58: 20000 | Z58: D_Ind_Eb | AA58: Systemværdi
B59: Materialekonstant for terrændæk (app. 5.3 lign 68B) | C59: KN | D59: m³/(m²·s) | G59: =B_Ind_Kn ->  | Z59: D_Ind_Kn | AA59: beregnes
B61: Bygningsdata
C63: Forkortelse | D63: Enhed | E63: Systemværdi | F63: Indtastet | G63: Anvendes
B64: Rumtype/anvendelse | F64: =Ind_My_anv -> 0 | G64: =IF(ISTEXT(F64),F64,E64) -> 0 | Z64: D_Ind_anv | AA64: Indput
B65: Loftshøjde | C65: Lh | D65: m | F65: =Ind_My_Lh -> 0 | G65: =IF(VALUE(F65),F65,E65) -> 0 | Z65: D_Ind_Lh | AA65: Indput
B66: Luftskifte | C66: Ls | D66: s-1 | E66: 8.3e-05 | F66: =Ind_My_Ls -> 0 | G66: =IF(VALUE(F66),F66,E66) -> 8.3e-05 | Z66: D_Ind_Ls | AA66: Systemværdi
B67: Gulvbredde | C67: lb | D67: m | F67: =Ind_My_Lb -> 0 | G67: =IF(VALUE(F67),F67,E67) -> 0 | Z67: D_Ind_Lb | AA67: Indput
B68: Gulvlængde | C68: ll | D68: m | F68: =Ind_My_Ll -> 0 | G68: =IF(VALUE(F68),F68,E68) -> 0 | Z68: D_Ind_Ll | AA68: Indput
B69: Trykforskel over betondæk | C69: DP | D69: Pa | E69: 5 | F69: =Ind_My_DP -> 0 | G69: =IF(VALUE(F69),F69,E69) -> 5 | Z69: D_Ind_DP | AA69: Systemværdi
B71: Beregnede bygningsdata
C73: Forkortelse | D73: Enhed | E73: Beregnet værdi | F73: Indtastet | G73: Anvendes
B74: Revnevidde (app 5.3 lign. 73 eller MST nr. 7 1998 - lign 40) | C74: w | D74: mm | E74: =B_Ind_w_Ber ->  | F74: =Ind_My_w -> 0 | G74: =IF(VALUE(F74),F74,E74) ->  | Z74: D_Ind_w | AA74: beregnes
B75: Basissvindet (MST nr. 7 1998 - lign 31) | C75: ec | D75: % | E75: =B_Ind_ec_Ber -> 0.05329341317 | G75: =D_Ind_ec_Ber -> 0.05329341317 | Z75: D_Ind_ec | AA75: beregnes
B76: Beton-sammensætningskoefficient (MST nr. 7 1998 - lign 32) | C76: kb | E76: =B_Ind_Kb_Ber -> 0 | G76: =D_Ind_Kb_Ber -> 0 | Z76: D_Ind_Kb | AA76: beregnes
B77: Gnmsn. Revneafstand (MST nr. 7 1998 - lign 41+42) | C77: lw | D77: mm | E77: =B_Ind_lw_Ber ->  | F77: =Ind_My_Lw -> 0 | G77: =IF(VALUE(F77),F77,E77) ->  | Z77: D_Ind_lw | AA77: beregnes
B78: Total revnelængde (app 5.3 lign. 72 eller MST nr. 7 1998 - lign 43) | C78: ltot | D78: m | E78: =B_Ind_ltot_Ber -> 0 | F78: =Ind_My_ltot -> 0 | G78: =IF(VALUE(F78),F78,E78) -> 0 | Z78: D_Ind_ltot | AA78: beregnes
B79: Vol. strøm gennem beton (app 5.3 lign. 70 eller MST nr. 7 1998 - lign 44) | C79: qb | D79: m³/(s ) | E79: =B_Ind_q_Ber ->  | F79: =Ind_My_q -> 0 | G79: =IF(VALUE(F79),F79,E79) ->  | Z79: D_Ind_q | AA79: beregnes
B80: Vol. strøm i bygningen | C80: qbyg | D80: m³/(s ) | E80: =B_ind_qbyg_ber -> 0 | G80: =D_ind_qbyg_ber -> 0 | Z80: D_ind_qbyg | AA80: beregnes
B81: CHECK af volumenstrøm gennem beton | C81: q_check | D81: % | E81: =B_ind_qcheck_ber ->  | G81: =D_ind_qcheck_ber ->  | Z81: D_ind_qcheck | AA81: beregnes
B82: Den frie svindtøjning MST nr. 7 1998 - lign 30 til lign36 | C82: eg | D82: % | E82: =B_Ind_eg_Ber ->  | G82: =D_Ind_eg_Ber ->  | Z82: D_Ind_eg | AA82: beregnes
B84: Stoffer
E86: Stof 1 | I86: Stof 2 | M86: Stof 3 | Q86: Stof 4
B87: Navn | C87: Forkortelse | D87: Enhed | E87: Systemværdi | F87: Indtastet | G87: Testværdi | H87: Anvendes | I87: Systemværdi | J87: Indtastet | K87: Testværdi | L87: Anvendes | M87: Systemværdi | N87: Indtastet | O87: Testværdi | P87: Anvendes | Q87: Systemværdi | R87: Indtastet | S87: Testværdi | T87: Anvendes
B88: Forureningskomponent | E88: =Enk_stofnavn_1 ->  | F88: =Enk_My_stofnavn_1 -> 0 | H88: =IF(ISTEXT(F88),F88,IF(E88<>0,E88,"")) ->  | I88: =Enk_stofnavn_2 ->  | J88: =Enk_My_stofnavn_2 -> 0 | L88: =IF(ISTEXT(J88),J88,IF(I88<>0,I88,"")) ->  | M88: =Enk_stofnavn_3 ->  | N88: =Enk_My_stofnavn_3 -> 0 | P88: =IF(ISTEXT(N88),N88,IF(M88<>0,M88,"")) ->  | Q88: =Enk_stofnavn_4 ->  | R88: =Enk_My_stofnavn_4 -> 0 | T88: =IF(ISTEXT(R88),R88,IF(Q88<>0,Q88,"")) ->  | Z88: D_Ind_stofnavn_n | AA88: Indput
B89: Poreluftskoncentration / test af andre værdier | C89: CL | D89: mg/m³ | F89: =IF(D_Enk_CL_1<>0,D_Enk_CL_1,IF(D_Enk_Cl_V_1<>0,D_Enk_Cl_V_1,IF(D_Enk_Cl_J_1<>0,D_Enk_Cl_J_1,""))) ->  | G89: =IF(VALUE(Ind_My_CL_1),Ind_My_CL_1,"") ->  | H89: =IF(ISNUMBER(G89),G89,IF(ISNUMBER(F89),F89, E89)) -> 0 | J89: =IF(D_Enk_CL_2<>0,D_Enk_CL_2,IF(D_Enk_Cl_V_2<>0,D_Enk_Cl_V_2,IF(D_Enk_Cl_J_2<>0,D_Enk_Cl_J_2,""))) ->  | K89: =IF(VALUE(Ind_My_CL_2),Ind_My_CL_2,"") ->  | L89: =IF(ISNUMBER(K89),K89,IF(ISNUMBER(J89),J89, I89)) -> 0 | N89: =IF(D_Enk_CL_3<>0,D_Enk_CL_3,IF(D_Enk_Cl_V_3<>0,D_Enk_Cl_V_3,IF(D_Enk_Cl_J_3<>0,D_Enk_Cl_J_3,""))) ->  | O89: =IF(VALUE(Ind_My_CL_3),Ind_My_CL_3,"") ->  | P89: =IF(ISNUMBER(O89),O89,IF(ISNUMBER(N89),N89, M89)) -> 0 | R89: =IF(D_Enk_CL_4<>0,D_Enk_CL_4,IF(D_Enk_Cl_V_4<>0,D_Enk_Cl_V_4,IF(D_Enk_Cl_J_4<>0,D_Enk_Cl_J_4,""))) ->  | S89: =IF(VALUE(Ind_My_CL_4),Ind_My_CL_4,"") ->  | T89: =IF(ISNUMBER(S89),S89,IF(ISNUMBER(R89),R89, Q89)) -> 0 | Z89: D_Ind_CL_n | AA89: Overført fra Enkeltstofer/Input
B90: Baggrundskoncentration | C90: C0 | D90: mg/m³ | F90: =Ind_My_C0_1 -> 0 | H90: =IF(VALUE(F90),F90,E90) -> 0 | J90: =Ind_My_C0_2 -> 0 | L90: =IF(VALUE(J90),J90,I90) -> 0 | N90: =Ind_My_C0_3 -> 0 | P90: =IF(VALUE(N90),N90,M90) -> 0 | R90: =Ind_My_C0_4 -> 0 | T90: =IF(VALUE(R90),R90,Q90) -> 0 | Z90: D_Ind_C0_n | AA90: Indput
B91: Diffusionskoefficient luft | C91: DL | D91: m²/s | E91: =D_Enk_DL_1 -> 0 | H91: =E91 -> 0 | I91: =D_Enk_DL_2 -> 0 | L91: =I91 -> 0 | M91: =D_Enk_DL_3 -> 0 | P91: =M91 -> 0 | Q91: =D_Enk_DL_4 -> 0 | T91: =Q91 -> 0 | Z91: D_Ind_DL_n | AA91: Overført fra Enkeltstofer
E92: Systemværdi | F92: Beregnet værdi | H92: Anvendes | I92: Systemværdi | J92: Beregnet værdi | L92: Anvendes | M92: Systemværdi | N92: Beregnet værdi | P92: Anvendes | Q92: Systemværdi | R92: Beregnet værdi | T92: Anvendes
E93: dag-1 | F93: sek-1 | H93: Sek-1 | I93: dag-1 | J93: sek-1 | L93: Sek-1 | M93: dag-1 | N93: sek-1 | P93: Sek-1 | Q93: dag-1 | R93: sek-1 | T93: Sek-1
B94: Nedbrydningskonstant i poreluft | C94: k1 | E94: =D_Enk_k1anaerob_poreluft_1 -> 0 | F94: =IF(E94>0,B_Ind_k1_1,0) -> 0 | H94: =F94 -> 0 | I94: =D_Enk_k1anaerob_poreluft_2 -> 0 | J94: =IF(I94>0,B_Ind_k1_2,0) -> 0 | L94: =J94 -> 0 | M94: =D_Enk_k1anaerob_poreluft_3 -> 0 | N94: =IF(M94>0,B_Ind_k1_3,0) -> 0 | P94: =N94 -> 0 | Q94: =D_Enk_k1anaerob_poreluft_4 -> 0 | R94: =IF(Q94>0,B_Ind_k1_4,0) -> 0 | T94: =R94 -> 0 | Z94: D_Ind_k1_n | AA94: Overført fra Enkeltstoffer
B95: Anvendt Brugerdata fra kemiske data | F95: =Dataark_Enkeltstoffer!E85 -> 0 | J95: =Dataark_Enkeltstoffer!H85 -> 0 | N95: =Dataark_Enkeltstoffer!K85 -> 0 | R95: =Dataark_Enkeltstoffer!N85 -> 0
B96: Indeklima beregninger | E96: Beregnet værdi | F96: Indtastet | H96: Anvendes | I96: Beregnet værdi | J96: Indtastet | L96: Anvendes | M96: Beregnet værdi | N96: Indtastet | P96: Anvendes | Q96: Beregnet værdi | R96: Indtastet | T96: Anvendes
B97: Flux gennem betongulv (app. 5.3 ligning 63) | C97: Jz | D97: mg/(m² s) | E97: =B_Ind_Jz_1 ->  | F97: =Ind_My_Jz_1 -> 0 | H97: =IF(VALUE(F97),F97,E97) ->  | I97: =B_Ind_Jz_2 ->  | J97: =Ind_My_Jz_2 -> 0 | L97: =IF(VALUE(J97),J97,I97) ->  | M97: =B_Ind_Jz_3 ->  | N97: =Ind_My_Jz_3 -> 0 | P97: =IF(VALUE(N97),N97,M97) ->  | Q97: =B_Ind_Jz_4 ->  | R97: =Ind_My_Jz_4 -> 0 | T97: =IF(VALUE(R97),R97,Q97) ->  | Z97: D_Ind_Jz_n | AA97: beregnes
B98: Kjord (app. 53 ligning 75) | C98: Kjord | D98: m³/(m²·s) | E98: =B_Ind_Kjord_1 ->  | H98: =E98 ->  | I98: =B_Ind_Kjord_2 ->  | L98: =I98 ->  | M98: =B_Ind_Kjord_3 ->  | P98: =M98 ->  | Q98: =B_Ind_Kjord_4 ->  | T98: =Q98 ->  | Z98: D_Ind_Kjord_n | AA98: beregnes
B99: Totalt bidrag til indeluft | C99: Ci | D99: mg/m³ | E99: =B_Ind_Ci_1 ->  | H99: =IF(VALUE(F99),F99,E99) ->  | I99: =B_Ind_Ci_2 ->  | L99: =IF(VALUE(J99),J99,I99) ->  | M99: =B_Ind_Ci_3 ->  | P99: =IF(VALUE(N99),N99,M99) ->  | Q99: =B_Ind_Ci_4 ->  | T99: =IF(VALUE(R99),R99,Q99) ->  | Z99: D_Ind_Ci_n | AA99: beregnes
B100: Poreluftkonc. under gulv | C100: Cp | D100: mg/m³ | E100: =Beregning_Indeklima!B_Ind_Cp_1 ->  | H100: =IF(VALUE(F100),F100,E100) ->  | I100: =Beregning_Indeklima!B_Ind_Cp_2 ->  | L100: =IF(ISTEXT(Enk_stofnavn_2),IF(VALUE(J100),J100,I100),"") ->  | M100: =Beregning_Indeklima!B_Ind_Cp_3 ->  | P100: =IF(ISTEXT(Enk_stofnavn_3),IF(VALUE(N100),N100,M100),"") ->  | Q100: =Beregning_Indeklima!B_Ind_Cp_4 ->  | T100: =IF(ISTEXT(Enk_stofnavn_4),IF(VALUE(R100),R100,Q100),"") ->  | Z100: D_Ind_Cp_n | AA100: beregnes
B101: Diffusivt bidrag til indeluft | C101: Cdi | D101: mg/m³ | E101: =Beregning_Indeklima!B_Ind_Cdi_1 ->  | H101: =IF(VALUE(F101),F101,E101) ->  | I101: =Beregning_Indeklima!B_Ind_Cdi_2 ->  | L101: =IF(ISTEXT(Enk_stofnavn_2),IF(VALUE(J101),J101,I101),"") ->  | M101: =Beregning_Indeklima!B_Ind_Cdi_3 ->  | P101: =IF(ISTEXT(Enk_stofnavn_3),IF(VALUE(N101),N101,M101),"") ->  | Q101: =Beregning_Indeklima!B_Ind_Cdi_4 ->  | T101: =IF(ISTEXT(Enk_stofnavn_4),IF(VALUE(R101),R101,Q101),"") ->  | Z101: D_Ind_Cdi_n | AA101: Overført fra Enkeltstofer
B102: Afdampningskriterie | C102: afd-krit | D102: mg/m³ | H102: =D_Enk_afd_krit_1 -> 0 | L102: =D_Enk_afd_krit_2 -> 0 | P102: =D_Enk_afd_krit_3 -> 0 | T102: =D_Enk_afd_krit_4 -> 0 | Z102: D_Ind_afd_krit_n | AA102: Overført fra Enkeltstofer
B103: Overskridelse af afdampningskriteriet | D103: gange | H103: =B_Ind_oskr_1 -> Intet kriterie | L103: =B_Ind_oskr_2 -> Intet kriterie | P103: =B_Ind_oskr_3 -> Intet kriterie | T103: =B_Ind_oskr_4 -> Intet kriterie | Z103: D_Ind_oskr_n | AA103: beregnes
B104: Afdampningskriterie sum | C104: afd-krit-sum | D104: mg/m³ | H104: =D_Enk_afd_krit_sum_1 ->  | L104: =D_Enk_afd_krit_sum_2 ->  | P104: =D_Enk_afd_krit_sum_3 ->  | T104: =D_Enk_afd_krit_sum_4 ->  | Z104: D_Ind_afd_krit_sum_n | AA104: Overført fra Enkeltstoffer
B105: Overskridelse af afdampningskriteriet | D105: gange | H105: =B_Ind_oskr_sum_1 ->  | L105: =B_Ind_oskr_sum_2 ->  | P105: =B_Ind_oskr_sum_3 ->  | T105: =B_Ind_oskr_sum_4 ->  | Z105: D_Ind_oskr_sum_n | AA105: beregnes
B106: Fri fase ?? | H106: =D_Enk_FF_1 -> nej | L106: =D_Enk_FF_2 -> nej | P106: =D_Enk_FF_3 -> nej | T106: =D_Enk_FF_4 -> nej | Z106: D_Ind_FF_n | AA106: beregnes
B108: Anvendt Brugerdata | F108: =SUM(F95:F106,G31:G34,K31:K34,O31:O34,S31:S34) -> 0 | H108: =IF(F108>0,"Ja, se bemærkning","Nej") -> Nej | J108: =SUM(J95:J106,K31:K34,O31:O34,S31:S34,G31:G34) -> 0 | L108: =IF(J108>0,"Ja, se bemærkning","Nej") -> Nej | N108: =SUM(N95:N106,O31:O34,S31:S34,G31:G34,K31:K34) -> 0 | P108: =IF(N108>0,"Ja, se bemærkning","Nej") -> Nej | R108: =SUM(R95:R106,S31:S34,G31:G34,K31:K34,O31:O34) -> 0 | T108: =IF(R108>0,"Ja, se bemærkning","Nej") -> Nej | Z108: D_Ind_Brugerdata_n | AA108: Beregnes i dataark
B110: Bemærkninger
B112: Jordparametre: | Z112: D_Ind_Jord_Com | AA112: Indput - bemærkningsfelt
C113: FALSE
B114: Influenszone og membran: | Z114: D_Ind_Inf_Com | AA114: Indput - bemærkningsfelt
C115: FALSE
B116: Terrændæk: | Z116: D_Ind_Ter_Com | AA116: Indput - bemærkningsfelt
C117: FALSE
B118: Bygningsdata: | Z118: D_Ind_Byg_Com | AA118: Indput - bemærkningsfelt
C119: FALSE
B120: Forurening: | Z120: D_Ind_For_Com | AA120: Indput - bemærkningsfelt
C121: FALSE
B122: Beregning - Indeklima: | Z122: D_Ind_Ind_Com | AA122: Indput - bemærkningsfelt
C123: FALSE
B125: Dataark - Indeklima Krybekælder
B127: Betongulv, membran og jord
E129: Betongulv (1) | I129: Membran (2)
C130: Forkortelse | D130: Enhed | E130: interval | F130: Systemværdi | G130: Indtastet | H130: Anvendes | I130: interval | J130: Systemværdi | K130: Indtastet | L130: Anvendes | M130: SAMLET
B131: Navn | G131: =IndK_My_Gulv -> 0 | H131: =IF(ISTEXT(G131),G131,F131) -> 0 | K131: =IndK_My_Memb -> 0 | L131: =IF(ISTEXT(K131),K131,J131) -> 0 | Z131: D_IndK_navnb_n | AA131: Indput
B132: Tykkelse af lag | C132: Xb | D132: m | G132: =IndK_My_Xb_1 -> 0 | H132: =IF(VALUE(G132),G132,F132) -> 0 | K132: =IndK_My_Xb_2 -> 0 | L132: =IF(VALUE(K132),K132,J132) -> 0 | M132: =B_IndK_Xb_tot -> 0 | Z132: D_IndK_Xb_n | AA132: Indput
B133: Check af manglende type | H133: =IF(AND(D_IndK_Xb_1>0,D_IndK_navnb_1=0),"Fejl! Typeangivelse mangler","") ->  | L133: =IF(AND(D_IndK_Xb_2>0,D_IndK_navnb_2=0),"Fejl! Typeangivelse mangler","") ->  | Z133: D_IndK_b_mangeljt_x | AA133: Beregnes i dataark
B134: Materialekonstant (app 5.3 - lign 64) | C134: tb | G134: =IndK_My_Nb_1 -> 0 | H134: =IF(VALUE(G134),G134,F134) -> 0 | K134: =IndK_My_Nb_2 -> 0 | L134: =IF(VALUE(K134),K134,J134) -> 0 | Z134: D_IndK_Nb_n | AA134: Indput
E136: Jordlag 1 | I136: Jordlag 2 | M136: Jordlag 3 | Q136: Jordlag 4
B137: Navn | C137: Forkortelse | D137: Enhed | E137: interval | F137: Systemværdi | G137: Indtastet | H137: Anvendes | I137: interval | J137: Systemværdi | K137: Indtastet | L137: Anvendes | M137: interval | N137: Systemværdi | O137: Indtastet | P137: Anvendes | Q137: interval | R137: Systemværdi | S137: Indtastet | T137: Anvendes | U137: SAMLET
B138: Jordtype | G138: =IndK_My_Jord1 -> 0 | H138: =IF(ISTEXT(G138),G138,F138) -> 0 | K138: =IndK_My_Jord2 -> 0 | L138: =IF(ISTEXT(K138),K138,J138) -> 0 | O138: =IndK_My_Jord3 -> 0 | P138: =IF(ISTEXT(O138),O138,N138) -> 0 | S138: =IndK_My_Jord4 -> 0 | T138: =IF(ISTEXT(S138),S138,R138) -> 0 | Z138: D_IndK_jordtype_n | AA138: Indput
B139: Jordlag, Dybde fra | C139: x1 | D139: m u.t. | F139: =B_IndK_lagfra_1 -> 0 | H139: =IF(VALUE(G139),G139,F139) -> 0 | J139: =B_IndK_lagfra_2 -> 0 | L139: =J139 -> 0 | N139: =B_IndK_lagfra_3 -> 0 | P139: =N139 -> 0 | R139: =B_IndK_lagfra_4 -> 0 | T139: =R139 -> 0 | Z139: D_IndK_lagfra_n | AA139: beregnes
B140: Jordlag, Dybde til | C140: x2 | D140: m u.t. | G140: =IndK_Jord_dt1 -> 0 | H140: =G140 -> 0 | K140: =IndK_Jord_dt2 -> 0 | L140: =K140 -> 0 | O140: =IndK_Jord_dt3 -> 0 | P140: =O140 -> 0 | S140: =IndK_Jord_dt4 -> 0 | T140: =IF(VALUE(S140),S140,R140) -> 0 | Z140: D_IndK_lagtil_n | AA140: Indput
B141: Tykkelse af jordlag | C141: X | D141: m | H141: =B_IndK_X_1 -> 0 | L141: =B_IndK_X_2 -> 0 | P141: =B_IndK_X_3 -> 0 | T141: =B_IndK_X_4 -> 0 | U141: =B_IndK_X_tot -> 0 | Z141: D_IndK_X_n | AA141: beregnes
B142: Check af negativ højde | H142: =B_IndK_negativ_X_1 -> 0 | L142: =B_IndK_negativ_X_2 -> 0 | P142: =B_IndK_negativ_X_3 -> 0 | T142: =B_IndK_negativ_X_4 -> 0 | U142: =B_IndK_negativ_X_tot ->  | Z142: D_IndK_negativ_X_n | AA142: beregnes
B143: Poreluftvolumen | C143: VL | G143: =IndK_My_VL1 -> 0 | H143: =IF(VALUE(G143),G143,F143) -> 0 | K143: =IndK_My_VL2 -> 0 | L143: =IF(VALUE(K143),K143,J143) -> 0 | O143: =IndK_My_VL3 -> 0 | P143: =IF(VALUE(O143),O143,N143) -> 0 | S143: =IndK_My_VL4 -> 0 | T143: =IF(VALUE(S143),S143,R143) -> 0 | Z143: D_IndK_VL_n | AA143: Indput
B144: Vand-indhold | C144: VV | G144: =IndK_My_VV1 -> 0 | H144: =IF(VALUE(G144),G144,F144) -> 0 | K144: =IndK_My_VV2 -> 0 | L144: =IF(VALUE(K144),K144,J144) -> 0 | O144: =IndK_My_VV3 -> 0 | P144: =IF(VALUE(O144),O144,N144) -> 0 | S144: =IndK_My_VV4 -> 0 | T144: =IF(VALUE(S144),S144,R144) -> 0 | Z144: D_IndK_VV_n | AA144: Indput
B145: Samlet porøsitet | C145: e=VL+VV | H145: =B_IndK_e_1 -> 0 | L145: =B_IndK_e_2 -> 0 | P145: =B_IndK_e_3 -> 0 | T145: =B_IndK_e_4 -> 0 | Z145: D_IndK_e_n | AA145: beregnes
B146: Volumen af jordskellet | C146: VJ | H146: =B_IndK_VJ_1 -> 1 | L146: =B_IndK_VJ_2 -> 1 | P146: =B_IndK_VJ_3 -> 1 | T146: =B_IndK_VJ_4 -> 1 | Z146: D_IndK_VJ_n | AA146: beregnes
B147: Materialekonstant (app 5.3 - lign 64) | C147: t | H147: =B_IndK_N_1 -> 0 | L147: =B_IndK_N_2 -> 0 | P147: =B_IndK_N_3 -> 0 | T147: =B_IndK_N_4 -> 0 | Z147: D_IndK_N_n | AA147: beregnes
B148: Check af manglende jordtype | H148: =IF(AND(D_IndK_lagtil_1>0,D_IndK_jordtype_1=0),"Fejl! Jordtype mangler","") ->  | L148: =IF(AND(D_IndK_lagtil_2>0,D_IndK_jordtype_2=0),"FEJL! Jordtype mangler","") ->  | P148: =IF(AND(D_IndK_lagtil_3>0,D_IndK_jordtype_3=0),"FEJL! Jordtype mangler","") ->  | T148: =IF(AND(D_IndK_lagtil_4>0,D_IndK_jordtype_4=0),"FEJL! Jordtype mangler","") ->  | Z148: D_IndK_mangeljt_x | AA148: Indput
B149: Samlet materiale konstant (app 5.3 - lign. 80) | C149: t* | U149: =B_IndK_N_tot ->  | Z149: D_IndK_N_tot | AA149: Beregnes i dataark
B151: Bygningsdata
C153: Forkortelse | D153: Enhed | E153: Systemværdi | F153: Indtastet | G153: Anvendes
B154: Rumtype/anvendelse | F154: =IndK_anv -> 0 | G154: =IF(ISTEXT(F154),F154,E154) -> 0 | Z154: D_IndK_anv | AA154: Indput
B155: Loftshøjde | C155: Lh | D155: m | F155: =IndK_Lh -> 0 | G155: =IF(VALUE(F155),F155,E155) -> 0 | Z155: D_IndK_Lh | AA155: Indput
B156: Luftskifte | C156: Ls | D156: s-1 | E156: 8.3e-05 | F156: =IndK_Ls -> 0 | G156: =IF(VALUE(F156),F156,E156) -> 8.3e-05 | Z156: D_IndK_Ls | AA156: Systemværdi
B157: Gulvbredde | C157: lb | D157: m | F157: =IndK_Lb -> 0 | G157: =IF(VALUE(F157),F157,E157) -> 0 | Z157: D_IndK_Lb | AA157: Indput
B158: Gulvlængde | C158: ll | D158: m | F158: =IndK_Ll -> 0 | G158: =IF(VALUE(F158),F158,E158) -> 0 | Z158: D_IndK_Ll | AA158: Indput
B159: Volumenstrøm i beboelse | C159: Qbeboelse | D159: m³/s | E159: =B_IndK_qbb -> 0 | G159: =E159 -> 0 | AA159: beregnes
B161: Krybekælder
C163: Forkortelse | D163: Enhed | E163: Beregnet værdi | F163: Indtastet | G163: Anvendes
B164: Etageadskillelse | G164: =IF(ISTEXT(F164),F164,E164) -> 0 | Z164: D_IndKk_anv | AA164: Indput
B165: Reduktionsfaktoren | C165: Rkr | F165: =IndKk_Rkr -> 0 | G165: =IF(VALUE(F165),F165,E165) -> 0 | Z165: D_IndKk_Rkr | AA165: Indput
B166: Loftshøjde | C166: Lh | D166: m | F166: =IndKk_Lh -> 0 | G166: =F166 -> 0 | Z166: D_IndKk_Lh | AA166: Indput
B167: Gulvbredde | C167: lb | D167: m | E167: =D_IndK_Lb -> 0 | F167: =IndKk_Lb -> 0 | G167: =IF(VALUE(F167),F167,E167) -> 0 | Z167: D_IndKk_Lb | AA167: Indput
B168: Gulvlængde | C168: ll | D168: m | E168: =D_IndK_Ll -> 0 | F168: =IndKk_Ll -> 0 | G168: =IF(VALUE(F168),F168,E168) -> 0 | Z168: D_IndKk_Ll | AA168: Indput
B169: Luftskifte | C169: Ls | D169: m | E169: =B_IndKk_Ls_berg ->  | F169: =IndKk_Ls -> 0 | G169: =IF(VALUE(F169),F169,E169) ->  | Z169: D_IndKk_Ls | AA169: beregnes
B170: Vol. strøm gennem Krybekældergulv | C170: qgv | D170: m³/(s ) | E170: =B_IndK_qgv_berg ->  | F170: =IndK_qgv -> 0 | G170: =IF(VALUE(F170),F170,E170) ->  | Z170: D_IndK_qgv | AA170: beregnes
B171: Vol. strøm i krybekælderen | C171: qbyg | D171: m³/(s ) | G171: =B_IndKk_qbyg_berg ->  | Z171: D_IndK_qbyg | AA171: beregnes
B172: Check af volumenstrøm | G172: =B_IndK_q_check ->  | Z172: D_IndK_q_check | AA172: beregnes
B173: Beregnet reduktionsfaktor | C173: Rkr, beregnet | G173: =B_IndKk_Rkr_bereg ->  | Z173: D_IndKk_Rkr_bereg | AA173: beregnes
B174: Check af reduktionsfaktor | G174: =B_IndK_Rkr_check ->  | Z174: D_IndK_Rkr_check | AA174: beregnes
B176: Stoffer
E178: Stof 1 | I178: Stof 2 | M178: Stof 3 | Q178: Stof 4
B179: Navn | C179: Forkortelse | D179: Enhed | E179: Systemværdi | F179: Indtastet | G179: Testværdi | H179: Anvendes | I179: Systemværdi | J179: Indtastet | K179: Testværdi | L179: Anvendes | M179: Systemværdi | N179: Indtastet | O179: Testværdi | P179: Anvendes | Q179: Systemværdi | R179: Indtastet | S179: Testværdi | T179: Anvendes
B180: Forureningskomponent | E180: =Enk_stofnavn_1 ->  | F180: =Enk_My_stofnavn_1 -> 0 | H180: =IF(ISTEXT(F180),F180,IF(E180<>0,E180,"")) ->  | I180: =Enk_stofnavn_2 ->  | J180: =Enk_My_stofnavn_2 -> 0 | L180: =IF(ISTEXT(J180),J180,IF(I180<>0,I180,"")) ->  | M180: =Enk_stofnavn_3 ->  | N180: =Enk_My_stofnavn_3 -> 0 | P180: =IF(ISTEXT(N180),N180,IF(M180<>0,M180,"")) ->  | Q180: =Enk_stofnavn_4 ->  | R180: =Enk_My_stofnavn_4 -> 0 | T180: =IF(ISTEXT(R180),R180,IF(Q180<>0,Q180,"")) ->  | AA180: Overført fra Enkeltstoffer
B181: Poreluftskoncentration / test af andre værdier | C181: CL | D181: mg/m³ | F181: =IF(D_Enk_CL_1<>0,D_Enk_CL_1,IF(D_Enk_Cl_V_1<>0,D_Enk_Cl_V_1,IF(D_Enk_Cl_J_1<>0,D_Enk_Cl_J_1,""))) ->  | G181: =IF(VALUE(IndK_My_CL_1),IndK_My_CL_1,"") ->  | H181: =IF(ISNUMBER(G181),G181,IF(ISNUMBER(F181),F181, E181)) -> 0 | J181: =IF(D_Enk_CL_2<>0,D_Enk_CL_2,IF(D_Enk_Cl_V_2<>0,D_Enk_Cl_V_2,IF(D_Enk_Cl_J_2<>0,D_Enk_Cl_J_2,""))) ->  | K181: =IF(VALUE(IndK_My_CL_2),IndK_My_CL_2,"") ->  | L181: =IF(ISNUMBER(K181),K181,IF(ISNUMBER(J181),J181, I181)) -> 0 | N181: =IF(D_Enk_CL_3<>0,D_Enk_CL_3,IF(D_Enk_Cl_V_3<>0,D_Enk_Cl_V_3,IF(D_Enk_Cl_J_3<>0,D_Enk_Cl_J_3,""))) ->  | O181: =IF(VALUE(IndK_My_CL_3),IndK_My_CL_3,"") ->  | P181: =IF(ISNUMBER(O181),O181,IF(ISNUMBER(N181),N181, M181)) -> 0 | R181: =IF(D_Enk_CL_4<>0,D_Enk_CL_4,IF(D_Enk_Cl_V_4<>0,D_Enk_Cl_V_4,IF(D_Enk_Cl_J_4<>0,D_Enk_Cl_J_4,""))) ->  | S181: =IF(VALUE(IndK_My_CL_4),IndK_My_CL_4,"") ->  | T181: =IF(ISNUMBER(S181),S181,IF(ISNUMBER(R181),R181, Q181)) -> 0 | Z181: D_IndK_CL_n | AA181: Indput
B182: Baggrundskoncentration | C182: C0 | D182: mg/m³ | F182: =Indk_My_C0_1 -> 0 | H182: =IF(VALUE(F182),F182,E182) -> 0 | J182: =Indk_My_C0_2 -> 0 | L182: =IF(VALUE(J182),J182,I182) -> 0 | N182: =Indk_My_C0_3 -> 0 | P182: =IF(VALUE(N182),N182,M182) -> 0 | R182: =Indk_My_C0_4 -> 0 | T182: =IF(VALUE(R182),R182,Q182) -> 0 | Z182: D_Indk_C0_n | AA182: Indput
B183: Diffusionskoefficient luft | C183: DL | D183: m²/s | E183: =D_Enk_DL_1 -> 0 | H183: =IF(VALUE(F183),F183,E183) -> 0 | I183: =D_Enk_DL_2 -> 0 | L183: =IF(VALUE(J183),J183,I183) -> 0 | M183: =D_Enk_DL_3 -> 0 | P183: =IF(VALUE(N183),N183,M183) -> 0 | Q183: =D_Enk_DL_4 -> 0 | T183: =IF(VALUE(R183),R183,Q183) -> 0 | Z183: D_IndK_DL_n | AA183: Overført fra Enkeltstoffer
E184: Systemværdi | F184: Beregnet værdi | H184: Anvendes | I184: Systemværdi | J184: Beregnet værdi | L184: Anvendes | M184: Systemværdi | N184: Beregnet værdi | P184: Anvendes | Q184: Systemværdi | R184: Beregnet værdi | T184: Anvendes
E185: dag-1 | F185: sek-1 | H185: Sek-1 | I185: dag-1 | J185: sek-1 | L185: Sek-1 | M185: dag-1 | N185: sek-1 | P185: Sek-1 | Q185: dag-1 | R185: sek-1 | T185: Sek-1
B186: Nedbrydningskonstant i poreluft | C186: k1 | E186: =D_Enk_k1anaerob_poreluft_1 -> 0 | F186: =IF(E186>0,B_Ind_k1_1,0) -> 0 | H186: =F186 -> 0 | I186: =D_Enk_k1anaerob_poreluft_2 -> 0 | J186: =IF(I186>0,B_Ind_k1_2,0) -> 0 | L186: =J186 -> 0 | M186: =D_Enk_k1anaerob_poreluft_3 -> 0 | N186: =IF(M186>0,B_Ind_k1_3,0) -> 0 | P186: =N186 -> 0 | Q186: =D_Enk_k1anaerob_poreluft_4 -> 0 | R186: =IF(Q186>0,B_Ind_k1_4,0) -> 0 | T186: =R186 -> 0 | AA186: Overført fra Enkeltstoffer
B187: Anvendt Brugerdata fra kemiske data | F187: =Dataark_Enkeltstoffer!E85 -> 0 | J187: =Dataark_Enkeltstoffer!H85 -> 0 | N187: =Dataark_Enkeltstoffer!K85 -> 0 | R187: =Dataark_Enkeltstoffer!N85 -> 0
B188: Indeklima beregninger | E188: Beregnet værdi | F188: Indtastet | H188: Anvendes | I188: Beregnet værdi | J188: Indtastet | L188: Anvendes | M188: Beregnet værdi | N188: Indtastet | P188: Anvendes | Q188: Beregnet værdi | R188: Indtastet | T188: Anvendes
B189: Flux gennem jorden (app. 5.3 ligning 80) | C189: Jz | D189: mg/(m² s) | E189: =B_IndKk_Jz_1 ->  | H189: =IF(VALUE(F189),F189,E189) ->  | I189: =B_IndKk_Jz_2 ->  | L189: =IF(VALUE(J189),J189,I189) ->  | M189: =B_IndKk_Jz_3 ->  | P189: =IF(VALUE(N189),N189,M189) ->  | Q189: =B_IndKk_Jz_4 ->  | T189: =IF(VALUE(R189),R189,Q189) ->  | Z189: D_IndKk_Jz_n | AA189: beregnes
B190: Luftkoncentrationen i krybekælderen (app. 5.3 ligning 81) | C190: Ckr | D190: mg/m³ | E190: =B_IndKk_Ckr_1 ->  | F190: =IndKk_My_Ckr_1 -> 0 | H190: =IF(ISNUMBER(IndKk_My_Ckr_1),IndKk_My_Ckr_1, D_IndKk_Ckr_1_beregn) ->  | I190: =B_IndKk_Ckr_2 ->  | J190: =IndKk_My_Ckr_2 -> 0 | L190: =IF(ISNUMBER(IndKk_My_Ckr_2),IndKk_My_Ckr_2, D_IndKk_Ckr_2_beregn) ->  | M190: =B_IndKk_Ckr_3 ->  | N190: =IndKk_My_Ckr_3 -> 0 | P190: =IF(ISNUMBER(IndKk_My_Ckr_3),IndKk_My_Ckr_3, D_IndKk_Ckr_3_beregn) ->  | Q190: =B_IndKk_Ckr_4 ->  | R190: =IndKk_My_Ckr_4 -> 0 | T190: =IF(ISNUMBER(IndKk_My_Ckr_4),IndKk_My_Ckr_4, D_IndKk_Ckr_4_beregn) ->  | Z190: D_IndKk_Ckr_n | AA190: beregnes
B191: Totalt bidrag til indeluft | C191: Ci | D191: mg/m³ | E191: =B_IndK_Ci_1 ->  | H191: =IF(VALUE(F191),F191,E191) ->  | I191: =B_IndK_Ci_2 ->  | L191: =IF(VALUE(J191),J191,I191) ->  | M191: =B_IndK_Ci_3 ->  | P191: =IF(VALUE(N191),N191,M191) ->  | Q191: =B_IndK_Ci_4 ->  | T191: =IF(VALUE(R191),R191,Q191) ->  | Z191: D_IndK_Ci_n | AA191: beregnes
B192: Afdampningskriterie | C192: afd-krit | D192: mg/m³ | H192: =D_Enk_afd_krit_1 -> 0 | L192: =D_Enk_afd_krit_2 -> 0 | P192: =D_Enk_afd_krit_3 -> 0 | T192: =D_Enk_afd_krit_4 -> 0 | AA192: Overført fra Enkeltstoffer
B193: Overskridelse af afdampningskriteriet | D193: gange | H193: =B_IndK_oskr_1 -> Intet kriterie | L193: =B_IndK_oskr_2 -> Intet kriterie | P193: =B_IndK_oskr_3 -> Intet kriterie | T193: =B_IndK_oskr_4 -> Intet kriterie | Z193: D_Ind_oskr_n
B194: Fri fase ?? | H194: =D_Enk_FF_1 -> nej | L194: =D_Enk_FF_2 -> nej | P194: =D_Enk_FF_3 -> nej | T194: =D_Enk_FF_4 -> nej | AA194: Overført fra Enkeltstoffer
B196: Anvendt Brugerdata | F196: =SUM(F187:F194,G143:G146,K143:K146,O143:O146,S143:S146) -> 0 | H196: =IF(F196>0,"Ja, se bemærkning","Nej") -> Nej | J196: =SUM(J187:J194,K143:K146,O143:O146,S143:S146,G143:G146) -> 0 | L196: =IF(J196>0,"Ja, se bemærkning","Nej") -> Nej | N196: =SUM(N187:N194,O143:O146,S143:S146,G143:G146,K143:K146) -> 0 | P196: =IF(N196>0,"Ja, se bemærkning","Nej") -> Nej | R196: =SUM(R187:R194,S143:S146,G143:G146,K143:K146,O143:O146) -> 0 | T196: =IF(R196>0,"Ja, se bemærkning","Nej") -> Nej | Z196: D_Ind_Brugerdata_n
B198: Bemærkninger
B200: Jordparametre: | Z200: D_Ind_Ven_Jord_Com | AA200: Indput - bemærkningsfelt
C201: =NOT(ISBLANK(D_Ind_Ven_Jord_Com)) -> FALSE
B202: Bygningsdata: | Z202: D_Ind_Ven_Byg_Com | AA202: Indput - bemærkningsfelt
C203: =NOT(ISBLANK(D_Ind_Ven_Byg_Com)) -> FALSE
B204: Krybekælderdata | Z204: D_Ind_Ven_Kryb_Com | AA204: Indput - bemærkningsfelt
C205: =NOT(ISBLANK(D_Ind_Ven_Kryb_Com)) -> FALSE
B206: Forurenet område | Z206: D_Ind_Ven_For_Com | AA206: Indput - bemærkningsfelt
C207: =NOT(ISBLANK(D_Ind_Ven_For_Com)) -> FALSE

Sheet Beregning_Indeklima (hidden)
B2: Beregning- Indeklima | T2: Systemnavn
B4: Influenszone og membran
E6: Membran (1) | G6: Kapilarbrydende lag (2)
C7: Forkortelse | D7: Enhed | E7: Værdi | F7: Beregnet | G7: Værdi | H7: Beregnet | I7: SAMLET
B8: Navn | E8: =D_Ind_navnb_1 -> 0 | G8: =D_Ind_navnb_2 -> 0 | T8: B_Ind_navnb_n
B9: Tykkelse af lag | C9: Xb | D9: m | E9: =D_Ind_Xb_1 -> 0 | F9: =E9/1000 -> 0 | G9: =D_Ind_Xb_2 -> 0 | I9: =B_Ind_Xb_1+B_Ind_Xb_2 -> 0 | T9: B_Ind_Xb_n
B10: Poreluftvolumen | C10: VL | G10: =D_Ind_VLb_2 -> 0 | T10: B_Ind_VLb_n
B11: Vand-indhold | C11: VV | G11: =D_Ind_VVb_2 -> 0 | T11: B_Ind_VVb_n
B12: Samlet porøsitet | C12: e=VL+VV | G12: =H12 -> 0 | H12: =B_Ind_VLb_2+B_Ind_VVb_2 -> 0 | T12: B_Ind_eb_n
B13: Volumen af jordskellet | C13: VJ | G13: =H13 -> 1 | H13: =1-B_Ind_eb_2 -> 1 | T13: B_Ind_VJb_n
B14: Materialekonstant (app 5.3 - lign 64) | C14: tb | E14: =D_Ind_Nb_1 -> 0 | G14: =H14 -> 0 | H14: =IF((B_Ind_eb_2)=0,0,((B_Ind_VLb_2)^2.5)/(B_Ind_eb_2)) -> 0 | T14: B_Ind_Nb_n
B15: Korigeret materialekonstant | C15: N-kor | E15: =F15 -> 1 | F15: =IF((B_Ind_Nb_1)=0,1,(B_Ind_Nb_1)) -> 1 | G15: =H15 -> 1 | H15: =IF((B_Ind_Nb_2)=0,1,(B_Ind_Nb_2)) -> 1 | T15: B_Ind_Nb_kor_n
B16: Mellemregning (app. 5.3 - Lign 80) | E16: =F16 -> 0 | F16: =B_Ind_Xb_1*B_Ind_N_kor_1*B_Ind_N_kor_2*B_Ind_N_kor_3*B_Ind_N_kor_4*B_Ind_Nb_kor_2 -> 0 | G16: =H16 -> 0 | H16: =B_Ind_Xb_2*B_Ind_N_kor_1*B_Ind_N_kor_2*B_Ind_N_kor_3*B_Ind_N_kor_4*B_Ind_Nb_kor_1 -> 0 | T16: B_Ind_Nb_mel_n
B18: Jord
E20: Jordlag 1 | G20: Jordlag 2 | I20: Jordlag 3 | K20: Jordlag 4
B21: Navn | C21: Forkortelse | D21: Enhed | E21: Værdi | F21: Beregnet | G21: Værdi | H21: Beregnet | I21: Værdi | J21: Beregnet | K21: Værdi | L21: Beregnet | M21: SAMLET
B22: Jordtype | E22: =D_Ind_jordtype_1 -> 0 | G22: =D_Ind_jordtype_2 -> 0 | I22: =D_Ind_jordtype_3 -> 0 | K22: =D_Ind_jordtype_4 -> 0 | T22: B_Ind_jordtype_n
B23: Jordlag, Dybde fra | C23: x1 | D23: m u.t. | E23: =D_Ind_lagfra_1 -> 0 | G23: =D_Ind_lagfra_2 -> 0 | I23: =D_Ind_lagfra_3 -> 0 | K23: =D_Ind_lagfra_4 -> 0 | T23: B_Ind_lagfra_n
B24: Jordlag, Dybde til | C24: x2 | D24: m u.t. | E24: =D_Ind_lagtil_1 -> 0 | G24: =D_Ind_lagtil_2 -> 0 | I24: =D_Ind_lagtil_3 -> 0 | K24: =D_Ind_lagtil_4 -> 0 | T24: B_Ind_lagtil_n
B25: Tykkelse af jordlag | C25: X | D25: m | E25: =F25 -> 0 | F25: =IF(ISNUMBER(Ind_Jord_dt1),B_Ind_lagtil_1-B_Ind_lagfra_1,0) -> 0 | G25: =H25 -> 0 | H25: =IF(ISNUMBER(Ind_Jord_dt2),B_Ind_lagtil_2-B_Ind_lagfra_2,0) -> 0 | I25: =J25 -> 0 | J25: =IF(ISNUMBER(Ind_Jord_dt3),B_Ind_lagtil_3-B_Ind_lagfra_3,0) -> 0 | K25: =L25 -> 0 | L25: =IF(ISNUMBER(Ind_Jord_dt4),B_Ind_lagtil_4-B_Ind_lagfra_4,0) -> 0 | M25: =B_Ind_X_1+B_Ind_X_2+B_Ind_X_3+B_Ind_X_4+B_Ind_Xb_tot -> 0 | T25: B_Ind_X_n
B26: Check af negativ højde | E26: =F26 -> 0 | F26: =IF(B_Ind_X_1<0,1,0) -> 0 | G26: =H26 -> 0 | H26: =IF(B_Ind_X_2<0,1,0) -> 0 | I26: =J26 -> 0 | J26: =IF(B_Ind_X_3<0,1,0) -> 0 | K26: =L26 -> 0 | L26: =IF(B_Ind_X_4<0,1,0) -> 0 | M26: =IF(B_Ind_negativ_X_1+B_Ind_negativ_X_2+B_Ind_negativ_X_3+B_Ind_negativ_X_4>0,"FEJL!! Der er jordlag med negativ højde"," ") ->  | T26: B_Ind_negativ_X_n
B27: Poreluftvolumen | C27: VL | E27: =D_Ind_VL_1 -> 0 | G27: =D_Ind_VL_2 -> 0 | I27: =D_Ind_VL_3 -> 0 | K27: =D_Ind_VL_4 -> 0 | T27: B_Ind_VL_n
B28: Vand-indhold | C28: VV | E28: =D_Ind_VV_1 -> 0 | G28: =D_Ind_VV_2 -> 0 | I28: =D_Ind_VV_3 -> 0 | K28: =D_Ind_VV_4 -> 0 | T28: B_Ind_VV_n
B29: Samlet porøsitet | C29: e=VL+VV | E29: =F29 -> 0 | F29: =B_Ind_VL_1+B_Ind_VV_1 -> 0 | G29: =H29 -> 0 | H29: =B_Ind_VL_2+B_Ind_VV_2 -> 0 | I29: =J29 -> 0 | J29: =B_Ind_VL_3+B_Ind_VV_3 -> 0 | K29: =L29 -> 0 | L29: =B_Ind_VL_4+B_Ind_VV_4 -> 0 | T29: B_Ind_e_n
B30: Volumen af jordskellet | C30: VJ | E30: =F30 -> 1 | F30: =1-B_Ind_e_1 -> 1 | G30: =H30 -> 1 | H30: =1-B_Ind_e_2 -> 1 | I30: =J30 -> 1 | J30: =1-B_Ind_e_3 -> 1 | K30: =L30 -> 1 | L30: =1-B_Ind_e_4 -> 1 | T30: B_Ind_VJ_n
B31: Materialekonstant (app 5.3 - lign 64) | C31: t | E31: =F31 -> 0 | F31: =IF((B_Ind_e_1)=0,0,((B_Ind_VL_1)^2.5)/(B_Ind_e_1)) -> 0 | G31: =H31 -> 0 | H31: =IF((B_Ind_e_2)=0,0,((B_Ind_VL_2)^2.5)/(B_Ind_e_2)) -> 0 | I31: =J31 -> 0 | J31: =IF((B_Ind_e_3)=0,0,((B_Ind_VL_3)^2.5)/(B_Ind_e_3)) -> 0 | K31: =L31 -> 0 | L31: =IF((B_Ind_e_4)=0,0,((B_Ind_VL_4)^2.5)/(B_Ind_e_4)) -> 0 | T31: B_Ind_N_n
B32: Korigeret materialekonstant | C32: N-kor | E32: =F32 -> 1 | F32: =IF((B_Ind_N_1)=0,1,(B_Ind_N_1)) -> 1 | G32: =H32 -> 1 | H32: =IF((B_Ind_N_2)=0,1,(B_Ind_N_2)) -> 1 | I32: =J32 -> 1 | J32: =IF((B_Ind_N_3)=0,1,(B_Ind_N_3)) -> 1 | K32: =L32 -> 1 | L32: =IF((B_Ind_N_4)=0,1,(B_Ind_N_4)) -> 1 | T32: B_Ind_N_kor_n
B33: Mellemregning (app. 5.3 - Lign 80) | E33: =F33 -> 0 | F33: =B_Ind_X_1*B_Ind_N_kor_2*B_Ind_N_kor_3*B_Ind_N_kor_4*B_Ind_Nb_kor_1*B_Ind_Nb_kor_2 -> 0 | G33: =H33 -> 0 | H33: =B_Ind_X_2*B_Ind_N_kor_1*B_Ind_N_kor_3*B_Ind_N_kor_4*B_Ind_Nb_kor_1*B_Ind_Nb_kor_2 -> 0 | I33: =J33 -> 0 | J33: =B_Ind_X_3*B_Ind_N_kor_1*B_Ind_N_kor_2*B_Ind_N_kor_4*B_Ind_Nb_kor_1*B_Ind_Nb_kor_2 -> 0 | K33: =L33 -> 0 | L33: =B_Ind_X_4*B_Ind_N_kor_1*B_Ind_N_kor_2*B_Ind_N_kor_3*B_Ind_Nb_kor_1*B_Ind_Nb_kor_2 -> 0 | T33: B_Ind_N_mel_n
B34: Samlet materiale konstant (app 5.3 - lign. 80) | C34: t* | M34: =(B_Ind_N_kor_1*B_Ind_N_kor_2*B_Ind_N_kor_3*B_Ind_N_kor_4*B_Ind_Nb_kor_1*B_Ind_Nb_kor_2)/(B_Ind_N_mel_1+B_Ind_N_mel_2+B_Ind_N_mel_3+B_Ind_N_mel_4+B_Ind_Nb_mel_1+B_Ind_Nb_mel_2) ->  | T34: B_Ind_N_tot
B36: Bygningsdata
B38: Terrændæk
C40: Forkortelse | D40: Enhed | E40: Værdi | F40: Beregnet
B41: Type af terrændæk | E41: =D_Ind_Inddæk -> 0 | T41: B_Ind_Inddæk
B42: Betontværsnit | C42: hb | D42: mm | E42: =D_Ind_hb -> 0 | T42: B_Ind_hb
B43: Relativ luftfugtighed | C43: RF | D43: % | E43: =D_Ind_RF -> 0 | T43: B_Ind_RF
B44: Vand/cement-tallet | C44: v/c | E44: =D_Ind_wc -> 0 | T44: B_Ind_wc
B45: Cementindhold | C45: CM | D45: kg/m3 | E45: =D_Ind_CM -> 0 | T45: B_Ind_CM
B46: Svindtid | C46: ts | D46: døgn | E46: =D_Ind_ts -> 0 | T46: B_Ind_ts
B47: Materialekonst. for beton | C47: Nb | E47: =D_Ind_Nb -> 0 | T47: B_Ind_Nb
B48: Armeringsdiameter | C48: da | D48: mm | E48: =D_Ind_da -> 0 | T48: B_Ind_da
B49: Armeringskonstant | C49: k | E49: =D_Ind_k -> 0 | T49: B_Ind_k
B50: Afstand mellem armeringsjern | C50: Db | D50: mm | E50: =D_Ind_Db ->  | T50: B_Ind_Db
B51: Dynamisk viskositet af luft | C51: m | D51: kg/(m * s) | E51: =D_Ind_my -> 1.8e-05 | T51: B_Ind_my
B52: Elasticitetskoeff. Stål | C52: Es | D52: MPa | E52: =D_Ind_Es -> 210000 | T52: B_Ind_Es
B53: Elasticitetskoeff. Beton | C53: Eb | D53: MPa | E53: =D_Ind_Eb -> 20000 | T53: B_Ind_Eb
B55: Materialekonstant for terrændæk (app. 5.3 lign 68B) | C55: KN | D55: m³/(m²·s) | E55: Beregnet værdi | F55: =G55 ->  | G55: =B_Ind_Nb/(B_Ind_hb/1000) ->  | T55: B_Ind_Kn
B57: Bygningsdata
C59: Forkortelse | D59: Enhed | E59: Værdi | F59: Beregnet | J59: MST nr. 7 1998 - lign 25 | K59: aw=Acef/Sdw
B60: Rumtype/anvendelse | E60: =D_Ind_anv -> 0 | J60: MST nr. 7 1998 - lign 26 | K60: Acef=hb·ll | T60: B_Ind_anv
B61: Loftshøjde (hb) | C61: Lh | D61: m | E61: =D_Ind_Lh -> 0 | J61: MST nr. 7 1998 - lign 27 | K61: dw=k·da | T61: B_Ind_Lh
B62: Luftskifte (Lb) | C62: Ls | D62: s-1 | E62: =D_Ind_Ls -> 8.3e-05 | T62: B_Ind_Ls
B63: Gulvbredde | C63: lb | D63: m | E63: =D_Ind_Lb -> 0 | T63: B_Ind_Lb
B64: Gulvlængde | C64: ll | D64: m | E64: =D_Ind_Ll -> 0 | T64: B_Ind_Ll
B65: Trykforskel over betondæk | C65: DP | D65: Pa | E65: =D_Ind_DP -> 5 | T65: B_Ind_DP
B67: Beregnede bygningsdata
I68: Begge betontyper
C69: Forkortelse | D69: Enhed | E69: Værdi | F69: Beregnet | I69: Uarmeret betondæk | K69: Armeret betondæk | N69: Ligning 29+27 | O69: aw=(hb·Db)/(k·da)
B70: Revnevidde (app 5.3 lign. 73 eller MST nr. 7 1998 - lign 40) | C70: w | D70: mm | E70: =D_Ind_w ->  | F70: =IF(ISNUMBER(B_Ind_Db),IndLigning40(B_Ind_hb,B_Ind_Db,B_Ind_k,B_Ind_da,B_Ind_Es, B_Ind_Eb,B_Ind_eg),IndLigning73(B_Ind_eg,B_Ind_Lb,B_Ind_Ll, B_Ind_ltot)) ->  | I70: app 5.3 lign. 73 | J70: w=eg·lb·ll/ltot | K70: Ligning 40 | L70: w=5·10-5·ss·(aw)½ | N70: Ligning 39+28 | O70: ss=(Es·eg)/[(1+(Es/Eb)·j)·100] | T70: B_Ind_w
N71: Ligning 37 | O71: j=(p·da2)/(4·hb·Db)
B72: Basissvindet (MST nr. 7 1998 - lign 31) | C72: ec | D72: % | E72: =D_Ind_ec -> 0.05329341317 | F72: =0.089*(100-B_Ind_RF)/(167-B_Ind_RF) -> 0.05329341317 | I72: Ligning 31 | J72: ec=[0,089·(100-RF)]/[167-RF] | T72: B_Ind_ec
B73: Beton-sammensætningskoefficient (MST nr. 7 1998 - lign 32) | C73: kb | E73: =D_Ind_Kb -> 0 | F73: =IndLigning32(B_Ind_CM,B_Ind_wc) -> 0 | I73: Ligning 32 | J73: kb=0,007·CM·(v/c+0,333)·v/c | T73: B_Ind_Kb
B74: Gnmsn. Revneafstand (MST nr. 7 1998 - lign 41+42) | C74: lw | D74: mm | E74: =D_Ind_lw ->  | F74: =IndLigning41_42(B_Ind_hb,B_Ind_Db,B_Ind_k,B_Ind_da) ->  | K74: Ligning 41+42 | L74: lw=1,5 ·aw/p | T74: B_Ind_lw
B75: Total revnelængde (app 5.3 lign. 72 eller MST nr. 7 1998 - lign 43) | C75: ltot | D75: m | E75: =D_Ind_ltot -> 0 | F75: =IF(ISNUMBER(B_Ind_Db),IndLigning43(B_Ind_Lb,B_Ind_lw,B_Ind_Ll),IndLigning72(B_Ind_Lb,B_Ind_Ll)) -> 0 | I75: app 5.3 lign. 72 | J75: ltot=2·(lb+ll) | K75: Ligning 43 | L75: ltot=[(lb·1000)/(lw)-1]·ll+[(ll·1000)/(lw)-1]·lb | T75: B_Ind_ltot
B76: Vol. strøm gennem beton (app 5.3 lign. 70 eller MST nr. 7 1998 - lign 44) | C76: qb | D76: m³/(s ) | E76: =D_Ind_q ->  | F76: =IndLigning44_70(B_Ind_ltot,B_Ind_w,B_Ind_DP,B_Ind_my,B_Ind_hb) ->  | I76: Lingning 44 / 70 | J76: qb=(ltot·w3·DP·10-6)/(12·m·hb) | T76: B_Ind_q
B77: Vol. strøm i bygningen | C77: qbyg | D77: m³/(s ) | E77: =D_ind_qbyg -> 0 | F77: =B_Ind_Ls*B_Ind_Lh*B_Ind_Lb*B_Ind_Ll -> 0 | J77: qbyg=Ls*Lh*lb*ll | T77: B_ind_qbyg
B78: CHECK af volumenstrøm gennem beton | C78: q_check | D78: % | E78: =D_ind_qcheck ->  | F78: =B_Ind_q/B_ind_qbyg ->  | J78: q_check=qc/qbyg | T78: B_ind_qcheck
B79: Vol. strøm gennem beton pr. kvadratmeter gulv (MST nr. 7 1998 - lign 45) | C79: Qb | D79: m³/(s· m²) | F79: =B_Ind_q/(B_Ind_Lb*B_Ind_Ll) ->  | I79: Ligning 30+34+33 | J79: eg=ec·kb·kd·kt=ec·kb·[0,25·(852+2·hb)/(132+2·hb)]·kt
B80: Den frie svindtøjning MST nr. 7 1998 - lign 30 til lign36 | C80: eg | D80: % | E80: =D_Ind_eg ->  | F80: =IndLigning30_33_34(B_Ind_ec,B_Ind_Kb,B_Ind_hb,B_Ind_ts) ->  | I80: Ligning 35 | J80: kt=tsa/(tsa+t0) | T80: B_Ind_eg
I81: Ligning 36 | J81: a=0,75+0,125·b
J82: b=(ln(0,025·2·hb))/ln2
J83: t0=9·((10)½)ab
B85: Stoffer
E87: Stof 1 | G87: Stof 2 | I87: Stof 3 | K87: Stof 4
B88: Navn | C88: Forkortelse | D88: Enhed | E88: Værdi | F88: Beregnet | G88: Værdi | H88: Beregnet | I88: Værdi | J88: Beregnet | K88: Værdi | L88: Beregnet
B89: Forureningskomponent | E89: =D_Ind_stofnavn_1 ->  | G89: =D_Ind_stofnavn_2 ->  | I89: =D_Ind_stofnavn_3 ->  | K89: =D_Ind_stofnavn_4 ->  | T89: B_Ind_stofnavn_n
B90: Poreluftskoncentration / test af andre værdier | C90: CL | D90: mg/m³ | E90: =D_Ind_CL_1-D_Ind_C0_1 -> 0 | F90: =D_Ind_CL_1 -> 0 | G90: =D_Ind_CL_2-D_Ind_C0_2 -> 0 | H90: =D_Ind_CL_2 -> 0 | I90: =D_Ind_CL_3-D_Ind_C0_3 -> 0 | J90: =D_Ind_CL_3 -> 0 | K90: =D_Ind_CL_4-D_Ind_C0_4 -> 0 | L90: =D_Ind_CL_4 -> 0 | T90: B_Ind_CL_n
B91: Baggrundskoncentration | C91: C0 | D91: mg/m³ | E91: =D_Ind_C0_1 -> 0 | G91: =D_Ind_C0_2 -> 0 | I91: =D_Ind_C0_3 -> 0 | K91: =D_Ind_C0_4 -> 0 | T91: B_Ind_C0_n
B92: Diffusionskoefficient luft | C92: DL | D92: m²/s | E92: =D_Ind_DL_1 -> 0 | G92: =D_Ind_DL_2 -> 0 | I92: =D_Ind_DL_3 -> 0 | K92: =D_Ind_DL_4 -> 0 | T92: B_Ind_DL_n
E93: dag-1 | F93: sek-1 | G93: dag-1 | H93: sek-1 | I93: dag-1 | J93: sek-1 | K93: dag-1 | L93: sek-1
B94: Nedbrydningskonstant i poreluft | C94: k1 | D94: dag-1 | E94: =Dataark_Indeklima!E94 -> 0 | F94: =IF(E94>0,E94/(24*60*60),1E-20) -> 1e-20 | G94: =Dataark_Indeklima!I94 -> 0 | H94: =IF(G94>0,G94/(24*60*60),1E-20) -> 1e-20 | I94: =Dataark_Indeklima!M94 -> 0 | J94: =IF(I94>0,I94/(24*60*60),1E-20) -> 1e-20 | K94: =Dataark_Indeklima!Q94 -> 0 | L94: =IF(K94>0,K94/(24*60*60),1E-20) -> 1e-20 | T94: B_Ind_k1_n
B95: Indeklima beregninger
B96: Flux gennem jorden (app. 5.3 ligning 63) | C96: Jz | D96: mg/(m² s) | F96: =IndLigning63(B_Ind_CL_1,B_Ind_X_tot,B_Ind_N_tot,B_Ind_DL_1,B_Ind_k1_1) ->  | H96: =IndLigning63(B_Ind_CL_2,B_Ind_X_tot,B_Ind_N_tot,B_Ind_DL_2,B_Ind_k1_2) ->  | J96: =IndLigning63(B_Ind_CL_3,B_Ind_X_tot,B_Ind_N_tot,B_Ind_DL_3,B_Ind_k1_3) ->  | L96: =IndLigning63(B_Ind_CL_4,B_Ind_X_tot,B_Ind_N_tot,B_Ind_DL_4,B_Ind_k1_4) ->  | M96: Ligning 63 | N96: Jz=CL*X*sqrt(N_tot*DL*k1)*cosh((X-X)*sqrt(k1/(N_tot*DL))] / sinh[x*sqrt(k1/(N_tot*DL))] | T96: B_Ind_Jz_n
B97: Kjord (app. 53 ligning 75) | C97: Kjord | D97: m³/(m²·s) | F97: =B_Ind_Jz_1/B_Ind_CL_1 ->  | H97: =B_Ind_Jz_2/B_Ind_CL_2 ->  | J97: =B_Ind_Jz_3/B_Ind_CL_3 ->  | L97: =B_Ind_Jz_4/B_Ind_CL_4 ->  | M97: Ligning 75 | N97: Kjord=Jz/CL | T97: B_Ind_Kjord_n
B98: Stofspecifik materialekonstant | C98: KN | F98: =B_Ind_Kn*B_Ind_DL_1 ->  | H98: =B_Ind_Kn*B_Ind_DL_2 ->  | J98: =B_Ind_Kn*B_Ind_DL_3 ->  | L98: =B_Ind_Kn*B_Ind_DL_4 ->  | T98: B_Ind_Kn_x
B99: Totalt bidrag til indeluft (app. 53 ligning 77) | C99: Ci | D99: mg/m³ | F99: =IndLigning77(B_Ind_Kn_1,B_Ind_Lb,B_Ind_Ll,B_Ind_Ls,B_Ind_CL_1,B_Ind_Kjord_1,B_Ind_q,B_Ind_Lh) ->  | H99: =IndLigning77(B_Ind_Kn_2,B_Ind_Lb,B_Ind_Ll,B_Ind_Ls,B_Ind_CL_2,B_Ind_Kjord_2,B_Ind_q,B_Ind_Lh) ->  | J99: =IndLigning77(B_Ind_Kn_3,B_Ind_Lb,B_Ind_Ll,B_Ind_Ls,B_Ind_CL_3,B_Ind_Kjord_3,B_Ind_q,B_Ind_Lh) ->  | L99: =IndLigning77(B_Ind_Kn_4,B_Ind_Lb,B_Ind_Ll,B_Ind_Ls,B_Ind_CL_4,B_Ind_Kjord_4,B_Ind_q,B_Ind_Lh) ->  | M99: Ligning 77 | N99: Ci=[(Kn+(qb/Ab))*Cl]/[(Lh*Ls)+(Kn/Kjord)*(Lh*Ls)+Kn+(1/kjord)*(Lh*Ls)*(qb/Ab)] | T99: B_Ind_Ci_n
B100: Poreluftkonc. under gulv (app. 53 ligning 78) | C100: Cp | D100: mg/m³ | F100: =IndLigning78(B_Ind_Ci_1,B_Ind_Lh,B_Ind_Ls,B_Ind_Kn_1,B_Ind_q,B_Ind_Lb,B_Ind_Ll) ->  | H100: =IndLigning78(B_Ind_Ci_2,B_Ind_Lh,B_Ind_Ls,B_Ind_Kn_2,B_Ind_q,B_Ind_Lb,B_Ind_Ll) ->  | J100: =IndLigning78(B_Ind_Ci_3,B_Ind_Lh,B_Ind_Ls,B_Ind_Kn_3,B_Ind_q,B_Ind_Lb,B_Ind_Ll) ->  | L100: =IndLigning78(B_Ind_Ci_4,B_Ind_Lh,B_Ind_Ls,B_Ind_Kn_4,B_Ind_q,B_Ind_Lb,B_Ind_Ll) ->  | M100: Ligning 78 | N100: Cp=Ci*[(Lh*Ls)+Kn] / [Kn+(qb/(lb*Ll))] | T100: B_Ind_Cp_n
B101: Diffusivt bidrag til indeluft (app. 53 ligning 67A) | C101: Cdi | D101: mg/m³ | F101: =IndLigning67A(B_Ind_Kn_1, B_Ind_Cp_1, B_Ind_Ci_1, B_Ind_Lh, B_Ind_Ls) ->  | H101: =IndLigning67A(B_Ind_Kn_2,B_Ind_Cp_2,B_Ind_Ci_2,B_Ind_Lh,B_Ind_Ls) ->  | J101: =IndLigning67A(B_Ind_Kn_3,B_Ind_Cp3,B_Ind_Ci_3,B_Ind_Lh,B_Ind_Ls) ->  | L101: =IndLigning67A(B_Ind_Kn_4,B_Ind_Cp_4,B_Ind_Ci_4,B_Ind_Lh,B_Ind_Ls) ->  | M101: Lign 67A | N101: Cdi=J/(Lh*Ls)=KN*(Ci-Cp)/(Lh*Ls) | T101: B_Ind_Cdi_n
B102: Afdampningskriterie | C102: afd-krit | D102: mg/m³ | E102: =D_Ind_afd_krit_1 -> 0 | G102: =D_Ind_afd_krit_2 -> 0 | I102: =D_Ind_afd_krit_3 -> 0 | K102: =D_Ind_afd_krit_4 -> 0 | N102: lign67 | O102: J=KN*(Ci-Cp) | T102: B_Ind_afd_krit_n
B103: Overskridelse af afdampningskriteriet | D103: gange | F103: =IF(D_Ind_afd_krit_1=0,"Intet kriterie",IF(B_Ind_Ci_1>B_Ind_afd_krit_1,B_Ind_Ci_1/B_Ind_afd_krit_1,"Nej")) -> Intet kriterie | H103: =IF(D_Ind_afd_krit_2=0,"Intet kriterie",IF(B_Ind_Ci_2>B_Ind_afd_krit_2,B_Ind_Ci_2/B_Ind_afd_krit_2,"Nej")) -> Intet kriterie | J103: =IF(D_Ind_afd_krit_3=0,"Intet kriterie",IF(B_Ind_Ci_3>B_Ind_afd_krit_3,B_Ind_Ci_3/B_Ind_afd_krit_3,"Nej")) -> Intet kriterie | L103: =IF(D_Ind_afd_krit_4=0,"Intet kriterie",IF(B_Ind_Ci_4>B_Ind_afd_krit_4,B_Ind_Ci_4/B_Ind_afd_krit_4,"Nej")) -> Intet kriterie | N103: Ligning 77 | O103: Kn={B_Ind_Kn} | Q103: Kjord={B_Ind_Kjord} | T103: B_Ind_oskr_n
B104: Afdampningskriterie | C104: afd-krit-sum | D104: mg/m³ | E104: =D_Ind_afd_krit_sum_1 ->  | G104: =D_Ind_afd_krit_sum_2 ->  | I104: =D_Ind_afd_krit_sum_3 ->  | K104: =D_Ind_afd_krit_sum_4 ->  | O104: Ab={B_Ind_lb}*{B_Ind_ll} | Q104: qb={B_Ind_q} | T104: B_Ind_afd_krit_sum_n
B105: Overskridelse af afdampningskriteriet | D105: gange | F105: =IF(ISNUMBER(E104),IF(F99>E104,F99/E104,"Nej")," ") ->  | H105: =IF(ISNUMBER(G104),IF(H99>G104,H99/G104,"Nej")," ") ->  | J105: =IF(ISNUMBER(I104),IF(J99>I104,J99/I104,"Nej")," ") ->  | L105: =IF(ISNUMBER(K104),IF(L99>K104,L99/K104,"Nej")," ") ->  | O105: Lb={B_Ind_Ls} | Q105: hb={B_Ind_Lh} | T105: B_Ind_oskr_sum_n
O106: CL={B_Ind_CL}
A107: x
B108: Beregning - Indeklima Krybekælder
B109: Betongulv, membran og jord
E111: Betongulv (1) | G111: Membran (2)
C112: Forkortelse | D112: Enhed | E112: Værdi | F112: Beregnet | G112: Værdi | H112: Beregnet | I112: SAMLET
B113: Navn | E113: =D_IndK_navnb_1 -> 0 | G113: =D_IndK_navnb_2 -> 0 | T113: B_IndK_navnb_n
B114: Tykkelse af lag | C114: Xb | D114: m | E114: =D_IndK_Xb_1 -> 0 | F114: =E114/1000 -> 0 | G114: =D_IndK_Xb_2 -> 0 | H114: =G114/1000 -> 0 | I114: =B_IndK_Xb_1+B_IndK_Xb_2 -> 0 | T114: B_IndK_Xb_n
B115: Materialekonstant (app 5.3 - lign 64) | C115: tb | E115: =D_IndK_Nb_1 -> 0 | G115: =D_IndK_Nb_2 -> 0 | T115: B_IndK_Nb_n
B116: Korigeret materialekonstant | C116: N-kor | E116: =F116 -> 1 | F116: =IF((B_IndK_Nb_1)=0,1,(B_IndK_Nb_1)) -> 1 | G116: =H116 -> 1 | H116: =IF((B_IndK_Nb_2)=0,1,(B_IndK_Nb_2)) -> 1 | T116: B_IndK_Nb_kor_n
B117: Mellemregning (app. 5.3 - Lign 80) | E117: =F117 -> 0 | F117: =(B_IndK_Xb_1)*B_IndK_N_kor_1*B_IndK_N_kor_2*B_IndK_N_kor_3*B_IndK_N_kor_4*B_IndK_Nb_kor_2 -> 0 | G117: =H117 -> 0 | H117: =(B_IndK_Xb_2)*B_IndK_N_kor_1*B_IndK_N_kor_2*B_IndK_N_kor_3*B_IndK_N_kor_4*B_IndK_Nb_kor_1 -> 0 | T117: B_IndK_Nb_mel_n
B119: Jord
E121: Jordlag 1 | G121: Jordlag 2 | I121: Jordlag 3 | K121: Jordlag 4
B122: Navn | C122: Forkortelse | D122: Enhed | E122: Værdi | F122: Beregnet | G122: Værdi | H122: Beregnet | I122: Værdi | J122: Beregnet | K122: Værdi | L122: Beregnet | M122: SAMLET
B123: Jordtype | E123: =D_IndK_jordtype_1 -> 0 | G123: =D_IndK_jordtype_2 -> 0 | I123: =D_IndK_jordtype_3 -> 0 | K123: =D_IndK_jordtype_4 -> 0
B124: Jordlag, Dybde fra | C124: x1 | D124: m u.t. | E124: =F124 -> 0 | F124: =I114 -> 0 | G124: =B_IndK_lagtil_1 -> 0 | I124: =B_IndK_lagtil_2 -> 0 | K124: =B_IndK_lagtil_3 -> 0 | T124: B_IndK_lagfra_n
B125: Jordlag, Dybde til | C125: x2 | D125: m u.t. | E125: =D_IndK_lagtil_1 -> 0 | G125: =D_IndK_lagtil_2 -> 0 | I125: =D_IndK_lagtil_3 -> 0 | K125: =D_IndK_lagtil_4 -> 0 | T125: B_IndK_lagtil_n
B126: Tykkelse af jordlag | C126: X | D126: m | E126: =F126 -> 0 | F126: =IF(ISNUMBER(IndK_Jord_dt1),B_IndK_lagtil_1-B_IndK_lagfra_1,0) -> 0 | G126: =H126 -> 0 | H126: =IF(ISNUMBER(IndK_Jord_dt2),B_IndK_lagtil_2-B_IndK_lagfra_2,0) -> 0 | I126: =J126 -> 0 | J126: =IF(ISNUMBER(IndK_Jord_dt3),B_IndK_lagtil_3-B_IndK_lagfra_3,0) -> 0 | K126: =L126 -> 0 | L126: =IF(ISNUMBER(IndK_Jord_dt4),B_IndK_lagtil_4-B_IndK_lagfra_4,0) -> 0 | M126: =B_IndK_X_1+B_IndK_X_2+B_IndK_X_3+B_IndK_X_4+I114 -> 0 | T126: B_IndK_X_n
B127: Check af negativ højde | E127: =F127 -> 0 | F127: =IF(B_IndK_X_1<0,1,0) -> 0 | G127: =H127 -> 0 | H127: =IF(B_IndK_X_2<0,1,0) -> 0 | I127: =J127 -> 0 | J127: =IF(B_IndK_X_3<0,1,0) -> 0 | K127: =L127 -> 0 | L127: =IF(B_IndK_X_4<0,1,0) -> 0 | M127: =IF(B_IndK_negativ_X_1+B_IndK_negativ_X_2+B_IndK_negativ_X_3+B_IndK_negativ_X_4>0,"FEJL!! Der er jordlag med negativ højde"," ") ->  | T127: B_IndK_negativ_X_n
B128: Poreluftvolumen | C128: VL | E128: =D_IndK_VL_1 -> 0 | G128: =D_IndK_VL_2 -> 0 | I128: =D_IndK_VL_3 -> 0 | K128: =D_IndK_VL_4 -> 0 | T128: B_IndK_VL_n
B129: Vand-indhold | C129: VV | E129: =D_IndK_VV_1 -> 0 | G129: =D_IndK_VV_2 -> 0 | I129: =D_IndK_VV_3 -> 0 | K129: =D_IndK_VV_4 -> 0 | T129: B_IndK_VV_n
B130: Samlet porøsitet | C130: e=VL+VV | E130: =F130 -> 0 | F130: =B_IndK_VL_1+B_IndK_VV_1 -> 0 | G130: =H130 -> 0 | H130: =B_IndK_VL_2+B_IndK_VV_2 -> 0 | I130: =J130 -> 0 | J130: =B_IndK_VL_3+B_IndK_VV_3 -> 0 | K130: =L130 -> 0 | L130: =B_IndK_VL_4+B_IndK_VV_4 -> 0 | T130: B_IndK_e_n
B131: Volumen af jordskellet | C131: VJ | E131: =F131 -> 1 | F131: =1-B_IndK_e_1 -> 1 | G131: =H131 -> 1 | H131: =1-B_IndK_e_2 -> 1 | I131: =J131 -> 1 | J131: =1-B_IndK_e_3 -> 1 | K131: =L131 -> 1 | L131: =1-B_IndK_e_4 -> 1 | T131: B_IndK_VJ_n
B132: Materialekonstant (app 5.3 - lign 64) | C132: t | E132: =F132 -> 0 | F132: =IF((B_IndK_e_1)=0,0,((B_IndK_VL_1)^2.5)/(B_IndK_e_1)) -> 0 | G132: =H132 -> 0 | H132: =IF((B_IndK_e_2)=0,0,((B_IndK_VL_2)^2.5)/(B_IndK_e_2)) -> 0 | I132: =J132 -> 0 | J132: =IF((B_IndK_e_3)=0,0,((B_IndK_VL_3)^2.5)/(B_IndK_e_3)) -> 0 | K132: =L132 -> 0 | L132: =IF((B_IndK_e_4)=0,0,((B_IndK_VL_4)^2.5)/(B_IndK_e_4)) -> 0 | T132: B_IndK_N_n
B133: Korigeret materialekonstant | C133: N-kor | E133: =F133 -> 1 | F133: =IF((B_IndK_N_1)=0,1,(B_IndK_N_1)) -> 1 | G133: =H133 -> 1 | H133: =IF((B_IndK_N_2)=0,1,(B_IndK_N_2)) -> 1 | I133: =J133 -> 1 | J133: =IF((B_IndK_N_3)=0,1,(B_IndK_N_3)) -> 1 | K133: =L133 -> 1 | L133: =IF((B_IndK_N_4)=0,1,(B_IndK_N_4)) -> 1 | T133: B_IndK_N_kor_n
B134: Mellemregning (app. 5.3 - Lign 80) | E134: =F134 -> 0 | F134: =(B_IndK_X_1)*B_IndK_N_kor_2*B_IndK_N_kor_3*B_IndK_N_kor_4*B_IndK_Nb_kor_1*B_IndK_Nb_kor_2 -> 0 | G134: =H134 -> 0 | H134: =(B_IndK_X_2)*B_IndK_N_kor_1*B_IndK_N_kor_3*B_IndK_N_kor_4*B_IndK_Nb_kor_1*B_IndK_Nb_kor_2 -> 0 | I134: =J134 -> 0 | J134: =(B_IndK_X_3)*B_IndK_N_kor_1*B_IndK_N_kor_2*B_IndK_N_kor_4*B_IndK_Nb_kor_1*B_IndK_Nb_kor_2 -> 0 | K134: =L134 -> 0 | L134: =(B_IndK_X_4)*B_IndK_N_kor_1*B_IndK_N_kor_2*B_IndK_N_kor_3*B_IndK_Nb_kor_1*B_IndK_Nb_kor_2 -> 0 | T134: B_IndK_N_mel_n
B135: Samlet materiale konstant (app 5.3 - lign. 80) | C135: t* | M135: =(B_IndK_N_kor_1*B_IndK_N_kor_2*B_IndK_N_kor_3*B_IndK_N_kor_4*B_IndK_Nb_kor_1*B_IndK_Nb_kor_2)/(B_IndK_N_mel_1+B_IndK_N_mel_2+B_IndK_N_mel_3+B_IndK_N_mel_4+B_IndK_Nb_mel_1+B_IndK_Nb_mel_2) ->  | T135: B_IndK_N_tot
B137: Bygningsdata
C139: Forkortelse | D139: Enhed | E139: Værdi | F139: Beregnet
B140: Rumtype/anvendelse | E140: =D_IndK_anv -> 0
B141: Loftshøjde | C141: Lh | D141: m | E141: =D_IndK_Lh -> 0 | T141: B_IndK_Lh
B142: Luftskifte | C142: Ls | D142: s-1 | E142: =D_IndK_Ls -> 8.3e-05 | T142: B_IndK_Ls
B143: Gulvbredde | C143: lb | D143: m | E143: =IndK_Lb -> 0 | T143: B_IndK_Lb
B144: Gulvlængde | C144: ll | D144: m | E144: =IndK_Ll -> 0 | T144: B_IndK_Ll
B145: Volumenstrøm i beboelse | C145: Qbeboelse | D145: m³/s | E145: =B_IndK_Ls*B_IndK_Lh*B_IndK_Lb*B_IndK_Ll -> 0 | T145: B_IndK_qbb
B147: Krybekælder
C149: Forkortelse | D149: Enhed | E149: Værdi | F149: Beregnet
B150: Etageadskillelse | E150: =D_IndKk_anv -> 0
B151: Reduktionsfaktoren | C151: Rkr | E151: =D_IndKk_Rkr -> 0 | T151: B_IndKk_Rkr
B152: Loftshøjde | C152: Lh,kr | D152: m | E152: =D_IndKk_Lh -> 0 | T152: B_IndKk_Lh
B153: Gulvbredde | C153: lb,kr | D153: m | E153: =D_IndKk_Lb -> 0 | T153: B_IndKk_Lb
B154: Gulvlængde | C154: ll,kr | D154: m | E154: =D_IndKk_Ll -> 0 | T154: B_IndKk_Ll
B155: Luftskifte | C155: Ls,kr | D155: s-1 | E155: =D_IndKk_Ls ->  | F155: =(B_IndK_qbb)/(B_IndKk_Lh*(B_IndKk_Lb*B_IndKk_Ll)) ->  | J155: Ls,kr=(Lh·Ls·lb·ll)/(Lh,kr·Ls,kr·lb,kr·ll,kr) idet Rkr=1 | T155: B_IndKk_Ls
B156: Vol. strøm i krybekælder | C156: Qbygn | D156: m³/(s ) | E156: =B_IndKk_qbyg_berg ->  | F156: =B_IndKk_Ls*B_IndKk_Ll*B_IndKk_Lb*B_IndKk_Lh ->  | T156: B_IndKk_qbyg
B157: Vol. strøm mellem krybekælder og stueetage | C157: q,gv | D157: m³/(s·m² ) | E157: =D_IndK_qgv ->  | F157: =IF(B_IndKk_qbyg>B_IndK_qbb/B_IndKk_Rkr,B_IndK_qbb/(B_IndKk_Rkr*(B_IndKk_Lb*B_IndKk_Ll)),B_IndKk_qbyg/(B_IndKk_Lb*B_IndKk_Ll)) ->  | J157: qgv=(Lh,kr·Ls,kr·lb,kr·ll,kr)/Rkr | T157: B_IndK_qgv
B158: Check af volumenstrøm | F158: =IF(B_IndK_qgv*B_IndKk_Lh>B_IndKk_qbyg,"FEJL: Luftstrømmen igennem etageadskillelsen er større end luftskiftet i krybekælderen","") ->  | T158: B_IndK_q_check
B159: Beregnet reduktionsfaktor | C159: R,kr | F159: =B_IndK_qbb/(B_IndK_qgv*B_IndKk_Lb*B_IndKk_Ll) ->  | T159: B_IndKk_Rkr_bereg
B160: Check af reduktionsfaktor | F160: =IF(B_IndKk_Rkr_bereg<1,"FEJL: Luftstrømmen igennem etageadskillelsen er større end luftudskiftet i beboelsen","") ->  | T160: B_IndK_Rkr_check
B162: Stoffer
E164: Stof 1 | G164: Stof 2 | I164: Stof 3 | K164: Stof 4
B165: Navn | C165: Forkortelse | D165: Enhed | E165: Værdi | F165: Beregnet | G165: Værdi | H165: Beregnet | I165: Værdi | J165: Beregnet | K165: Værdi | L165: Beregnet
B166: Forureningskomponent | E166: =D_Ind_stofnavn_1 ->  | G166: =D_Ind_stofnavn_2 ->  | I166: =D_Ind_stofnavn_3 ->  | K166: =D_Ind_stofnavn_4 ->  | T166: Anvendes også under Indeklima-terrændæk
B167: Poreluftskoncentration / test af andre værdier | C167: CL | D167: mg/m³ | E167: =D_IndK_CL_1-D_Indk_C0_1 -> 0 | F167: =D_IndK_CL_1 -> 0 | G167: =D_IndK_CL_2-D_Indk_C0_2 -> 0 | H167: =D_IndK_CL_2 -> 0 | I167: =D_IndK_CL_3-D_Indk_C0_3 -> 0 | J167: =D_IndK_CL_3 -> 0 | K167: =D_IndK_CL_4-D_Indk_C0_4 -> 0 | L167: =D_IndK_CL_4 -> 0 | T167: Anvendes også under Indeklima-terrændæk
B168: Baggrundskoncentration | C168: C0 | D168: mg/m³ | E168: =D_Indk_C0_1 -> 0 | G168: =D_Indk_C0_2 -> 0 | I168: =D_Indk_C0_3 -> 0 | K168: =D_Indk_C0_4 -> 0 | T168: Anvendes også under Indeklima-terrændæk
B169: Diffusionskoefficient luft | C169: DL | D169: m²/s | E169: =D_IndK_DL_1 -> 0 | G169: =D_IndK_DL_2 -> 0 | I169: =D_IndK_DL_3 -> 0 | K169: =D_IndK_DL_4 -> 0 | T169: Anvendes også under Indeklima-terrændæk
E170: dag-1 | F170: sek-1 | G170: dag-1 | H170: sek-1 | I170: dag-1 | J170: sek-1 | K170: dag-1 | L170: sek-1
B171: Nedbrydningskonstant i poreluft | C171: k1 | D171: dag-1 | E171: =Dataark_Indeklima!E186 -> 0 | F171: 1e-20 | G171: =Dataark_Indeklima!I186 -> 0 | H171: =IF(G171>0,G171/(60*60*24),1E-20) -> 1e-20 | I171: =Dataark_Indeklima!M186 -> 0 | J171: =IF(I171>0,I171/(60*60*24),1E-20) -> 1e-20 | K171: =Dataark_Indeklima!Q186 -> 0 | L171: =IF(K171>0,K171/(60*60*24),1E-20) -> 1e-20 | T171: Anvendes også under Indeklima-terrændæk
B172: Indeklima beregninger
B173: Flux gennem jorden (app. 5.3 ligning 80) | C173: Jz | D173: mg/(m² s) | F173: =IndLigning80(B_IndK_CL_1,B_IndK_X_tot,B_IndK_N_tot,D_IndK_DL_1,B_Ind_k1_1) ->  | H173: =IndLigning80(B_IndK_CL_2,B_IndK_X_tot,B_IndK_N_tot,D_IndK_DL_2,B_Ind_k1_2) ->  | J173: =IndLigning80(B_IndK_CL_3,B_IndK_X_tot,B_IndK_N_tot,D_IndK_DL_3,B_Ind_k1_3) ->  | L173: =IndLigning80(B_IndK_CL_4,B_IndK_X_tot,B_IndK_N_tot,D_IndK_DL_4,B_Ind_k1_4) ->  | N173: Ligning 80 | O173: Jz=CL*X*sqrt(N_tot*DL*k1) / sinh[x*sqrt(k1/(N_tot*DL))] | T173: B_IndKk_Jz_n
B174: Luftkoncentrationen i krybekælderen (app. 5.3 ligning 81) | C174: Ckr | D174: mg/m³ | F174: =B_IndKk_Jz_1/(B_IndKk_Lh*B_IndKk_Ls) ->  | H174: =B_IndKk_Jz_2/(B_IndKk_Lh*B_IndKk_Ls) ->  | J174: =B_IndKk_Jz_3/(B_IndKk_Lh*B_IndKk_Ls) ->  | L174: =B_IndKk_Jz_4/(B_IndKk_Lh*B_IndKk_Ls) ->  | N174: Ligning 81 | O174: Ckr=Jz/Lkr*hkr | T174: B_IndKk_Ckr_n
B175: Totalt bidrag til indeluft | C175: Ci | D175: mg/m³ | F175: =D_IndKk_Ckr_1/B_IndKk_Rkr_bereg ->  | H175: =D_IndKk_Ckr_2/B_IndKk_Rkr_bereg ->  | J175: =D_IndKk_Ckr_3/B_IndKk_Rkr_bereg ->  | L175: =D_IndKk_Ckr_4/B_IndKk_Rkr_bereg ->  | O175: Ci=Ckr/Rkr | T175: B_IndK_Ci_n
B176: Afdampningskriterie | C176: afd-krit | D176: mg/m³ | E176: =D_Ind_afd_krit_1 -> 0 | G176: =D_Ind_afd_krit_2 -> 0 | I176: =D_Ind_afd_krit_3 -> 0 | K176: =D_Ind_afd_krit_4 -> 0 | T176: Anvendes også under Indeklima-terrændæk
B177: Overskridelse af afdampningskriteriet | D177: gange | F177: =IF(D_Ind_afd_krit_1=0,"Intet kriterie",IF(B_IndK_Ci_1>B_Ind_afd_krit_1,B_IndK_Ci_1/B_Ind_afd_krit_1,"Nej")) -> Intet kriterie | H177: =IF(D_Ind_afd_krit_2=0,"Intet kriterie",IF(B_IndK_Ci_2>B_Ind_afd_krit_2,B_IndK_Ci_2/B_Ind_afd_krit_2,"Nej")) -> Intet kriterie | J177: =IF(D_Ind_afd_krit_3=0,"Intet kriterie",IF(B_IndK_Ci_3>B_Ind_afd_krit_3,B_IndK_Ci_3/B_Ind_afd_krit_3,"Nej")) -> Intet kriterie | L177: =IF(D_Ind_afd_krit_4=0,"Intet kriterie",IF(B_IndK_Ci_4>B_Ind_afd_krit_4,B_IndK_Ci_4/B_Ind_afd_krit_4,"Nej")) -> Intet kriterie | T177: B_IndK_oskr_n
B178: Afdampningskriterie | C178: afd-krit-sum | D178: mg/m³ | E178: =D_Ind_afd_krit_sum_1 ->  | G178: =D_Ind_afd_krit_sum_2 ->  | I178: =D_Ind_afd_krit_sum_3 ->  | K178: =D_Ind_afd_krit_sum_4 ->  | T178: Anvendes også under Indeklima-terrændæk
B179: Overskridelse af afdampningskriteriet | D179: gange | F179: =IF(ISNUMBER(E178),IF(F175>E178,F175/E178,"Nej")," ") ->  | H179: =IF(ISNUMBER(G178),IF(H175>G178,H175/G178,"Nej")," ") ->  | J179: =IF(ISNUMBER(I178),IF(J175>I178,J175/I178,"Nej")," ") ->  | L179: =IF(ISNUMBER(K178),IF(L175>K178,L175/K178,"Nej")," ") ->  | T179: B_IndK_oskr_sum_n

Sheet Udskrift_Indeklima (hidden)
A1: Indeklimaberegning
A2: Lokaliteten
A3: Navn: | B3: =Lok_navn ->  | H3: Lokalitetsnr.: | I3: =Lok_Loknr -> 
A4: Adresse: | B4: =Lok_adr ->  | H4: Postnr/by: | I4: =Lok_postnr -> 
A5: Matrikel nummer: | B5: =Lok_matr ->  | H5: Projekt nr.: | I5: =Lok_projekt -> 
A6: Note | B6: =Lok_note -> 
A7: Jordparametre | C7: Indtastede data angives med fed
A8: Kommentar | B8: =IF( D_Ind_Inf_ComUds,"ja","nej") -> nej | C8: Membran | H8: Kapillarbrydende lag
A9: Membran type | C9: =IF(AND(D_Ind_navnb_1_syst="",Ind_My_Memb=""),"",D_Ind_navnb_1) ->  | F9: Jord type | I9: =IF(AND(D_Ind_navnb_2_syst="",Ind_My_Kab_2=""),"",D_Ind_navnb_2) -> 
A10: Tykkelse | C10: =IF(D_Ind_Xb_1<>0,D_Ind_Xb_1,"") ->  | E10: mm | F10: Tykkelse | I10: =IF(D_Ind_Xb_2<>0,D_Ind_Xb_2,"") ->  | K10: m
A11: Materialekonstant | C11: =IF(B_Ind_Nb_1<>0,D_Ind_Nb_1,"") ->  | F11: Materialekonstant | I11: =IF(B_Ind_Nb_2<>0,D_Ind_Nb_2,"") -> 
A13: Kommentar | B13: =IF( D_Ind_Jord_ComUds,"ja","nej") -> nej | C13: Jordlag 1 | E13: Jordlag 2 | G13: Jordlag 3 | I13: Jordlag 4
A14: Jordtype | C14: =IF(AND(D_Ind_jordtype_1_syst="",Ind_My_Jord1=""),"",D_Ind_jordtype_1) ->  | E14: =IF(AND(D_Ind_jordtype_2_syst="",Ind_My_Jord2=""),"",D_Ind_jordtype_2) ->  | G14: =IF(AND(D_Ind_jordtype_3_syst="",Ind_My_Jord3=""),"",D_Ind_jordtype_3) ->  | I14: =IF(AND(D_Ind_jordtype_4_syst="",Ind_My_Jord4=""),"",D_Ind_jordtype_4) -> 
A15: Jordlag, Dybde fra | C15: =IF($C$14<>"",D_Ind_lagfra_1,"") ->  | E15: =IF($E$14<>"",D_Ind_lagfra_2,"") ->  | G15: =IF($G$14<>"",D_Ind_lagfra_3,"") ->  | I15: =IF($I$14<>"",D_Ind_lagfra_4,"") ->  | K15: m u.t.
A16: Jordlag, Dybde til | C16: =IF(D_Ind_lagtil_1<>0,D_Ind_lagtil_1,"") ->  | E16: =IF(D_Ind_lagtil_2<>0,D_Ind_lagtil_2,"") ->  | G16: =IF(D_Ind_lagtil_3<>0,D_Ind_lagtil_3,"") ->  | I16: =IF(D_Ind_lagtil_4<>0,D_Ind_lagtil_4,"") ->  | K16: m u.t.
A17: Poreluftvolumen | B17: VL | C17: =IF(D_Ind_VL_1_syst<>"",D_Ind_VL_1_syst,"") ->  | D17: =IF(Ind_My_VL1<>"",Ind_My_VL1,"") ->  | E17: =IF(D_Ind_VL_2_syst<>"",D_Ind_VL_2_syst,"") ->  | F17: =IF(Ind_My_VL2<>"",Ind_My_VL2,"") ->  | G17: =IF(D_Ind_VL_3_syst<>"",D_Ind_VL_3_syst,"") ->  | H17: =IF(Ind_My_VL3<>"",Ind_My_VL3,"") ->  | I17: =IF(D_Ind_VL_4_syst<>"",D_Ind_VL_4_syst,"") ->  | J17: =IF(Ind_My_VL4<>"",Ind_My_VL4,"") -> 
A18: Vand-indhold | B18: VV | C18: =IF(D_Ind_VV_1_syst<>"",D_Ind_VV_1_syst,"") ->  | D18: =IF(Ind_My_VV1<>"",Ind_My_VV1,"") ->  | E18: =IF(D_Ind_VV_2_syst<>"",D_Ind_VV_2_syst,"") ->  | F18: =IF(Ind_My_VV2<>"",Ind_My_VV2,"") ->  | G18: =IF(D_Ind_VV_3_syst<>"",D_Ind_VV_3_syst,"") ->  | H18: =IF(Ind_My_VV3<>"",Ind_My_VV3,"") ->  | I18: =IF(D_Ind_VV_4_syst<>"",D_Ind_VV_4_syst,"") ->  | J18: =IF(Ind_My_VV4<>"",Ind_My_VV4,"") -> 
A19: Materialekonstant | C19: =IF(D_Ind_lagtil_1<>0,D_Ind_N_1,"") ->  | E19: =IF(D_Ind_lagtil_2<>0,D_Ind_N_2,"") ->  | G19: =IF(D_Ind_lagtil_3<>0,D_Ind_N_3,"") ->  | I19: =IF(D_Ind_lagtil_4<>0,D_Ind_N_4,"") -> 
A21: Samlet materialekonstant | B21: KW | C21: =B_Ind_N_tot ->  | F21: =D_Ind_negativ_X_tot -> 
A22: Tykkelse af jordlag | C22: =D_Ind_X_tot -> 0 | E22: m
A23: Terrændæk | C23: Kommentar | E23: =IF( D_Ind_Ter_ComUds,"ja","nej") -> nej
A24: Type af terrændæk | C24: =IF(D_Ind_Inddæk_syst<>0,D_Ind_Inddæk_syst,"") ->  | E24: =IF(Ind_My_Inddæk<>"",D_Ind_Inddæk,"") -> 
A26: Betontværsnit | B26: hb | C26: =IF(D_Ind_hb_syst<>"",D_Ind_hb_syst,"") ->  | E26: =IF(Ind_My_hb<>"",D_Ind_hb,"") ->  | G26: mm | H26: Øvrige detaljer se side 3
A27: Bygningsdata | C27: Kommentar | E27: =IF( D_Ind_Byg_ComUds,"ja","nej") -> nej
A28: Rumtype/anvendelse | C28: =IF(D_Ind_anv<>0,D_Ind_anv,"") -> 
A29: Loftshøjde | B29: Lh | E29: =IF(D_Ind_Lh<>"",D_Ind_Lh,"") -> 0 | G29: m
A30: Gulvbredde/-længde | B30: lb/ll | E30: =IF(D_Ind_Lb<>"",D_Ind_Lb,"") -> 0 | F30: =IF(D_Ind_Ll<>"",D_Ind_Ll,"") -> 0 | G30: m
A31: Luftskifte | B31: Ls | C31: =D_Ind_Ls_Sys -> 8.3e-05 | E31: =IF(Ind_My_Ls<>"",D_Ind_Ls,"") ->  | G31: s-1
A32: Trykforskel over betondæk | B32: DP | C32: =D_Ind_DP_Sys -> 5 | E32: =IF(Ind_My_DP<>"",D_Ind_DP,"") ->  | G32: Pa
A34: Stoffer | C34: Angiv signifikant ciffer | F34: 4
A35: Kommentar stoffer | B35: =IF( D_Ind_For_ComUds,"ja","nej") -> nej | C35: Kommentar beregning | F35: =IF( D_Ind_Ind_ComUds,"ja","nej") -> nej
A36: Målepunkt | C36: =D_Enk_MP_1 ->  | E36: =D_Enk_MP_2 ->  | G36: =D_Enk_MP_3 ->  | I36: =D_Enk_MP_4 -> 
A37: Dato | C37: =D_Enk_dato_1 ->  | E37: =D_Enk_dato_2 ->  | G37: =D_Enk_dato_3 ->  | I37: =D_Enk_dato_4 -> 
A38: Forureningskomponent | C38: =D_Ind_stofnavn_1 ->  | E38: =D_Ind_stofnavn_2 ->  | G38: =D_Ind_stofnavn_3 ->  | I38: =D_Ind_stofnavn_4 -> 
A40: Poreluftskoncentration | B40: CL | C40: =IF(D_Ind_CL_1<>0,D_Ind_CL_1,"") ->  | E40: =IF(D_Ind_CL_2<>0,D_Ind_CL_2,"") ->  | G40: =IF(D_Ind_CL_3<>0,D_Ind_CL_3,"") ->  | I40: =IF(D_Ind_CL_4<>0,D_Ind_CL_4,"") ->  | K40: mg/m³
A41: Ikkemålt værdi anvendt | C41: =IF(D_Ind_CL_1<>0,IF(ISNUMBER(Ind_My_CL_1),"Ja","Nej"),"") ->  | E41: =IF(D_Ind_CL_2<>0,IF(ISNUMBER(Ind_My_CL_2),"Ja","Nej"),"") ->  | G41: =IF(D_Ind_CL_3<>0,IF(ISNUMBER(Ind_My_CL_3),"Ja","Nej"),"") ->  | I41: =IF(D_Ind_CL_4<>0,IF(ISNUMBER(Ind_My_CL_4),"Ja","Nej"),"") -> 
A42: Baggrundskoncentration | B42: C0 | C42: =IF(Ind_My_C0_1<>"",D_Ind_C0_1,"") ->  | E42: =IF(Ind_My_C0_2<>"",D_Ind_C0_2,"") ->  | G42: =IF(Ind_My_C0_3<>"",D_Ind_C0_3,"") ->  | I42: =IF(Ind_My_C0_4<>"",D_Ind_C0_4,"") ->  | K42: mg/m³
A43: Diffusionskoefficient luft | B43: DL | C43: =IF(D_Enk_DL_syst_1<>"",D_Enk_DL_syst_1,"") ->  | D43: =IF(Enk_My_DL_1<>"",Enk_My_DL_1,"") ->  | E43: =IF(D_Enk_DL_syst_2<>"",D_Enk_DL_syst_2,"") ->  | F43: =IF(Enk_My_DL_2<>"",Enk_My_DL_2,"") ->  | G43: =IF(D_Enk_DL_syst_3<>"",D_Enk_DL_syst_3,"") ->  | H43: =IF(Enk_My_DL_3<>"",Enk_My_DL_3,"") ->  | I43: =IF(D_Enk_DL_syst_4<>"",D_Enk_DL_syst_4,"") ->  | J43: =IF(Enk_My_DL_4<>"",Enk_My_DL_4,"") ->  | K43: m²/s
A44: Stofflux gennem beton | B44: J | C44: =IF(ISNUMBER(D_Ind_Jz_1_syst),D_Ind_Jz_1_syst,"") ->  | D44: =IF(Ind_My_Jz_1<>"",Ind_My_Jz_1,"") ->  | E44: =IF(ISNUMBER(D_Ind_Jz_2_syst),D_Ind_Jz_2_syst,"") ->  | F44: =IF(Ind_My_Jz_2<>"",Ind_My_Jz_2,"") ->  | G44: =IF(ISNUMBER(D_Ind_Jz_3_syst),D_Ind_Jz_3_syst,"") ->  | H44: =IF(Ind_My_Jz_3<>"",Ind_My_Jz_3,"") ->  | I44: =IF(ISNUMBER(D_Ind_Jz_4_syst),D_Ind_Jz_4_syst,"") ->  | J44: =IF(Ind_My_Jz_4<>"",Ind_My_Jz_4,"") ->  | K44: mg/m²·s
A45: Poreluft koncentration u. gulv | B45: Cp | C45: =IF(D_Ind_stofnavn_1<>"",(ROUND(D_Ind_Cp_1,Inde_ciffer-(INT(LOG(D_Ind_Cp_1))+1))),"") ->  | E45: =IF(D_Ind_stofnavn_2<>"",(ROUND(D_Ind_Cp_2,Inde_ciffer-(INT(LOG(D_Ind_Cp_2))+1))),"") ->  | G45: =IF(D_Ind_stofnavn_3<>"",(ROUND(D_Ind_Cp_3,Inde_ciffer-(INT(LOG(D_Ind_Cp_3))+1))),"") ->  | I45: =IF(D_Ind_stofnavn_4<>"",(ROUND(D_Ind_Cp_4,Inde_ciffer-(INT(LOG(D_Ind_Cp_4))+1))),"") ->  | K45: mg/m³
A46: Diffusivt bidrag til indeluft | B46: Cdi | C46: =IF(D_Ind_stofnavn_1<>"",(ROUND(D_Ind_Cdi_1,Inde_ciffer-(INT(LOG(D_Ind_Cdi_1))+1))),"") ->  | E46: =IF(D_Ind_stofnavn_2<>"",(ROUND(D_Ind_Cdi_2,Inde_ciffer-(INT(LOG(D_Ind_Cdi_2))+1))),"") ->  | G46: =IF(D_Ind_stofnavn_3<>"",(ROUND(D_Ind_Cdi_3,Inde_ciffer-(INT(LOG(D_Ind_Cdi_3))+1))),"") ->  | I46: =IF(D_Ind_stofnavn_4<>"",(ROUND(D_Ind_Cdi_4,Inde_ciffer-(INT(LOG(D_Ind_Cdi_4))+1))),"") ->  | K46: mg/m³
A47: Totalbidrag til indeluft | B47: Ci | C47: =IF(D_Ind_stofnavn_1<>"",(ROUND(D_Ind_Ci_1,Inde_ciffer-(INT(LOG(D_Ind_Ci_1))+1))),"") ->  | E47: =IF(D_Ind_stofnavn_2<>"",(ROUND(D_Ind_Ci_2,Inde_ciffer-(INT(LOG(D_Ind_Ci_2))+1))),"") ->  | G47: =IF(D_Ind_stofnavn_3<>"",(ROUND(D_Ind_Ci_3,Inde_ciffer-(INT(LOG(D_Ind_Ci_3))+1))),"") ->  | I47: =IF(D_Ind_stofnavn_4<>"",(ROUND(D_Ind_Ci_4,Inde_ciffer-(INT(LOG(D_Ind_Ci_4))+1))),"") ->  | K47: mg/m³
A48: Afdampningskriterie | C48: =IF(D_Enk_afd_krit_syst_1<>"",D_Enk_afd_krit_syst_1,"") ->  | D48: =IF(Enk_My_afd_krit_1<>"",Enk_My_afd_krit_1,"") ->  | E48: =IF(D_Enk_afd_krit_syst_2<>"",D_Enk_afd_krit_syst_2,"") ->  | F48: =IF(Enk_My_afd_krit_2<>"",Enk_My_afd_krit_2,"") ->  | G48: =IF(D_Enk_afd_krit_syst_3<>"",D_Enk_afd_krit_syst_3,"") ->  | H48: =IF(Enk_My_afd_krit_3<>"",Enk_My_afd_krit_3,"") ->  | I48: =IF(D_Enk_afd_krit_syst_4<>"",D_Enk_afd_krit_syst_4,"") ->  | J48: =IF(Enk_My_afd_krit_4<>"",Enk_My_afd_krit_4,"") ->  | K48: mg/m³
A49: Overskridelse af kriteriet | C49: =IF(D_Ind_stofnavn_1<>"",D_Ind_oskr_1,"") ->  | E49: =IF(D_Ind_stofnavn_2<>"",D_Ind_oskr_2,"") ->  | G49: =IF(D_Ind_stofnavn_3<>"",D_Ind_oskr_3,"") ->  | I49: =IF(D_Ind_stofnavn_4<>"",D_Ind_oskr_4,"") -> 
A50: Anvendt brugerdata | C50: =IF(D_Ind_stofnavn_1<>"",D_Ind_Brugerdata_1,"") ->  | E50: =IF(D_Ind_stofnavn_2<>"",D_Ind_Brugerdata_2,"") ->  | G50: =IF(D_Ind_stofnavn_3<>"",D_Ind_Brugerdata_3,"") ->  | I50: =IF(D_Ind_stofnavn_4<>"",D_Ind_Brugerdata_4,"") -> 
A52: Beregningerne udført af | K52: Beregningerne kontrolleret /godkendt af
A53: Firmanavn | B53: =Lok_firma ->  | G53: Kontrolleret
A54: Navn/initialer | B54: =Lok_init ->  | G54: Godkendt
A56: Dato/Underskrift
A59: Beregningerne er udført med de ovenfor angivne data og uden at der er foretaget ændringer af beregningsformler
A61: Bemærkninger | B61: =IF(D_Ind_Jord_Com<>"",D_Ind_Jord_Com,"") -> 
A62: om jordlag
A72: Bemærkninger om | B72: =IF(D_Ind_Inf_Com<>"",D_Ind_Inf_Com,"") -> 
A73: Influenszone og membran
A83: Bemærkninger | B83: =IF(D_Ind_For_Com<>"",D_Ind_For_Com,"") -> 
A84: om forurening
A94: Bemærkninger | B94: =IF(D_Enk_Kem_Com<>"",D_Enk_Kem_Com,"") -> 
A95: om kemiske stoffer
A105: Bemærkninger | B105: =IF(D_Ind_Ind_Com<>"",D_Ind_Ind_Com,"") -> 
A106: beregninger
A116: Bemærkninger | B116: =IF(D_Ind_Byg_Com<>"",D_Ind_Byg_Com,"") -> 
A117: om bygningsdata
A127: Bemærkninger | B127: =IF(D_Ind_Ter_Com<>"",D_Ind_Ter_Com,"") -> 
A128: om terrændæk
A138: Detailoplysninger om terrændæk
A139: Type af terrændæk | D139: =IF(D_Ind_Inddæk_syst<>0,D_Ind_Inddæk_syst,"") ->  | F139: =IF(D_Ind_Inddæk<>0,D_Ind_Inddæk,"") -> 
A141: Relativ luftfugtighed | C141: RF | D141: =IF(D_Ind_RF_syst<>0,D_Ind_RF_syst,"") ->  | F141: =IF(Ind_My_RF<>"",D_Ind_RF,"") ->  | H141: %
A142: Vand/cement-tallet | C142: v/c | D142: =IF(D_Ind_wc_syst<>0,D_Ind_wc_syst,"") ->  | F142: =IF(Ind_My_wc<>"",D_Ind_wc,"") -> 
A143: Cementindhold | C143: CM | D143: =IF(D_Ind_CM_syst<>0,D_Ind_CM_syst,"") ->  | F143: =IF(Ind_My_CM<>"",D_Ind_CM,"") ->  | H143: kg/m³
A144: Svindtid | C144: ts | D144: =IF(D_Ind_ts_syst<>0,D_Ind_ts_syst,"") ->  | F144: =IF(Ind_My_ts<>"",D_Ind_ts,"") ->  | H144: døgn
A145: Materialekonst. for beton | C145: Nb | D145: =IF(D_Ind_Nb_syst<>0,D_Ind_Nb_syst,"") ->  | F145: =IF(Ind_My_Nb<>"",D_Ind_Nb,"") -> 
A146: Armeringsdiameter | C146: da | D146: =IF(D_Ind_daCh<>0,D_Ind_daCh,"") ->  | F146: =IF(Ind_My_da<>"",D_Ind_da,"") ->  | H146: mm
A147: Armeringskonstant | C147: k | D147: =IF(D_Ind_k_syst<>0,D_Ind_k_syst,"") ->  | F147: =IF(Ind_My_k<>"",D_Ind_k,"") -> 
A148: Afstand mellem armeringsjern | C148: Db | D148: =IF(D_Ind_Db_syst<>0,D_Ind_Db_syst,"") ->  | F148: =IF(Ind_My_Db<>"",D_Ind_Db,"") ->  | H148: mm
A149: Dynamisk viskositet af luft | C149: m | D149: =IF(D_Ind_my_syst<>0,D_Ind_my_syst,"") -> 1.8e-05 | F149: =IF(Ind_My_my<>"",D_Ind_my,"") ->  | H149: kg/m·s
A150: Elasticitetskoeff. Beton | C150: Eb | D150: =IF(D_Ind_Eb_syst<>0,D_Ind_Eb_syst,"") -> 20000 | F150: =IF(Ind_My_Eb<>"",D_Ind_Eb,"") ->  | H150: MPa
A151: Elasticitetskoeff. Stål (MPa) | C151: Es | D151: =IF(D_Ind_Es_syst<>0,D_Ind_Es_syst,"") -> 210000 | F151: =IF(Ind_My_Es<>"",D_Ind_Es,"") ->  | H151: MPa
A153: Beregnede data om terrændæk
D154: Beregnede værdier | F154: Indtastede (målte) værdier
A156: Materialekonstant for terrændæk | C156: KN | D156: =D_Ind_Kn -> 
A157: Revnevidde | C157: w | D157: =IF(D_Ind_w_Ber,D_Ind_w_Ber,"") ->  | F157: =IF(Ind_My_w<>"",D_Ind_w,"") ->  | H157: mm
A158: Gnmsn. Revneafstand | C158: lw | D158: =IF(D_Ind_lw_Ber,D_Ind_lw_Ber,"") ->  | F158: =IF(Ind_My_Lw<>"",D_Ind_lw,"") ->  | H158: mm
A159: Total revnelængde | C159: ltot | D159: =IF(D_Ind_ltot_Ber,D_Ind_ltot_Ber,"") ->  | F159: =IF(Ind_My_ltot<>"",D_Ind_ltot,"") ->  | H159: mm
A160: Vol. strøm gennem beton | C160: qb | D160: =IF(D_Ind_q_Ber,D_Ind_q_Ber,"") ->  | F160: =IF(Ind_My_q<>"",D_Ind_q,"") ->  | H160: m³/s
A161: Vol. strøm i bygningen | C161: qbyg | D161: =D_ind_qbyg -> 0 | H161: m³/s

Sheet Udskrift_Indeklima_KK (hidden)
A1: Indeklimaberegning
A2: Lokaliteten
A3: Navn: | B3: =Lok_navn ->  | H3: Lokalitetsnr.: | I3: =Lok_Loknr -> 
A4: Adresse: | B4: =Lok_adr ->  | H4: Postnr/by: | I4: =Lok_postnr -> 
A5: Matrikel nummer: | B5: =Lok_matr ->  | H5: Projekt nr.: | I5: =Lok_projekt -> 
A6: Note | B6: =Lok_note -> 
A7: Jordparametre | C7: Indtastede data angives med fed
A8: Kommentar | B8: =IF( D_Ind_Ven_Jord_Com<>"","ja","nej") -> nej | C8: Gulv i kr.kælder | E8: Membran
A9: Gulv/Membran type | C9: =IF(D_IndK_navnb_1=0,"",D_IndK_navnb_1) ->  | E9: =IF(D_IndK_navnb_2=0,"",D_IndK_navnb_2) -> 
A11: Tykkelse | B11: mm | C11: =IF(D_IndK_Xb_1_syst<>0,D_IndK_Xb_1_syst,"") ->  | D11: =IF(IndK_My_Xb_1<>"",IndK_My_Xb_1,"") ->  | E11: =IF(D_IndK_Xb_2_syst<>0,D_IndK_Xb_2_syst,"") ->  | F11: =IF(IndK_My_Xb_2<>"",IndK_My_Xb_2,"") -> 
A12: Materialekonstant | C12: =IF(D_IndK_Nb_1_syst<>0,D_IndK_Nb_1_syst,"") ->  | D12: =IF(IndK_My_Nb_1<>"",IndK_My_Nb_1,"") ->  | E12: =IF(D_IndK_Nb_2_syst<>0,D_IndK_Nb_2_syst,"") ->  | F12: =IF(IndK_My_Nb_2<>"",IndK_My_Nb_2,"") -> 
C14: Jordlag 1 | E14: Jordlag 2 | G14: Jordlag 3 | I14: Jordlag 4
A15: Jordtype | C15: =IF(AND(D_IndK_jordtype_1_syst="",IndK_My_Jord1=""),"",D_IndK_jordtype_1) ->  | E15: =IF(AND(D_IndK_jordtype_2_syst="",IndK_My_Jord2=""),"",D_IndK_jordtype_2) ->  | G15: =IF(AND(D_IndK_jordtype_3_syst="",IndK_My_Jord3=""),"",D_IndK_jordtype_3) ->  | I15: =IF(AND(D_IndK_jordtype_4_syst="",IndK_My_Jord4=""),"",D_IndK_jordtype_4) -> 
A16: Jordlag, Dybde fra | C16: =IF(D_IndK_lagtil_1<>0,D_IndK_lagfra_1,"") ->  | E16: =IF(D_IndK_lagtil_2<>0,D_IndK_lagfra_2,"") ->  | G16: =IF(D_IndK_lagtil_3<>0,D_IndK_lagfra_3,"") ->  | I16: =IF(D_IndK_lagtil_4<>0,D_IndK_lagfra_4,"") ->  | K16: m u.t.
A17: Jordlag, Dybde til | C17: =IF(D_IndK_lagtil_1<>0,D_IndK_lagtil_1,"") ->  | E17: =IF(D_IndK_lagtil_2<>0,D_IndK_lagtil_2,"") ->  | G17: =IF(D_IndK_lagtil_3<>0,D_IndK_lagtil_3,"") ->  | I17: =IF(D_IndK_lagtil_4<>0,D_IndK_lagtil_4,"") ->  | K17: m u.t.
A18: Poreluftvolumen | B18: VL | C18: =IF(D_IndK_VL_1_syst<>"",D_IndK_VL_1_syst,"") ->  | D18: =IF(IndK_My_VL1<>"",IndK_My_VL1,"") ->  | E18: =IF(D_IndK_VL_2_syst<>"",D_IndK_VL_2_syst,"") ->  | F18: =IF(IndK_My_VL2<>"",IndK_My_VL2,"") ->  | G18: =IF(D_IndK_VL_3_syst<>"",D_IndK_VL_3_syst,"") ->  | H18: =IF(IndK_My_VL3<>"",IndK_My_VL3,"") ->  | I18: =IF(D_IndK_VL_4_syst<>"",D_IndK_VL_4_syst,"") ->  | J18: =IF(IndK_My_VL4<>"",IndK_My_VL4,"") -> 
A19: Vand-indhold | B19: VV | C19: =IF(D_IndK_VV_1_syst<>"",D_IndK_VV_1_syst,"") ->  | D19: =IF(IndK_My_VV1<>"",IndK_My_VV1,"") ->  | E19: =IF(D_IndK_VV_2_syst<>"",D_IndK_VV_2_syst,"") ->  | F19: =IF(IndK_My_VV2<>"",IndK_My_VV2,"") ->  | G19: =IF(D_IndK_VV_3_syst<>"",D_IndK_VV_3_syst,"") ->  | H19: =IF(IndK_My_VV3<>"",IndK_My_VV3,"") ->  | I19: =IF(D_IndK_VV_4_syst<>"",D_IndK_VV_4_syst,"") ->  | J19: =IF(IndK_My_VV4<>"",IndK_My_VV4,"") -> 
A20: Materialekonstant | C20: =IF(D_IndK_lagtil_1<>0,D_IndK_N_1,"") ->  | E20: =IF(D_IndK_lagtil_2<>0,D_IndK_N_2,"") ->  | G20: =IF(D_IndK_lagtil_3<>0,D_IndK_N_3,"") ->  | I20: =IF(D_IndK_lagtil_4<>0,D_IndK_N_4,"") -> 
A22: Samlet materialekonstant | B22: KW | C22: =B_IndK_N_tot -> 
A23: Tykkelse af jordlag | C23: =D_IndK_X_tot -> 0 | E23: m | F23: =D_IndK_negativ_X_tot -> 
A24: Bygningsdata | C24: Kommentar | E24: =IF( D_Ind_Ven_Byg_Com<>"","ja","nej") -> nej | H24: Kommentar krybekælder | I24: =IF( D_Ind_Ven_Kryb_Com<>"","ja","nej") -> nej
A25: Rumtype/anvendelse | C25: =IF(D_IndK_anv<>0,D_IndK_anv,"") ->  | G25: Etageadskillelse | I25: =IF(D_IndKk_anv<>0,D_IndKk_anv,"") -> 
G26: Reduktionsfaktor | H26: Rkr | I26: =IF(D_IndKk_Rkr_syst<>0,D_IndKk_Rkr_syst,"") ->  | J26: =IF(IndKk_Rkr<>"",D_IndKk_Rkr,"") -> 
A27: Loftshøjde | B27: Lh | C27: =IF(D_IndK_Lh<>0,D_IndK_Lh,"") ->  | E27: m | G27: Loftshøjde | H27: Lh | I27: =IF(D_IndKk_Lh<>0,D_IndKk_Lh,"") ->  | K27: m
A28: Gulvbredde | B28: lb | C28: =IF(D_IndK_Lb<>0,D_IndK_Lb,"") ->  | E28: m | G28: Gulvbredde | H28: lb | I28: =IF(D_IndKk_Lb<>0,D_IndKk_Lb,"") ->  | K28: m
A29: Gulvlængde | B29: ll | C29: =IF(D_IndK_Ll<>0,D_IndK_Ll,"") ->  | E29: m | G29: Gulvlængde | H29: ll | I29: =IF(D_IndKk_Ll<>0,D_IndKk_Ll,"") ->  | K29: m
A30: Luftskifte | B30: Ls | C30: =D_IndK_Ls_syst -> 8.3e-05 | D30: =IF(IndK_Ls<>"",D_IndK_Ls,"") ->  | E30: m³/s | G30: Luftskifte | H30: Ls | I30: =D_IndKk_Ls_berg ->  | J30: =IF(IndKk_Ls<>"",D_IndKk_Ls,"") ->  | K30: m³/s
G31: Volumenstrøm gennem etageadskillelsen | H31: qgv | I31: =IF(D_IndK_qgv_Beregn<>0,D_IndK_qgv_Beregn,"") ->  | J31: =IF(IndK_qgv<>"",IndK_qgv,"") -> 
A32: Stoffer | C32: Angiv signifikant ciffer | E32: 3
A33: Kommentar om stoffer og beregning | E33: =IF( D_Ind_Ven_For_Com<>"","ja","nej") -> nej
A34: Målepunkt | C34: =D_Enk_MP_1 ->  | E34: =D_Enk_MP_2 ->  | G34: =D_Enk_MP_3 ->  | I34: =D_Enk_MP_4 -> 
A35: Dato | C35: =D_Enk_dato_1 ->  | E35: =D_Enk_dato_2 ->  | G35: =D_Enk_dato_3 ->  | I35: =D_Enk_dato_4 -> 
A36: Forureningskomponent | C36: =D_Ind_stofnavn_1 ->  | E36: =D_Ind_stofnavn_2 ->  | G36: =D_Ind_stofnavn_3 ->  | I36: =D_Ind_stofnavn_4 -> 
A38: Poreluftskoncentration | B38: CL | C38: =IF(D_IndK_CL_1<>0,D_IndK_CL_1,"") ->  | E38: =IF(D_IndK_CL_2<>0,D_IndK_CL_2,"") ->  | G38: =IF(D_IndK_CL_3<>0,D_IndK_CL_3,"") ->  | I38: =IF(D_IndK_CL_4<>0,D_IndK_CL_4,"") ->  | K38: mg/m³
A39: Ikke målt værdi anvendt | C39: =IF(D_IndK_CL_1<>0,IF(ISNUMBER(IndK_My_CL_1),"Ja","Nej"),"") ->  | E39: =IF(D_IndK_CL_2<>0,IF(ISNUMBER(IndK_My_CL_2),"Ja","Nej"),"") ->  | G39: =IF(D_IndK_CL_3<>0,IF(ISNUMBER(IndK_My_CL_3),"Ja","Nej"),"") ->  | I39: =IF(D_IndK_CL_4<>0,IF(ISNUMBER(IndK_My_CL_4),"Ja","Nej"),"") -> 
A40: Baggrundskoncentration | B40: C0 | C40: =IF(D_IndK_CL_1<>0,D_Indk_C0_1,"") ->  | E40: =IF(D_IndK_CL_2<>0,D_Indk_C0_2,"") ->  | G40: =IF(D_IndK_CL_3<>0,D_Indk_C0_3,"") ->  | I40: =IF(D_IndK_CL_4<>0,D_Indk_C0_4,"") ->  | K40: mg/m³
A41: Diffusionskoefficient luft | B41: DL | C41: =IF(D_Enk_DL_syst_1<>"",D_Enk_DL_syst_1,"") ->  | D41: =IF(Enk_My_DL_1<>"",Enk_My_DL_1,"") ->  | E41: =IF(D_Enk_DL_syst_2<>"",D_Enk_DL_syst_2,"") ->  | F41: =IF(Enk_My_DL_2<>"",Enk_My_DL_2,"") ->  | G41: =IF(D_Enk_DL_syst_3<>"",D_Enk_DL_syst_3,"") ->  | H41: =IF(Enk_My_DL_3<>"",Enk_My_DL_3,"") ->  | I41: =IF(D_Enk_DL_syst_4<>"",D_Enk_DL_syst_4,"") ->  | J41: =IF(Enk_My_DL_4<>"",Enk_My_DL_4,"") ->  | K41: m²/s
